Workbook

Sheet Formato a Dici 31 de 2017
A1: ,,,,,,,,,,,,,,,,,,,,,,,,,,
A2: VEEDURIA DISTRITAL - RENDICION DE CUENTAS DE LA GESTION CONTRACTUAL EN EL DISTRITO CAPITAL (Acuerdo 380 de 2009)
A3: INFORMACION GENERAL DE CONTRATACION ENTIDADES DISTRITALES - ENERO 1 A DICIEMBRE 31 DE 2017
A4: 1, Entidad: | E4: ALCALDIALOCAL DE TEUSAQUILLO | H4: 2, Sector: | U4: 9, Nombre de quien diligencia el formato:
A5: 3, Presupuesto Disponible Inversión directa PREDIS: | E5: 12508477746 | H5: 5, Presupuesto Disponible Funcionamiento PREDIS: | I5: 1372000000 | U5: JOSE ANTONIO | V5: ZAWADZKY GONZALEZ
A6: 4, Presupuesto comprometido de inversión según PREDIS : | E6: 12200908650 | H6: 6, Presupuesto comprometido funcionamiento según PREDIS | I6: 1205149231 | U6: Cargo: | V6: Profesional universitario
U7: Dependencia | V7: Alcaldia Local de Teusaquillo
A8: 7, Presupuesto Disponible Operación (Regimen Privado): | E8: 0 | U8: Teléfono: | V8: 28700094
A9: 8, Presupuesto comprometido operación mediante contratos: | E9: 0 | U9: Correo Electrónico | V9: jose.zawadzky@gobiernobogota.gov.co
A10: 1- INFORMACION GENERAL | O10: 2- INFORMACION FINANCIERA | V10: 3 - PLAZOS | AA10: 4 - ESTADO | AF10: 5. % Avance y/o cumplimiento
A11: 1 | B11: 2 | C11: 3 | D11: 4 | F11: 5 | G11: 6 | H11: 7 | I11: 8 | L11: 9 | M11: 10 | O11: 11 | P11: 12 | Q11: 13 | R11: 14 | S11: 15 | T11: 16 | U11: 17 | V11: 18 | W11: 19 | X11: 20 | Y11: 21 | Z11: 22 | AA11: 23 | AF11: 24
A12: Número Contrato | C12: Número de proceso SECOP | D12: Tipo de Contrato | F12: Modalidad de Selección | H12: Objeto | J12: Presupuesto | M12: Contratista | O12: Valor Inicial del contrato | Q12: Valor total reducciones (En valor negativo) | S12: Valor total de adiciones | T12: Valor Final | U12: Giros (Valor en pesos) | V12: Fecha de suscripción (DD/MM/AAAA) | W12: Fecha de inicio (DD/MM/AAAA) | X12: Fecha de terminación (DD/MM/AAAA) | Y12: Plazo en días | Z12: Prórroga | AB12: Celebrado o por iniciar | AC12: En Ejecución | AD12: Terminado | AE12: Liquidado | AF12: % Avance y/o Cumplimiento
B13: Año | E13: Equivalencia Tipo de contrato | G13: Procedimiento o causal | I13: Afectación | J13: Número Programa | K13: Equivalencia número de programa | L13: Número Proyecto | M13: Número de Identificación del contratista | N13: Nombre del contratista | P13: Número de reducciones en valor | R13: Número de adiciones en valor | Z13: Prorroga en días | AA13: Anulado
A14: 1 | B14: 2017 | C14: CPS 001 2017 | D14: 5 | E14: =IF(D14=1,'[1]Tipo '!$B$2,IF(D14=2,'[1]Tipo '!$B$3,IF(D14=3,'[1]Tipo '!$B$4,IF(D14=4,'[1]Tipo '!$B$5,IF(D14=5,'[1]Tipo '!$B$6,IF(D14=6,'[1]Tipo '!$B$7,IF(D14=7,'[1]Tipo '!$B$8,IF(D14=8,'[1]Tipo '!$B$9,IF(D14=9,'[1]Tipo '!$B$10,IF(D14=10,'[1]Tipo '!$B$11,IF(D14=11,'[1]Tipo '!$B$12,IF(D14=12,'[1]Tipo '!$B$13,IF(D14=13,'[1]Tipo '!$B$14,IF(D14=14,'[1]Tipo '!$B$15,IF(D14=15,'[1]Tipo '!$B$16,IF(D14=16,'[1]Tipo '!$B$17,IF(D14=17,'[1]Tipo '!$B$18,IF(D14=18,'[1]Tipo '!$B$19,IF(D14=19,'[1]Tipo '!$B$20,"No ha seleccionado un tipo de contrato válido"))))))))))))))))))) -> CONTRATOS DE PRESTACIÓN DE SERVICIOS PROFESIONALES Y DE APOYO A LA GESTIÓN | F14: CONTRATACIÓN DIRECTA | G14: Prestación de servicios profesionales y de apoyo a la gestión, o para la ejecución de trabajos artísticos que sólo puedan encomendarse a determinadas personas naturales; | H14: El contrato que se pretende celebrar, tendrá por objeto ¿Prestar servicios profesionales al Área de Gestión Jurídica y Policiva relacionados con Establecimientos de Comercio ley 232 de 1995 y Espacio Público, a través de visitas y gestión de conceptos técnicos con el objetivo de evacuar como mínimo el 30% de dichas visitas de acuerdo a lo establecido en los estudios previos.¿ | I14: INVERSIÓN | J14: 45 | K14: =IF(J14=1,'[1]Equivalencia BH-BMPT'!$D$2,IF(J14=2,'[1]Equivalencia BH-BMPT'!$D$3,IF(J14=3,'[1]Equivalencia BH-BMPT'!$D$4,IF(J14=4,'[1]Equivalencia BH-BMPT'!$D$5,IF(J14=5,'[1]Equivalencia BH-BMPT'!$D$6,IF(J14=6,'[1]Equivalencia BH-BMPT'!$D$7,IF(J14=7,'[1]Equivalencia BH-BMPT'!$D$8,IF(J14=8,'[1]Equivalencia BH-BMPT'!$D$9,IF(J14=9,'[1]Equivalencia BH-BMPT'!$D$10,IF(J14=10,'[1]Equivalencia BH-BMPT'!$D$11,IF(J14=11,'[1]Equivalencia BH-BMPT'!$D$12,IF(J14=12,'[1]Equivalencia BH-BMPT'!$D$13,IF(J14=13,'[1]Equivalencia BH-BMPT'!$D$14,IF(J14=14,'[1]Equivalencia BH-BMPT'!$D$15,IF(J14=15,'[1]Equivalencia BH-BMPT'!$D$16,IF(J14=16,'[1]Equivalencia BH-BMPT'!$D$17,IF(J14=17,'[1]Equivalencia BH-BMPT'!$D$18,IF(J14=18,'[1]Equivalencia BH-BMPT'!$D$19,IF(J14=19,'[1]Equivalencia BH-BMPT'!$D$20,IF(J14=20,'[1]Equivalencia BH-BMPT'!$D$21,IF(J14=21,'[1]Equivalencia BH-BMPT'!$D$22,IF(J14=22,'[1]Equivalencia BH-BMPT'!$D$23,IF(J14=23,'[1]Equivalencia BH-BMPT'!#REF!,IF(J14=24,'[1]Equivalencia BH-BMPT'!$D$25,IF(J14=25,'[1]Equivalencia BH-BMPT'!$D$26,IF(J14=26,'[1]Equivalencia BH-BMPT'!$D$27,IF(J14=27,'[1]Equivalencia BH-BMPT'!$D$28,IF(J14=28,'[1]Equivalencia BH-BMPT'!$D$29,IF(J14=29,'[1]Equivalencia BH-BMPT'!$D$30,IF(J14=30,'[1]Equivalencia BH-BMPT'!$D$31,IF(J14=31,'[1]Equivalencia BH-BMPT'!$D$32,IF(J14=32,'[1]Equivalencia BH-BMPT'!$D$33,IF(J14=33,'[1]Equivalencia BH-BMPT'!$D$34,IF(J14=34,'[1]Equivalencia BH-BMPT'!$D$35,IF(J14=35,'[1]Equivalencia BH-BMPT'!$D$36,IF(J14=36,'[1]Equivalencia BH-BMPT'!$D$37,IF(J14=37,'[1]Equivalencia BH-BMPT'!$D$38,IF(J14=38,'[1]Equivalencia BH-BMPT'!#REF!,IF(J14=39,'[1]Equivalencia BH-BMPT'!$D$40,IF(J14=40,'[1]Equivalencia BH-BMPT'!$D$41,IF(J14=41,'[1]Equivalencia BH-BMPT'!$D$42,IF(J14=42,'[1]Equivalencia BH-BMPT'!$D$43,IF(J14=43,'[1]Equivalencia BH-BMPT'!$D$44,IF(J14=44,'[1]Equivalencia BH-BMPT'!$D$45,IF(J14=45,'[1]Equivalencia BH-BMPT'!$D$46,"No ha seleccionado un número de programa"))))))))))))))))))))))))))))))))))))))))))))) -> Gobernanza e influencia local, regional e internacional | L14: 1329 | M14: 52530406 | N14: CATHERINNE HURTADO SANCHEZ | O14: 17200000 | S14: 0 | T14: =+O14+S14 -> 17200000 | U14: 17200000 | V14: 2017-02-01 | W14: 2017-02-01 | X14: 2017-05-30 | Y14: 330 | Z14: 0 | AE14: X | AF14: 1
A15: 1 | B15: 2016 | D15: 16 | E15: =IF(D15=1,'[1]Tipo '!$B$2,IF(D15=2,'[1]Tipo '!$B$3,IF(D15=3,'[1]Tipo '!$B$4,IF(D15=4,'[1]Tipo '!$B$5,IF(D15=5,'[1]Tipo '!$B$6,IF(D15=6,'[1]Tipo '!$B$7,IF(D15=7,'[1]Tipo '!$B$8,IF(D15=8,'[1]Tipo '!$B$9,IF(D15=9,'[1]Tipo '!$B$10,IF(D15=10,'[1]Tipo '!$B$11,IF(D15=11,'[1]Tipo '!$B$12,IF(D15=12,'[1]Tipo '!$B$13,IF(D15=13,'[1]Tipo '!$B$14,IF(D15=14,'[1]Tipo '!$B$15,IF(D15=15,'[1]Tipo '!$B$16,IF(D15=16,'[1]Tipo '!$B$17,IF(D15=17,'[1]Tipo '!$B$18,IF(D15=18,'[1]Tipo '!$B$19,IF(D15=19,'[1]Tipo '!$B$20,"No ha seleccionado un tipo de contrato válido"))))))))))))))))))) -> CONTRATOS INTERADMINISTRATIVOS | F15: CONTRATACIÓN DIRECTA | G15: Contratos interadministrativos | H15: Aunar esfuerzos operativos, administrativos y financieros para realizar actividades de intervención física, social y mantenimiento de los puntos críticos de la localidad de Teusaquillo. | I15: INVERSIÓN | J15: 45 | K15: =IF(J15=1,'[1]Equivalencia BH-BMPT'!$D$2,IF(J15=2,'[1]Equivalencia BH-BMPT'!$D$3,IF(J15=3,'[1]Equivalencia BH-BMPT'!$D$4,IF(J15=4,'[1]Equivalencia BH-BMPT'!$D$5,IF(J15=5,'[1]Equivalencia BH-BMPT'!$D$6,IF(J15=6,'[1]Equivalencia BH-BMPT'!$D$7,IF(J15=7,'[1]Equivalencia BH-BMPT'!$D$8,IF(J15=8,'[1]Equivalencia BH-BMPT'!$D$9,IF(J15=9,'[1]Equivalencia BH-BMPT'!$D$10,IF(J15=10,'[1]Equivalencia BH-BMPT'!$D$11,IF(J15=11,'[1]Equivalencia BH-BMPT'!$D$12,IF(J15=12,'[1]Equivalencia BH-BMPT'!$D$13,IF(J15=13,'[1]Equivalencia BH-BMPT'!$D$14,IF(J15=14,'[1]Equivalencia BH-BMPT'!$D$15,IF(J15=15,'[1]Equivalencia BH-BMPT'!$D$16,IF(J15=16,'[1]Equivalencia BH-BMPT'!$D$17,IF(J15=17,'[1]Equivalencia BH-BMPT'!$D$18,IF(J15=18,'[1]Equivalencia BH-BMPT'!$D$19,IF(J15=19,'[1]Equivalencia BH-BMPT'!$D$20,IF(J15=20,'[1]Equivalencia BH-BMPT'!$D$21,IF(J15=21,'[1]Equivalencia BH-BMPT'!$D$22,IF(J15=22,'[1]Equivalencia BH-BMPT'!$D$23,IF(J15=23,'[1]Equivalencia BH-BMPT'!#REF!,IF(J15=24,'[1]Equivalencia BH-BMPT'!$D$25,IF(J15=25,'[1]Equivalencia BH-BMPT'!$D$26,IF(J15=26,'[1]Equivalencia BH-BMPT'!$D$27,IF(J15=27,'[1]Equivalencia BH-BMPT'!$D$28,IF(J15=28,'[1]Equivalencia BH-BMPT'!$D$29,IF(J15=29,'[1]Equivalencia BH-BMPT'!$D$30,IF(J15=30,'[1]Equivalencia BH-BMPT'!$D$31,IF(J15=31,'[1]Equivalencia BH-BMPT'!$D$32,IF(J15=32,'[1]Equivalencia BH-BMPT'!$D$33,IF(J15=33,'[1]Equivalencia BH-BMPT'!$D$34,IF(J15=34,'[1]Equivalencia BH-BMPT'!$D$35,IF(J15=35,'[1]Equivalencia BH-BMPT'!$D$36,IF(J15=36,'[1]Equivalencia BH-BMPT'!$D$37,IF(J15=37,'[1]Equivalencia BH-BMPT'!$D$38,IF(J15=38,'[1]Equivalencia BH-BMPT'!#REF!,IF(J15=39,'[1]Equivalencia BH-BMPT'!$D$40,IF(J15=40,'[1]Equivalencia BH-BMPT'!$D$41,IF(J15=41,'[1]Equivalencia BH-BMPT'!$D$42,IF(J15=42,'[1]Equivalencia BH-BMPT'!$D$43,IF(J15=43,'[1]Equivalencia BH-BMPT'!$D$44,IF(J15=44,'[1]Equivalencia BH-BMPT'!$D$45,IF(J15=45,'[1]Equivalencia BH-BMPT'!$D$46,"No ha seleccionado un número de programa"))))))))))))))))))))))))))))))))))))))))))))) -> Gobernanza e influencia local, regional e internacional | L15: 1329 | M15: 830128286 | N15: AGUAS DE BOGOTA S A ESP | O15: 56500000 | S15: 0 | T15: =+O15+S15 -> 56500000 | U15: 0 | V15: 2017-11-09 | W15: 2017-12-01 | X15: 2018-06-30 | Y15: 210 | Z15: 0 | AC15: X | AF15: 0
A16: 2 | B16: 2017 | D16: 16 | E16: =IF(D16=1,'[1]Tipo '!$B$2,IF(D16=2,'[1]Tipo '!$B$3,IF(D16=3,'[1]Tipo '!$B$4,IF(D16=4,'[1]Tipo '!$B$5,IF(D16=5,'[1]Tipo '!$B$6,IF(D16=6,'[1]Tipo '!$B$7,IF(D16=7,'[1]Tipo '!$B$8,IF(D16=8,'[1]Tipo '!$B$9,IF(D16=9,'[1]Tipo '!$B$10,IF(D16=10,'[1]Tipo '!$B$11,IF(D16=11,'[1]Tipo '!$B$12,IF(D16=12,'[1]Tipo '!$B$13,IF(D16=13,'[1]Tipo '!$B$14,IF(D16=14,'[1]Tipo '!$B$15,IF(D16=15,'[1]Tipo '!$B$16,IF(D16=16,'[1]Tipo '!$B$17,IF(D16=17,'[1]Tipo '!$B$18,IF(D16=18,'[1]Tipo '!$B$19,IF(D16=19,'[1]Tipo '!$B$20,"No ha seleccionado un tipo de contrato válido"))))))))))))))))))) -> CONTRATOS INTERADMINISTRATIVOS | F16: CONTRATACIÓN DIRECTA | G16: Contratos interadministrativos | H16: Aunar Esfuerzos Técnicos Administrativos y financieros para desarrollar acciones de Atención integral a personas en condición de discapacidad, a través del otorgamientos de ayudas técnicas y actividades complementaria para la familia y sus cuidadores. | I16: INVERSIÓN | J16: 3 | K16: =IF(J16=1,'[1]Equivalencia BH-BMPT'!$D$2,IF(J16=2,'[1]Equivalencia BH-BMPT'!$D$3,IF(J16=3,'[1]Equivalencia BH-BMPT'!$D$4,IF(J16=4,'[1]Equivalencia BH-BMPT'!$D$5,IF(J16=5,'[1]Equivalencia BH-BMPT'!$D$6,IF(J16=6,'[1]Equivalencia BH-BMPT'!$D$7,IF(J16=7,'[1]Equivalencia BH-BMPT'!$D$8,IF(J16=8,'[1]Equivalencia BH-BMPT'!$D$9,IF(J16=9,'[1]Equivalencia BH-BMPT'!$D$10,IF(J16=10,'[1]Equivalencia BH-BMPT'!$D$11,IF(J16=11,'[1]Equivalencia BH-BMPT'!$D$12,IF(J16=12,'[1]Equivalencia BH-BMPT'!$D$13,IF(J16=13,'[1]Equivalencia BH-BMPT'!$D$14,IF(J16=14,'[1]Equivalencia BH-BMPT'!$D$15,IF(J16=15,'[1]Equivalencia BH-BMPT'!$D$16,IF(J16=16,'[1]Equivalencia BH-BMPT'!$D$17,IF(J16=17,'[1]Equivalencia BH-BMPT'!$D$18,IF(J16=18,'[1]Equivalencia BH-BMPT'!$D$19,IF(J16=19,'[1]Equivalencia BH-BMPT'!$D$20,IF(J16=20,'[1]Equivalencia BH-BMPT'!$D$21,IF(J16=21,'[1]Equivalencia BH-BMPT'!$D$22,IF(J16=22,'[1]Equivalencia BH-BMPT'!$D$23,IF(J16=23,'[1]Equivalencia BH-BMPT'!#REF!,IF(J16=24,'[1]Equivalencia BH-BMPT'!$D$25,IF(J16=25,'[1]Equivalencia BH-BMPT'!$D$26,IF(J16=26,'[1]Equivalencia BH-BMPT'!$D$27,IF(J16=27,'[1]Equivalencia BH-BMPT'!$D$28,IF(J16=28,'[1]Equivalencia BH-BMPT'!$D$29,IF(J16=29,'[1]Equivalencia BH-BMPT'!$D$30,IF(J16=30,'[1]Equivalencia BH-BMPT'!$D$31,IF(J16=31,'[1]Equivalencia BH-BMPT'!$D$32,IF(J16=32,'[1]Equivalencia BH-BMPT'!$D$33,IF(J16=33,'[1]Equivalencia BH-BMPT'!$D$34,IF(J16=34,'[1]Equivalencia BH-BMPT'!$D$35,IF(J16=35,'[1]Equivalencia BH-BMPT'!$D$36,IF(J16=36,'[1]Equivalencia BH-BMPT'!$D$37,IF(J16=37,'[1]Equivalencia BH-BMPT'!$D$38,IF(J16=38,'[1]Equivalencia BH-BMPT'!#REF!,IF(J16=39,'[1]Equivalencia BH-BMPT'!$D$40,IF(J16=40,'[1]Equivalencia BH-BMPT'!$D$41,IF(J16=41,'[1]Equivalencia BH-BMPT'!$D$42,IF(J16=42,'[1]Equivalencia BH-BMPT'!$D$43,IF(J16=43,'[1]Equivalencia BH-BMPT'!$D$44,IF(J16=44,'[1]Equivalencia BH-BMPT'!$D$45,IF(J16=45,'[1]Equivalencia BH-BMPT'!$D$46,"No ha seleccionado un número de programa"))))))))))))))))))))))))))))))))))))))))))))) -> Igualdad y autonomía para una Bogotá incluyente | L16: 1354 | M16: 900971006 | N16: SUBRED INTEGRADA DE SERVICIOS DE SALUD NORTE ESE | O16: 106720000 | S16: 0 | T16: 106720000 | U16: 0 | V16: 2017-11-10 | W16: 2017-11-10 | Z16: 0 | AC16: X | AF16: 0
A17: 2 | B17: 2016 | C17: CPS 02 2017 | D17: 5 | E17: =IF(D17=1,'[1]Tipo '!$B$2,IF(D17=2,'[1]Tipo '!$B$3,IF(D17=3,'[1]Tipo '!$B$4,IF(D17=4,'[1]Tipo '!$B$5,IF(D17=5,'[1]Tipo '!$B$6,IF(D17=6,'[1]Tipo '!$B$7,IF(D17=7,'[1]Tipo '!$B$8,IF(D17=8,'[1]Tipo '!$B$9,IF(D17=9,'[1]Tipo '!$B$10,IF(D17=10,'[1]Tipo '!$B$11,IF(D17=11,'[1]Tipo '!$B$12,IF(D17=12,'[1]Tipo '!$B$13,IF(D17=13,'[1]Tipo '!$B$14,IF(D17=14,'[1]Tipo '!$B$15,IF(D17=15,'[1]Tipo '!$B$16,IF(D17=16,'[1]Tipo '!$B$17,IF(D17=17,'[1]Tipo '!$B$18,IF(D17=18,'[1]Tipo '!$B$19,IF(D17=19,'[1]Tipo '!$B$20,"No ha seleccionado un tipo de contrato válido"))))))))))))))))))) -> CONTRATOS DE PRESTACIÓN DE SERVICIOS PROFESIONALES Y DE APOYO A LA GESTIÓN | F17: CONTRATACIÓN DIRECTA | G17: Prestación de servicios profesionales y de apoyo a la gestión, o para la ejecución de trabajos artísticos que sólo puedan encomendarse a determinadas personas naturales; | H17: EL CONTRATO QUE SE PRETENDE CELEBRAR TENDRA POR OBJETO: EL CONTRATISTA SE OBLIGA A PRESTAR SUS SERVICIOS ESPECIALIZADOS COMO ABOGADO DEL ESPACHO DEL ALCALDE LOCAL DE TEUSAQUILLO. | I17: INVERSIÓN | J17: 45 | K17: =IF(J17=1,'[1]Equivalencia BH-BMPT'!$D$2,IF(J17=2,'[1]Equivalencia BH-BMPT'!$D$3,IF(J17=3,'[1]Equivalencia BH-BMPT'!$D$4,IF(J17=4,'[1]Equivalencia BH-BMPT'!$D$5,IF(J17=5,'[1]Equivalencia BH-BMPT'!$D$6,IF(J17=6,'[1]Equivalencia BH-BMPT'!$D$7,IF(J17=7,'[1]Equivalencia BH-BMPT'!$D$8,IF(J17=8,'[1]Equivalencia BH-BMPT'!$D$9,IF(J17=9,'[1]Equivalencia BH-BMPT'!$D$10,IF(J17=10,'[1]Equivalencia BH-BMPT'!$D$11,IF(J17=11,'[1]Equivalencia BH-BMPT'!$D$12,IF(J17=12,'[1]Equivalencia BH-BMPT'!$D$13,IF(J17=13,'[1]Equivalencia BH-BMPT'!$D$14,IF(J17=14,'[1]Equivalencia BH-BMPT'!$D$15,IF(J17=15,'[1]Equivalencia BH-BMPT'!$D$16,IF(J17=16,'[1]Equivalencia BH-BMPT'!$D$17,IF(J17=17,'[1]Equivalencia BH-BMPT'!$D$18,IF(J17=18,'[1]Equivalencia BH-BMPT'!$D$19,IF(J17=19,'[1]Equivalencia BH-BMPT'!$D$20,IF(J17=20,'[1]Equivalencia BH-BMPT'!$D$21,IF(J17=21,'[1]Equivalencia BH-BMPT'!$D$22,IF(J17=22,'[1]Equivalencia BH-BMPT'!$D$23,IF(J17=23,'[1]Equivalencia BH-BMPT'!#REF!,IF(J17=24,'[1]Equivalencia BH-BMPT'!$D$25,IF(J17=25,'[1]Equivalencia BH-BMPT'!$D$26,IF(J17=26,'[1]Equivalencia BH-BMPT'!$D$27,IF(J17=27,'[1]Equivalencia BH-BMPT'!$D$28,IF(J17=28,'[1]Equivalencia BH-BMPT'!$D$29,IF(J17=29,'[1]Equivalencia BH-BMPT'!$D$30,IF(J17=30,'[1]Equivalencia BH-BMPT'!$D$31,IF(J17=31,'[1]Equivalencia BH-BMPT'!$D$32,IF(J17=32,'[1]Equivalencia BH-BMPT'!$D$33,IF(J17=33,'[1]Equivalencia BH-BMPT'!$D$34,IF(J17=34,'[1]Equivalencia BH-BMPT'!$D$35,IF(J17=35,'[1]Equivalencia BH-BMPT'!$D$36,IF(J17=36,'[1]Equivalencia BH-BMPT'!$D$37,IF(J17=37,'[1]Equivalencia BH-BMPT'!$D$38,IF(J17=38,'[1]Equivalencia BH-BMPT'!#REF!,IF(J17=39,'[1]Equivalencia BH-BMPT'!$D$40,IF(J17=40,'[1]Equivalencia BH-BMPT'!$D$41,IF(J17=41,'[1]Equivalencia BH-BMPT'!$D$42,IF(J17=42,'[1]Equivalencia BH-BMPT'!$D$43,IF(J17=43,'[1]Equivalencia BH-BMPT'!$D$44,IF(J17=44,'[1]Equivalencia BH-BMPT'!$D$45,IF(J17=45,'[1]Equivalencia BH-BMPT'!$D$46,"No ha seleccionado un número de programa"))))))))))))))))))))))))))))))))))))))))))))) -> Gobernanza e influencia local, regional e internacional | L17: 1329 | M17: 79692076 | N17: FABIO ALBERTO ALZATE CARREÑO | O17: 56800000 | S17: 0 | T17: 56800000 | U17: 56800000 | V17: 2017-02-10 | W17: 2017-02-10 | X17: 2017-10-09 | Y17: 240 | Z17: 0 | AE17: X | AF17: 1
A18: 3 | B18: 2017 | D18: 16 | E18: =IF(D18=1,'[1]Tipo '!$B$2,IF(D18=2,'[1]Tipo '!$B$3,IF(D18=3,'[1]Tipo '!$B$4,IF(D18=4,'[1]Tipo '!$B$5,IF(D18=5,'[1]Tipo '!$B$6,IF(D18=6,'[1]Tipo '!$B$7,IF(D18=7,'[1]Tipo '!$B$8,IF(D18=8,'[1]Tipo '!$B$9,IF(D18=9,'[1]Tipo '!$B$10,IF(D18=10,'[1]Tipo '!$B$11,IF(D18=11,'[1]Tipo '!$B$12,IF(D18=12,'[1]Tipo '!$B$13,IF(D18=13,'[1]Tipo '!$B$14,IF(D18=14,'[1]Tipo '!$B$15,IF(D18=15,'[1]Tipo '!$B$16,IF(D18=16,'[1]Tipo '!$B$17,IF(D18=17,'[1]Tipo '!$B$18,IF(D18=18,'[1]Tipo '!$B$19,IF(D18=19,'[1]Tipo '!$B$20,"No ha seleccionado un tipo de contrato válido"))))))))))))))))))) -> CONTRATOS INTERADMINISTRATIVOS | F18: CONTRATACIÓN DIRECTA | G18: Contratos interadministrativos | H18: OBJETO: El convenio interadministrativo de cofinanciación, que se pretende celebrar, tendrá por objeto ¿¿Aunar esfuerzos institucionales, técnicos, económicos y administrativos con el fin de realizar actividades de mantenimiento al arbolado joven, así como el Manejo Integral de Plagas y Enfermedades ¿MIPE en el arbolado adulto, en los lugares que sean designados por el comité técnico¿, en el marco de la ejecución del Proyecto No. 1330 denominado: ¿Teusaquillo Mejor Para el Ambiente¿. | I18: INVERSIÓN | J18: 38 | K18: Recuperación y manejo de la Estructura Ecológica Principal | L18: 1330 | M18: 860030197 | N18: JARDIN BOTANICO JOSE CELESTINO MUTIS | O18: 97500000 | S18: 0 | T18: 97500000 | U18: 0 | V18: 2017-11-10 | Y18: 180 | Z18: 0 | AB18: X | AF18: 0
A19: 3 | B19: 2017 | C19: CPS 03 2017 | D19: 5 | E19: =IF(D19=1,'[1]Tipo '!$B$2,IF(D19=2,'[1]Tipo '!$B$3,IF(D19=3,'[1]Tipo '!$B$4,IF(D19=4,'[1]Tipo '!$B$5,IF(D19=5,'[1]Tipo '!$B$6,IF(D19=6,'[1]Tipo '!$B$7,IF(D19=7,'[1]Tipo '!$B$8,IF(D19=8,'[1]Tipo '!$B$9,IF(D19=9,'[1]Tipo '!$B$10,IF(D19=10,'[1]Tipo '!$B$11,IF(D19=11,'[1]Tipo '!$B$12,IF(D19=12,'[1]Tipo '!$B$13,IF(D19=13,'[1]Tipo '!$B$14,IF(D19=14,'[1]Tipo '!$B$15,IF(D19=15,'[1]Tipo '!$B$16,IF(D19=16,'[1]Tipo '!$B$17,IF(D19=17,'[1]Tipo '!$B$18,IF(D19=18,'[1]Tipo '!$B$19,IF(D19=19,'[1]Tipo '!$B$20,"No ha seleccionado un tipo de contrato válido"))))))))))))))))))) -> CONTRATOS DE PRESTACIÓN DE SERVICIOS PROFESIONALES Y DE APOYO A LA GESTIÓN | F19: CONTRATACIÓN DIRECTA | G19: Prestación de servicios profesionales y de apoyo a la gestión, o para la ejecución de trabajos artísticos que sólo puedan encomendarse a determinadas personas naturales; | H19: El contrato que se pretende celebrar, tendrá por objeto ¿EL CONTRATISTA SE OBLIGA PARA CON EL FONDO LOCAL DE TEUSAQUILLO A PRESTAR SUS SERVICIOS PROFESIONALES ESPECIALIZADOS AL AREA DE GESTION DE DESARROLLO LOCAL | I19: INVERSIÓN | J19: 45 | K19: =IF(J19=1,'[1]Equivalencia BH-BMPT'!$D$2,IF(J19=2,'[1]Equivalencia BH-BMPT'!$D$3,IF(J19=3,'[1]Equivalencia BH-BMPT'!$D$4,IF(J19=4,'[1]Equivalencia BH-BMPT'!$D$5,IF(J19=5,'[1]Equivalencia BH-BMPT'!$D$6,IF(J19=6,'[1]Equivalencia BH-BMPT'!$D$7,IF(J19=7,'[1]Equivalencia BH-BMPT'!$D$8,IF(J19=8,'[1]Equivalencia BH-BMPT'!$D$9,IF(J19=9,'[1]Equivalencia BH-BMPT'!$D$10,IF(J19=10,'[1]Equivalencia BH-BMPT'!$D$11,IF(J19=11,'[1]Equivalencia BH-BMPT'!$D$12,IF(J19=12,'[1]Equivalencia BH-BMPT'!$D$13,IF(J19=13,'[1]Equivalencia BH-BMPT'!$D$14,IF(J19=14,'[1]Equivalencia BH-BMPT'!$D$15,IF(J19=15,'[1]Equivalencia BH-BMPT'!$D$16,IF(J19=16,'[1]Equivalencia BH-BMPT'!$D$17,IF(J19=17,'[1]Equivalencia BH-BMPT'!$D$18,IF(J19=18,'[1]Equivalencia BH-BMPT'!$D$19,IF(J19=19,'[1]Equivalencia BH-BMPT'!$D$20,IF(J19=20,'[1]Equivalencia BH-BMPT'!$D$21,IF(J19=21,'[1]Equivalencia BH-BMPT'!$D$22,IF(J19=22,'[1]Equivalencia BH-BMPT'!$D$23,IF(J19=23,'[1]Equivalencia BH-BMPT'!#REF!,IF(J19=24,'[1]Equivalencia BH-BMPT'!$D$25,IF(J19=25,'[1]Equivalencia BH-BMPT'!$D$26,IF(J19=26,'[1]Equivalencia BH-BMPT'!$D$27,IF(J19=27,'[1]Equivalencia BH-BMPT'!$D$28,IF(J19=28,'[1]Equivalencia BH-BMPT'!$D$29,IF(J19=29,'[1]Equivalencia BH-BMPT'!$D$30,IF(J19=30,'[1]Equivalencia BH-BMPT'!$D$31,IF(J19=31,'[1]Equivalencia BH-BMPT'!$D$32,IF(J19=32,'[1]Equivalencia BH-BMPT'!$D$33,IF(J19=33,'[1]Equivalencia BH-BMPT'!$D$34,IF(J19=34,'[1]Equivalencia BH-BMPT'!$D$35,IF(J19=35,'[1]Equivalencia BH-BMPT'!$D$36,IF(J19=36,'[1]Equivalencia BH-BMPT'!$D$37,IF(J19=37,'[1]Equivalencia BH-BMPT'!$D$38,IF(J19=38,'[1]Equivalencia BH-BMPT'!#REF!,IF(J19=39,'[1]Equivalencia BH-BMPT'!$D$40,IF(J19=40,'[1]Equivalencia BH-BMPT'!$D$41,IF(J19=41,'[1]Equivalencia BH-BMPT'!$D$42,IF(J19=42,'[1]Equivalencia BH-BMPT'!$D$43,IF(J19=43,'[1]Equivalencia BH-BMPT'!$D$44,IF(J19=44,'[1]Equivalencia BH-BMPT'!$D$45,IF(J19=45,'[1]Equivalencia BH-BMPT'!$D$46,"No ha seleccionado un número de programa"))))))))))))))))))))))))))))))))))))))))))))) -> Gobernanza e influencia local, regional e internacional | L19: 1329 | M19: 52879389 | N19: ROSA VIVIANA CUBILLOS MEDRANO | O19: 56800000 | S19: 0 | T19: 56800000 | U19: 56800000 | V19: 2017-02-10 | W19: 2017-02-10 | X19: 2017-10-09 | Y19: 240 | Z19: 0 | AE19: X | AF19: 1
A20: 4 | B20: 2017 | C20: CPS 04 2017 | D20: 5 | E20: =IF(D20=1,'[1]Tipo '!$B$2,IF(D20=2,'[1]Tipo '!$B$3,IF(D20=3,'[1]Tipo '!$B$4,IF(D20=4,'[1]Tipo '!$B$5,IF(D20=5,'[1]Tipo '!$B$6,IF(D20=6,'[1]Tipo '!$B$7,IF(D20=7,'[1]Tipo '!$B$8,IF(D20=8,'[1]Tipo '!$B$9,IF(D20=9,'[1]Tipo '!$B$10,IF(D20=10,'[1]Tipo '!$B$11,IF(D20=11,'[1]Tipo '!$B$12,IF(D20=12,'[1]Tipo '!$B$13,IF(D20=13,'[1]Tipo '!$B$14,IF(D20=14,'[1]Tipo '!$B$15,IF(D20=15,'[1]Tipo '!$B$16,IF(D20=16,'[1]Tipo '!$B$17,IF(D20=17,'[1]Tipo '!$B$18,IF(D20=18,'[1]Tipo '!$B$19,IF(D20=19,'[1]Tipo '!$B$20,"No ha seleccionado un tipo de contrato válido"))))))))))))))))))) -> CONTRATOS DE PRESTACIÓN DE SERVICIOS PROFESIONALES Y DE APOYO A LA GESTIÓN | F20: CONTRATACIÓN DIRECTA | G20: Prestación de servicios profesionales y de apoyo a la gestión, o para la ejecución de trabajos artísticos que sólo puedan encomendarse a determinadas personas naturales; | H20: El contrato que se pretende celebrar, tendrá por objeto: ¿El contratista se obliga para con la Alcaldía Local De Teusaquillo a prestar sus servicios en el despacho del Alcalde Local, realizando la recepción, tratamiento, procesamiento y conservación del archivo oficial del despacho y las actividades operativas ¿ | I20: INVERSIÓN | J20: 45 | K20: =IF(J20=1,'[1]Equivalencia BH-BMPT'!$D$2,IF(J20=2,'[1]Equivalencia BH-BMPT'!$D$3,IF(J20=3,'[1]Equivalencia BH-BMPT'!$D$4,IF(J20=4,'[1]Equivalencia BH-BMPT'!$D$5,IF(J20=5,'[1]Equivalencia BH-BMPT'!$D$6,IF(J20=6,'[1]Equivalencia BH-BMPT'!$D$7,IF(J20=7,'[1]Equivalencia BH-BMPT'!$D$8,IF(J20=8,'[1]Equivalencia BH-BMPT'!$D$9,IF(J20=9,'[1]Equivalencia BH-BMPT'!$D$10,IF(J20=10,'[1]Equivalencia BH-BMPT'!$D$11,IF(J20=11,'[1]Equivalencia BH-BMPT'!$D$12,IF(J20=12,'[1]Equivalencia BH-BMPT'!$D$13,IF(J20=13,'[1]Equivalencia BH-BMPT'!$D$14,IF(J20=14,'[1]Equivalencia BH-BMPT'!$D$15,IF(J20=15,'[1]Equivalencia BH-BMPT'!$D$16,IF(J20=16,'[1]Equivalencia BH-BMPT'!$D$17,IF(J20=17,'[1]Equivalencia BH-BMPT'!$D$18,IF(J20=18,'[1]Equivalencia BH-BMPT'!$D$19,IF(J20=19,'[1]Equivalencia BH-BMPT'!$D$20,IF(J20=20,'[1]Equivalencia BH-BMPT'!$D$21,IF(J20=21,'[1]Equivalencia BH-BMPT'!$D$22,IF(J20=22,'[1]Equivalencia BH-BMPT'!$D$23,IF(J20=23,'[1]Equivalencia BH-BMPT'!#REF!,IF(J20=24,'[1]Equivalencia BH-BMPT'!$D$25,IF(J20=25,'[1]Equivalencia BH-BMPT'!$D$26,IF(J20=26,'[1]Equivalencia BH-BMPT'!$D$27,IF(J20=27,'[1]Equivalencia BH-BMPT'!$D$28,IF(J20=28,'[1]Equivalencia BH-BMPT'!$D$29,IF(J20=29,'[1]Equivalencia BH-BMPT'!$D$30,IF(J20=30,'[1]Equivalencia BH-BMPT'!$D$31,IF(J20=31,'[1]Equivalencia BH-BMPT'!$D$32,IF(J20=32,'[1]Equivalencia BH-BMPT'!$D$33,IF(J20=33,'[1]Equivalencia BH-BMPT'!$D$34,IF(J20=34,'[1]Equivalencia BH-BMPT'!$D$35,IF(J20=35,'[1]Equivalencia BH-BMPT'!$D$36,IF(J20=36,'[1]Equivalencia BH-BMPT'!$D$37,IF(J20=37,'[1]Equivalencia BH-BMPT'!$D$38,IF(J20=38,'[1]Equivalencia BH-BMPT'!#REF!,IF(J20=39,'[1]Equivalencia BH-BMPT'!$D$40,IF(J20=40,'[1]Equivalencia BH-BMPT'!$D$41,IF(J20=41,'[1]Equivalencia BH-BMPT'!$D$42,IF(J20=42,'[1]Equivalencia BH-BMPT'!$D$43,IF(J20=43,'[1]Equivalencia BH-BMPT'!$D$44,IF(J20=44,'[1]Equivalencia BH-BMPT'!$D$45,IF(J20=45,'[1]Equivalencia BH-BMPT'!$D$46,"No ha seleccionado un número de programa"))))))))))))))))))))))))))))))))))))))))))))) -> Gobernanza e influencia local, regional e internacional | L20: 1329 | M20: 52437503 | N20: OMAIRA ALARCON SALCEDO | O20: 24800000 | S20: 9506667 | T20: 34306667 | U20: 31516667 | V20: 2017-02-10 | W20: 2017-02-10 | X20: 2018-01-10 | Y20: 240 | Z20: 92 | AC20: X | AF20: 0.9186746996
A21: 5 | B21: 2017 | D21: 4 | E21: =IF(D21=1,'[1]Tipo '!$B$2,IF(D21=2,'[1]Tipo '!$B$3,IF(D21=3,'[1]Tipo '!$B$4,IF(D21=4,'[1]Tipo '!$B$5,IF(D21=5,'[1]Tipo '!$B$6,IF(D21=6,'[1]Tipo '!$B$7,IF(D21=7,'[1]Tipo '!$B$8,IF(D21=8,'[1]Tipo '!$B$9,IF(D21=9,'[1]Tipo '!$B$10,IF(D21=10,'[1]Tipo '!$B$11,IF(D21=11,'[1]Tipo '!$B$12,IF(D21=12,'[1]Tipo '!$B$13,IF(D21=13,'[1]Tipo '!$B$14,IF(D21=14,'[1]Tipo '!$B$15,IF(D21=15,'[1]Tipo '!$B$16,IF(D21=16,'[1]Tipo '!$B$17,IF(D21=17,'[1]Tipo '!$B$18,IF(D21=18,'[1]Tipo '!$B$19,IF(D21=19,'[1]Tipo '!$B$20,"No ha seleccionado un tipo de contrato válido"))))))))))))))))))) -> CONTRATOS DE PRESTACIÓN DE SERVICIOS | F21: LICITACIÓN PÚBLICA | G21: No aplica | H21: Adición y Prorroga CPS-005-2016 Prestar el servicio de vigilancia y seguridad privada en la modalidad de vigilancia fija con arma y medios tecnológicos para las instalaciones donde funcionan las sedes de la Alcaldía Local De Teusaquillo, y la Junta Administradora Local de Teusaquillo así como de las personas que se encuentren en el interior de las instalaciones de los bienes muebles de propiedad de la Alcaldía y todos aquellos bienes de los que legalmente sea o llegare a ser responsable, durante la ejecución del contrato, de acuerdo a los presentes estudios previos | I21: FUNCIONAMIENTO | K21: =IF(J21=1,'[1]Equivalencia BH-BMPT'!$D$2,IF(J21=2,'[1]Equivalencia BH-BMPT'!$D$3,IF(J21=3,'[1]Equivalencia BH-BMPT'!$D$4,IF(J21=4,'[1]Equivalencia BH-BMPT'!$D$5,IF(J21=5,'[1]Equivalencia BH-BMPT'!$D$6,IF(J21=6,'[1]Equivalencia BH-BMPT'!$D$7,IF(J21=7,'[1]Equivalencia BH-BMPT'!$D$8,IF(J21=8,'[1]Equivalencia BH-BMPT'!$D$9,IF(J21=9,'[1]Equivalencia BH-BMPT'!$D$10,IF(J21=10,'[1]Equivalencia BH-BMPT'!$D$11,IF(J21=11,'[1]Equivalencia BH-BMPT'!$D$12,IF(J21=12,'[1]Equivalencia BH-BMPT'!$D$13,IF(J21=13,'[1]Equivalencia BH-BMPT'!$D$14,IF(J21=14,'[1]Equivalencia BH-BMPT'!$D$15,IF(J21=15,'[1]Equivalencia BH-BMPT'!$D$16,IF(J21=16,'[1]Equivalencia BH-BMPT'!$D$17,IF(J21=17,'[1]Equivalencia BH-BMPT'!$D$18,IF(J21=18,'[1]Equivalencia BH-BMPT'!$D$19,IF(J21=19,'[1]Equivalencia BH-BMPT'!$D$20,IF(J21=20,'[1]Equivalencia BH-BMPT'!$D$21,IF(J21=21,'[1]Equivalencia BH-BMPT'!$D$22,IF(J21=22,'[1]Equivalencia BH-BMPT'!$D$23,IF(J21=23,'[1]Equivalencia BH-BMPT'!#REF!,IF(J21=24,'[1]Equivalencia BH-BMPT'!$D$25,IF(J21=25,'[1]Equivalencia BH-BMPT'!$D$26,IF(J21=26,'[1]Equivalencia BH-BMPT'!$D$27,IF(J21=27,'[1]Equivalencia BH-BMPT'!$D$28,IF(J21=28,'[1]Equivalencia BH-BMPT'!$D$29,IF(J21=29,'[1]Equivalencia BH-BMPT'!$D$30,IF(J21=30,'[1]Equivalencia BH-BMPT'!$D$31,IF(J21=31,'[1]Equivalencia BH-BMPT'!$D$32,IF(J21=32,'[1]Equivalencia BH-BMPT'!$D$33,IF(J21=33,'[1]Equivalencia BH-BMPT'!$D$34,IF(J21=34,'[1]Equivalencia BH-BMPT'!$D$35,IF(J21=35,'[1]Equivalencia BH-BMPT'!$D$36,IF(J21=36,'[1]Equivalencia BH-BMPT'!$D$37,IF(J21=37,'[1]Equivalencia BH-BMPT'!$D$38,IF(J21=38,'[1]Equivalencia BH-BMPT'!#REF!,IF(J21=39,'[1]Equivalencia BH-BMPT'!$D$40,IF(J21=40,'[1]Equivalencia BH-BMPT'!$D$41,IF(J21=41,'[1]Equivalencia BH-BMPT'!$D$42,IF(J21=42,'[1]Equivalencia BH-BMPT'!$D$43,IF(J21=43,'[1]Equivalencia BH-BMPT'!$D$44,IF(J21=44,'[1]Equivalencia BH-BMPT'!$D$45,IF(J21=45,'[1]Equivalencia BH-BMPT'!$D$46,"No ha seleccionado un número de programa"))))))))))))))))))))))))))))))))))))))))))))) -> No ha seleccionado un número de programa | M21: 860518504 | N21: COMPANIA DE SEGURIDAD NACIONAL COMSENAL LTDA | S21: 44554044 | T21: 44554044 | U21: 44554044 | V21: 2016-04-28 | W21: 2016-05-15 | X21: 2017-07-12 | Y21: 300 | Z21: =90+28 -> 118 | AE21: X | AF21: 1
A22: 5 | B22: 2017 | C22: CPS 05 2017 | D22: 5 | E22: =IF(D22=1,'[1]Tipo '!$B$2,IF(D22=2,'[1]Tipo '!$B$3,IF(D22=3,'[1]Tipo '!$B$4,IF(D22=4,'[1]Tipo '!$B$5,IF(D22=5,'[1]Tipo '!$B$6,IF(D22=6,'[1]Tipo '!$B$7,IF(D22=7,'[1]Tipo '!$B$8,IF(D22=8,'[1]Tipo '!$B$9,IF(D22=9,'[1]Tipo '!$B$10,IF(D22=10,'[1]Tipo '!$B$11,IF(D22=11,'[1]Tipo '!$B$12,IF(D22=12,'[1]Tipo '!$B$13,IF(D22=13,'[1]Tipo '!$B$14,IF(D22=14,'[1]Tipo '!$B$15,IF(D22=15,'[1]Tipo '!$B$16,IF(D22=16,'[1]Tipo '!$B$17,IF(D22=17,'[1]Tipo '!$B$18,IF(D22=18,'[1]Tipo '!$B$19,IF(D22=19,'[1]Tipo '!$B$20,"No ha seleccionado un tipo de contrato válido"))))))))))))))))))) -> CONTRATOS DE PRESTACIÓN DE SERVICIOS PROFESIONALES Y DE APOYO A LA GESTIÓN | F22: CONTRATACIÓN DIRECTA | G22: Prestación de servicios profesionales y de apoyo a la gestión, o para la ejecución de trabajos artísticos que sólo puedan encomendarse a determinadas personas naturales; | H22: El contrato que se pretende celebrar, tendrá por objeto ¿Prestación de servicios profesionales como abogado al Área de Gestión de Desarrollo Local para adelantar trámites precontractuales y contractuales en el marco de los proyectos previstos en el Plan de Desarrollo Local ¿Teusaquillo Mejor para Todos 2017-2020¿. | I22: INVERSIÓN | J22: 45 | K22: =IF(J22=1,'[1]Equivalencia BH-BMPT'!$D$2,IF(J22=2,'[1]Equivalencia BH-BMPT'!$D$3,IF(J22=3,'[1]Equivalencia BH-BMPT'!$D$4,IF(J22=4,'[1]Equivalencia BH-BMPT'!$D$5,IF(J22=5,'[1]Equivalencia BH-BMPT'!$D$6,IF(J22=6,'[1]Equivalencia BH-BMPT'!$D$7,IF(J22=7,'[1]Equivalencia BH-BMPT'!$D$8,IF(J22=8,'[1]Equivalencia BH-BMPT'!$D$9,IF(J22=9,'[1]Equivalencia BH-BMPT'!$D$10,IF(J22=10,'[1]Equivalencia BH-BMPT'!$D$11,IF(J22=11,'[1]Equivalencia BH-BMPT'!$D$12,IF(J22=12,'[1]Equivalencia BH-BMPT'!$D$13,IF(J22=13,'[1]Equivalencia BH-BMPT'!$D$14,IF(J22=14,'[1]Equivalencia BH-BMPT'!$D$15,IF(J22=15,'[1]Equivalencia BH-BMPT'!$D$16,IF(J22=16,'[1]Equivalencia BH-BMPT'!$D$17,IF(J22=17,'[1]Equivalencia BH-BMPT'!$D$18,IF(J22=18,'[1]Equivalencia BH-BMPT'!$D$19,IF(J22=19,'[1]Equivalencia BH-BMPT'!$D$20,IF(J22=20,'[1]Equivalencia BH-BMPT'!$D$21,IF(J22=21,'[1]Equivalencia BH-BMPT'!$D$22,IF(J22=22,'[1]Equivalencia BH-BMPT'!$D$23,IF(J22=23,'[1]Equivalencia BH-BMPT'!#REF!,IF(J22=24,'[1]Equivalencia BH-BMPT'!$D$25,IF(J22=25,'[1]Equivalencia BH-BMPT'!$D$26,IF(J22=26,'[1]Equivalencia BH-BMPT'!$D$27,IF(J22=27,'[1]Equivalencia BH-BMPT'!$D$28,IF(J22=28,'[1]Equivalencia BH-BMPT'!$D$29,IF(J22=29,'[1]Equivalencia BH-BMPT'!$D$30,IF(J22=30,'[1]Equivalencia BH-BMPT'!$D$31,IF(J22=31,'[1]Equivalencia BH-BMPT'!$D$32,IF(J22=32,'[1]Equivalencia BH-BMPT'!$D$33,IF(J22=33,'[1]Equivalencia BH-BMPT'!$D$34,IF(J22=34,'[1]Equivalencia BH-BMPT'!$D$35,IF(J22=35,'[1]Equivalencia BH-BMPT'!$D$36,IF(J22=36,'[1]Equivalencia BH-BMPT'!$D$37,IF(J22=37,'[1]Equivalencia BH-BMPT'!$D$38,IF(J22=38,'[1]Equivalencia BH-BMPT'!#REF!,IF(J22=39,'[1]Equivalencia BH-BMPT'!$D$40,IF(J22=40,'[1]Equivalencia BH-BMPT'!$D$41,IF(J22=41,'[1]Equivalencia BH-BMPT'!$D$42,IF(J22=42,'[1]Equivalencia BH-BMPT'!$D$43,IF(J22=43,'[1]Equivalencia BH-BMPT'!$D$44,IF(J22=44,'[1]Equivalencia BH-BMPT'!$D$45,IF(J22=45,'[1]Equivalencia BH-BMPT'!$D$46,"No ha seleccionado un número de programa"))))))))))))))))))))))))))))))))))))))))))))) -> Gobernanza e influencia local, regional e internacional | L22: 1329 | M22: 53166511 | N22: ANGELA JOHANNA FRANCO CHAVES | O22: 44000000 | S22: 0 | T22: 44000000 | U22: 44000000 | V22: 2017-02-10 | W22: 2017-02-10 | X22: 2017-10-09 | Y22: 240 | Z22: 0 | AE22: X | AF22: 1
A23: 6 | B23: 2017 | D23: 10 | E23: =IF(D23=1,'[1]Tipo '!$B$2,IF(D23=2,'[1]Tipo '!$B$3,IF(D23=3,'[1]Tipo '!$B$4,IF(D23=4,'[1]Tipo '!$B$5,IF(D23=5,'[1]Tipo '!$B$6,IF(D23=6,'[1]Tipo '!$B$7,IF(D23=7,'[1]Tipo '!$B$8,IF(D23=8,'[1]Tipo '!$B$9,IF(D23=9,'[1]Tipo '!$B$10,IF(D23=10,'[1]Tipo '!$B$11,IF(D23=11,'[1]Tipo '!$B$12,IF(D23=12,'[1]Tipo '!$B$13,IF(D23=13,'[1]Tipo '!$B$14,IF(D23=14,'[1]Tipo '!$B$15,IF(D23=15,'[1]Tipo '!$B$16,IF(D23=16,'[1]Tipo '!$B$17,IF(D23=17,'[1]Tipo '!$B$18,IF(D23=18,'[1]Tipo '!$B$19,IF(D23=19,'[1]Tipo '!$B$20,"No ha seleccionado un tipo de contrato válido"))))))))))))))))))) -> SEGUROS | F23: Selección abreviada | G23: Selección abreviada por menor cuantía | H23: Adicionar el contrato 006 DEL 2016 cuyo objeto es ¿Adquirir la póliza de vida grupo de ediles de la Localidad de Teusaquillo, con compañías de seguros generales y/o de vida legalmente constituidas en Colombia, de acuerdo a los presentes estudios previos y pliego de condiciones¿ | I23: FUNCIONAMIENTO | K23: =IF(J23=1,'[1]Equivalencia BH-BMPT'!$D$2,IF(J23=2,'[1]Equivalencia BH-BMPT'!$D$3,IF(J23=3,'[1]Equivalencia BH-BMPT'!$D$4,IF(J23=4,'[1]Equivalencia BH-BMPT'!$D$5,IF(J23=5,'[1]Equivalencia BH-BMPT'!$D$6,IF(J23=6,'[1]Equivalencia BH-BMPT'!$D$7,IF(J23=7,'[1]Equivalencia BH-BMPT'!$D$8,IF(J23=8,'[1]Equivalencia BH-BMPT'!$D$9,IF(J23=9,'[1]Equivalencia BH-BMPT'!$D$10,IF(J23=10,'[1]Equivalencia BH-BMPT'!$D$11,IF(J23=11,'[1]Equivalencia BH-BMPT'!$D$12,IF(J23=12,'[1]Equivalencia BH-BMPT'!$D$13,IF(J23=13,'[1]Equivalencia BH-BMPT'!$D$14,IF(J23=14,'[1]Equivalencia BH-BMPT'!$D$15,IF(J23=15,'[1]Equivalencia BH-BMPT'!$D$16,IF(J23=16,'[1]Equivalencia BH-BMPT'!$D$17,IF(J23=17,'[1]Equivalencia BH-BMPT'!$D$18,IF(J23=18,'[1]Equivalencia BH-BMPT'!$D$19,IF(J23=19,'[1]Equivalencia BH-BMPT'!$D$20,IF(J23=20,'[1]Equivalencia BH-BMPT'!$D$21,IF(J23=21,'[1]Equivalencia BH-BMPT'!$D$22,IF(J23=22,'[1]Equivalencia BH-BMPT'!$D$23,IF(J23=23,'[1]Equivalencia BH-BMPT'!#REF!,IF(J23=24,'[1]Equivalencia BH-BMPT'!$D$25,IF(J23=25,'[1]Equivalencia BH-BMPT'!$D$26,IF(J23=26,'[1]Equivalencia BH-BMPT'!$D$27,IF(J23=27,'[1]Equivalencia BH-BMPT'!$D$28,IF(J23=28,'[1]Equivalencia BH-BMPT'!$D$29,IF(J23=29,'[1]Equivalencia BH-BMPT'!$D$30,IF(J23=30,'[1]Equivalencia BH-BMPT'!$D$31,IF(J23=31,'[1]Equivalencia BH-BMPT'!$D$32,IF(J23=32,'[1]Equivalencia BH-BMPT'!$D$33,IF(J23=33,'[1]Equivalencia BH-BMPT'!$D$34,IF(J23=34,'[1]Equivalencia BH-BMPT'!$D$35,IF(J23=35,'[1]Equivalencia BH-BMPT'!$D$36,IF(J23=36,'[1]Equivalencia BH-BMPT'!$D$37,IF(J23=37,'[1]Equivalencia BH-BMPT'!$D$38,IF(J23=38,'[1]Equivalencia BH-BMPT'!#REF!,IF(J23=39,'[1]Equivalencia BH-BMPT'!$D$40,IF(J23=40,'[1]Equivalencia BH-BMPT'!$D$41,IF(J23=41,'[1]Equivalencia BH-BMPT'!$D$42,IF(J23=42,'[1]Equivalencia BH-BMPT'!$D$43,IF(J23=43,'[1]Equivalencia BH-BMPT'!$D$44,IF(J23=44,'[1]Equivalencia BH-BMPT'!$D$45,IF(J23=45,'[1]Equivalencia BH-BMPT'!$D$46,"No ha seleccionado un número de programa"))))))))))))))))))))))))))))))))))))))))))))) -> No ha seleccionado un número de programa | M23: 860002400 | N23: LA PREVISORA S A COMPAÑIA DE SEGUROS | S23: 3497233 | T23: 3497233 | U23: 3497233 | V23: 2016-05-16 | W23: 2016-05-17 | X23: 2017-08-11 | Y23: 365 | Z23: 87 | AD23: X | AF23: 1
A24: 6 | B24: 2017 | C24: CPS 06 2017 | D24: 5 | E24: =IF(D24=1,'[1]Tipo '!$B$2,IF(D24=2,'[1]Tipo '!$B$3,IF(D24=3,'[1]Tipo '!$B$4,IF(D24=4,'[1]Tipo '!$B$5,IF(D24=5,'[1]Tipo '!$B$6,IF(D24=6,'[1]Tipo '!$B$7,IF(D24=7,'[1]Tipo '!$B$8,IF(D24=8,'[1]Tipo '!$B$9,IF(D24=9,'[1]Tipo '!$B$10,IF(D24=10,'[1]Tipo '!$B$11,IF(D24=11,'[1]Tipo '!$B$12,IF(D24=12,'[1]Tipo '!$B$13,IF(D24=13,'[1]Tipo '!$B$14,IF(D24=14,'[1]Tipo '!$B$15,IF(D24=15,'[1]Tipo '!$B$16,IF(D24=16,'[1]Tipo '!$B$17,IF(D24=17,'[1]Tipo '!$B$18,IF(D24=18,'[1]Tipo '!$B$19,IF(D24=19,'[1]Tipo '!$B$20,"No ha seleccionado un tipo de contrato válido"))))))))))))))))))) -> CONTRATOS DE PRESTACIÓN DE SERVICIOS PROFESIONALES Y DE APOYO A LA GESTIÓN | F24: CONTRATACIÓN DIRECTA | G24: Prestación de servicios profesionales y de apoyo a la gestión, o para la ejecución de trabajos artísticos que sólo puedan encomendarse a determinadas personas naturales; | H24: El contrato que se pretende celebrar, tendrá por objeto ¿El contratista se obliga para con el Fondo a prestar sus servicios de apoyo en la conducción de los vehículos de propiedad del Fondo de Desarrollo Local de Teusaquillo incluido el vehículo asignado al despacho del Alcalde Local¿. | I24: INVERSIÓN | J24: 45 | K24: =IF(J24=1,'[1]Equivalencia BH-BMPT'!$D$2,IF(J24=2,'[1]Equivalencia BH-BMPT'!$D$3,IF(J24=3,'[1]Equivalencia BH-BMPT'!$D$4,IF(J24=4,'[1]Equivalencia BH-BMPT'!$D$5,IF(J24=5,'[1]Equivalencia BH-BMPT'!$D$6,IF(J24=6,'[1]Equivalencia BH-BMPT'!$D$7,IF(J24=7,'[1]Equivalencia BH-BMPT'!$D$8,IF(J24=8,'[1]Equivalencia BH-BMPT'!$D$9,IF(J24=9,'[1]Equivalencia BH-BMPT'!$D$10,IF(J24=10,'[1]Equivalencia BH-BMPT'!$D$11,IF(J24=11,'[1]Equivalencia BH-BMPT'!$D$12,IF(J24=12,'[1]Equivalencia BH-BMPT'!$D$13,IF(J24=13,'[1]Equivalencia BH-BMPT'!$D$14,IF(J24=14,'[1]Equivalencia BH-BMPT'!$D$15,IF(J24=15,'[1]Equivalencia BH-BMPT'!$D$16,IF(J24=16,'[1]Equivalencia BH-BMPT'!$D$17,IF(J24=17,'[1]Equivalencia BH-BMPT'!$D$18,IF(J24=18,'[1]Equivalencia BH-BMPT'!$D$19,IF(J24=19,'[1]Equivalencia BH-BMPT'!$D$20,IF(J24=20,'[1]Equivalencia BH-BMPT'!$D$21,IF(J24=21,'[1]Equivalencia BH-BMPT'!$D$22,IF(J24=22,'[1]Equivalencia BH-BMPT'!$D$23,IF(J24=23,'[1]Equivalencia BH-BMPT'!#REF!,IF(J24=24,'[1]Equivalencia BH-BMPT'!$D$25,IF(J24=25,'[1]Equivalencia BH-BMPT'!$D$26,IF(J24=26,'[1]Equivalencia BH-BMPT'!$D$27,IF(J24=27,'[1]Equivalencia BH-BMPT'!$D$28,IF(J24=28,'[1]Equivalencia BH-BMPT'!$D$29,IF(J24=29,'[1]Equivalencia BH-BMPT'!$D$30,IF(J24=30,'[1]Equivalencia BH-BMPT'!$D$31,IF(J24=31,'[1]Equivalencia BH-BMPT'!$D$32,IF(J24=32,'[1]Equivalencia BH-BMPT'!$D$33,IF(J24=33,'[1]Equivalencia BH-BMPT'!$D$34,IF(J24=34,'[1]Equivalencia BH-BMPT'!$D$35,IF(J24=35,'[1]Equivalencia BH-BMPT'!$D$36,IF(J24=36,'[1]Equivalencia BH-BMPT'!$D$37,IF(J24=37,'[1]Equivalencia BH-BMPT'!$D$38,IF(J24=38,'[1]Equivalencia BH-BMPT'!#REF!,IF(J24=39,'[1]Equivalencia BH-BMPT'!$D$40,IF(J24=40,'[1]Equivalencia BH-BMPT'!$D$41,IF(J24=41,'[1]Equivalencia BH-BMPT'!$D$42,IF(J24=42,'[1]Equivalencia BH-BMPT'!$D$43,IF(J24=43,'[1]Equivalencia BH-BMPT'!$D$44,IF(J24=44,'[1]Equivalencia BH-BMPT'!$D$45,IF(J24=45,'[1]Equivalencia BH-BMPT'!$D$46,"No ha seleccionado un número de programa"))))))))))))))))))))))))))))))))))))))))))))) -> Gobernanza e influencia local, regional e internacional | L24: 1329 | M24: 53102450 | N24: DIANA MARIA ANGULO PRADO | O24: 16800000 | S24: 5600000 | T24: 22400000 | U24: 16800000 | V24: 2017-02-10 | W24: 2017-02-10 | X24: 2017-12-29 | Y24: 240 | Z24: 80 | AD24: X | AF24: 1
A25: 7 | B25: 2017 | C25: CPS 07 2017 | D25: 5 | E25: =IF(D25=1,'[1]Tipo '!$B$2,IF(D25=2,'[1]Tipo '!$B$3,IF(D25=3,'[1]Tipo '!$B$4,IF(D25=4,'[1]Tipo '!$B$5,IF(D25=5,'[1]Tipo '!$B$6,IF(D25=6,'[1]Tipo '!$B$7,IF(D25=7,'[1]Tipo '!$B$8,IF(D25=8,'[1]Tipo '!$B$9,IF(D25=9,'[1]Tipo '!$B$10,IF(D25=10,'[1]Tipo '!$B$11,IF(D25=11,'[1]Tipo '!$B$12,IF(D25=12,'[1]Tipo '!$B$13,IF(D25=13,'[1]Tipo '!$B$14,IF(D25=14,'[1]Tipo '!$B$15,IF(D25=15,'[1]Tipo '!$B$16,IF(D25=16,'[1]Tipo '!$B$17,IF(D25=17,'[1]Tipo '!$B$18,IF(D25=18,'[1]Tipo '!$B$19,IF(D25=19,'[1]Tipo '!$B$20,"No ha seleccionado un tipo de contrato válido"))))))))))))))))))) -> CONTRATOS DE PRESTACIÓN DE SERVICIOS PROFESIONALES Y DE APOYO A LA GESTIÓN | F25: CONTRATACIÓN DIRECTA | G25: Prestación de servicios profesionales y de apoyo a la gestión, o para la ejecución de trabajos artísticos que sólo puedan encomendarse a determinadas personas naturales; | H25: El contrato que se pretende celebrar, tendrá por objeto ¿Prestación de servicios profesionales como abogado para apoyar los asuntos legales y contractuales del Área de Gestión de Desarrollo Local¿. | I25: INVERSIÓN | J25: 45 | K25: =IF(J25=1,'[1]Equivalencia BH-BMPT'!$D$2,IF(J25=2,'[1]Equivalencia BH-BMPT'!$D$3,IF(J25=3,'[1]Equivalencia BH-BMPT'!$D$4,IF(J25=4,'[1]Equivalencia BH-BMPT'!$D$5,IF(J25=5,'[1]Equivalencia BH-BMPT'!$D$6,IF(J25=6,'[1]Equivalencia BH-BMPT'!$D$7,IF(J25=7,'[1]Equivalencia BH-BMPT'!$D$8,IF(J25=8,'[1]Equivalencia BH-BMPT'!$D$9,IF(J25=9,'[1]Equivalencia BH-BMPT'!$D$10,IF(J25=10,'[1]Equivalencia BH-BMPT'!$D$11,IF(J25=11,'[1]Equivalencia BH-BMPT'!$D$12,IF(J25=12,'[1]Equivalencia BH-BMPT'!$D$13,IF(J25=13,'[1]Equivalencia BH-BMPT'!$D$14,IF(J25=14,'[1]Equivalencia BH-BMPT'!$D$15,IF(J25=15,'[1]Equivalencia BH-BMPT'!$D$16,IF(J25=16,'[1]Equivalencia BH-BMPT'!$D$17,IF(J25=17,'[1]Equivalencia BH-BMPT'!$D$18,IF(J25=18,'[1]Equivalencia BH-BMPT'!$D$19,IF(J25=19,'[1]Equivalencia BH-BMPT'!$D$20,IF(J25=20,'[1]Equivalencia BH-BMPT'!$D$21,IF(J25=21,'[1]Equivalencia BH-BMPT'!$D$22,IF(J25=22,'[1]Equivalencia BH-BMPT'!$D$23,IF(J25=23,'[1]Equivalencia BH-BMPT'!#REF!,IF(J25=24,'[1]Equivalencia BH-BMPT'!$D$25,IF(J25=25,'[1]Equivalencia BH-BMPT'!$D$26,IF(J25=26,'[1]Equivalencia BH-BMPT'!$D$27,IF(J25=27,'[1]Equivalencia BH-BMPT'!$D$28,IF(J25=28,'[1]Equivalencia BH-BMPT'!$D$29,IF(J25=29,'[1]Equivalencia BH-BMPT'!$D$30,IF(J25=30,'[1]Equivalencia BH-BMPT'!$D$31,IF(J25=31,'[1]Equivalencia BH-BMPT'!$D$32,IF(J25=32,'[1]Equivalencia BH-BMPT'!$D$33,IF(J25=33,'[1]Equivalencia BH-BMPT'!$D$34,IF(J25=34,'[1]Equivalencia BH-BMPT'!$D$35,IF(J25=35,'[1]Equivalencia BH-BMPT'!$D$36,IF(J25=36,'[1]Equivalencia BH-BMPT'!$D$37,IF(J25=37,'[1]Equivalencia BH-BMPT'!$D$38,IF(J25=38,'[1]Equivalencia BH-BMPT'!#REF!,IF(J25=39,'[1]Equivalencia BH-BMPT'!$D$40,IF(J25=40,'[1]Equivalencia BH-BMPT'!$D$41,IF(J25=41,'[1]Equivalencia BH-BMPT'!$D$42,IF(J25=42,'[1]Equivalencia BH-BMPT'!$D$43,IF(J25=43,'[1]Equivalencia BH-BMPT'!$D$44,IF(J25=44,'[1]Equivalencia BH-BMPT'!$D$45,IF(J25=45,'[1]Equivalencia BH-BMPT'!$D$46,"No ha seleccionado un número de programa"))))))))))))))))))))))))))))))))))))))))))))) -> Gobernanza e influencia local, regional e internacional | L25: 1329 | M25: 1014213880 | N25: LINA MARCELA FLOREZ CARDENAS | O25: 32459552 | S25: 12442827 | T25: 44902379 | U25: 41250681 | V25: 2017-02-10 | W25: 2017-02-10 | X25: 2018-01-10 | Y25: 240 | Z25: 92 | AC25: X | AF25: 0.9186747321
A26: 8 | B26: 2017 | C26: CPS 08 2017 | D26: 5 | E26: =IF(D26=1,'[1]Tipo '!$B$2,IF(D26=2,'[1]Tipo '!$B$3,IF(D26=3,'[1]Tipo '!$B$4,IF(D26=4,'[1]Tipo '!$B$5,IF(D26=5,'[1]Tipo '!$B$6,IF(D26=6,'[1]Tipo '!$B$7,IF(D26=7,'[1]Tipo '!$B$8,IF(D26=8,'[1]Tipo '!$B$9,IF(D26=9,'[1]Tipo '!$B$10,IF(D26=10,'[1]Tipo '!$B$11,IF(D26=11,'[1]Tipo '!$B$12,IF(D26=12,'[1]Tipo '!$B$13,IF(D26=13,'[1]Tipo '!$B$14,IF(D26=14,'[1]Tipo '!$B$15,IF(D26=15,'[1]Tipo '!$B$16,IF(D26=16,'[1]Tipo '!$B$17,IF(D26=17,'[1]Tipo '!$B$18,IF(D26=18,'[1]Tipo '!$B$19,IF(D26=19,'[1]Tipo '!$B$20,"No ha seleccionado un tipo de contrato válido"))))))))))))))))))) -> CONTRATOS DE PRESTACIÓN DE SERVICIOS PROFESIONALES Y DE APOYO A LA GESTIÓN | F26: CONTRATACIÓN DIRECTA | G26: Prestación de servicios profesionales y de apoyo a la gestión, o para la ejecución de trabajos artísticos que sólo puedan encomendarse a determinadas personas naturales; | H26: El contrato que se pretende celebrar, tendrá por objeto ¿Prestación de servicios profesionales como abogado al Área de Gestión de Desarrollo Local para adelantar trámites precontractuales y contractuales en el marco de los proyectos previstos en el Plan de Desarrollo Local ¿Teusaquillo Mejor para Todos 2017-2020¿. | I26: INVERSIÓN | J26: 45 | K26: =IF(J26=1,'[1]Equivalencia BH-BMPT'!$D$2,IF(J26=2,'[1]Equivalencia BH-BMPT'!$D$3,IF(J26=3,'[1]Equivalencia BH-BMPT'!$D$4,IF(J26=4,'[1]Equivalencia BH-BMPT'!$D$5,IF(J26=5,'[1]Equivalencia BH-BMPT'!$D$6,IF(J26=6,'[1]Equivalencia BH-BMPT'!$D$7,IF(J26=7,'[1]Equivalencia BH-BMPT'!$D$8,IF(J26=8,'[1]Equivalencia BH-BMPT'!$D$9,IF(J26=9,'[1]Equivalencia BH-BMPT'!$D$10,IF(J26=10,'[1]Equivalencia BH-BMPT'!$D$11,IF(J26=11,'[1]Equivalencia BH-BMPT'!$D$12,IF(J26=12,'[1]Equivalencia BH-BMPT'!$D$13,IF(J26=13,'[1]Equivalencia BH-BMPT'!$D$14,IF(J26=14,'[1]Equivalencia BH-BMPT'!$D$15,IF(J26=15,'[1]Equivalencia BH-BMPT'!$D$16,IF(J26=16,'[1]Equivalencia BH-BMPT'!$D$17,IF(J26=17,'[1]Equivalencia BH-BMPT'!$D$18,IF(J26=18,'[1]Equivalencia BH-BMPT'!$D$19,IF(J26=19,'[1]Equivalencia BH-BMPT'!$D$20,IF(J26=20,'[1]Equivalencia BH-BMPT'!$D$21,IF(J26=21,'[1]Equivalencia BH-BMPT'!$D$22,IF(J26=22,'[1]Equivalencia BH-BMPT'!$D$23,IF(J26=23,'[1]Equivalencia BH-BMPT'!#REF!,IF(J26=24,'[1]Equivalencia BH-BMPT'!$D$25,IF(J26=25,'[1]Equivalencia BH-BMPT'!$D$26,IF(J26=26,'[1]Equivalencia BH-BMPT'!$D$27,IF(J26=27,'[1]Equivalencia BH-BMPT'!$D$28,IF(J26=28,'[1]Equivalencia BH-BMPT'!$D$29,IF(J26=29,'[1]Equivalencia BH-BMPT'!$D$30,IF(J26=30,'[1]Equivalencia BH-BMPT'!$D$31,IF(J26=31,'[1]Equivalencia BH-BMPT'!$D$32,IF(J26=32,'[1]Equivalencia BH-BMPT'!$D$33,IF(J26=33,'[1]Equivalencia BH-BMPT'!$D$34,IF(J26=34,'[1]Equivalencia BH-BMPT'!$D$35,IF(J26=35,'[1]Equivalencia BH-BMPT'!$D$36,IF(J26=36,'[1]Equivalencia BH-BMPT'!$D$37,IF(J26=37,'[1]Equivalencia BH-BMPT'!$D$38,IF(J26=38,'[1]Equivalencia BH-BMPT'!#REF!,IF(J26=39,'[1]Equivalencia BH-BMPT'!$D$40,IF(J26=40,'[1]Equivalencia BH-BMPT'!$D$41,IF(J26=41,'[1]Equivalencia BH-BMPT'!$D$42,IF(J26=42,'[1]Equivalencia BH-BMPT'!$D$43,IF(J26=43,'[1]Equivalencia BH-BMPT'!$D$44,IF(J26=44,'[1]Equivalencia BH-BMPT'!$D$45,IF(J26=45,'[1]Equivalencia BH-BMPT'!$D$46,"No ha seleccionado un número de programa"))))))))))))))))))))))))))))))))))))))))))))) -> Gobernanza e influencia local, regional e internacional | L26: 1329 | M26: 52430619 | N26: CLARA LILIANA MEJIA ORTIZ | O26: 44000000 | S26: 16866666 | T26: 60866666 | U26: 55916666 | V26: 2017-02-10 | W26: 2017-02-10 | X26: 2018-01-10 | Y26: 240 | Z26: 92 | AC26: X | AF26: 0.9186746979
A27: 9 | B27: 2017 | C27: CPS 009 17 | D27: 5 | E27: =IF(D27=1,'[1]Tipo '!$B$2,IF(D27=2,'[1]Tipo '!$B$3,IF(D27=3,'[1]Tipo '!$B$4,IF(D27=4,'[1]Tipo '!$B$5,IF(D27=5,'[1]Tipo '!$B$6,IF(D27=6,'[1]Tipo '!$B$7,IF(D27=7,'[1]Tipo '!$B$8,IF(D27=8,'[1]Tipo '!$B$9,IF(D27=9,'[1]Tipo '!$B$10,IF(D27=10,'[1]Tipo '!$B$11,IF(D27=11,'[1]Tipo '!$B$12,IF(D27=12,'[1]Tipo '!$B$13,IF(D27=13,'[1]Tipo '!$B$14,IF(D27=14,'[1]Tipo '!$B$15,IF(D27=15,'[1]Tipo '!$B$16,IF(D27=16,'[1]Tipo '!$B$17,IF(D27=17,'[1]Tipo '!$B$18,IF(D27=18,'[1]Tipo '!$B$19,IF(D27=19,'[1]Tipo '!$B$20,"No ha seleccionado un tipo de contrato válido"))))))))))))))))))) -> CONTRATOS DE PRESTACIÓN DE SERVICIOS PROFESIONALES Y DE APOYO A LA GESTIÓN | F27: CONTRATACIÓN DIRECTA | G27: Prestación de servicios profesionales y de apoyo a la gestión, o para la ejecución de trabajos artísticos que sólo puedan encomendarse a determinadas personas naturales; | H27: El contrato que se pretende celebrar, tendrá por objeto¿La Prestación de servicios profesionales como abogado al Área de Gestión de Desarrollo Local, para coadyuvar el proceso de depuración de obligaciones por pagar y el trámite e impulso a la liquidación de contratos suscritos con cargo a los recursos del Fondo de Desarrollo Local.¿ | I27: INVERSIÓN | J27: 45 | K27: =IF(J27=1,'[1]Equivalencia BH-BMPT'!$D$2,IF(J27=2,'[1]Equivalencia BH-BMPT'!$D$3,IF(J27=3,'[1]Equivalencia BH-BMPT'!$D$4,IF(J27=4,'[1]Equivalencia BH-BMPT'!$D$5,IF(J27=5,'[1]Equivalencia BH-BMPT'!$D$6,IF(J27=6,'[1]Equivalencia BH-BMPT'!$D$7,IF(J27=7,'[1]Equivalencia BH-BMPT'!$D$8,IF(J27=8,'[1]Equivalencia BH-BMPT'!$D$9,IF(J27=9,'[1]Equivalencia BH-BMPT'!$D$10,IF(J27=10,'[1]Equivalencia BH-BMPT'!$D$11,IF(J27=11,'[1]Equivalencia BH-BMPT'!$D$12,IF(J27=12,'[1]Equivalencia BH-BMPT'!$D$13,IF(J27=13,'[1]Equivalencia BH-BMPT'!$D$14,IF(J27=14,'[1]Equivalencia BH-BMPT'!$D$15,IF(J27=15,'[1]Equivalencia BH-BMPT'!$D$16,IF(J27=16,'[1]Equivalencia BH-BMPT'!$D$17,IF(J27=17,'[1]Equivalencia BH-BMPT'!$D$18,IF(J27=18,'[1]Equivalencia BH-BMPT'!$D$19,IF(J27=19,'[1]Equivalencia BH-BMPT'!$D$20,IF(J27=20,'[1]Equivalencia BH-BMPT'!$D$21,IF(J27=21,'[1]Equivalencia BH-BMPT'!$D$22,IF(J27=22,'[1]Equivalencia BH-BMPT'!$D$23,IF(J27=23,'[1]Equivalencia BH-BMPT'!#REF!,IF(J27=24,'[1]Equivalencia BH-BMPT'!$D$25,IF(J27=25,'[1]Equivalencia BH-BMPT'!$D$26,IF(J27=26,'[1]Equivalencia BH-BMPT'!$D$27,IF(J27=27,'[1]Equivalencia BH-BMPT'!$D$28,IF(J27=28,'[1]Equivalencia BH-BMPT'!$D$29,IF(J27=29,'[1]Equivalencia BH-BMPT'!$D$30,IF(J27=30,'[1]Equivalencia BH-BMPT'!$D$31,IF(J27=31,'[1]Equivalencia BH-BMPT'!$D$32,IF(J27=32,'[1]Equivalencia BH-BMPT'!$D$33,IF(J27=33,'[1]Equivalencia BH-BMPT'!$D$34,IF(J27=34,'[1]Equivalencia BH-BMPT'!$D$35,IF(J27=35,'[1]Equivalencia BH-BMPT'!$D$36,IF(J27=36,'[1]Equivalencia BH-BMPT'!$D$37,IF(J27=37,'[1]Equivalencia BH-BMPT'!$D$38,IF(J27=38,'[1]Equivalencia BH-BMPT'!#REF!,IF(J27=39,'[1]Equivalencia BH-BMPT'!$D$40,IF(J27=40,'[1]Equivalencia BH-BMPT'!$D$41,IF(J27=41,'[1]Equivalencia BH-BMPT'!$D$42,IF(J27=42,'[1]Equivalencia BH-BMPT'!$D$43,IF(J27=43,'[1]Equivalencia BH-BMPT'!$D$44,IF(J27=44,'[1]Equivalencia BH-BMPT'!$D$45,IF(J27=45,'[1]Equivalencia BH-BMPT'!$D$46,"No ha seleccionado un número de programa"))))))))))))))))))))))))))))))))))))))))))))) -> Gobernanza e influencia local, regional e internacional | L27: 1329 | M27: 79235519 | N27: GUSTAVO HERNANDO JIMENEZ SANDOVAL | O27: 44000000 | S27: 0 | T27: 44000000 | U27: 44000000 | V27: 2017-02-10 | W27: 2017-02-10 | X27: 2017-10-09 | Y27: 240 | Z27: 0 | AE27: X | AF27: 1
A28: 10 | B28: 2017 | C28: CPS 010 2017 | D28: 5 | E28: =IF(D28=1,'[1]Tipo '!$B$2,IF(D28=2,'[1]Tipo '!$B$3,IF(D28=3,'[1]Tipo '!$B$4,IF(D28=4,'[1]Tipo '!$B$5,IF(D28=5,'[1]Tipo '!$B$6,IF(D28=6,'[1]Tipo '!$B$7,IF(D28=7,'[1]Tipo '!$B$8,IF(D28=8,'[1]Tipo '!$B$9,IF(D28=9,'[1]Tipo '!$B$10,IF(D28=10,'[1]Tipo '!$B$11,IF(D28=11,'[1]Tipo '!$B$12,IF(D28=12,'[1]Tipo '!$B$13,IF(D28=13,'[1]Tipo '!$B$14,IF(D28=14,'[1]Tipo '!$B$15,IF(D28=15,'[1]Tipo '!$B$16,IF(D28=16,'[1]Tipo '!$B$17,IF(D28=17,'[1]Tipo '!$B$18,IF(D28=18,'[1]Tipo '!$B$19,IF(D28=19,'[1]Tipo '!$B$20,"No ha seleccionado un tipo de contrato válido"))))))))))))))))))) -> CONTRATOS DE PRESTACIÓN DE SERVICIOS PROFESIONALES Y DE APOYO A LA GESTIÓN | F28: CONTRATACIÓN DIRECTA | G28: Prestación de servicios profesionales y de apoyo a la gestión, o para la ejecución de trabajos artísticos que sólo puedan encomendarse a determinadas personas naturales; | H28: El contrato que se pretende celebrar, tendrá por objeto ¿EL CONTRATISTA SE OBLIGA PARA CON EL FONDO A PRESTAR SUS SERVICIOS TÉCNICOS DE APOYO EN EL AREA DE GESTION DE DESARROLLO LOCAL-PLANEACION | I28: INVERSIÓN | J28: 45 | K28: =IF(J28=1,'[1]Equivalencia BH-BMPT'!$D$2,IF(J28=2,'[1]Equivalencia BH-BMPT'!$D$3,IF(J28=3,'[1]Equivalencia BH-BMPT'!$D$4,IF(J28=4,'[1]Equivalencia BH-BMPT'!$D$5,IF(J28=5,'[1]Equivalencia BH-BMPT'!$D$6,IF(J28=6,'[1]Equivalencia BH-BMPT'!$D$7,IF(J28=7,'[1]Equivalencia BH-BMPT'!$D$8,IF(J28=8,'[1]Equivalencia BH-BMPT'!$D$9,IF(J28=9,'[1]Equivalencia BH-BMPT'!$D$10,IF(J28=10,'[1]Equivalencia BH-BMPT'!$D$11,IF(J28=11,'[1]Equivalencia BH-BMPT'!$D$12,IF(J28=12,'[1]Equivalencia BH-BMPT'!$D$13,IF(J28=13,'[1]Equivalencia BH-BMPT'!$D$14,IF(J28=14,'[1]Equivalencia BH-BMPT'!$D$15,IF(J28=15,'[1]Equivalencia BH-BMPT'!$D$16,IF(J28=16,'[1]Equivalencia BH-BMPT'!$D$17,IF(J28=17,'[1]Equivalencia BH-BMPT'!$D$18,IF(J28=18,'[1]Equivalencia BH-BMPT'!$D$19,IF(J28=19,'[1]Equivalencia BH-BMPT'!$D$20,IF(J28=20,'[1]Equivalencia BH-BMPT'!$D$21,IF(J28=21,'[1]Equivalencia BH-BMPT'!$D$22,IF(J28=22,'[1]Equivalencia BH-BMPT'!$D$23,IF(J28=23,'[1]Equivalencia BH-BMPT'!#REF!,IF(J28=24,'[1]Equivalencia BH-BMPT'!$D$25,IF(J28=25,'[1]Equivalencia BH-BMPT'!$D$26,IF(J28=26,'[1]Equivalencia BH-BMPT'!$D$27,IF(J28=27,'[1]Equivalencia BH-BMPT'!$D$28,IF(J28=28,'[1]Equivalencia BH-BMPT'!$D$29,IF(J28=29,'[1]Equivalencia BH-BMPT'!$D$30,IF(J28=30,'[1]Equivalencia BH-BMPT'!$D$31,IF(J28=31,'[1]Equivalencia BH-BMPT'!$D$32,IF(J28=32,'[1]Equivalencia BH-BMPT'!$D$33,IF(J28=33,'[1]Equivalencia BH-BMPT'!$D$34,IF(J28=34,'[1]Equivalencia BH-BMPT'!$D$35,IF(J28=35,'[1]Equivalencia BH-BMPT'!$D$36,IF(J28=36,'[1]Equivalencia BH-BMPT'!$D$37,IF(J28=37,'[1]Equivalencia BH-BMPT'!$D$38,IF(J28=38,'[1]Equivalencia BH-BMPT'!#REF!,IF(J28=39,'[1]Equivalencia BH-BMPT'!$D$40,IF(J28=40,'[1]Equivalencia BH-BMPT'!$D$41,IF(J28=41,'[1]Equivalencia BH-BMPT'!$D$42,IF(J28=42,'[1]Equivalencia BH-BMPT'!$D$43,IF(J28=43,'[1]Equivalencia BH-BMPT'!$D$44,IF(J28=44,'[1]Equivalencia BH-BMPT'!$D$45,IF(J28=45,'[1]Equivalencia BH-BMPT'!$D$46,"No ha seleccionado un número de programa"))))))))))))))))))))))))))))))))))))))))))))) -> Gobernanza e influencia local, regional e internacional | L28: 1329 | M28: 51907536 | N28: GLORIA MATILDE SANTANA CASALLAS | O28: 21600000 | S28: 8280000 | T28: 29880000 | U28: 27450000 | V28: 2017-02-10 | W28: 2017-02-10 | X28: 2018-01-10 | Y28: 240 | Z28: 92 | AC28: X | AF28: 0.9186746988
A29: 11 | B29: 2017 | C29: CPS 011 2017 | D29: 5 | E29: =IF(D29=1,'[1]Tipo '!$B$2,IF(D29=2,'[1]Tipo '!$B$3,IF(D29=3,'[1]Tipo '!$B$4,IF(D29=4,'[1]Tipo '!$B$5,IF(D29=5,'[1]Tipo '!$B$6,IF(D29=6,'[1]Tipo '!$B$7,IF(D29=7,'[1]Tipo '!$B$8,IF(D29=8,'[1]Tipo '!$B$9,IF(D29=9,'[1]Tipo '!$B$10,IF(D29=10,'[1]Tipo '!$B$11,IF(D29=11,'[1]Tipo '!$B$12,IF(D29=12,'[1]Tipo '!$B$13,IF(D29=13,'[1]Tipo '!$B$14,IF(D29=14,'[1]Tipo '!$B$15,IF(D29=15,'[1]Tipo '!$B$16,IF(D29=16,'[1]Tipo '!$B$17,IF(D29=17,'[1]Tipo '!$B$18,IF(D29=18,'[1]Tipo '!$B$19,IF(D29=19,'[1]Tipo '!$B$20,"No ha seleccionado un tipo de contrato válido"))))))))))))))))))) -> CONTRATOS DE PRESTACIÓN DE SERVICIOS PROFESIONALES Y DE APOYO A LA GESTIÓN | F29: CONTRATACIÓN DIRECTA | G29: Prestación de servicios profesionales y de apoyo a la gestión, o para la ejecución de trabajos artísticos que sólo puedan encomendarse a determinadas personas naturales; | H29: El contrato que se pretende celebrar, tendrá por objeto: ¿El contratista se obliga para con la Fondo de Desarrollo Local de Teusaquillo a prestar sus servicios profesionales en el area de Gestion de Desarrollo Local, para realizar la formulación y apoyo a la supervisión de los proyectos de inversión que le sean asignados y a los contratos derivados de dichas formulaciones, asi como el apoyo a los temas de Seguridad y Convivencia¿. | I29: INVERSIÓN | J29: 45 | K29: =IF(J29=1,'[1]Equivalencia BH-BMPT'!$D$2,IF(J29=2,'[1]Equivalencia BH-BMPT'!$D$3,IF(J29=3,'[1]Equivalencia BH-BMPT'!$D$4,IF(J29=4,'[1]Equivalencia BH-BMPT'!$D$5,IF(J29=5,'[1]Equivalencia BH-BMPT'!$D$6,IF(J29=6,'[1]Equivalencia BH-BMPT'!$D$7,IF(J29=7,'[1]Equivalencia BH-BMPT'!$D$8,IF(J29=8,'[1]Equivalencia BH-BMPT'!$D$9,IF(J29=9,'[1]Equivalencia BH-BMPT'!$D$10,IF(J29=10,'[1]Equivalencia BH-BMPT'!$D$11,IF(J29=11,'[1]Equivalencia BH-BMPT'!$D$12,IF(J29=12,'[1]Equivalencia BH-BMPT'!$D$13,IF(J29=13,'[1]Equivalencia BH-BMPT'!$D$14,IF(J29=14,'[1]Equivalencia BH-BMPT'!$D$15,IF(J29=15,'[1]Equivalencia BH-BMPT'!$D$16,IF(J29=16,'[1]Equivalencia BH-BMPT'!$D$17,IF(J29=17,'[1]Equivalencia BH-BMPT'!$D$18,IF(J29=18,'[1]Equivalencia BH-BMPT'!$D$19,IF(J29=19,'[1]Equivalencia BH-BMPT'!$D$20,IF(J29=20,'[1]Equivalencia BH-BMPT'!$D$21,IF(J29=21,'[1]Equivalencia BH-BMPT'!$D$22,IF(J29=22,'[1]Equivalencia BH-BMPT'!$D$23,IF(J29=23,'[1]Equivalencia BH-BMPT'!#REF!,IF(J29=24,'[1]Equivalencia BH-BMPT'!$D$25,IF(J29=25,'[1]Equivalencia BH-BMPT'!$D$26,IF(J29=26,'[1]Equivalencia BH-BMPT'!$D$27,IF(J29=27,'[1]Equivalencia BH-BMPT'!$D$28,IF(J29=28,'[1]Equivalencia BH-BMPT'!$D$29,IF(J29=29,'[1]Equivalencia BH-BMPT'!$D$30,IF(J29=30,'[1]Equivalencia BH-BMPT'!$D$31,IF(J29=31,'[1]Equivalencia BH-BMPT'!$D$32,IF(J29=32,'[1]Equivalencia BH-BMPT'!$D$33,IF(J29=33,'[1]Equivalencia BH-BMPT'!$D$34,IF(J29=34,'[1]Equivalencia BH-BMPT'!$D$35,IF(J29=35,'[1]Equivalencia BH-BMPT'!$D$36,IF(J29=36,'[1]Equivalencia BH-BMPT'!$D$37,IF(J29=37,'[1]Equivalencia BH-BMPT'!$D$38,IF(J29=38,'[1]Equivalencia BH-BMPT'!#REF!,IF(J29=39,'[1]Equivalencia BH-BMPT'!$D$40,IF(J29=40,'[1]Equivalencia BH-BMPT'!$D$41,IF(J29=41,'[1]Equivalencia BH-BMPT'!$D$42,IF(J29=42,'[1]Equivalencia BH-BMPT'!$D$43,IF(J29=43,'[1]Equivalencia BH-BMPT'!$D$44,IF(J29=44,'[1]Equivalencia BH-BMPT'!$D$45,IF(J29=45,'[1]Equivalencia BH-BMPT'!$D$46,"No ha seleccionado un número de programa"))))))))))))))))))))))))))))))))))))))))))))) -> Gobernanza e influencia local, regional e internacional | L29: 1329 | M29: 1070586930 | N29: JUAN CAMILO BOHORQUEZ ARAGON | O29: 44000000 | S29: 14666666 | T29: 58666666 | U29: 55916667 | V29: 2017-02-10 | W29: 2017-02-10 | X29: 2017-12-29 | Y29: 240 | Z29: 80 | AD29: X | AF29: 0.9531250165
A30: 12 | B30: 2017 | C30: CPS012 2017 | D30: 5 | E30: =IF(D30=1,'[1]Tipo '!$B$2,IF(D30=2,'[1]Tipo '!$B$3,IF(D30=3,'[1]Tipo '!$B$4,IF(D30=4,'[1]Tipo '!$B$5,IF(D30=5,'[1]Tipo '!$B$6,IF(D30=6,'[1]Tipo '!$B$7,IF(D30=7,'[1]Tipo '!$B$8,IF(D30=8,'[1]Tipo '!$B$9,IF(D30=9,'[1]Tipo '!$B$10,IF(D30=10,'[1]Tipo '!$B$11,IF(D30=11,'[1]Tipo '!$B$12,IF(D30=12,'[1]Tipo '!$B$13,IF(D30=13,'[1]Tipo '!$B$14,IF(D30=14,'[1]Tipo '!$B$15,IF(D30=15,'[1]Tipo '!$B$16,IF(D30=16,'[1]Tipo '!$B$17,IF(D30=17,'[1]Tipo '!$B$18,IF(D30=18,'[1]Tipo '!$B$19,IF(D30=19,'[1]Tipo '!$B$20,"No ha seleccionado un tipo de contrato válido"))))))))))))))))))) -> CONTRATOS DE PRESTACIÓN DE SERVICIOS PROFESIONALES Y DE APOYO A LA GESTIÓN | F30: CONTRATACIÓN DIRECTA | G30: Prestación de servicios profesionales y de apoyo a la gestión, o para la ejecución de trabajos artísticos que sólo puedan encomendarse a determinadas personas naturales; | H30: El contrato que se pretende celebrar, tendrá por objeto¿Prestación de servicios profesionales al Área de Gestión Policiva de la Alcaldía Local de Teusaquillo, con el fin de realizar las actividades concernientes a los trámites relacionados con los Planes de Mejoramiento, Acciones Constitucionales y legales, así como sustanciar los actos administrativos consistentes en permisos y/o conceptos para la realización de eventos de carácter masivo y/o aglomeraciones que se realicen en la localidad¿. | I30: INVERSIÓN | J30: 45 | K30: =IF(J30=1,'[1]Equivalencia BH-BMPT'!$D$2,IF(J30=2,'[1]Equivalencia BH-BMPT'!$D$3,IF(J30=3,'[1]Equivalencia BH-BMPT'!$D$4,IF(J30=4,'[1]Equivalencia BH-BMPT'!$D$5,IF(J30=5,'[1]Equivalencia BH-BMPT'!$D$6,IF(J30=6,'[1]Equivalencia BH-BMPT'!$D$7,IF(J30=7,'[1]Equivalencia BH-BMPT'!$D$8,IF(J30=8,'[1]Equivalencia BH-BMPT'!$D$9,IF(J30=9,'[1]Equivalencia BH-BMPT'!$D$10,IF(J30=10,'[1]Equivalencia BH-BMPT'!$D$11,IF(J30=11,'[1]Equivalencia BH-BMPT'!$D$12,IF(J30=12,'[1]Equivalencia BH-BMPT'!$D$13,IF(J30=13,'[1]Equivalencia BH-BMPT'!$D$14,IF(J30=14,'[1]Equivalencia BH-BMPT'!$D$15,IF(J30=15,'[1]Equivalencia BH-BMPT'!$D$16,IF(J30=16,'[1]Equivalencia BH-BMPT'!$D$17,IF(J30=17,'[1]Equivalencia BH-BMPT'!$D$18,IF(J30=18,'[1]Equivalencia BH-BMPT'!$D$19,IF(J30=19,'[1]Equivalencia BH-BMPT'!$D$20,IF(J30=20,'[1]Equivalencia BH-BMPT'!$D$21,IF(J30=21,'[1]Equivalencia BH-BMPT'!$D$22,IF(J30=22,'[1]Equivalencia BH-BMPT'!$D$23,IF(J30=23,'[1]Equivalencia BH-BMPT'!#REF!,IF(J30=24,'[1]Equivalencia BH-BMPT'!$D$25,IF(J30=25,'[1]Equivalencia BH-BMPT'!$D$26,IF(J30=26,'[1]Equivalencia BH-BMPT'!$D$27,IF(J30=27,'[1]Equivalencia BH-BMPT'!$D$28,IF(J30=28,'[1]Equivalencia BH-BMPT'!$D$29,IF(J30=29,'[1]Equivalencia BH-BMPT'!$D$30,IF(J30=30,'[1]Equivalencia BH-BMPT'!$D$31,IF(J30=31,'[1]Equivalencia BH-BMPT'!$D$32,IF(J30=32,'[1]Equivalencia BH-BMPT'!$D$33,IF(J30=33,'[1]Equivalencia BH-BMPT'!$D$34,IF(J30=34,'[1]Equivalencia BH-BMPT'!$D$35,IF(J30=35,'[1]Equivalencia BH-BMPT'!$D$36,IF(J30=36,'[1]Equivalencia BH-BMPT'!$D$37,IF(J30=37,'[1]Equivalencia BH-BMPT'!$D$38,IF(J30=38,'[1]Equivalencia BH-BMPT'!#REF!,IF(J30=39,'[1]Equivalencia BH-BMPT'!$D$40,IF(J30=40,'[1]Equivalencia BH-BMPT'!$D$41,IF(J30=41,'[1]Equivalencia BH-BMPT'!$D$42,IF(J30=42,'[1]Equivalencia BH-BMPT'!$D$43,IF(J30=43,'[1]Equivalencia BH-BMPT'!$D$44,IF(J30=44,'[1]Equivalencia BH-BMPT'!$D$45,IF(J30=45,'[1]Equivalencia BH-BMPT'!$D$46,"No ha seleccionado un número de programa"))))))))))))))))))))))))))))))))))))))))))))) -> Gobernanza e influencia local, regional e internacional | L30: 1329 | M30: 12240699 | N30: LUIS ALFREDO PERDOMO BERMEO | O30: 37600000 | S30: 0 | T30: 37600000 | U30: 37600000 | V30: 2017-02-10 | W30: 2017-02-10 | X30: 2017-10-09 | Y30: 240 | Z30: 0 | AE30: X | AF30: 1
A31: 13 | B31: 2017 | C31: CPS 013 2017 | D31: 5 | E31: =IF(D31=1,'[1]Tipo '!$B$2,IF(D31=2,'[1]Tipo '!$B$3,IF(D31=3,'[1]Tipo '!$B$4,IF(D31=4,'[1]Tipo '!$B$5,IF(D31=5,'[1]Tipo '!$B$6,IF(D31=6,'[1]Tipo '!$B$7,IF(D31=7,'[1]Tipo '!$B$8,IF(D31=8,'[1]Tipo '!$B$9,IF(D31=9,'[1]Tipo '!$B$10,IF(D31=10,'[1]Tipo '!$B$11,IF(D31=11,'[1]Tipo '!$B$12,IF(D31=12,'[1]Tipo '!$B$13,IF(D31=13,'[1]Tipo '!$B$14,IF(D31=14,'[1]Tipo '!$B$15,IF(D31=15,'[1]Tipo '!$B$16,IF(D31=16,'[1]Tipo '!$B$17,IF(D31=17,'[1]Tipo '!$B$18,IF(D31=18,'[1]Tipo '!$B$19,IF(D31=19,'[1]Tipo '!$B$20,"No ha seleccionado un tipo de contrato válido"))))))))))))))))))) -> CONTRATOS DE PRESTACIÓN DE SERVICIOS PROFESIONALES Y DE APOYO A LA GESTIÓN | F31: CONTRATACIÓN DIRECTA | G31: Prestación de servicios profesionales y de apoyo a la gestión, o para la ejecución de trabajos artísticos que sólo puedan encomendarse a determinadas personas naturales; | H31: El contrato que se pretende celebrar, tendrá por objeto¿¿Prestación de servicios profesionales al Área de Gestión Policiva de la Alcaldía Local de Teusaquillo, en la gestión y trámite de solicitudes para la realización de eventos que generan aglomeraciones de público en la localidad y asistencia a los mismos, así como, efectuar las actividades relacionadas con los temas de prevención, mitigación y atención de emergencias en la localidad¿. | I31: INVERSIÓN | J31: 45 | K31: =IF(J31=1,'[1]Equivalencia BH-BMPT'!$D$2,IF(J31=2,'[1]Equivalencia BH-BMPT'!$D$3,IF(J31=3,'[1]Equivalencia BH-BMPT'!$D$4,IF(J31=4,'[1]Equivalencia BH-BMPT'!$D$5,IF(J31=5,'[1]Equivalencia BH-BMPT'!$D$6,IF(J31=6,'[1]Equivalencia BH-BMPT'!$D$7,IF(J31=7,'[1]Equivalencia BH-BMPT'!$D$8,IF(J31=8,'[1]Equivalencia BH-BMPT'!$D$9,IF(J31=9,'[1]Equivalencia BH-BMPT'!$D$10,IF(J31=10,'[1]Equivalencia BH-BMPT'!$D$11,IF(J31=11,'[1]Equivalencia BH-BMPT'!$D$12,IF(J31=12,'[1]Equivalencia BH-BMPT'!$D$13,IF(J31=13,'[1]Equivalencia BH-BMPT'!$D$14,IF(J31=14,'[1]Equivalencia BH-BMPT'!$D$15,IF(J31=15,'[1]Equivalencia BH-BMPT'!$D$16,IF(J31=16,'[1]Equivalencia BH-BMPT'!$D$17,IF(J31=17,'[1]Equivalencia BH-BMPT'!$D$18,IF(J31=18,'[1]Equivalencia BH-BMPT'!$D$19,IF(J31=19,'[1]Equivalencia BH-BMPT'!$D$20,IF(J31=20,'[1]Equivalencia BH-BMPT'!$D$21,IF(J31=21,'[1]Equivalencia BH-BMPT'!$D$22,IF(J31=22,'[1]Equivalencia BH-BMPT'!$D$23,IF(J31=23,'[1]Equivalencia BH-BMPT'!#REF!,IF(J31=24,'[1]Equivalencia BH-BMPT'!$D$25,IF(J31=25,'[1]Equivalencia BH-BMPT'!$D$26,IF(J31=26,'[1]Equivalencia BH-BMPT'!$D$27,IF(J31=27,'[1]Equivalencia BH-BMPT'!$D$28,IF(J31=28,'[1]Equivalencia BH-BMPT'!$D$29,IF(J31=29,'[1]Equivalencia BH-BMPT'!$D$30,IF(J31=30,'[1]Equivalencia BH-BMPT'!$D$31,IF(J31=31,'[1]Equivalencia BH-BMPT'!$D$32,IF(J31=32,'[1]Equivalencia BH-BMPT'!$D$33,IF(J31=33,'[1]Equivalencia BH-BMPT'!$D$34,IF(J31=34,'[1]Equivalencia BH-BMPT'!$D$35,IF(J31=35,'[1]Equivalencia BH-BMPT'!$D$36,IF(J31=36,'[1]Equivalencia BH-BMPT'!$D$37,IF(J31=37,'[1]Equivalencia BH-BMPT'!$D$38,IF(J31=38,'[1]Equivalencia BH-BMPT'!#REF!,IF(J31=39,'[1]Equivalencia BH-BMPT'!$D$40,IF(J31=40,'[1]Equivalencia BH-BMPT'!$D$41,IF(J31=41,'[1]Equivalencia BH-BMPT'!$D$42,IF(J31=42,'[1]Equivalencia BH-BMPT'!$D$43,IF(J31=43,'[1]Equivalencia BH-BMPT'!$D$44,IF(J31=44,'[1]Equivalencia BH-BMPT'!$D$45,IF(J31=45,'[1]Equivalencia BH-BMPT'!$D$46,"No ha seleccionado un número de programa"))))))))))))))))))))))))))))))))))))))))))))) -> Gobernanza e influencia local, regional e internacional | L31: 1329 | M31: 1066178962 | N31: HUGO ALBERTO MERCADO TIRADO | O31: 33600000 | S31: 11200000 | T31: 44800000 | U31: 42700000 | V31: 2017-02-10 | W31: 2017-02-10 | X31: 2017-12-29 | Y31: 240 | Z31: 80 | AD31: X | AF31: 0.953125
A32: 14 | B32: 2017 | C32: CPS 014 2017 | D32: 5 | E32: =IF(D32=1,'[1]Tipo '!$B$2,IF(D32=2,'[1]Tipo '!$B$3,IF(D32=3,'[1]Tipo '!$B$4,IF(D32=4,'[1]Tipo '!$B$5,IF(D32=5,'[1]Tipo '!$B$6,IF(D32=6,'[1]Tipo '!$B$7,IF(D32=7,'[1]Tipo '!$B$8,IF(D32=8,'[1]Tipo '!$B$9,IF(D32=9,'[1]Tipo '!$B$10,IF(D32=10,'[1]Tipo '!$B$11,IF(D32=11,'[1]Tipo '!$B$12,IF(D32=12,'[1]Tipo '!$B$13,IF(D32=13,'[1]Tipo '!$B$14,IF(D32=14,'[1]Tipo '!$B$15,IF(D32=15,'[1]Tipo '!$B$16,IF(D32=16,'[1]Tipo '!$B$17,IF(D32=17,'[1]Tipo '!$B$18,IF(D32=18,'[1]Tipo '!$B$19,IF(D32=19,'[1]Tipo '!$B$20,"No ha seleccionado un tipo de contrato válido"))))))))))))))))))) -> CONTRATOS DE PRESTACIÓN DE SERVICIOS PROFESIONALES Y DE APOYO A LA GESTIÓN | F32: CONTRATACIÓN DIRECTA | G32: Prestación de servicios profesionales y de apoyo a la gestión, o para la ejecución de trabajos artísticos que sólo puedan encomendarse a determinadas personas naturales; | H32: El contrato que se pretende celebrar, tendrá por objeto ¿El contratista se obliga para con el Fondo de Desarrollo Local de Teusaquillo a prestar sus servicios profesionales para realizar todas las actividades inherentes a la formulación y el seguimiento de todos los proyectos y contratos de infraestructura que le sean asignados en el marco del plan de desarrollo local 2017-2020 | I32: INVERSIÓN | J32: 18 | K32: =IF(J32=1,'[1]Equivalencia BH-BMPT'!$D$2,IF(J32=2,'[1]Equivalencia BH-BMPT'!$D$3,IF(J32=3,'[1]Equivalencia BH-BMPT'!$D$4,IF(J32=4,'[1]Equivalencia BH-BMPT'!$D$5,IF(J32=5,'[1]Equivalencia BH-BMPT'!$D$6,IF(J32=6,'[1]Equivalencia BH-BMPT'!$D$7,IF(J32=7,'[1]Equivalencia BH-BMPT'!$D$8,IF(J32=8,'[1]Equivalencia BH-BMPT'!$D$9,IF(J32=9,'[1]Equivalencia BH-BMPT'!$D$10,IF(J32=10,'[1]Equivalencia BH-BMPT'!$D$11,IF(J32=11,'[1]Equivalencia BH-BMPT'!$D$12,IF(J32=12,'[1]Equivalencia BH-BMPT'!$D$13,IF(J32=13,'[1]Equivalencia BH-BMPT'!$D$14,IF(J32=14,'[1]Equivalencia BH-BMPT'!$D$15,IF(J32=15,'[1]Equivalencia BH-BMPT'!$D$16,IF(J32=16,'[1]Equivalencia BH-BMPT'!$D$17,IF(J32=17,'[1]Equivalencia BH-BMPT'!$D$18,IF(J32=18,'[1]Equivalencia BH-BMPT'!$D$19,IF(J32=19,'[1]Equivalencia BH-BMPT'!$D$20,IF(J32=20,'[1]Equivalencia BH-BMPT'!$D$21,IF(J32=21,'[1]Equivalencia BH-BMPT'!$D$22,IF(J32=22,'[1]Equivalencia BH-BMPT'!$D$23,IF(J32=23,'[1]Equivalencia BH-BMPT'!#REF!,IF(J32=24,'[1]Equivalencia BH-BMPT'!$D$25,IF(J32=25,'[1]Equivalencia BH-BMPT'!$D$26,IF(J32=26,'[1]Equivalencia BH-BMPT'!$D$27,IF(J32=27,'[1]Equivalencia BH-BMPT'!$D$28,IF(J32=28,'[1]Equivalencia BH-BMPT'!$D$29,IF(J32=29,'[1]Equivalencia BH-BMPT'!$D$30,IF(J32=30,'[1]Equivalencia BH-BMPT'!$D$31,IF(J32=31,'[1]Equivalencia BH-BMPT'!$D$32,IF(J32=32,'[1]Equivalencia BH-BMPT'!$D$33,IF(J32=33,'[1]Equivalencia BH-BMPT'!$D$34,IF(J32=34,'[1]Equivalencia BH-BMPT'!$D$35,IF(J32=35,'[1]Equivalencia BH-BMPT'!$D$36,IF(J32=36,'[1]Equivalencia BH-BMPT'!$D$37,IF(J32=37,'[1]Equivalencia BH-BMPT'!$D$38,IF(J32=38,'[1]Equivalencia BH-BMPT'!#REF!,IF(J32=39,'[1]Equivalencia BH-BMPT'!$D$40,IF(J32=40,'[1]Equivalencia BH-BMPT'!$D$41,IF(J32=41,'[1]Equivalencia BH-BMPT'!$D$42,IF(J32=42,'[1]Equivalencia BH-BMPT'!$D$43,IF(J32=43,'[1]Equivalencia BH-BMPT'!$D$44,IF(J32=44,'[1]Equivalencia BH-BMPT'!$D$45,IF(J32=45,'[1]Equivalencia BH-BMPT'!$D$46,"No ha seleccionado un número de programa"))))))))))))))))))))))))))))))))))))))))))))) -> Mejor movilidad para todos | L32: 1338 | M32: 51604977 | N32: JACQUELINE FRIEDE VILLAROEL | O32: 64400000 | S32: 0 | T32: 64400000 | U32: 61000000 | V32: 2017-02-10 | W32: 2017-02-10 | X32: 2017-12-31 | Y32: 322 | Z32: 0 | AD32: X | AF32: 0.9472049689
A33: 15 | B33: 2017 | C33: CPS015 2017 | D33: 5 | E33: =IF(D33=1,'[1]Tipo '!$B$2,IF(D33=2,'[1]Tipo '!$B$3,IF(D33=3,'[1]Tipo '!$B$4,IF(D33=4,'[1]Tipo '!$B$5,IF(D33=5,'[1]Tipo '!$B$6,IF(D33=6,'[1]Tipo '!$B$7,IF(D33=7,'[1]Tipo '!$B$8,IF(D33=8,'[1]Tipo '!$B$9,IF(D33=9,'[1]Tipo '!$B$10,IF(D33=10,'[1]Tipo '!$B$11,IF(D33=11,'[1]Tipo '!$B$12,IF(D33=12,'[1]Tipo '!$B$13,IF(D33=13,'[1]Tipo '!$B$14,IF(D33=14,'[1]Tipo '!$B$15,IF(D33=15,'[1]Tipo '!$B$16,IF(D33=16,'[1]Tipo '!$B$17,IF(D33=17,'[1]Tipo '!$B$18,IF(D33=18,'[1]Tipo '!$B$19,IF(D33=19,'[1]Tipo '!$B$20,"No ha seleccionado un tipo de contrato válido"))))))))))))))))))) -> CONTRATOS DE PRESTACIÓN DE SERVICIOS PROFESIONALES Y DE APOYO A LA GESTIÓN | F33: CONTRATACIÓN DIRECTA | G33: Prestación de servicios profesionales y de apoyo a la gestión, o para la ejecución de trabajos artísticos que sólo puedan encomendarse a determinadas personas naturales; | H33: El contrato que se pretende celebrar, tendrá por objeto: ¿El contratista se obliga para con la Alcaldía Local De Teusaquillo a prestar sus servicios en el despacho del Alcalde Local, realizando la recepción, tratamiento, procesamiento y conservación del archivo oficial del despacho y las actividades operativas ¿ | I33: INVERSIÓN | J33: 45 | K33: =IF(J33=1,'[1]Equivalencia BH-BMPT'!$D$2,IF(J33=2,'[1]Equivalencia BH-BMPT'!$D$3,IF(J33=3,'[1]Equivalencia BH-BMPT'!$D$4,IF(J33=4,'[1]Equivalencia BH-BMPT'!$D$5,IF(J33=5,'[1]Equivalencia BH-BMPT'!$D$6,IF(J33=6,'[1]Equivalencia BH-BMPT'!$D$7,IF(J33=7,'[1]Equivalencia BH-BMPT'!$D$8,IF(J33=8,'[1]Equivalencia BH-BMPT'!$D$9,IF(J33=9,'[1]Equivalencia BH-BMPT'!$D$10,IF(J33=10,'[1]Equivalencia BH-BMPT'!$D$11,IF(J33=11,'[1]Equivalencia BH-BMPT'!$D$12,IF(J33=12,'[1]Equivalencia BH-BMPT'!$D$13,IF(J33=13,'[1]Equivalencia BH-BMPT'!$D$14,IF(J33=14,'[1]Equivalencia BH-BMPT'!$D$15,IF(J33=15,'[1]Equivalencia BH-BMPT'!$D$16,IF(J33=16,'[1]Equivalencia BH-BMPT'!$D$17,IF(J33=17,'[1]Equivalencia BH-BMPT'!$D$18,IF(J33=18,'[1]Equivalencia BH-BMPT'!$D$19,IF(J33=19,'[1]Equivalencia BH-BMPT'!$D$20,IF(J33=20,'[1]Equivalencia BH-BMPT'!$D$21,IF(J33=21,'[1]Equivalencia BH-BMPT'!$D$22,IF(J33=22,'[1]Equivalencia BH-BMPT'!$D$23,IF(J33=23,'[1]Equivalencia BH-BMPT'!#REF!,IF(J33=24,'[1]Equivalencia BH-BMPT'!$D$25,IF(J33=25,'[1]Equivalencia BH-BMPT'!$D$26,IF(J33=26,'[1]Equivalencia BH-BMPT'!$D$27,IF(J33=27,'[1]Equivalencia BH-BMPT'!$D$28,IF(J33=28,'[1]Equivalencia BH-BMPT'!$D$29,IF(J33=29,'[1]Equivalencia BH-BMPT'!$D$30,IF(J33=30,'[1]Equivalencia BH-BMPT'!$D$31,IF(J33=31,'[1]Equivalencia BH-BMPT'!$D$32,IF(J33=32,'[1]Equivalencia BH-BMPT'!$D$33,IF(J33=33,'[1]Equivalencia BH-BMPT'!$D$34,IF(J33=34,'[1]Equivalencia BH-BMPT'!$D$35,IF(J33=35,'[1]Equivalencia BH-BMPT'!$D$36,IF(J33=36,'[1]Equivalencia BH-BMPT'!$D$37,IF(J33=37,'[1]Equivalencia BH-BMPT'!$D$38,IF(J33=38,'[1]Equivalencia BH-BMPT'!#REF!,IF(J33=39,'[1]Equivalencia BH-BMPT'!$D$40,IF(J33=40,'[1]Equivalencia BH-BMPT'!$D$41,IF(J33=41,'[1]Equivalencia BH-BMPT'!$D$42,IF(J33=42,'[1]Equivalencia BH-BMPT'!$D$43,IF(J33=43,'[1]Equivalencia BH-BMPT'!$D$44,IF(J33=44,'[1]Equivalencia BH-BMPT'!$D$45,IF(J33=45,'[1]Equivalencia BH-BMPT'!$D$46,"No ha seleccionado un número de programa"))))))))))))))))))))))))))))))))))))))))))))) -> Gobernanza e influencia local, regional e internacional | L33: 1329 | M33: 1097332656 | N33: VIANEY LUCIA ARDILA AVILA | O33: 21600000 | S33: 8280000 | T33: 29880000 | U33: 27450000 | V33: 2017-02-10 | W33: 2017-02-10 | X33: 2018-01-10 | Y33: 240 | Z33: 92 | AC33: X | AF33: 0.9186746988
A34: 16 | B34: 2017 | C34: CPS 016 2017 | D34: 5 | E34: =IF(D34=1,'[1]Tipo '!$B$2,IF(D34=2,'[1]Tipo '!$B$3,IF(D34=3,'[1]Tipo '!$B$4,IF(D34=4,'[1]Tipo '!$B$5,IF(D34=5,'[1]Tipo '!$B$6,IF(D34=6,'[1]Tipo '!$B$7,IF(D34=7,'[1]Tipo '!$B$8,IF(D34=8,'[1]Tipo '!$B$9,IF(D34=9,'[1]Tipo '!$B$10,IF(D34=10,'[1]Tipo '!$B$11,IF(D34=11,'[1]Tipo '!$B$12,IF(D34=12,'[1]Tipo '!$B$13,IF(D34=13,'[1]Tipo '!$B$14,IF(D34=14,'[1]Tipo '!$B$15,IF(D34=15,'[1]Tipo '!$B$16,IF(D34=16,'[1]Tipo '!$B$17,IF(D34=17,'[1]Tipo '!$B$18,IF(D34=18,'[1]Tipo '!$B$19,IF(D34=19,'[1]Tipo '!$B$20,"No ha seleccionado un tipo de contrato válido"))))))))))))))))))) -> CONTRATOS DE PRESTACIÓN DE SERVICIOS PROFESIONALES Y DE APOYO A LA GESTIÓN | F34: CONTRATACIÓN DIRECTA | G34: Prestación de servicios profesionales y de apoyo a la gestión, o para la ejecución de trabajos artísticos que sólo puedan encomendarse a determinadas personas naturales; | H34: EL CONTRATO QUE SE PRETENDE CELEBRAR, TENDRÁ POR OBJETO: ¿ EL CONTRATISTA SE OBLIGA PARA CON EL FONDO DE DESARROLLO LOCAL DE TEUSAQUILLO A PRESTAR SUS SERVICIOS PROFESIONALES AL AREA DE GESTIÓN DE DESARROLLO LOCAL ¿ PRESUPUESTO Y CONTABILIDAD PARA APOYAR LA IMPLEMENTACIÓN DE LAS NORMAS INTERNACIONALES DE INFORMACIÓN FINANCIERA (NIIF) | I34: INVERSIÓN | J34: 45 | K34: =IF(J34=1,'[1]Equivalencia BH-BMPT'!$D$2,IF(J34=2,'[1]Equivalencia BH-BMPT'!$D$3,IF(J34=3,'[1]Equivalencia BH-BMPT'!$D$4,IF(J34=4,'[1]Equivalencia BH-BMPT'!$D$5,IF(J34=5,'[1]Equivalencia BH-BMPT'!$D$6,IF(J34=6,'[1]Equivalencia BH-BMPT'!$D$7,IF(J34=7,'[1]Equivalencia BH-BMPT'!$D$8,IF(J34=8,'[1]Equivalencia BH-BMPT'!$D$9,IF(J34=9,'[1]Equivalencia BH-BMPT'!$D$10,IF(J34=10,'[1]Equivalencia BH-BMPT'!$D$11,IF(J34=11,'[1]Equivalencia BH-BMPT'!$D$12,IF(J34=12,'[1]Equivalencia BH-BMPT'!$D$13,IF(J34=13,'[1]Equivalencia BH-BMPT'!$D$14,IF(J34=14,'[1]Equivalencia BH-BMPT'!$D$15,IF(J34=15,'[1]Equivalencia BH-BMPT'!$D$16,IF(J34=16,'[1]Equivalencia BH-BMPT'!$D$17,IF(J34=17,'[1]Equivalencia BH-BMPT'!$D$18,IF(J34=18,'[1]Equivalencia BH-BMPT'!$D$19,IF(J34=19,'[1]Equivalencia BH-BMPT'!$D$20,IF(J34=20,'[1]Equivalencia BH-BMPT'!$D$21,IF(J34=21,'[1]Equivalencia BH-BMPT'!$D$22,IF(J34=22,'[1]Equivalencia BH-BMPT'!$D$23,IF(J34=23,'[1]Equivalencia BH-BMPT'!#REF!,IF(J34=24,'[1]Equivalencia BH-BMPT'!$D$25,IF(J34=25,'[1]Equivalencia BH-BMPT'!$D$26,IF(J34=26,'[1]Equivalencia BH-BMPT'!$D$27,IF(J34=27,'[1]Equivalencia BH-BMPT'!$D$28,IF(J34=28,'[1]Equivalencia BH-BMPT'!$D$29,IF(J34=29,'[1]Equivalencia BH-BMPT'!$D$30,IF(J34=30,'[1]Equivalencia BH-BMPT'!$D$31,IF(J34=31,'[1]Equivalencia BH-BMPT'!$D$32,IF(J34=32,'[1]Equivalencia BH-BMPT'!$D$33,IF(J34=33,'[1]Equivalencia BH-BMPT'!$D$34,IF(J34=34,'[1]Equivalencia BH-BMPT'!$D$35,IF(J34=35,'[1]Equivalencia BH-BMPT'!$D$36,IF(J34=36,'[1]Equivalencia BH-BMPT'!$D$37,IF(J34=37,'[1]Equivalencia BH-BMPT'!$D$38,IF(J34=38,'[1]Equivalencia BH-BMPT'!#REF!,IF(J34=39,'[1]Equivalencia BH-BMPT'!$D$40,IF(J34=40,'[1]Equivalencia BH-BMPT'!$D$41,IF(J34=41,'[1]Equivalencia BH-BMPT'!$D$42,IF(J34=42,'[1]Equivalencia BH-BMPT'!$D$43,IF(J34=43,'[1]Equivalencia BH-BMPT'!$D$44,IF(J34=44,'[1]Equivalencia BH-BMPT'!$D$45,IF(J34=45,'[1]Equivalencia BH-BMPT'!$D$46,"No ha seleccionado un número de programa"))))))))))))))))))))))))))))))))))))))))))))) -> Gobernanza e influencia local, regional e internacional | L34: 1329 | M34: 1010190370 | N34: MAROLYM YISELH BERNAL TORO | O34: 37600000 | S34: 14413333 | T34: 52013333 | U34: 47783333 | V34: 2017-02-10 | W34: 2017-02-10 | X34: 2018-01-10 | Y34: 240 | Z34: 92 | AC34: X | AF34: 0.9186746983
A35: 17 | B35: 2017 | C35: CPS 017 2017 | D35: 5 | E35: =IF(D35=1,'[1]Tipo '!$B$2,IF(D35=2,'[1]Tipo '!$B$3,IF(D35=3,'[1]Tipo '!$B$4,IF(D35=4,'[1]Tipo '!$B$5,IF(D35=5,'[1]Tipo '!$B$6,IF(D35=6,'[1]Tipo '!$B$7,IF(D35=7,'[1]Tipo '!$B$8,IF(D35=8,'[1]Tipo '!$B$9,IF(D35=9,'[1]Tipo '!$B$10,IF(D35=10,'[1]Tipo '!$B$11,IF(D35=11,'[1]Tipo '!$B$12,IF(D35=12,'[1]Tipo '!$B$13,IF(D35=13,'[1]Tipo '!$B$14,IF(D35=14,'[1]Tipo '!$B$15,IF(D35=15,'[1]Tipo '!$B$16,IF(D35=16,'[1]Tipo '!$B$17,IF(D35=17,'[1]Tipo '!$B$18,IF(D35=18,'[1]Tipo '!$B$19,IF(D35=19,'[1]Tipo '!$B$20,"No ha seleccionado un tipo de contrato válido"))))))))))))))))))) -> CONTRATOS DE PRESTACIÓN DE SERVICIOS PROFESIONALES Y DE APOYO A LA GESTIÓN | F35: CONTRATACIÓN DIRECTA | G35: Prestación de servicios profesionales y de apoyo a la gestión, o para la ejecución de trabajos artísticos que sólo puedan encomendarse a determinadas personas naturales; | H35: El contratista se obliga para con el Fondo de Desarrollo Local de Teusaquillo a apoyar todas las actividades de tipo operativo y administrativo relacionadas con la formulación y ejecución de los proyectos (componentes) y contratos de infraestructura, el marco del plan de desarrollo local 2017-2020, dentro de los proyectos 1338 ¿Teusaquillo Mejor para la conservación de la Malla Vial y Espacio Publico Peatonal¿ y el proyecto 1348 ¿Teusaquillo con mejores parques recreativos y deportivos¿. | I35: INVERSIÓN | J35: 18 | K35: =IF(J35=1,'[1]Equivalencia BH-BMPT'!$D$2,IF(J35=2,'[1]Equivalencia BH-BMPT'!$D$3,IF(J35=3,'[1]Equivalencia BH-BMPT'!$D$4,IF(J35=4,'[1]Equivalencia BH-BMPT'!$D$5,IF(J35=5,'[1]Equivalencia BH-BMPT'!$D$6,IF(J35=6,'[1]Equivalencia BH-BMPT'!$D$7,IF(J35=7,'[1]Equivalencia BH-BMPT'!$D$8,IF(J35=8,'[1]Equivalencia BH-BMPT'!$D$9,IF(J35=9,'[1]Equivalencia BH-BMPT'!$D$10,IF(J35=10,'[1]Equivalencia BH-BMPT'!$D$11,IF(J35=11,'[1]Equivalencia BH-BMPT'!$D$12,IF(J35=12,'[1]Equivalencia BH-BMPT'!$D$13,IF(J35=13,'[1]Equivalencia BH-BMPT'!$D$14,IF(J35=14,'[1]Equivalencia BH-BMPT'!$D$15,IF(J35=15,'[1]Equivalencia BH-BMPT'!$D$16,IF(J35=16,'[1]Equivalencia BH-BMPT'!$D$17,IF(J35=17,'[1]Equivalencia BH-BMPT'!$D$18,IF(J35=18,'[1]Equivalencia BH-BMPT'!$D$19,IF(J35=19,'[1]Equivalencia BH-BMPT'!$D$20,IF(J35=20,'[1]Equivalencia BH-BMPT'!$D$21,IF(J35=21,'[1]Equivalencia BH-BMPT'!$D$22,IF(J35=22,'[1]Equivalencia BH-BMPT'!$D$23,IF(J35=23,'[1]Equivalencia BH-BMPT'!#REF!,IF(J35=24,'[1]Equivalencia BH-BMPT'!$D$25,IF(J35=25,'[1]Equivalencia BH-BMPT'!$D$26,IF(J35=26,'[1]Equivalencia BH-BMPT'!$D$27,IF(J35=27,'[1]Equivalencia BH-BMPT'!$D$28,IF(J35=28,'[1]Equivalencia BH-BMPT'!$D$29,IF(J35=29,'[1]Equivalencia BH-BMPT'!$D$30,IF(J35=30,'[1]Equivalencia BH-BMPT'!$D$31,IF(J35=31,'[1]Equivalencia BH-BMPT'!$D$32,IF(J35=32,'[1]Equivalencia BH-BMPT'!$D$33,IF(J35=33,'[1]Equivalencia BH-BMPT'!$D$34,IF(J35=34,'[1]Equivalencia BH-BMPT'!$D$35,IF(J35=35,'[1]Equivalencia BH-BMPT'!$D$36,IF(J35=36,'[1]Equivalencia BH-BMPT'!$D$37,IF(J35=37,'[1]Equivalencia BH-BMPT'!$D$38,IF(J35=38,'[1]Equivalencia BH-BMPT'!#REF!,IF(J35=39,'[1]Equivalencia BH-BMPT'!$D$40,IF(J35=40,'[1]Equivalencia BH-BMPT'!$D$41,IF(J35=41,'[1]Equivalencia BH-BMPT'!$D$42,IF(J35=42,'[1]Equivalencia BH-BMPT'!$D$43,IF(J35=43,'[1]Equivalencia BH-BMPT'!$D$44,IF(J35=44,'[1]Equivalencia BH-BMPT'!$D$45,IF(J35=45,'[1]Equivalencia BH-BMPT'!$D$46,"No ha seleccionado un número de programa"))))))))))))))))))))))))))))))))))))))))))))) -> Mejor movilidad para todos | L35: 1338 | M35: 1024515563 | N35: MONICA JOHANNA CHIPATECUA QUEVEDO | O35: 38640000 | S35: 1200000 | T35: 39840000 | U35: 36600000 | V35: 2017-02-10 | W35: 2017-02-10 | X35: 2018-01-10 | Y35: 322 | Z35: 10 | AC35: X | AF35: 0.9186746988
A36: 18 | B36: 2017 | C36: CPS 018 2017 | D36: 5 | E36: =IF(D36=1,'[1]Tipo '!$B$2,IF(D36=2,'[1]Tipo '!$B$3,IF(D36=3,'[1]Tipo '!$B$4,IF(D36=4,'[1]Tipo '!$B$5,IF(D36=5,'[1]Tipo '!$B$6,IF(D36=6,'[1]Tipo '!$B$7,IF(D36=7,'[1]Tipo '!$B$8,IF(D36=8,'[1]Tipo '!$B$9,IF(D36=9,'[1]Tipo '!$B$10,IF(D36=10,'[1]Tipo '!$B$11,IF(D36=11,'[1]Tipo '!$B$12,IF(D36=12,'[1]Tipo '!$B$13,IF(D36=13,'[1]Tipo '!$B$14,IF(D36=14,'[1]Tipo '!$B$15,IF(D36=15,'[1]Tipo '!$B$16,IF(D36=16,'[1]Tipo '!$B$17,IF(D36=17,'[1]Tipo '!$B$18,IF(D36=18,'[1]Tipo '!$B$19,IF(D36=19,'[1]Tipo '!$B$20,"No ha seleccionado un tipo de contrato válido"))))))))))))))))))) -> CONTRATOS DE PRESTACIÓN DE SERVICIOS PROFESIONALES Y DE APOYO A LA GESTIÓN | F36: CONTRATACIÓN DIRECTA | G36: Prestación de servicios profesionales y de apoyo a la gestión, o para la ejecución de trabajos artísticos que sólo puedan encomendarse a determinadas personas naturales; | H36: El contrato que se pretende celebrar, tendrá por objeto ¿Prestación de servicios profesionales al Área de Gestión de Desarrollo Local de Teusaquillo, en la formulación, evaluación, presentación y seguimiento de proyectos, para asegurar la adecuada inversión de los recursos locales, así como el seguimiento y actualización en el sistema de información SEGPLAN y a las matrices de inversión (MUSI)¿.El contrato que se pretende celebrar, tendrá por objeto ¿Prestación de servicios profesionales al Área de Gestión de Desarrollo Local de Teusaquillo, en la formulación, evaluación, presentación y seguimiento de proyectos, para asegurar la adecuada inversión de los recursos locales, así como el seguimiento y actualización en el sistema de información SEGPLAN y a las matrices de inversión (MUSI)¿. | I36: INVERSIÓN | J36: 45 | K36: =IF(J36=1,'[1]Equivalencia BH-BMPT'!$D$2,IF(J36=2,'[1]Equivalencia BH-BMPT'!$D$3,IF(J36=3,'[1]Equivalencia BH-BMPT'!$D$4,IF(J36=4,'[1]Equivalencia BH-BMPT'!$D$5,IF(J36=5,'[1]Equivalencia BH-BMPT'!$D$6,IF(J36=6,'[1]Equivalencia BH-BMPT'!$D$7,IF(J36=7,'[1]Equivalencia BH-BMPT'!$D$8,IF(J36=8,'[1]Equivalencia BH-BMPT'!$D$9,IF(J36=9,'[1]Equivalencia BH-BMPT'!$D$10,IF(J36=10,'[1]Equivalencia BH-BMPT'!$D$11,IF(J36=11,'[1]Equivalencia BH-BMPT'!$D$12,IF(J36=12,'[1]Equivalencia BH-BMPT'!$D$13,IF(J36=13,'[1]Equivalencia BH-BMPT'!$D$14,IF(J36=14,'[1]Equivalencia BH-BMPT'!$D$15,IF(J36=15,'[1]Equivalencia BH-BMPT'!$D$16,IF(J36=16,'[1]Equivalencia BH-BMPT'!$D$17,IF(J36=17,'[1]Equivalencia BH-BMPT'!$D$18,IF(J36=18,'[1]Equivalencia BH-BMPT'!$D$19,IF(J36=19,'[1]Equivalencia BH-BMPT'!$D$20,IF(J36=20,'[1]Equivalencia BH-BMPT'!$D$21,IF(J36=21,'[1]Equivalencia BH-BMPT'!$D$22,IF(J36=22,'[1]Equivalencia BH-BMPT'!$D$23,IF(J36=23,'[1]Equivalencia BH-BMPT'!#REF!,IF(J36=24,'[1]Equivalencia BH-BMPT'!$D$25,IF(J36=25,'[1]Equivalencia BH-BMPT'!$D$26,IF(J36=26,'[1]Equivalencia BH-BMPT'!$D$27,IF(J36=27,'[1]Equivalencia BH-BMPT'!$D$28,IF(J36=28,'[1]Equivalencia BH-BMPT'!$D$29,IF(J36=29,'[1]Equivalencia BH-BMPT'!$D$30,IF(J36=30,'[1]Equivalencia BH-BMPT'!$D$31,IF(J36=31,'[1]Equivalencia BH-BMPT'!$D$32,IF(J36=32,'[1]Equivalencia BH-BMPT'!$D$33,IF(J36=33,'[1]Equivalencia BH-BMPT'!$D$34,IF(J36=34,'[1]Equivalencia BH-BMPT'!$D$35,IF(J36=35,'[1]Equivalencia BH-BMPT'!$D$36,IF(J36=36,'[1]Equivalencia BH-BMPT'!$D$37,IF(J36=37,'[1]Equivalencia BH-BMPT'!$D$38,IF(J36=38,'[1]Equivalencia BH-BMPT'!#REF!,IF(J36=39,'[1]Equivalencia BH-BMPT'!$D$40,IF(J36=40,'[1]Equivalencia BH-BMPT'!$D$41,IF(J36=41,'[1]Equivalencia BH-BMPT'!$D$42,IF(J36=42,'[1]Equivalencia BH-BMPT'!$D$43,IF(J36=43,'[1]Equivalencia BH-BMPT'!$D$44,IF(J36=44,'[1]Equivalencia BH-BMPT'!$D$45,IF(J36=45,'[1]Equivalencia BH-BMPT'!$D$46,"No ha seleccionado un número de programa"))))))))))))))))))))))))))))))))))))))))))))) -> Gobernanza e influencia local, regional e internacional | L36: 1329 | M36: 1144037315 | N36: JACOBO PARDEY ROZO | O36: 30800000 | S36: 0 | T36: 30800000 | U36: 30800000 | V36: 2017-02-14 | W36: 2017-02-14 | X36: 2017-09-13 | Y36: 210 | Z36: 0 | AE36: X | AF36: 1
A37: 19 | B37: 2017 | C37: CPS 019 2017 | D37: 5 | E37: =IF(D37=1,'[1]Tipo '!$B$2,IF(D37=2,'[1]Tipo '!$B$3,IF(D37=3,'[1]Tipo '!$B$4,IF(D37=4,'[1]Tipo '!$B$5,IF(D37=5,'[1]Tipo '!$B$6,IF(D37=6,'[1]Tipo '!$B$7,IF(D37=7,'[1]Tipo '!$B$8,IF(D37=8,'[1]Tipo '!$B$9,IF(D37=9,'[1]Tipo '!$B$10,IF(D37=10,'[1]Tipo '!$B$11,IF(D37=11,'[1]Tipo '!$B$12,IF(D37=12,'[1]Tipo '!$B$13,IF(D37=13,'[1]Tipo '!$B$14,IF(D37=14,'[1]Tipo '!$B$15,IF(D37=15,'[1]Tipo '!$B$16,IF(D37=16,'[1]Tipo '!$B$17,IF(D37=17,'[1]Tipo '!$B$18,IF(D37=18,'[1]Tipo '!$B$19,IF(D37=19,'[1]Tipo '!$B$20,"No ha seleccionado un tipo de contrato válido"))))))))))))))))))) -> CONTRATOS DE PRESTACIÓN DE SERVICIOS PROFESIONALES Y DE APOYO A LA GESTIÓN | F37: CONTRATACIÓN DIRECTA | G37: Prestación de servicios profesionales y de apoyo a la gestión, o para la ejecución de trabajos artísticos que sólo puedan encomendarse a determinadas personas naturales; | H37: El contrato que se pretende celebrar, tendrá por objeto ¿EL CONTRATISTA SE OBLIGA A PRESTAR SUS SERVICIOS C0MO APOYO TECNICO Y ADMINISTRATIVO A LA ADMINISTRACION LOCAL AL AREA DE GESTION DE DESARROLLO LOCAL- PRENSA COMUNICACIONES | I37: INVERSIÓN | J37: 45 | K37: =IF(J37=1,'[1]Equivalencia BH-BMPT'!$D$2,IF(J37=2,'[1]Equivalencia BH-BMPT'!$D$3,IF(J37=3,'[1]Equivalencia BH-BMPT'!$D$4,IF(J37=4,'[1]Equivalencia BH-BMPT'!$D$5,IF(J37=5,'[1]Equivalencia BH-BMPT'!$D$6,IF(J37=6,'[1]Equivalencia BH-BMPT'!$D$7,IF(J37=7,'[1]Equivalencia BH-BMPT'!$D$8,IF(J37=8,'[1]Equivalencia BH-BMPT'!$D$9,IF(J37=9,'[1]Equivalencia BH-BMPT'!$D$10,IF(J37=10,'[1]Equivalencia BH-BMPT'!$D$11,IF(J37=11,'[1]Equivalencia BH-BMPT'!$D$12,IF(J37=12,'[1]Equivalencia BH-BMPT'!$D$13,IF(J37=13,'[1]Equivalencia BH-BMPT'!$D$14,IF(J37=14,'[1]Equivalencia BH-BMPT'!$D$15,IF(J37=15,'[1]Equivalencia BH-BMPT'!$D$16,IF(J37=16,'[1]Equivalencia BH-BMPT'!$D$17,IF(J37=17,'[1]Equivalencia BH-BMPT'!$D$18,IF(J37=18,'[1]Equivalencia BH-BMPT'!$D$19,IF(J37=19,'[1]Equivalencia BH-BMPT'!$D$20,IF(J37=20,'[1]Equivalencia BH-BMPT'!$D$21,IF(J37=21,'[1]Equivalencia BH-BMPT'!$D$22,IF(J37=22,'[1]Equivalencia BH-BMPT'!$D$23,IF(J37=23,'[1]Equivalencia BH-BMPT'!#REF!,IF(J37=24,'[1]Equivalencia BH-BMPT'!$D$25,IF(J37=25,'[1]Equivalencia BH-BMPT'!$D$26,IF(J37=26,'[1]Equivalencia BH-BMPT'!$D$27,IF(J37=27,'[1]Equivalencia BH-BMPT'!$D$28,IF(J37=28,'[1]Equivalencia BH-BMPT'!$D$29,IF(J37=29,'[1]Equivalencia BH-BMPT'!$D$30,IF(J37=30,'[1]Equivalencia BH-BMPT'!$D$31,IF(J37=31,'[1]Equivalencia BH-BMPT'!$D$32,IF(J37=32,'[1]Equivalencia BH-BMPT'!$D$33,IF(J37=33,'[1]Equivalencia BH-BMPT'!$D$34,IF(J37=34,'[1]Equivalencia BH-BMPT'!$D$35,IF(J37=35,'[1]Equivalencia BH-BMPT'!$D$36,IF(J37=36,'[1]Equivalencia BH-BMPT'!$D$37,IF(J37=37,'[1]Equivalencia BH-BMPT'!$D$38,IF(J37=38,'[1]Equivalencia BH-BMPT'!#REF!,IF(J37=39,'[1]Equivalencia BH-BMPT'!$D$40,IF(J37=40,'[1]Equivalencia BH-BMPT'!$D$41,IF(J37=41,'[1]Equivalencia BH-BMPT'!$D$42,IF(J37=42,'[1]Equivalencia BH-BMPT'!$D$43,IF(J37=43,'[1]Equivalencia BH-BMPT'!$D$44,IF(J37=44,'[1]Equivalencia BH-BMPT'!$D$45,IF(J37=45,'[1]Equivalencia BH-BMPT'!$D$46,"No ha seleccionado un número de programa"))))))))))))))))))))))))))))))))))))))))))))) -> Gobernanza e influencia local, regional e internacional | L37: 1329 | M37: 79960305 | N37: CRISTIAN JOSE BERNAL BAUTISTA | O37: 22400000 | S37: 0 | T37: 22400000 | U37: 22400000 | V37: 2017-02-14 | W37: 2017-02-15 | X37: 2017-09-16 | Y37: 210 | Z37: 0 | AE37: X | AF37: 1
A38: 20 | B38: 2017 | C38: CPS 020 2017 | D38: 5 | E38: =IF(D38=1,'[1]Tipo '!$B$2,IF(D38=2,'[1]Tipo '!$B$3,IF(D38=3,'[1]Tipo '!$B$4,IF(D38=4,'[1]Tipo '!$B$5,IF(D38=5,'[1]Tipo '!$B$6,IF(D38=6,'[1]Tipo '!$B$7,IF(D38=7,'[1]Tipo '!$B$8,IF(D38=8,'[1]Tipo '!$B$9,IF(D38=9,'[1]Tipo '!$B$10,IF(D38=10,'[1]Tipo '!$B$11,IF(D38=11,'[1]Tipo '!$B$12,IF(D38=12,'[1]Tipo '!$B$13,IF(D38=13,'[1]Tipo '!$B$14,IF(D38=14,'[1]Tipo '!$B$15,IF(D38=15,'[1]Tipo '!$B$16,IF(D38=16,'[1]Tipo '!$B$17,IF(D38=17,'[1]Tipo '!$B$18,IF(D38=18,'[1]Tipo '!$B$19,IF(D38=19,'[1]Tipo '!$B$20,"No ha seleccionado un tipo de contrato válido"))))))))))))))))))) -> CONTRATOS DE PRESTACIÓN DE SERVICIOS PROFESIONALES Y DE APOYO A LA GESTIÓN | F38: CONTRATACIÓN DIRECTA | G38: Prestación de servicios profesionales y de apoyo a la gestión, o para la ejecución de trabajos artísticos que sólo puedan encomendarse a determinadas personas naturales; | H38: El contrato que se pretende celebrar, tendrá por objeto¿¿Prestación de servicios profesionales al Área de Gestión de Desarrollo Local de Teusaquillo, en la formulación, evaluación, presentación y seguimiento de proyectos sociales y articulación de espacios locales e interinstitucionales | I38: INVERSIÓN | J38: 45 | K38: =IF(J38=1,'[1]Equivalencia BH-BMPT'!$D$2,IF(J38=2,'[1]Equivalencia BH-BMPT'!$D$3,IF(J38=3,'[1]Equivalencia BH-BMPT'!$D$4,IF(J38=4,'[1]Equivalencia BH-BMPT'!$D$5,IF(J38=5,'[1]Equivalencia BH-BMPT'!$D$6,IF(J38=6,'[1]Equivalencia BH-BMPT'!$D$7,IF(J38=7,'[1]Equivalencia BH-BMPT'!$D$8,IF(J38=8,'[1]Equivalencia BH-BMPT'!$D$9,IF(J38=9,'[1]Equivalencia BH-BMPT'!$D$10,IF(J38=10,'[1]Equivalencia BH-BMPT'!$D$11,IF(J38=11,'[1]Equivalencia BH-BMPT'!$D$12,IF(J38=12,'[1]Equivalencia BH-BMPT'!$D$13,IF(J38=13,'[1]Equivalencia BH-BMPT'!$D$14,IF(J38=14,'[1]Equivalencia BH-BMPT'!$D$15,IF(J38=15,'[1]Equivalencia BH-BMPT'!$D$16,IF(J38=16,'[1]Equivalencia BH-BMPT'!$D$17,IF(J38=17,'[1]Equivalencia BH-BMPT'!$D$18,IF(J38=18,'[1]Equivalencia BH-BMPT'!$D$19,IF(J38=19,'[1]Equivalencia BH-BMPT'!$D$20,IF(J38=20,'[1]Equivalencia BH-BMPT'!$D$21,IF(J38=21,'[1]Equivalencia BH-BMPT'!$D$22,IF(J38=22,'[1]Equivalencia BH-BMPT'!$D$23,IF(J38=23,'[1]Equivalencia BH-BMPT'!#REF!,IF(J38=24,'[1]Equivalencia BH-BMPT'!$D$25,IF(J38=25,'[1]Equivalencia BH-BMPT'!$D$26,IF(J38=26,'[1]Equivalencia BH-BMPT'!$D$27,IF(J38=27,'[1]Equivalencia BH-BMPT'!$D$28,IF(J38=28,'[1]Equivalencia BH-BMPT'!$D$29,IF(J38=29,'[1]Equivalencia BH-BMPT'!$D$30,IF(J38=30,'[1]Equivalencia BH-BMPT'!$D$31,IF(J38=31,'[1]Equivalencia BH-BMPT'!$D$32,IF(J38=32,'[1]Equivalencia BH-BMPT'!$D$33,IF(J38=33,'[1]Equivalencia BH-BMPT'!$D$34,IF(J38=34,'[1]Equivalencia BH-BMPT'!$D$35,IF(J38=35,'[1]Equivalencia BH-BMPT'!$D$36,IF(J38=36,'[1]Equivalencia BH-BMPT'!$D$37,IF(J38=37,'[1]Equivalencia BH-BMPT'!$D$38,IF(J38=38,'[1]Equivalencia BH-BMPT'!#REF!,IF(J38=39,'[1]Equivalencia BH-BMPT'!$D$40,IF(J38=40,'[1]Equivalencia BH-BMPT'!$D$41,IF(J38=41,'[1]Equivalencia BH-BMPT'!$D$42,IF(J38=42,'[1]Equivalencia BH-BMPT'!$D$43,IF(J38=43,'[1]Equivalencia BH-BMPT'!$D$44,IF(J38=44,'[1]Equivalencia BH-BMPT'!$D$45,IF(J38=45,'[1]Equivalencia BH-BMPT'!$D$46,"No ha seleccionado un número de programa"))))))))))))))))))))))))))))))))))))))))))))) -> Gobernanza e influencia local, regional e internacional | L38: 1329 | M38: 52816918 | N38: PAMELA REYES PATRIA CAMARGO | O38: 32800000 | S38: 0 | T38: 32800000 | U38: 32800000 | V38: 2017-02-14 | W38: 2017-02-15 | X38: 2017-09-14 | Y38: 240 | Z38: 0 | AE38: X | AF38: 1
A39: 21 | B39: 2017 | C39: CPS 021 2017 | D39: 5 | E39: =IF(D39=1,'[1]Tipo '!$B$2,IF(D39=2,'[1]Tipo '!$B$3,IF(D39=3,'[1]Tipo '!$B$4,IF(D39=4,'[1]Tipo '!$B$5,IF(D39=5,'[1]Tipo '!$B$6,IF(D39=6,'[1]Tipo '!$B$7,IF(D39=7,'[1]Tipo '!$B$8,IF(D39=8,'[1]Tipo '!$B$9,IF(D39=9,'[1]Tipo '!$B$10,IF(D39=10,'[1]Tipo '!$B$11,IF(D39=11,'[1]Tipo '!$B$12,IF(D39=12,'[1]Tipo '!$B$13,IF(D39=13,'[1]Tipo '!$B$14,IF(D39=14,'[1]Tipo '!$B$15,IF(D39=15,'[1]Tipo '!$B$16,IF(D39=16,'[1]Tipo '!$B$17,IF(D39=17,'[1]Tipo '!$B$18,IF(D39=18,'[1]Tipo '!$B$19,IF(D39=19,'[1]Tipo '!$B$20,"No ha seleccionado un tipo de contrato válido"))))))))))))))))))) -> CONTRATOS DE PRESTACIÓN DE SERVICIOS PROFESIONALES Y DE APOYO A LA GESTIÓN | F39: CONTRATACIÓN DIRECTA | G39: Prestación de servicios profesionales y de apoyo a la gestión, o para la ejecución de trabajos artísticos que sólo puedan encomendarse a determinadas personas naturales; | H39: El contrato que se pretende celebrar, tendrá por objeto ¿El contratista se obliga para con la Alcaldía Local de Teusaquillo a prestar sus servicios en actividades operativas como el traslado, cuidado y entrega de la documentación, mensajería interna y externa que produzcan las oficinas de la Alcaldía Local.¿. | I39: INVERSIÓN | J39: 45 | K39: =IF(J39=1,'[1]Equivalencia BH-BMPT'!$D$2,IF(J39=2,'[1]Equivalencia BH-BMPT'!$D$3,IF(J39=3,'[1]Equivalencia BH-BMPT'!$D$4,IF(J39=4,'[1]Equivalencia BH-BMPT'!$D$5,IF(J39=5,'[1]Equivalencia BH-BMPT'!$D$6,IF(J39=6,'[1]Equivalencia BH-BMPT'!$D$7,IF(J39=7,'[1]Equivalencia BH-BMPT'!$D$8,IF(J39=8,'[1]Equivalencia BH-BMPT'!$D$9,IF(J39=9,'[1]Equivalencia BH-BMPT'!$D$10,IF(J39=10,'[1]Equivalencia BH-BMPT'!$D$11,IF(J39=11,'[1]Equivalencia BH-BMPT'!$D$12,IF(J39=12,'[1]Equivalencia BH-BMPT'!$D$13,IF(J39=13,'[1]Equivalencia BH-BMPT'!$D$14,IF(J39=14,'[1]Equivalencia BH-BMPT'!$D$15,IF(J39=15,'[1]Equivalencia BH-BMPT'!$D$16,IF(J39=16,'[1]Equivalencia BH-BMPT'!$D$17,IF(J39=17,'[1]Equivalencia BH-BMPT'!$D$18,IF(J39=18,'[1]Equivalencia BH-BMPT'!$D$19,IF(J39=19,'[1]Equivalencia BH-BMPT'!$D$20,IF(J39=20,'[1]Equivalencia BH-BMPT'!$D$21,IF(J39=21,'[1]Equivalencia BH-BMPT'!$D$22,IF(J39=22,'[1]Equivalencia BH-BMPT'!$D$23,IF(J39=23,'[1]Equivalencia BH-BMPT'!#REF!,IF(J39=24,'[1]Equivalencia BH-BMPT'!$D$25,IF(J39=25,'[1]Equivalencia BH-BMPT'!$D$26,IF(J39=26,'[1]Equivalencia BH-BMPT'!$D$27,IF(J39=27,'[1]Equivalencia BH-BMPT'!$D$28,IF(J39=28,'[1]Equivalencia BH-BMPT'!$D$29,IF(J39=29,'[1]Equivalencia BH-BMPT'!$D$30,IF(J39=30,'[1]Equivalencia BH-BMPT'!$D$31,IF(J39=31,'[1]Equivalencia BH-BMPT'!$D$32,IF(J39=32,'[1]Equivalencia BH-BMPT'!$D$33,IF(J39=33,'[1]Equivalencia BH-BMPT'!$D$34,IF(J39=34,'[1]Equivalencia BH-BMPT'!$D$35,IF(J39=35,'[1]Equivalencia BH-BMPT'!$D$36,IF(J39=36,'[1]Equivalencia BH-BMPT'!$D$37,IF(J39=37,'[1]Equivalencia BH-BMPT'!$D$38,IF(J39=38,'[1]Equivalencia BH-BMPT'!#REF!,IF(J39=39,'[1]Equivalencia BH-BMPT'!$D$40,IF(J39=40,'[1]Equivalencia BH-BMPT'!$D$41,IF(J39=41,'[1]Equivalencia BH-BMPT'!$D$42,IF(J39=42,'[1]Equivalencia BH-BMPT'!$D$43,IF(J39=43,'[1]Equivalencia BH-BMPT'!$D$44,IF(J39=44,'[1]Equivalencia BH-BMPT'!$D$45,IF(J39=45,'[1]Equivalencia BH-BMPT'!$D$46,"No ha seleccionado un número de programa"))))))))))))))))))))))))))))))))))))))))))))) -> Gobernanza e influencia local, regional e internacional | L39: 1329 | M39: 51985575 | N39: MARTHA ISABEL BLANCO JURADO | O39: 14000000 | S39: 0 | T39: 14000000 | U39: 14000000 | V39: 2017-02-14 | W39: 2017-02-14 | X39: 2017-09-13 | Y39: 210 | Z39: 0 | AE39: X | AF39: 1
A40: 22 | B40: 2017 | C40: CPS 022 2017 | D40: 5 | E40: =IF(D40=1,'[1]Tipo '!$B$2,IF(D40=2,'[1]Tipo '!$B$3,IF(D40=3,'[1]Tipo '!$B$4,IF(D40=4,'[1]Tipo '!$B$5,IF(D40=5,'[1]Tipo '!$B$6,IF(D40=6,'[1]Tipo '!$B$7,IF(D40=7,'[1]Tipo '!$B$8,IF(D40=8,'[1]Tipo '!$B$9,IF(D40=9,'[1]Tipo '!$B$10,IF(D40=10,'[1]Tipo '!$B$11,IF(D40=11,'[1]Tipo '!$B$12,IF(D40=12,'[1]Tipo '!$B$13,IF(D40=13,'[1]Tipo '!$B$14,IF(D40=14,'[1]Tipo '!$B$15,IF(D40=15,'[1]Tipo '!$B$16,IF(D40=16,'[1]Tipo '!$B$17,IF(D40=17,'[1]Tipo '!$B$18,IF(D40=18,'[1]Tipo '!$B$19,IF(D40=19,'[1]Tipo '!$B$20,"No ha seleccionado un tipo de contrato válido"))))))))))))))))))) -> CONTRATOS DE PRESTACIÓN DE SERVICIOS PROFESIONALES Y DE APOYO A LA GESTIÓN | F40: CONTRATACIÓN DIRECTA | G40: Prestación de servicios profesionales y de apoyo a la gestión, o para la ejecución de trabajos artísticos que sólo puedan encomendarse a determinadas personas naturales; | H40: El contrato que se pretende celebrar, tendrá por objeto ¿El contratista se obliga para con el Fondo de Desarrollo Local de Teusaquillo a prestar sus servicios profesionales realizando todas las actividades técnicas, y de coordinación institucional del proyecto 1330 ¿Teusaquillo mejor para el Ambiente | I40: INVERSIÓN | J40: 45 | K40: =IF(J40=1,'[1]Equivalencia BH-BMPT'!$D$2,IF(J40=2,'[1]Equivalencia BH-BMPT'!$D$3,IF(J40=3,'[1]Equivalencia BH-BMPT'!$D$4,IF(J40=4,'[1]Equivalencia BH-BMPT'!$D$5,IF(J40=5,'[1]Equivalencia BH-BMPT'!$D$6,IF(J40=6,'[1]Equivalencia BH-BMPT'!$D$7,IF(J40=7,'[1]Equivalencia BH-BMPT'!$D$8,IF(J40=8,'[1]Equivalencia BH-BMPT'!$D$9,IF(J40=9,'[1]Equivalencia BH-BMPT'!$D$10,IF(J40=10,'[1]Equivalencia BH-BMPT'!$D$11,IF(J40=11,'[1]Equivalencia BH-BMPT'!$D$12,IF(J40=12,'[1]Equivalencia BH-BMPT'!$D$13,IF(J40=13,'[1]Equivalencia BH-BMPT'!$D$14,IF(J40=14,'[1]Equivalencia BH-BMPT'!$D$15,IF(J40=15,'[1]Equivalencia BH-BMPT'!$D$16,IF(J40=16,'[1]Equivalencia BH-BMPT'!$D$17,IF(J40=17,'[1]Equivalencia BH-BMPT'!$D$18,IF(J40=18,'[1]Equivalencia BH-BMPT'!$D$19,IF(J40=19,'[1]Equivalencia BH-BMPT'!$D$20,IF(J40=20,'[1]Equivalencia BH-BMPT'!$D$21,IF(J40=21,'[1]Equivalencia BH-BMPT'!$D$22,IF(J40=22,'[1]Equivalencia BH-BMPT'!$D$23,IF(J40=23,'[1]Equivalencia BH-BMPT'!#REF!,IF(J40=24,'[1]Equivalencia BH-BMPT'!$D$25,IF(J40=25,'[1]Equivalencia BH-BMPT'!$D$26,IF(J40=26,'[1]Equivalencia BH-BMPT'!$D$27,IF(J40=27,'[1]Equivalencia BH-BMPT'!$D$28,IF(J40=28,'[1]Equivalencia BH-BMPT'!$D$29,IF(J40=29,'[1]Equivalencia BH-BMPT'!$D$30,IF(J40=30,'[1]Equivalencia BH-BMPT'!$D$31,IF(J40=31,'[1]Equivalencia BH-BMPT'!$D$32,IF(J40=32,'[1]Equivalencia BH-BMPT'!$D$33,IF(J40=33,'[1]Equivalencia BH-BMPT'!$D$34,IF(J40=34,'[1]Equivalencia BH-BMPT'!$D$35,IF(J40=35,'[1]Equivalencia BH-BMPT'!$D$36,IF(J40=36,'[1]Equivalencia BH-BMPT'!$D$37,IF(J40=37,'[1]Equivalencia BH-BMPT'!$D$38,IF(J40=38,'[1]Equivalencia BH-BMPT'!#REF!,IF(J40=39,'[1]Equivalencia BH-BMPT'!$D$40,IF(J40=40,'[1]Equivalencia BH-BMPT'!$D$41,IF(J40=41,'[1]Equivalencia BH-BMPT'!$D$42,IF(J40=42,'[1]Equivalencia BH-BMPT'!$D$43,IF(J40=43,'[1]Equivalencia BH-BMPT'!$D$44,IF(J40=44,'[1]Equivalencia BH-BMPT'!$D$45,IF(J40=45,'[1]Equivalencia BH-BMPT'!$D$46,"No ha seleccionado un número de programa"))))))))))))))))))))))))))))))))))))))))))))) -> Gobernanza e influencia local, regional e internacional | L40: 1329 | M40: 52865785 | N40: MARIA ELENA ORTEGA AMAYA | O40: 30100000 | S40: 15050000 | T40: 45150000 | U40: 43143333 | V40: 2017-02-14 | W40: 2017-02-14 | X40: 2017-12-28 | Y40: 210 | Z40: =15+90 -> 105 | AD40: X | AF40: 0.9555555482
A41: 24 | B41: 2017 | C41: CPS 024 2017 | D41: 5 | E41: =IF(D41=1,'[1]Tipo '!$B$2,IF(D41=2,'[1]Tipo '!$B$3,IF(D41=3,'[1]Tipo '!$B$4,IF(D41=4,'[1]Tipo '!$B$5,IF(D41=5,'[1]Tipo '!$B$6,IF(D41=6,'[1]Tipo '!$B$7,IF(D41=7,'[1]Tipo '!$B$8,IF(D41=8,'[1]Tipo '!$B$9,IF(D41=9,'[1]Tipo '!$B$10,IF(D41=10,'[1]Tipo '!$B$11,IF(D41=11,'[1]Tipo '!$B$12,IF(D41=12,'[1]Tipo '!$B$13,IF(D41=13,'[1]Tipo '!$B$14,IF(D41=14,'[1]Tipo '!$B$15,IF(D41=15,'[1]Tipo '!$B$16,IF(D41=16,'[1]Tipo '!$B$17,IF(D41=17,'[1]Tipo '!$B$18,IF(D41=18,'[1]Tipo '!$B$19,IF(D41=19,'[1]Tipo '!$B$20,"No ha seleccionado un tipo de contrato válido"))))))))))))))))))) -> CONTRATOS DE PRESTACIÓN DE SERVICIOS PROFESIONALES Y DE APOYO A LA GESTIÓN | F41: CONTRATACIÓN DIRECTA | G41: Prestación de servicios profesionales y de apoyo a la gestión, o para la ejecución de trabajos artísticos que sólo puedan encomendarse a determinadas personas naturales; | H41: Prestación de servicios profesionales al Área de Gestión Policiva de la Alcaldía Local de Teusaquillo, con el fin de realizar las actividades concernientes a dar impulso y trámite procesal a las Actuaciones Administrativas al Régimen de Obras y Urbanismo y Preliminares, así como a los requerimientos relacionados al tema urbanístico. | I41: INVERSIÓN | J41: 45 | K41: =IF(J41=1,'[1]Equivalencia BH-BMPT'!$D$2,IF(J41=2,'[1]Equivalencia BH-BMPT'!$D$3,IF(J41=3,'[1]Equivalencia BH-BMPT'!$D$4,IF(J41=4,'[1]Equivalencia BH-BMPT'!$D$5,IF(J41=5,'[1]Equivalencia BH-BMPT'!$D$6,IF(J41=6,'[1]Equivalencia BH-BMPT'!$D$7,IF(J41=7,'[1]Equivalencia BH-BMPT'!$D$8,IF(J41=8,'[1]Equivalencia BH-BMPT'!$D$9,IF(J41=9,'[1]Equivalencia BH-BMPT'!$D$10,IF(J41=10,'[1]Equivalencia BH-BMPT'!$D$11,IF(J41=11,'[1]Equivalencia BH-BMPT'!$D$12,IF(J41=12,'[1]Equivalencia BH-BMPT'!$D$13,IF(J41=13,'[1]Equivalencia BH-BMPT'!$D$14,IF(J41=14,'[1]Equivalencia BH-BMPT'!$D$15,IF(J41=15,'[1]Equivalencia BH-BMPT'!$D$16,IF(J41=16,'[1]Equivalencia BH-BMPT'!$D$17,IF(J41=17,'[1]Equivalencia BH-BMPT'!$D$18,IF(J41=18,'[1]Equivalencia BH-BMPT'!$D$19,IF(J41=19,'[1]Equivalencia BH-BMPT'!$D$20,IF(J41=20,'[1]Equivalencia BH-BMPT'!$D$21,IF(J41=21,'[1]Equivalencia BH-BMPT'!$D$22,IF(J41=22,'[1]Equivalencia BH-BMPT'!$D$23,IF(J41=23,'[1]Equivalencia BH-BMPT'!#REF!,IF(J41=24,'[1]Equivalencia BH-BMPT'!$D$25,IF(J41=25,'[1]Equivalencia BH-BMPT'!$D$26,IF(J41=26,'[1]Equivalencia BH-BMPT'!$D$27,IF(J41=27,'[1]Equivalencia BH-BMPT'!$D$28,IF(J41=28,'[1]Equivalencia BH-BMPT'!$D$29,IF(J41=29,'[1]Equivalencia BH-BMPT'!$D$30,IF(J41=30,'[1]Equivalencia BH-BMPT'!$D$31,IF(J41=31,'[1]Equivalencia BH-BMPT'!$D$32,IF(J41=32,'[1]Equivalencia BH-BMPT'!$D$33,IF(J41=33,'[1]Equivalencia BH-BMPT'!$D$34,IF(J41=34,'[1]Equivalencia BH-BMPT'!$D$35,IF(J41=35,'[1]Equivalencia BH-BMPT'!$D$36,IF(J41=36,'[1]Equivalencia BH-BMPT'!$D$37,IF(J41=37,'[1]Equivalencia BH-BMPT'!$D$38,IF(J41=38,'[1]Equivalencia BH-BMPT'!#REF!,IF(J41=39,'[1]Equivalencia BH-BMPT'!$D$40,IF(J41=40,'[1]Equivalencia BH-BMPT'!$D$41,IF(J41=41,'[1]Equivalencia BH-BMPT'!$D$42,IF(J41=42,'[1]Equivalencia BH-BMPT'!$D$43,IF(J41=43,'[1]Equivalencia BH-BMPT'!$D$44,IF(J41=44,'[1]Equivalencia BH-BMPT'!$D$45,IF(J41=45,'[1]Equivalencia BH-BMPT'!$D$46,"No ha seleccionado un número de programa"))))))))))))))))))))))))))))))))))))))))))))) -> Gobernanza e influencia local, regional e internacional | L41: 1329 | M41: 22501932 | N41: BELKIS CECILIA CASTRO MONTERROSA | O41: 28402108 | S41: 13930557 | T41: 42332665 | U41: 40303943 | V41: 2017-02-16 | W41: 2017-02-17 | X41: 2017-12-29 | Y41: 210 | Z41: =13+90 -> 103 | AD41: X | AF41: 0.9520766765
A42: 25 | B42: 2017 | C42: CPS 025 2017 | D42: 5 | E42: =IF(D42=1,'[1]Tipo '!$B$2,IF(D42=2,'[1]Tipo '!$B$3,IF(D42=3,'[1]Tipo '!$B$4,IF(D42=4,'[1]Tipo '!$B$5,IF(D42=5,'[1]Tipo '!$B$6,IF(D42=6,'[1]Tipo '!$B$7,IF(D42=7,'[1]Tipo '!$B$8,IF(D42=8,'[1]Tipo '!$B$9,IF(D42=9,'[1]Tipo '!$B$10,IF(D42=10,'[1]Tipo '!$B$11,IF(D42=11,'[1]Tipo '!$B$12,IF(D42=12,'[1]Tipo '!$B$13,IF(D42=13,'[1]Tipo '!$B$14,IF(D42=14,'[1]Tipo '!$B$15,IF(D42=15,'[1]Tipo '!$B$16,IF(D42=16,'[1]Tipo '!$B$17,IF(D42=17,'[1]Tipo '!$B$18,IF(D42=18,'[1]Tipo '!$B$19,IF(D42=19,'[1]Tipo '!$B$20,"No ha seleccionado un tipo de contrato válido"))))))))))))))))))) -> CONTRATOS DE PRESTACIÓN DE SERVICIOS PROFESIONALES Y DE APOYO A LA GESTIÓN | F42: CONTRATACIÓN DIRECTA | G42: Prestación de servicios profesionales y de apoyo a la gestión, o para la ejecución de trabajos artísticos que sólo puedan encomendarse a determinadas personas naturales; | H42: EL CONTRATISTA SE OBLIGA PARA CON EL FONDO DE DESARROLLO LOCAL A PRESTAR SUS SERVICIOS DE APOYO A LAS ACTIVIDADES QUE SE GENEREN EN LA JUNTA ADMINISTRADORA LOCAL DE TEUSAQUILLO. | I42: INVERSIÓN | J42: 45 | K42: =IF(J42=1,'[1]Equivalencia BH-BMPT'!$D$2,IF(J42=2,'[1]Equivalencia BH-BMPT'!$D$3,IF(J42=3,'[1]Equivalencia BH-BMPT'!$D$4,IF(J42=4,'[1]Equivalencia BH-BMPT'!$D$5,IF(J42=5,'[1]Equivalencia BH-BMPT'!$D$6,IF(J42=6,'[1]Equivalencia BH-BMPT'!$D$7,IF(J42=7,'[1]Equivalencia BH-BMPT'!$D$8,IF(J42=8,'[1]Equivalencia BH-BMPT'!$D$9,IF(J42=9,'[1]Equivalencia BH-BMPT'!$D$10,IF(J42=10,'[1]Equivalencia BH-BMPT'!$D$11,IF(J42=11,'[1]Equivalencia BH-BMPT'!$D$12,IF(J42=12,'[1]Equivalencia BH-BMPT'!$D$13,IF(J42=13,'[1]Equivalencia BH-BMPT'!$D$14,IF(J42=14,'[1]Equivalencia BH-BMPT'!$D$15,IF(J42=15,'[1]Equivalencia BH-BMPT'!$D$16,IF(J42=16,'[1]Equivalencia BH-BMPT'!$D$17,IF(J42=17,'[1]Equivalencia BH-BMPT'!$D$18,IF(J42=18,'[1]Equivalencia BH-BMPT'!$D$19,IF(J42=19,'[1]Equivalencia BH-BMPT'!$D$20,IF(J42=20,'[1]Equivalencia BH-BMPT'!$D$21,IF(J42=21,'[1]Equivalencia BH-BMPT'!$D$22,IF(J42=22,'[1]Equivalencia BH-BMPT'!$D$23,IF(J42=23,'[1]Equivalencia BH-BMPT'!#REF!,IF(J42=24,'[1]Equivalencia BH-BMPT'!$D$25,IF(J42=25,'[1]Equivalencia BH-BMPT'!$D$26,IF(J42=26,'[1]Equivalencia BH-BMPT'!$D$27,IF(J42=27,'[1]Equivalencia BH-BMPT'!$D$28,IF(J42=28,'[1]Equivalencia BH-BMPT'!$D$29,IF(J42=29,'[1]Equivalencia BH-BMPT'!$D$30,IF(J42=30,'[1]Equivalencia BH-BMPT'!$D$31,IF(J42=31,'[1]Equivalencia BH-BMPT'!$D$32,IF(J42=32,'[1]Equivalencia BH-BMPT'!$D$33,IF(J42=33,'[1]Equivalencia BH-BMPT'!$D$34,IF(J42=34,'[1]Equivalencia BH-BMPT'!$D$35,IF(J42=35,'[1]Equivalencia BH-BMPT'!$D$36,IF(J42=36,'[1]Equivalencia BH-BMPT'!$D$37,IF(J42=37,'[1]Equivalencia BH-BMPT'!$D$38,IF(J42=38,'[1]Equivalencia BH-BMPT'!#REF!,IF(J42=39,'[1]Equivalencia BH-BMPT'!$D$40,IF(J42=40,'[1]Equivalencia BH-BMPT'!$D$41,IF(J42=41,'[1]Equivalencia BH-BMPT'!$D$42,IF(J42=42,'[1]Equivalencia BH-BMPT'!$D$43,IF(J42=43,'[1]Equivalencia BH-BMPT'!$D$44,IF(J42=44,'[1]Equivalencia BH-BMPT'!$D$45,IF(J42=45,'[1]Equivalencia BH-BMPT'!$D$46,"No ha seleccionado un número de programa"))))))))))))))))))))))))))))))))))))))))))))) -> Gobernanza e influencia local, regional e internacional | L42: 1329 | M42: 1018448341 | N42: PEDRO ANGEL ZABALETA POLO | O42: 21700000 | S42: 10023333 | T42: 31723333 | U42: 30173333 | V42: 2017-02-17 | W42: 2017-02-23 | X42: 2017-12-29 | Y42: 210 | Z42: =7+90 -> 97 | AD42: X | AF42: 0.9511400646
A43: 26 | B43: 2017 | C43: CPS 026 2017 | D43: 5 | E43: =IF(D43=1,'[1]Tipo '!$B$2,IF(D43=2,'[1]Tipo '!$B$3,IF(D43=3,'[1]Tipo '!$B$4,IF(D43=4,'[1]Tipo '!$B$5,IF(D43=5,'[1]Tipo '!$B$6,IF(D43=6,'[1]Tipo '!$B$7,IF(D43=7,'[1]Tipo '!$B$8,IF(D43=8,'[1]Tipo '!$B$9,IF(D43=9,'[1]Tipo '!$B$10,IF(D43=10,'[1]Tipo '!$B$11,IF(D43=11,'[1]Tipo '!$B$12,IF(D43=12,'[1]Tipo '!$B$13,IF(D43=13,'[1]Tipo '!$B$14,IF(D43=14,'[1]Tipo '!$B$15,IF(D43=15,'[1]Tipo '!$B$16,IF(D43=16,'[1]Tipo '!$B$17,IF(D43=17,'[1]Tipo '!$B$18,IF(D43=18,'[1]Tipo '!$B$19,IF(D43=19,'[1]Tipo '!$B$20,"No ha seleccionado un tipo de contrato válido"))))))))))))))))))) -> CONTRATOS DE PRESTACIÓN DE SERVICIOS PROFESIONALES Y DE APOYO A LA GESTIÓN | F43: CONTRATACIÓN DIRECTA | G43: Prestación de servicios profesionales y de apoyo a la gestión, o para la ejecución de trabajos artísticos que sólo puedan encomendarse a determinadas personas naturales; | H43: El contrato que se pretende celebrar, tendrá por objeto ¿Prestación de servicios de apoyo a la gestión al Área de Gestión Policiva de la Alcaldía Local de Teusaquillo, en las actividades concernientes a la recepción de correspondencia, registro, digitalización y seguimiento a los trámites administrativos de las oficinas de obras y jurídica, así como el manejo de agenda y elaboración de actas de reuniones¿. | I43: INVERSIÓN | J43: 45 | K43: =IF(J43=1,'[1]Equivalencia BH-BMPT'!$D$2,IF(J43=2,'[1]Equivalencia BH-BMPT'!$D$3,IF(J43=3,'[1]Equivalencia BH-BMPT'!$D$4,IF(J43=4,'[1]Equivalencia BH-BMPT'!$D$5,IF(J43=5,'[1]Equivalencia BH-BMPT'!$D$6,IF(J43=6,'[1]Equivalencia BH-BMPT'!$D$7,IF(J43=7,'[1]Equivalencia BH-BMPT'!$D$8,IF(J43=8,'[1]Equivalencia BH-BMPT'!$D$9,IF(J43=9,'[1]Equivalencia BH-BMPT'!$D$10,IF(J43=10,'[1]Equivalencia BH-BMPT'!$D$11,IF(J43=11,'[1]Equivalencia BH-BMPT'!$D$12,IF(J43=12,'[1]Equivalencia BH-BMPT'!$D$13,IF(J43=13,'[1]Equivalencia BH-BMPT'!$D$14,IF(J43=14,'[1]Equivalencia BH-BMPT'!$D$15,IF(J43=15,'[1]Equivalencia BH-BMPT'!$D$16,IF(J43=16,'[1]Equivalencia BH-BMPT'!$D$17,IF(J43=17,'[1]Equivalencia BH-BMPT'!$D$18,IF(J43=18,'[1]Equivalencia BH-BMPT'!$D$19,IF(J43=19,'[1]Equivalencia BH-BMPT'!$D$20,IF(J43=20,'[1]Equivalencia BH-BMPT'!$D$21,IF(J43=21,'[1]Equivalencia BH-BMPT'!$D$22,IF(J43=22,'[1]Equivalencia BH-BMPT'!$D$23,IF(J43=23,'[1]Equivalencia BH-BMPT'!#REF!,IF(J43=24,'[1]Equivalencia BH-BMPT'!$D$25,IF(J43=25,'[1]Equivalencia BH-BMPT'!$D$26,IF(J43=26,'[1]Equivalencia BH-BMPT'!$D$27,IF(J43=27,'[1]Equivalencia BH-BMPT'!$D$28,IF(J43=28,'[1]Equivalencia BH-BMPT'!$D$29,IF(J43=29,'[1]Equivalencia BH-BMPT'!$D$30,IF(J43=30,'[1]Equivalencia BH-BMPT'!$D$31,IF(J43=31,'[1]Equivalencia BH-BMPT'!$D$32,IF(J43=32,'[1]Equivalencia BH-BMPT'!$D$33,IF(J43=33,'[1]Equivalencia BH-BMPT'!$D$34,IF(J43=34,'[1]Equivalencia BH-BMPT'!$D$35,IF(J43=35,'[1]Equivalencia BH-BMPT'!$D$36,IF(J43=36,'[1]Equivalencia BH-BMPT'!$D$37,IF(J43=37,'[1]Equivalencia BH-BMPT'!$D$38,IF(J43=38,'[1]Equivalencia BH-BMPT'!#REF!,IF(J43=39,'[1]Equivalencia BH-BMPT'!$D$40,IF(J43=40,'[1]Equivalencia BH-BMPT'!$D$41,IF(J43=41,'[1]Equivalencia BH-BMPT'!$D$42,IF(J43=42,'[1]Equivalencia BH-BMPT'!$D$43,IF(J43=43,'[1]Equivalencia BH-BMPT'!$D$44,IF(J43=44,'[1]Equivalencia BH-BMPT'!$D$45,IF(J43=45,'[1]Equivalencia BH-BMPT'!$D$46,"No ha seleccionado un número de programa"))))))))))))))))))))))))))))))))))))))))))))) -> Gobernanza e influencia local, regional e internacional | L43: 1329 | M43: 1015403868 | N43: TORRES RICAUTE CINDY LICCETTE | O43: 20139672 | S43: 0 | T43: 20139672 | U43: 20139672 | V43: 2017-02-16 | W43: 2017-02-16 | X43: 2017-09-15 | Y43: 210 | Z43: 0 | AE43: X | AF43: 1
A44: 27 | B44: 2017 | C44: CPS 027 2017 | D44: 5 | E44: =IF(D44=1,'[1]Tipo '!$B$2,IF(D44=2,'[1]Tipo '!$B$3,IF(D44=3,'[1]Tipo '!$B$4,IF(D44=4,'[1]Tipo '!$B$5,IF(D44=5,'[1]Tipo '!$B$6,IF(D44=6,'[1]Tipo '!$B$7,IF(D44=7,'[1]Tipo '!$B$8,IF(D44=8,'[1]Tipo '!$B$9,IF(D44=9,'[1]Tipo '!$B$10,IF(D44=10,'[1]Tipo '!$B$11,IF(D44=11,'[1]Tipo '!$B$12,IF(D44=12,'[1]Tipo '!$B$13,IF(D44=13,'[1]Tipo '!$B$14,IF(D44=14,'[1]Tipo '!$B$15,IF(D44=15,'[1]Tipo '!$B$16,IF(D44=16,'[1]Tipo '!$B$17,IF(D44=17,'[1]Tipo '!$B$18,IF(D44=18,'[1]Tipo '!$B$19,IF(D44=19,'[1]Tipo '!$B$20,"No ha seleccionado un tipo de contrato válido"))))))))))))))))))) -> CONTRATOS DE PRESTACIÓN DE SERVICIOS PROFESIONALES Y DE APOYO A LA GESTIÓN | F44: CONTRATACIÓN DIRECTA | G44: Prestación de servicios profesionales y de apoyo a la gestión, o para la ejecución de trabajos artísticos que sólo puedan encomendarse a determinadas personas naturales; | H44: El contrato que se pretende celebrar, tendrá por objeto ¿Prestación de servicios profesionales al Área de Gestión Policiva en el trámite procesal de las Actuaciones Administrativas y preliminares adelantadas con miras a la restitución del espacio público y la atención a los vendedores informales de la localidad¿. | I44: INVERSIÓN | J44: 45 | K44: =IF(J44=1,'[1]Equivalencia BH-BMPT'!$D$2,IF(J44=2,'[1]Equivalencia BH-BMPT'!$D$3,IF(J44=3,'[1]Equivalencia BH-BMPT'!$D$4,IF(J44=4,'[1]Equivalencia BH-BMPT'!$D$5,IF(J44=5,'[1]Equivalencia BH-BMPT'!$D$6,IF(J44=6,'[1]Equivalencia BH-BMPT'!$D$7,IF(J44=7,'[1]Equivalencia BH-BMPT'!$D$8,IF(J44=8,'[1]Equivalencia BH-BMPT'!$D$9,IF(J44=9,'[1]Equivalencia BH-BMPT'!$D$10,IF(J44=10,'[1]Equivalencia BH-BMPT'!$D$11,IF(J44=11,'[1]Equivalencia BH-BMPT'!$D$12,IF(J44=12,'[1]Equivalencia BH-BMPT'!$D$13,IF(J44=13,'[1]Equivalencia BH-BMPT'!$D$14,IF(J44=14,'[1]Equivalencia BH-BMPT'!$D$15,IF(J44=15,'[1]Equivalencia BH-BMPT'!$D$16,IF(J44=16,'[1]Equivalencia BH-BMPT'!$D$17,IF(J44=17,'[1]Equivalencia BH-BMPT'!$D$18,IF(J44=18,'[1]Equivalencia BH-BMPT'!$D$19,IF(J44=19,'[1]Equivalencia BH-BMPT'!$D$20,IF(J44=20,'[1]Equivalencia BH-BMPT'!$D$21,IF(J44=21,'[1]Equivalencia BH-BMPT'!$D$22,IF(J44=22,'[1]Equivalencia BH-BMPT'!$D$23,IF(J44=23,'[1]Equivalencia BH-BMPT'!#REF!,IF(J44=24,'[1]Equivalencia BH-BMPT'!$D$25,IF(J44=25,'[1]Equivalencia BH-BMPT'!$D$26,IF(J44=26,'[1]Equivalencia BH-BMPT'!$D$27,IF(J44=27,'[1]Equivalencia BH-BMPT'!$D$28,IF(J44=28,'[1]Equivalencia BH-BMPT'!$D$29,IF(J44=29,'[1]Equivalencia BH-BMPT'!$D$30,IF(J44=30,'[1]Equivalencia BH-BMPT'!$D$31,IF(J44=31,'[1]Equivalencia BH-BMPT'!$D$32,IF(J44=32,'[1]Equivalencia BH-BMPT'!$D$33,IF(J44=33,'[1]Equivalencia BH-BMPT'!$D$34,IF(J44=34,'[1]Equivalencia BH-BMPT'!$D$35,IF(J44=35,'[1]Equivalencia BH-BMPT'!$D$36,IF(J44=36,'[1]Equivalencia BH-BMPT'!$D$37,IF(J44=37,'[1]Equivalencia BH-BMPT'!$D$38,IF(J44=38,'[1]Equivalencia BH-BMPT'!#REF!,IF(J44=39,'[1]Equivalencia BH-BMPT'!$D$40,IF(J44=40,'[1]Equivalencia BH-BMPT'!$D$41,IF(J44=41,'[1]Equivalencia BH-BMPT'!$D$42,IF(J44=42,'[1]Equivalencia BH-BMPT'!$D$43,IF(J44=43,'[1]Equivalencia BH-BMPT'!$D$44,IF(J44=44,'[1]Equivalencia BH-BMPT'!$D$45,IF(J44=45,'[1]Equivalencia BH-BMPT'!$D$46,"No ha seleccionado un número de programa"))))))))))))))))))))))))))))))))))))))))))))) -> Gobernanza e influencia local, regional e internacional | L44: 1329 | M44: 82391015 | N44: OSCAR ANDRES MESA RODRIGUEZ | O44: 31500000 | S44: 0 | T44: 31500000 | U44: 31350000 | V44: 2017-02-16 | W44: 2017-02-16 | X44: 2017-09-15 | Y44: 210 | Z44: 0 | AD44: X | AF44: 0.9952380952
A45: 28 | B45: 2017 | C45: cps 28 2017 | D45: 5 | E45: =IF(D45=1,'[1]Tipo '!$B$2,IF(D45=2,'[1]Tipo '!$B$3,IF(D45=3,'[1]Tipo '!$B$4,IF(D45=4,'[1]Tipo '!$B$5,IF(D45=5,'[1]Tipo '!$B$6,IF(D45=6,'[1]Tipo '!$B$7,IF(D45=7,'[1]Tipo '!$B$8,IF(D45=8,'[1]Tipo '!$B$9,IF(D45=9,'[1]Tipo '!$B$10,IF(D45=10,'[1]Tipo '!$B$11,IF(D45=11,'[1]Tipo '!$B$12,IF(D45=12,'[1]Tipo '!$B$13,IF(D45=13,'[1]Tipo '!$B$14,IF(D45=14,'[1]Tipo '!$B$15,IF(D45=15,'[1]Tipo '!$B$16,IF(D45=16,'[1]Tipo '!$B$17,IF(D45=17,'[1]Tipo '!$B$18,IF(D45=18,'[1]Tipo '!$B$19,IF(D45=19,'[1]Tipo '!$B$20,"No ha seleccionado un tipo de contrato válido"))))))))))))))))))) -> CONTRATOS DE PRESTACIÓN DE SERVICIOS PROFESIONALES Y DE APOYO A LA GESTIÓN | F45: CONTRATACIÓN DIRECTA | G45: Prestación de servicios profesionales y de apoyo a la gestión, o para la ejecución de trabajos artísticos que sólo puedan encomendarse a determinadas personas naturales; | H45: El contrato que se pretende celebrar, tendrá por objeto¿¿Prestación de servicios profesionales al Área de Gestión Policiva para la descongestión e impulso procesal a las actuaciones administrativas y preliminares correspondientes al régimen de obras y urbanismo anteriores al año 2015, así como recepcionar diligencias de expresión de opiniones correspondientes al tema urbanístico.¿ | I45: INVERSIÓN | J45: 45 | K45: =IF(J45=1,'[1]Equivalencia BH-BMPT'!$D$2,IF(J45=2,'[1]Equivalencia BH-BMPT'!$D$3,IF(J45=3,'[1]Equivalencia BH-BMPT'!$D$4,IF(J45=4,'[1]Equivalencia BH-BMPT'!$D$5,IF(J45=5,'[1]Equivalencia BH-BMPT'!$D$6,IF(J45=6,'[1]Equivalencia BH-BMPT'!$D$7,IF(J45=7,'[1]Equivalencia BH-BMPT'!$D$8,IF(J45=8,'[1]Equivalencia BH-BMPT'!$D$9,IF(J45=9,'[1]Equivalencia BH-BMPT'!$D$10,IF(J45=10,'[1]Equivalencia BH-BMPT'!$D$11,IF(J45=11,'[1]Equivalencia BH-BMPT'!$D$12,IF(J45=12,'[1]Equivalencia BH-BMPT'!$D$13,IF(J45=13,'[1]Equivalencia BH-BMPT'!$D$14,IF(J45=14,'[1]Equivalencia BH-BMPT'!$D$15,IF(J45=15,'[1]Equivalencia BH-BMPT'!$D$16,IF(J45=16,'[1]Equivalencia BH-BMPT'!$D$17,IF(J45=17,'[1]Equivalencia BH-BMPT'!$D$18,IF(J45=18,'[1]Equivalencia BH-BMPT'!$D$19,IF(J45=19,'[1]Equivalencia BH-BMPT'!$D$20,IF(J45=20,'[1]Equivalencia BH-BMPT'!$D$21,IF(J45=21,'[1]Equivalencia BH-BMPT'!$D$22,IF(J45=22,'[1]Equivalencia BH-BMPT'!$D$23,IF(J45=23,'[1]Equivalencia BH-BMPT'!#REF!,IF(J45=24,'[1]Equivalencia BH-BMPT'!$D$25,IF(J45=25,'[1]Equivalencia BH-BMPT'!$D$26,IF(J45=26,'[1]Equivalencia BH-BMPT'!$D$27,IF(J45=27,'[1]Equivalencia BH-BMPT'!$D$28,IF(J45=28,'[1]Equivalencia BH-BMPT'!$D$29,IF(J45=29,'[1]Equivalencia BH-BMPT'!$D$30,IF(J45=30,'[1]Equivalencia BH-BMPT'!$D$31,IF(J45=31,'[1]Equivalencia BH-BMPT'!$D$32,IF(J45=32,'[1]Equivalencia BH-BMPT'!$D$33,IF(J45=33,'[1]Equivalencia BH-BMPT'!$D$34,IF(J45=34,'[1]Equivalencia BH-BMPT'!$D$35,IF(J45=35,'[1]Equivalencia BH-BMPT'!$D$36,IF(J45=36,'[1]Equivalencia BH-BMPT'!$D$37,IF(J45=37,'[1]Equivalencia BH-BMPT'!$D$38,IF(J45=38,'[1]Equivalencia BH-BMPT'!#REF!,IF(J45=39,'[1]Equivalencia BH-BMPT'!$D$40,IF(J45=40,'[1]Equivalencia BH-BMPT'!$D$41,IF(J45=41,'[1]Equivalencia BH-BMPT'!$D$42,IF(J45=42,'[1]Equivalencia BH-BMPT'!$D$43,IF(J45=43,'[1]Equivalencia BH-BMPT'!$D$44,IF(J45=44,'[1]Equivalencia BH-BMPT'!$D$45,IF(J45=45,'[1]Equivalencia BH-BMPT'!$D$46,"No ha seleccionado un número de programa"))))))))))))))))))))))))))))))))))))))))))))) -> Gobernanza e influencia local, regional e internacional | L45: 1329 | M45: 8722208 | N45: ABELARDO JESUS RAMOS RAMOS | O45: 28402108 | S45: 0 | T45: 28402108 | U45: 28402108 | V45: 2017-02-15 | W45: 2017-02-24 | X45: 2017-09-23 | Y45: 210 | Z45: 0 | AE45: X | AF45: 1
A46: 29 | B46: 2017 | C46: CPS 029 2017 | D46: 5 | E46: =IF(D46=1,'[1]Tipo '!$B$2,IF(D46=2,'[1]Tipo '!$B$3,IF(D46=3,'[1]Tipo '!$B$4,IF(D46=4,'[1]Tipo '!$B$5,IF(D46=5,'[1]Tipo '!$B$6,IF(D46=6,'[1]Tipo '!$B$7,IF(D46=7,'[1]Tipo '!$B$8,IF(D46=8,'[1]Tipo '!$B$9,IF(D46=9,'[1]Tipo '!$B$10,IF(D46=10,'[1]Tipo '!$B$11,IF(D46=11,'[1]Tipo '!$B$12,IF(D46=12,'[1]Tipo '!$B$13,IF(D46=13,'[1]Tipo '!$B$14,IF(D46=14,'[1]Tipo '!$B$15,IF(D46=15,'[1]Tipo '!$B$16,IF(D46=16,'[1]Tipo '!$B$17,IF(D46=17,'[1]Tipo '!$B$18,IF(D46=18,'[1]Tipo '!$B$19,IF(D46=19,'[1]Tipo '!$B$20,"No ha seleccionado un tipo de contrato válido"))))))))))))))))))) -> CONTRATOS DE PRESTACIÓN DE SERVICIOS PROFESIONALES Y DE APOYO A LA GESTIÓN | F46: CONTRATACIÓN DIRECTA | G46: Prestación de servicios profesionales y de apoyo a la gestión, o para la ejecución de trabajos artísticos que sólo puedan encomendarse a determinadas personas naturales; | H46: El contrato que se pretende celebrar, tendrá por objeto¿¿Prestación de servicios profesionales al Área de Gestión Policiva de la Alcaldía Local de Teusaquillo, con el fin de realizar las actividades concernientes al trámite procesal de las Actuaciones Administrativas y requerimientos relacionados con Establecimientos de Comercio, así como recepcionar diligencias de expresión de opiniones correspondientes al tema.¿ | I46: INVERSIÓN | J46: 45 | K46: =IF(J46=1,'[1]Equivalencia BH-BMPT'!$D$2,IF(J46=2,'[1]Equivalencia BH-BMPT'!$D$3,IF(J46=3,'[1]Equivalencia BH-BMPT'!$D$4,IF(J46=4,'[1]Equivalencia BH-BMPT'!$D$5,IF(J46=5,'[1]Equivalencia BH-BMPT'!$D$6,IF(J46=6,'[1]Equivalencia BH-BMPT'!$D$7,IF(J46=7,'[1]Equivalencia BH-BMPT'!$D$8,IF(J46=8,'[1]Equivalencia BH-BMPT'!$D$9,IF(J46=9,'[1]Equivalencia BH-BMPT'!$D$10,IF(J46=10,'[1]Equivalencia BH-BMPT'!$D$11,IF(J46=11,'[1]Equivalencia BH-BMPT'!$D$12,IF(J46=12,'[1]Equivalencia BH-BMPT'!$D$13,IF(J46=13,'[1]Equivalencia BH-BMPT'!$D$14,IF(J46=14,'[1]Equivalencia BH-BMPT'!$D$15,IF(J46=15,'[1]Equivalencia BH-BMPT'!$D$16,IF(J46=16,'[1]Equivalencia BH-BMPT'!$D$17,IF(J46=17,'[1]Equivalencia BH-BMPT'!$D$18,IF(J46=18,'[1]Equivalencia BH-BMPT'!$D$19,IF(J46=19,'[1]Equivalencia BH-BMPT'!$D$20,IF(J46=20,'[1]Equivalencia BH-BMPT'!$D$21,IF(J46=21,'[1]Equivalencia BH-BMPT'!$D$22,IF(J46=22,'[1]Equivalencia BH-BMPT'!$D$23,IF(J46=23,'[1]Equivalencia BH-BMPT'!#REF!,IF(J46=24,'[1]Equivalencia BH-BMPT'!$D$25,IF(J46=25,'[1]Equivalencia BH-BMPT'!$D$26,IF(J46=26,'[1]Equivalencia BH-BMPT'!$D$27,IF(J46=27,'[1]Equivalencia BH-BMPT'!$D$28,IF(J46=28,'[1]Equivalencia BH-BMPT'!$D$29,IF(J46=29,'[1]Equivalencia BH-BMPT'!$D$30,IF(J46=30,'[1]Equivalencia BH-BMPT'!$D$31,IF(J46=31,'[1]Equivalencia BH-BMPT'!$D$32,IF(J46=32,'[1]Equivalencia BH-BMPT'!$D$33,IF(J46=33,'[1]Equivalencia BH-BMPT'!$D$34,IF(J46=34,'[1]Equivalencia BH-BMPT'!$D$35,IF(J46=35,'[1]Equivalencia BH-BMPT'!$D$36,IF(J46=36,'[1]Equivalencia BH-BMPT'!$D$37,IF(J46=37,'[1]Equivalencia BH-BMPT'!$D$38,IF(J46=38,'[1]Equivalencia BH-BMPT'!#REF!,IF(J46=39,'[1]Equivalencia BH-BMPT'!$D$40,IF(J46=40,'[1]Equivalencia BH-BMPT'!$D$41,IF(J46=41,'[1]Equivalencia BH-BMPT'!$D$42,IF(J46=42,'[1]Equivalencia BH-BMPT'!$D$43,IF(J46=43,'[1]Equivalencia BH-BMPT'!$D$44,IF(J46=44,'[1]Equivalencia BH-BMPT'!$D$45,IF(J46=45,'[1]Equivalencia BH-BMPT'!$D$46,"No ha seleccionado un número de programa"))))))))))))))))))))))))))))))))))))))))))))) -> Gobernanza e influencia local, regional e internacional | L46: 1329 | M46: 1016016305 | N46: JHONATAN DUCUARA CAITA | O46: 31500000 | S46: 0 | T46: 31500000 | U46: 31500000 | V46: 2017-02-16 | W46: 2017-02-17 | X46: 2017-09-16 | Y46: 210 | Z46: 0 | AE46: X | AF46: 1
A47: 30 | B47: 2017 | C47: CPS 030 2017 | D47: 5 | E47: =IF(D47=1,'[1]Tipo '!$B$2,IF(D47=2,'[1]Tipo '!$B$3,IF(D47=3,'[1]Tipo '!$B$4,IF(D47=4,'[1]Tipo '!$B$5,IF(D47=5,'[1]Tipo '!$B$6,IF(D47=6,'[1]Tipo '!$B$7,IF(D47=7,'[1]Tipo '!$B$8,IF(D47=8,'[1]Tipo '!$B$9,IF(D47=9,'[1]Tipo '!$B$10,IF(D47=10,'[1]Tipo '!$B$11,IF(D47=11,'[1]Tipo '!$B$12,IF(D47=12,'[1]Tipo '!$B$13,IF(D47=13,'[1]Tipo '!$B$14,IF(D47=14,'[1]Tipo '!$B$15,IF(D47=15,'[1]Tipo '!$B$16,IF(D47=16,'[1]Tipo '!$B$17,IF(D47=17,'[1]Tipo '!$B$18,IF(D47=18,'[1]Tipo '!$B$19,IF(D47=19,'[1]Tipo '!$B$20,"No ha seleccionado un tipo de contrato válido"))))))))))))))))))) -> CONTRATOS DE PRESTACIÓN DE SERVICIOS PROFESIONALES Y DE APOYO A LA GESTIÓN | F47: CONTRATACIÓN DIRECTA | G47: Prestación de servicios profesionales y de apoyo a la gestión, o para la ejecución de trabajos artísticos que sólo puedan encomendarse a determinadas personas naturales; | H47: El contrato que se pretende celebrar, tendrá por objeto¿Prestación de servicios de apoyo en el área de Gestión de Desarrollo Local para adelantar las labores de clasificación, foliado, digitalización, organización técnica, informática y demás necesarias para la gestión documental, así como el proceso de eliminación y transferencia de archivos inactivos de la alcaldía local de Teusaquillo de acuerdo a la normatividad vigente y en concordancia con los estándares de gestión documental y la administración¿. | I47: INVERSIÓN | J47: 45 | K47: =IF(J47=1,'[1]Equivalencia BH-BMPT'!$D$2,IF(J47=2,'[1]Equivalencia BH-BMPT'!$D$3,IF(J47=3,'[1]Equivalencia BH-BMPT'!$D$4,IF(J47=4,'[1]Equivalencia BH-BMPT'!$D$5,IF(J47=5,'[1]Equivalencia BH-BMPT'!$D$6,IF(J47=6,'[1]Equivalencia BH-BMPT'!$D$7,IF(J47=7,'[1]Equivalencia BH-BMPT'!$D$8,IF(J47=8,'[1]Equivalencia BH-BMPT'!$D$9,IF(J47=9,'[1]Equivalencia BH-BMPT'!$D$10,IF(J47=10,'[1]Equivalencia BH-BMPT'!$D$11,IF(J47=11,'[1]Equivalencia BH-BMPT'!$D$12,IF(J47=12,'[1]Equivalencia BH-BMPT'!$D$13,IF(J47=13,'[1]Equivalencia BH-BMPT'!$D$14,IF(J47=14,'[1]Equivalencia BH-BMPT'!$D$15,IF(J47=15,'[1]Equivalencia BH-BMPT'!$D$16,IF(J47=16,'[1]Equivalencia BH-BMPT'!$D$17,IF(J47=17,'[1]Equivalencia BH-BMPT'!$D$18,IF(J47=18,'[1]Equivalencia BH-BMPT'!$D$19,IF(J47=19,'[1]Equivalencia BH-BMPT'!$D$20,IF(J47=20,'[1]Equivalencia BH-BMPT'!$D$21,IF(J47=21,'[1]Equivalencia BH-BMPT'!$D$22,IF(J47=22,'[1]Equivalencia BH-BMPT'!$D$23,IF(J47=23,'[1]Equivalencia BH-BMPT'!#REF!,IF(J47=24,'[1]Equivalencia BH-BMPT'!$D$25,IF(J47=25,'[1]Equivalencia BH-BMPT'!$D$26,IF(J47=26,'[1]Equivalencia BH-BMPT'!$D$27,IF(J47=27,'[1]Equivalencia BH-BMPT'!$D$28,IF(J47=28,'[1]Equivalencia BH-BMPT'!$D$29,IF(J47=29,'[1]Equivalencia BH-BMPT'!$D$30,IF(J47=30,'[1]Equivalencia BH-BMPT'!$D$31,IF(J47=31,'[1]Equivalencia BH-BMPT'!$D$32,IF(J47=32,'[1]Equivalencia BH-BMPT'!$D$33,IF(J47=33,'[1]Equivalencia BH-BMPT'!$D$34,IF(J47=34,'[1]Equivalencia BH-BMPT'!$D$35,IF(J47=35,'[1]Equivalencia BH-BMPT'!$D$36,IF(J47=36,'[1]Equivalencia BH-BMPT'!$D$37,IF(J47=37,'[1]Equivalencia BH-BMPT'!$D$38,IF(J47=38,'[1]Equivalencia BH-BMPT'!#REF!,IF(J47=39,'[1]Equivalencia BH-BMPT'!$D$40,IF(J47=40,'[1]Equivalencia BH-BMPT'!$D$41,IF(J47=41,'[1]Equivalencia BH-BMPT'!$D$42,IF(J47=42,'[1]Equivalencia BH-BMPT'!$D$43,IF(J47=43,'[1]Equivalencia BH-BMPT'!$D$44,IF(J47=44,'[1]Equivalencia BH-BMPT'!$D$45,IF(J47=45,'[1]Equivalencia BH-BMPT'!$D$46,"No ha seleccionado un número de programa"))))))))))))))))))))))))))))))))))))))))))))) -> Gobernanza e influencia local, regional e internacional | L47: 1329 | M47: 79614766 | N47: JULIAN ENRIQUE ARIZA GONZALEZ | O47: 25303600 | S47: 0 | T47: 25303600 | U47: 25303600 | V47: 2017-02-16 | W47: 2017-02-17 | X47: 2017-09-16 | Y47: 210 | Z47: 0 | AE47: X | AF47: 1
A48: 31 | B48: 2017 | C48: CPS 031 2017 | D48: 5 | E48: =IF(D48=1,'[1]Tipo '!$B$2,IF(D48=2,'[1]Tipo '!$B$3,IF(D48=3,'[1]Tipo '!$B$4,IF(D48=4,'[1]Tipo '!$B$5,IF(D48=5,'[1]Tipo '!$B$6,IF(D48=6,'[1]Tipo '!$B$7,IF(D48=7,'[1]Tipo '!$B$8,IF(D48=8,'[1]Tipo '!$B$9,IF(D48=9,'[1]Tipo '!$B$10,IF(D48=10,'[1]Tipo '!$B$11,IF(D48=11,'[1]Tipo '!$B$12,IF(D48=12,'[1]Tipo '!$B$13,IF(D48=13,'[1]Tipo '!$B$14,IF(D48=14,'[1]Tipo '!$B$15,IF(D48=15,'[1]Tipo '!$B$16,IF(D48=16,'[1]Tipo '!$B$17,IF(D48=17,'[1]Tipo '!$B$18,IF(D48=18,'[1]Tipo '!$B$19,IF(D48=19,'[1]Tipo '!$B$20,"No ha seleccionado un tipo de contrato válido"))))))))))))))))))) -> CONTRATOS DE PRESTACIÓN DE SERVICIOS PROFESIONALES Y DE APOYO A LA GESTIÓN | F48: CONTRATACIÓN DIRECTA | G48: Prestación de servicios profesionales y de apoyo a la gestión, o para la ejecución de trabajos artísticos que sólo puedan encomendarse a determinadas personas naturales; | H48: Prestar sus servicios profesionales en el área Gestión De Desarrollo Local Administrativa y Financiera como apoyo a la gestión realizando las actividades precontractuales y contractuales necesarias que conlleven a dar cumplimiento al plan anual de adquisiciones 2017, en los rubros de gastos de funcionamiento y componentes asignados del Proyecto 1329, plan de gestión y plan de Desarrollo local 2017-2020 de acuerdo a los presentes estudios previos | I48: INVERSIÓN | J48: 45 | K48: =IF(J48=1,'[1]Equivalencia BH-BMPT'!$D$2,IF(J48=2,'[1]Equivalencia BH-BMPT'!$D$3,IF(J48=3,'[1]Equivalencia BH-BMPT'!$D$4,IF(J48=4,'[1]Equivalencia BH-BMPT'!$D$5,IF(J48=5,'[1]Equivalencia BH-BMPT'!$D$6,IF(J48=6,'[1]Equivalencia BH-BMPT'!$D$7,IF(J48=7,'[1]Equivalencia BH-BMPT'!$D$8,IF(J48=8,'[1]Equivalencia BH-BMPT'!$D$9,IF(J48=9,'[1]Equivalencia BH-BMPT'!$D$10,IF(J48=10,'[1]Equivalencia BH-BMPT'!$D$11,IF(J48=11,'[1]Equivalencia BH-BMPT'!$D$12,IF(J48=12,'[1]Equivalencia BH-BMPT'!$D$13,IF(J48=13,'[1]Equivalencia BH-BMPT'!$D$14,IF(J48=14,'[1]Equivalencia BH-BMPT'!$D$15,IF(J48=15,'[1]Equivalencia BH-BMPT'!$D$16,IF(J48=16,'[1]Equivalencia BH-BMPT'!$D$17,IF(J48=17,'[1]Equivalencia BH-BMPT'!$D$18,IF(J48=18,'[1]Equivalencia BH-BMPT'!$D$19,IF(J48=19,'[1]Equivalencia BH-BMPT'!$D$20,IF(J48=20,'[1]Equivalencia BH-BMPT'!$D$21,IF(J48=21,'[1]Equivalencia BH-BMPT'!$D$22,IF(J48=22,'[1]Equivalencia BH-BMPT'!$D$23,IF(J48=23,'[1]Equivalencia BH-BMPT'!#REF!,IF(J48=24,'[1]Equivalencia BH-BMPT'!$D$25,IF(J48=25,'[1]Equivalencia BH-BMPT'!$D$26,IF(J48=26,'[1]Equivalencia BH-BMPT'!$D$27,IF(J48=27,'[1]Equivalencia BH-BMPT'!$D$28,IF(J48=28,'[1]Equivalencia BH-BMPT'!$D$29,IF(J48=29,'[1]Equivalencia BH-BMPT'!$D$30,IF(J48=30,'[1]Equivalencia BH-BMPT'!$D$31,IF(J48=31,'[1]Equivalencia BH-BMPT'!$D$32,IF(J48=32,'[1]Equivalencia BH-BMPT'!$D$33,IF(J48=33,'[1]Equivalencia BH-BMPT'!$D$34,IF(J48=34,'[1]Equivalencia BH-BMPT'!$D$35,IF(J48=35,'[1]Equivalencia BH-BMPT'!$D$36,IF(J48=36,'[1]Equivalencia BH-BMPT'!$D$37,IF(J48=37,'[1]Equivalencia BH-BMPT'!$D$38,IF(J48=38,'[1]Equivalencia BH-BMPT'!#REF!,IF(J48=39,'[1]Equivalencia BH-BMPT'!$D$40,IF(J48=40,'[1]Equivalencia BH-BMPT'!$D$41,IF(J48=41,'[1]Equivalencia BH-BMPT'!$D$42,IF(J48=42,'[1]Equivalencia BH-BMPT'!$D$43,IF(J48=43,'[1]Equivalencia BH-BMPT'!$D$44,IF(J48=44,'[1]Equivalencia BH-BMPT'!$D$45,IF(J48=45,'[1]Equivalencia BH-BMPT'!$D$46,"No ha seleccionado un número de programa"))))))))))))))))))))))))))))))))))))))))))))) -> Gobernanza e influencia local, regional e internacional | L48: 1329 | M48: 79765033 | N48: DAIRO JEZZID LEON ROMERO | O48: 31500000 | S48: 0 | T48: 31500000 | U48: 31500000 | V48: 2017-02-17 | W48: 2017-02-17 | X48: 2017-09-16 | Y48: 210 | Z48: 0 | AE48: X | AF48: 1
A49: 32 | B49: 2017 | C49: CPS 032 2017 | D49: 5 | E49: =IF(D49=1,'[1]Tipo '!$B$2,IF(D49=2,'[1]Tipo '!$B$3,IF(D49=3,'[1]Tipo '!$B$4,IF(D49=4,'[1]Tipo '!$B$5,IF(D49=5,'[1]Tipo '!$B$6,IF(D49=6,'[1]Tipo '!$B$7,IF(D49=7,'[1]Tipo '!$B$8,IF(D49=8,'[1]Tipo '!$B$9,IF(D49=9,'[1]Tipo '!$B$10,IF(D49=10,'[1]Tipo '!$B$11,IF(D49=11,'[1]Tipo '!$B$12,IF(D49=12,'[1]Tipo '!$B$13,IF(D49=13,'[1]Tipo '!$B$14,IF(D49=14,'[1]Tipo '!$B$15,IF(D49=15,'[1]Tipo '!$B$16,IF(D49=16,'[1]Tipo '!$B$17,IF(D49=17,'[1]Tipo '!$B$18,IF(D49=18,'[1]Tipo '!$B$19,IF(D49=19,'[1]Tipo '!$B$20,"No ha seleccionado un tipo de contrato válido"))))))))))))))))))) -> CONTRATOS DE PRESTACIÓN DE SERVICIOS PROFESIONALES Y DE APOYO A LA GESTIÓN | F49: CONTRATACIÓN DIRECTA | G49: Prestación de servicios profesionales y de apoyo a la gestión, o para la ejecución de trabajos artísticos que sólo puedan encomendarse a determinadas personas naturales; | H49: EL CONTRATISTA SE OBLIGA PARA CON EL FONDO A PRESTAR SUS SERVICIOS PROFESIONALES AL DESPACHO EN TEMAS DE COMUNICACIÓN SOCIAL DE LOS CANALES INTERNO Y EXTERNOS | I49: INVERSIÓN | J49: 45 | K49: =IF(J49=1,'[1]Equivalencia BH-BMPT'!$D$2,IF(J49=2,'[1]Equivalencia BH-BMPT'!$D$3,IF(J49=3,'[1]Equivalencia BH-BMPT'!$D$4,IF(J49=4,'[1]Equivalencia BH-BMPT'!$D$5,IF(J49=5,'[1]Equivalencia BH-BMPT'!$D$6,IF(J49=6,'[1]Equivalencia BH-BMPT'!$D$7,IF(J49=7,'[1]Equivalencia BH-BMPT'!$D$8,IF(J49=8,'[1]Equivalencia BH-BMPT'!$D$9,IF(J49=9,'[1]Equivalencia BH-BMPT'!$D$10,IF(J49=10,'[1]Equivalencia BH-BMPT'!$D$11,IF(J49=11,'[1]Equivalencia BH-BMPT'!$D$12,IF(J49=12,'[1]Equivalencia BH-BMPT'!$D$13,IF(J49=13,'[1]Equivalencia BH-BMPT'!$D$14,IF(J49=14,'[1]Equivalencia BH-BMPT'!$D$15,IF(J49=15,'[1]Equivalencia BH-BMPT'!$D$16,IF(J49=16,'[1]Equivalencia BH-BMPT'!$D$17,IF(J49=17,'[1]Equivalencia BH-BMPT'!$D$18,IF(J49=18,'[1]Equivalencia BH-BMPT'!$D$19,IF(J49=19,'[1]Equivalencia BH-BMPT'!$D$20,IF(J49=20,'[1]Equivalencia BH-BMPT'!$D$21,IF(J49=21,'[1]Equivalencia BH-BMPT'!$D$22,IF(J49=22,'[1]Equivalencia BH-BMPT'!$D$23,IF(J49=23,'[1]Equivalencia BH-BMPT'!#REF!,IF(J49=24,'[1]Equivalencia BH-BMPT'!$D$25,IF(J49=25,'[1]Equivalencia BH-BMPT'!$D$26,IF(J49=26,'[1]Equivalencia BH-BMPT'!$D$27,IF(J49=27,'[1]Equivalencia BH-BMPT'!$D$28,IF(J49=28,'[1]Equivalencia BH-BMPT'!$D$29,IF(J49=29,'[1]Equivalencia BH-BMPT'!$D$30,IF(J49=30,'[1]Equivalencia BH-BMPT'!$D$31,IF(J49=31,'[1]Equivalencia BH-BMPT'!$D$32,IF(J49=32,'[1]Equivalencia BH-BMPT'!$D$33,IF(J49=33,'[1]Equivalencia BH-BMPT'!$D$34,IF(J49=34,'[1]Equivalencia BH-BMPT'!$D$35,IF(J49=35,'[1]Equivalencia BH-BMPT'!$D$36,IF(J49=36,'[1]Equivalencia BH-BMPT'!$D$37,IF(J49=37,'[1]Equivalencia BH-BMPT'!$D$38,IF(J49=38,'[1]Equivalencia BH-BMPT'!#REF!,IF(J49=39,'[1]Equivalencia BH-BMPT'!$D$40,IF(J49=40,'[1]Equivalencia BH-BMPT'!$D$41,IF(J49=41,'[1]Equivalencia BH-BMPT'!$D$42,IF(J49=42,'[1]Equivalencia BH-BMPT'!$D$43,IF(J49=43,'[1]Equivalencia BH-BMPT'!$D$44,IF(J49=44,'[1]Equivalencia BH-BMPT'!$D$45,IF(J49=45,'[1]Equivalencia BH-BMPT'!$D$46,"No ha seleccionado un número de programa"))))))))))))))))))))))))))))))))))))))))))))) -> Gobernanza e influencia local, regional e internacional | L49: 1329 | M49: 52862078 | N49: PAOLA ANDREA VANEGAS PINZON | O49: 30100000 | S49: 0 | T49: 30100000 | U49: 30100000 | V49: 2017-02-20 | W49: 2017-02-23 | X49: 2017-09-22 | Y49: 210 | Z49: 0 | AE49: X | AF49: 1
A50: 33 | B50: 2017 | C50: CPS 033 2017 | D50: 5 | E50: =IF(D50=1,'[1]Tipo '!$B$2,IF(D50=2,'[1]Tipo '!$B$3,IF(D50=3,'[1]Tipo '!$B$4,IF(D50=4,'[1]Tipo '!$B$5,IF(D50=5,'[1]Tipo '!$B$6,IF(D50=6,'[1]Tipo '!$B$7,IF(D50=7,'[1]Tipo '!$B$8,IF(D50=8,'[1]Tipo '!$B$9,IF(D50=9,'[1]Tipo '!$B$10,IF(D50=10,'[1]Tipo '!$B$11,IF(D50=11,'[1]Tipo '!$B$12,IF(D50=12,'[1]Tipo '!$B$13,IF(D50=13,'[1]Tipo '!$B$14,IF(D50=14,'[1]Tipo '!$B$15,IF(D50=15,'[1]Tipo '!$B$16,IF(D50=16,'[1]Tipo '!$B$17,IF(D50=17,'[1]Tipo '!$B$18,IF(D50=18,'[1]Tipo '!$B$19,IF(D50=19,'[1]Tipo '!$B$20,"No ha seleccionado un tipo de contrato válido"))))))))))))))))))) -> CONTRATOS DE PRESTACIÓN DE SERVICIOS PROFESIONALES Y DE APOYO A LA GESTIÓN | F50: CONTRATACIÓN DIRECTA | G50: Prestación de servicios profesionales y de apoyo a la gestión, o para la ejecución de trabajos artísticos que sólo puedan encomendarse a determinadas personas naturales; | H50: El contrato que se pretende celebrar, tendrá por objeto ¿Prestar sus servicios como auxiliar administrativo en la Secretaría General de Inspecciones | I50: INVERSIÓN | J50: 45 | K50: =IF(J50=1,'[1]Equivalencia BH-BMPT'!$D$2,IF(J50=2,'[1]Equivalencia BH-BMPT'!$D$3,IF(J50=3,'[1]Equivalencia BH-BMPT'!$D$4,IF(J50=4,'[1]Equivalencia BH-BMPT'!$D$5,IF(J50=5,'[1]Equivalencia BH-BMPT'!$D$6,IF(J50=6,'[1]Equivalencia BH-BMPT'!$D$7,IF(J50=7,'[1]Equivalencia BH-BMPT'!$D$8,IF(J50=8,'[1]Equivalencia BH-BMPT'!$D$9,IF(J50=9,'[1]Equivalencia BH-BMPT'!$D$10,IF(J50=10,'[1]Equivalencia BH-BMPT'!$D$11,IF(J50=11,'[1]Equivalencia BH-BMPT'!$D$12,IF(J50=12,'[1]Equivalencia BH-BMPT'!$D$13,IF(J50=13,'[1]Equivalencia BH-BMPT'!$D$14,IF(J50=14,'[1]Equivalencia BH-BMPT'!$D$15,IF(J50=15,'[1]Equivalencia BH-BMPT'!$D$16,IF(J50=16,'[1]Equivalencia BH-BMPT'!$D$17,IF(J50=17,'[1]Equivalencia BH-BMPT'!$D$18,IF(J50=18,'[1]Equivalencia BH-BMPT'!$D$19,IF(J50=19,'[1]Equivalencia BH-BMPT'!$D$20,IF(J50=20,'[1]Equivalencia BH-BMPT'!$D$21,IF(J50=21,'[1]Equivalencia BH-BMPT'!$D$22,IF(J50=22,'[1]Equivalencia BH-BMPT'!$D$23,IF(J50=23,'[1]Equivalencia BH-BMPT'!#REF!,IF(J50=24,'[1]Equivalencia BH-BMPT'!$D$25,IF(J50=25,'[1]Equivalencia BH-BMPT'!$D$26,IF(J50=26,'[1]Equivalencia BH-BMPT'!$D$27,IF(J50=27,'[1]Equivalencia BH-BMPT'!$D$28,IF(J50=28,'[1]Equivalencia BH-BMPT'!$D$29,IF(J50=29,'[1]Equivalencia BH-BMPT'!$D$30,IF(J50=30,'[1]Equivalencia BH-BMPT'!$D$31,IF(J50=31,'[1]Equivalencia BH-BMPT'!$D$32,IF(J50=32,'[1]Equivalencia BH-BMPT'!$D$33,IF(J50=33,'[1]Equivalencia BH-BMPT'!$D$34,IF(J50=34,'[1]Equivalencia BH-BMPT'!$D$35,IF(J50=35,'[1]Equivalencia BH-BMPT'!$D$36,IF(J50=36,'[1]Equivalencia BH-BMPT'!$D$37,IF(J50=37,'[1]Equivalencia BH-BMPT'!$D$38,IF(J50=38,'[1]Equivalencia BH-BMPT'!#REF!,IF(J50=39,'[1]Equivalencia BH-BMPT'!$D$40,IF(J50=40,'[1]Equivalencia BH-BMPT'!$D$41,IF(J50=41,'[1]Equivalencia BH-BMPT'!$D$42,IF(J50=42,'[1]Equivalencia BH-BMPT'!$D$43,IF(J50=43,'[1]Equivalencia BH-BMPT'!$D$44,IF(J50=44,'[1]Equivalencia BH-BMPT'!$D$45,IF(J50=45,'[1]Equivalencia BH-BMPT'!$D$46,"No ha seleccionado un número de programa"))))))))))))))))))))))))))))))))))))))))))))) -> Gobernanza e influencia local, regional e internacional | L50: 1329 | M50: 80112111 | N50: DANIEL RICARDO HURTADO BAUTISTA | O50: 17200000 | S50: 4873333 | T50: 22073333 | U50: 20998333 | V50: 2017-02-17 | W50: 2017-02-22 | X50: 2017-12-29 | Y50: 240 | Z50: 68 | AD50: X | AF50: 0.9512987006
A51: 34 | B51: 2017 | C51: CPS 034 2017 | D51: 5 | E51: =IF(D51=1,'[1]Tipo '!$B$2,IF(D51=2,'[1]Tipo '!$B$3,IF(D51=3,'[1]Tipo '!$B$4,IF(D51=4,'[1]Tipo '!$B$5,IF(D51=5,'[1]Tipo '!$B$6,IF(D51=6,'[1]Tipo '!$B$7,IF(D51=7,'[1]Tipo '!$B$8,IF(D51=8,'[1]Tipo '!$B$9,IF(D51=9,'[1]Tipo '!$B$10,IF(D51=10,'[1]Tipo '!$B$11,IF(D51=11,'[1]Tipo '!$B$12,IF(D51=12,'[1]Tipo '!$B$13,IF(D51=13,'[1]Tipo '!$B$14,IF(D51=14,'[1]Tipo '!$B$15,IF(D51=15,'[1]Tipo '!$B$16,IF(D51=16,'[1]Tipo '!$B$17,IF(D51=17,'[1]Tipo '!$B$18,IF(D51=18,'[1]Tipo '!$B$19,IF(D51=19,'[1]Tipo '!$B$20,"No ha seleccionado un tipo de contrato válido"))))))))))))))))))) -> CONTRATOS DE PRESTACIÓN DE SERVICIOS PROFESIONALES Y DE APOYO A LA GESTIÓN | F51: CONTRATACIÓN DIRECTA | G51: Prestación de servicios profesionales y de apoyo a la gestión, o para la ejecución de trabajos artísticos que sólo puedan encomendarse a determinadas personas naturales; | H51: El contrato que se pretende celebrar, tendrá por objeto ¿Servicios de apoyo al Área de Gestión de Desarrollo Local en labores administrativas como la recepción de correspondencia, registro, digitalización, así como el manejo e agenda y elaboración de actas de reunión | I51: INVERSIÓN | J51: 45 | K51: =IF(J51=1,'[1]Equivalencia BH-BMPT'!$D$2,IF(J51=2,'[1]Equivalencia BH-BMPT'!$D$3,IF(J51=3,'[1]Equivalencia BH-BMPT'!$D$4,IF(J51=4,'[1]Equivalencia BH-BMPT'!$D$5,IF(J51=5,'[1]Equivalencia BH-BMPT'!$D$6,IF(J51=6,'[1]Equivalencia BH-BMPT'!$D$7,IF(J51=7,'[1]Equivalencia BH-BMPT'!$D$8,IF(J51=8,'[1]Equivalencia BH-BMPT'!$D$9,IF(J51=9,'[1]Equivalencia BH-BMPT'!$D$10,IF(J51=10,'[1]Equivalencia BH-BMPT'!$D$11,IF(J51=11,'[1]Equivalencia BH-BMPT'!$D$12,IF(J51=12,'[1]Equivalencia BH-BMPT'!$D$13,IF(J51=13,'[1]Equivalencia BH-BMPT'!$D$14,IF(J51=14,'[1]Equivalencia BH-BMPT'!$D$15,IF(J51=15,'[1]Equivalencia BH-BMPT'!$D$16,IF(J51=16,'[1]Equivalencia BH-BMPT'!$D$17,IF(J51=17,'[1]Equivalencia BH-BMPT'!$D$18,IF(J51=18,'[1]Equivalencia BH-BMPT'!$D$19,IF(J51=19,'[1]Equivalencia BH-BMPT'!$D$20,IF(J51=20,'[1]Equivalencia BH-BMPT'!$D$21,IF(J51=21,'[1]Equivalencia BH-BMPT'!$D$22,IF(J51=22,'[1]Equivalencia BH-BMPT'!$D$23,IF(J51=23,'[1]Equivalencia BH-BMPT'!#REF!,IF(J51=24,'[1]Equivalencia BH-BMPT'!$D$25,IF(J51=25,'[1]Equivalencia BH-BMPT'!$D$26,IF(J51=26,'[1]Equivalencia BH-BMPT'!$D$27,IF(J51=27,'[1]Equivalencia BH-BMPT'!$D$28,IF(J51=28,'[1]Equivalencia BH-BMPT'!$D$29,IF(J51=29,'[1]Equivalencia BH-BMPT'!$D$30,IF(J51=30,'[1]Equivalencia BH-BMPT'!$D$31,IF(J51=31,'[1]Equivalencia BH-BMPT'!$D$32,IF(J51=32,'[1]Equivalencia BH-BMPT'!$D$33,IF(J51=33,'[1]Equivalencia BH-BMPT'!$D$34,IF(J51=34,'[1]Equivalencia BH-BMPT'!$D$35,IF(J51=35,'[1]Equivalencia BH-BMPT'!$D$36,IF(J51=36,'[1]Equivalencia BH-BMPT'!$D$37,IF(J51=37,'[1]Equivalencia BH-BMPT'!$D$38,IF(J51=38,'[1]Equivalencia BH-BMPT'!#REF!,IF(J51=39,'[1]Equivalencia BH-BMPT'!$D$40,IF(J51=40,'[1]Equivalencia BH-BMPT'!$D$41,IF(J51=41,'[1]Equivalencia BH-BMPT'!$D$42,IF(J51=42,'[1]Equivalencia BH-BMPT'!$D$43,IF(J51=43,'[1]Equivalencia BH-BMPT'!$D$44,IF(J51=44,'[1]Equivalencia BH-BMPT'!$D$45,IF(J51=45,'[1]Equivalencia BH-BMPT'!$D$46,"No ha seleccionado un número de programa"))))))))))))))))))))))))))))))))))))))))))))) -> Gobernanza e influencia local, regional e internacional | L51: 1329 | M51: 1022957446 | N51: JOHANA RORIGUEZ ALFONZO | O51: 14700000 | S51: 0 | T51: 14700000 | U51: 14700000 | V51: 2017-02-21 | W51: 2017-02-21 | X51: 2017-09-20 | Y51: 210 | Z51: 0 | AE51: X | AF51: 1
A52: 35 | B52: 2017 | C52: CPS 035 2017 | D52: 5 | E52: =IF(D52=1,'[1]Tipo '!$B$2,IF(D52=2,'[1]Tipo '!$B$3,IF(D52=3,'[1]Tipo '!$B$4,IF(D52=4,'[1]Tipo '!$B$5,IF(D52=5,'[1]Tipo '!$B$6,IF(D52=6,'[1]Tipo '!$B$7,IF(D52=7,'[1]Tipo '!$B$8,IF(D52=8,'[1]Tipo '!$B$9,IF(D52=9,'[1]Tipo '!$B$10,IF(D52=10,'[1]Tipo '!$B$11,IF(D52=11,'[1]Tipo '!$B$12,IF(D52=12,'[1]Tipo '!$B$13,IF(D52=13,'[1]Tipo '!$B$14,IF(D52=14,'[1]Tipo '!$B$15,IF(D52=15,'[1]Tipo '!$B$16,IF(D52=16,'[1]Tipo '!$B$17,IF(D52=17,'[1]Tipo '!$B$18,IF(D52=18,'[1]Tipo '!$B$19,IF(D52=19,'[1]Tipo '!$B$20,"No ha seleccionado un tipo de contrato válido"))))))))))))))))))) -> CONTRATOS DE PRESTACIÓN DE SERVICIOS PROFESIONALES Y DE APOYO A LA GESTIÓN | F52: CONTRATACIÓN DIRECTA | G52: Prestación de servicios profesionales y de apoyo a la gestión, o para la ejecución de trabajos artísticos que sólo puedan encomendarse a determinadas personas naturales; | H52: El contrato que se pretende celebrar, tendrá por objeto ¿Prestar los servicios técnicos de apoyo a la gestión en la ejecución de las actividades administrativas y operativas en temas relacionados con Establecimientos de Comercio y Espacio Público, que se adelanten en el Área de Gestión Policiva de la Alcaldía local de Teusaquillo¿. | I52: INVERSIÓN | J52: 45 | K52: =IF(J52=1,'[1]Equivalencia BH-BMPT'!$D$2,IF(J52=2,'[1]Equivalencia BH-BMPT'!$D$3,IF(J52=3,'[1]Equivalencia BH-BMPT'!$D$4,IF(J52=4,'[1]Equivalencia BH-BMPT'!$D$5,IF(J52=5,'[1]Equivalencia BH-BMPT'!$D$6,IF(J52=6,'[1]Equivalencia BH-BMPT'!$D$7,IF(J52=7,'[1]Equivalencia BH-BMPT'!$D$8,IF(J52=8,'[1]Equivalencia BH-BMPT'!$D$9,IF(J52=9,'[1]Equivalencia BH-BMPT'!$D$10,IF(J52=10,'[1]Equivalencia BH-BMPT'!$D$11,IF(J52=11,'[1]Equivalencia BH-BMPT'!$D$12,IF(J52=12,'[1]Equivalencia BH-BMPT'!$D$13,IF(J52=13,'[1]Equivalencia BH-BMPT'!$D$14,IF(J52=14,'[1]Equivalencia BH-BMPT'!$D$15,IF(J52=15,'[1]Equivalencia BH-BMPT'!$D$16,IF(J52=16,'[1]Equivalencia BH-BMPT'!$D$17,IF(J52=17,'[1]Equivalencia BH-BMPT'!$D$18,IF(J52=18,'[1]Equivalencia BH-BMPT'!$D$19,IF(J52=19,'[1]Equivalencia BH-BMPT'!$D$20,IF(J52=20,'[1]Equivalencia BH-BMPT'!$D$21,IF(J52=21,'[1]Equivalencia BH-BMPT'!$D$22,IF(J52=22,'[1]Equivalencia BH-BMPT'!$D$23,IF(J52=23,'[1]Equivalencia BH-BMPT'!#REF!,IF(J52=24,'[1]Equivalencia BH-BMPT'!$D$25,IF(J52=25,'[1]Equivalencia BH-BMPT'!$D$26,IF(J52=26,'[1]Equivalencia BH-BMPT'!$D$27,IF(J52=27,'[1]Equivalencia BH-BMPT'!$D$28,IF(J52=28,'[1]Equivalencia BH-BMPT'!$D$29,IF(J52=29,'[1]Equivalencia BH-BMPT'!$D$30,IF(J52=30,'[1]Equivalencia BH-BMPT'!$D$31,IF(J52=31,'[1]Equivalencia BH-BMPT'!$D$32,IF(J52=32,'[1]Equivalencia BH-BMPT'!$D$33,IF(J52=33,'[1]Equivalencia BH-BMPT'!$D$34,IF(J52=34,'[1]Equivalencia BH-BMPT'!$D$35,IF(J52=35,'[1]Equivalencia BH-BMPT'!$D$36,IF(J52=36,'[1]Equivalencia BH-BMPT'!$D$37,IF(J52=37,'[1]Equivalencia BH-BMPT'!$D$38,IF(J52=38,'[1]Equivalencia BH-BMPT'!#REF!,IF(J52=39,'[1]Equivalencia BH-BMPT'!$D$40,IF(J52=40,'[1]Equivalencia BH-BMPT'!$D$41,IF(J52=41,'[1]Equivalencia BH-BMPT'!$D$42,IF(J52=42,'[1]Equivalencia BH-BMPT'!$D$43,IF(J52=43,'[1]Equivalencia BH-BMPT'!$D$44,IF(J52=44,'[1]Equivalencia BH-BMPT'!$D$45,IF(J52=45,'[1]Equivalencia BH-BMPT'!$D$46,"No ha seleccionado un número de programa"))))))))))))))))))))))))))))))))))))))))))))) -> Gobernanza e influencia local, regional e internacional | L52: 1329 | M52: 1010172202 | N52: JOSE MANUEL SANCHEZ TAMAYO | O52: 10800000 | S52: 0 | T52: 10800000 | U52: 10800000 | V52: 2017-02-21 | W52: 2017-02-22 | X52: 2017-06-21 | Y52: 120 | Z52: 0 | AE52: X | AF52: 1
A53: 36 | B53: 2017 | C53: CPS 036 2017 | D53: 5 | E53: =IF(D53=1,'[1]Tipo '!$B$2,IF(D53=2,'[1]Tipo '!$B$3,IF(D53=3,'[1]Tipo '!$B$4,IF(D53=4,'[1]Tipo '!$B$5,IF(D53=5,'[1]Tipo '!$B$6,IF(D53=6,'[1]Tipo '!$B$7,IF(D53=7,'[1]Tipo '!$B$8,IF(D53=8,'[1]Tipo '!$B$9,IF(D53=9,'[1]Tipo '!$B$10,IF(D53=10,'[1]Tipo '!$B$11,IF(D53=11,'[1]Tipo '!$B$12,IF(D53=12,'[1]Tipo '!$B$13,IF(D53=13,'[1]Tipo '!$B$14,IF(D53=14,'[1]Tipo '!$B$15,IF(D53=15,'[1]Tipo '!$B$16,IF(D53=16,'[1]Tipo '!$B$17,IF(D53=17,'[1]Tipo '!$B$18,IF(D53=18,'[1]Tipo '!$B$19,IF(D53=19,'[1]Tipo '!$B$20,"No ha seleccionado un tipo de contrato válido"))))))))))))))))))) -> CONTRATOS DE PRESTACIÓN DE SERVICIOS PROFESIONALES Y DE APOYO A LA GESTIÓN | F53: CONTRATACIÓN DIRECTA | G53: Prestación de servicios profesionales y de apoyo a la gestión, o para la ejecución de trabajos artísticos que sólo puedan encomendarse a determinadas personas naturales; | H53: El contrato que se pretende celebrar, tendrá por objeto ¿El contratista se obliga para con la Fondo de Desarrollo Local de Teusaquillo a prestar sus servicios profesionales en las acciones de seguimiento del Convenio 1419 de 2009 y en los procesos de infraestructura y malla vial contemplados en el plan de Desarrollo Local¿. | I53: INVERSIÓN | J53: 18 | K53: =IF(J53=1,'[1]Equivalencia BH-BMPT'!$D$2,IF(J53=2,'[1]Equivalencia BH-BMPT'!$D$3,IF(J53=3,'[1]Equivalencia BH-BMPT'!$D$4,IF(J53=4,'[1]Equivalencia BH-BMPT'!$D$5,IF(J53=5,'[1]Equivalencia BH-BMPT'!$D$6,IF(J53=6,'[1]Equivalencia BH-BMPT'!$D$7,IF(J53=7,'[1]Equivalencia BH-BMPT'!$D$8,IF(J53=8,'[1]Equivalencia BH-BMPT'!$D$9,IF(J53=9,'[1]Equivalencia BH-BMPT'!$D$10,IF(J53=10,'[1]Equivalencia BH-BMPT'!$D$11,IF(J53=11,'[1]Equivalencia BH-BMPT'!$D$12,IF(J53=12,'[1]Equivalencia BH-BMPT'!$D$13,IF(J53=13,'[1]Equivalencia BH-BMPT'!$D$14,IF(J53=14,'[1]Equivalencia BH-BMPT'!$D$15,IF(J53=15,'[1]Equivalencia BH-BMPT'!$D$16,IF(J53=16,'[1]Equivalencia BH-BMPT'!$D$17,IF(J53=17,'[1]Equivalencia BH-BMPT'!$D$18,IF(J53=18,'[1]Equivalencia BH-BMPT'!$D$19,IF(J53=19,'[1]Equivalencia BH-BMPT'!$D$20,IF(J53=20,'[1]Equivalencia BH-BMPT'!$D$21,IF(J53=21,'[1]Equivalencia BH-BMPT'!$D$22,IF(J53=22,'[1]Equivalencia BH-BMPT'!$D$23,IF(J53=23,'[1]Equivalencia BH-BMPT'!#REF!,IF(J53=24,'[1]Equivalencia BH-BMPT'!$D$25,IF(J53=25,'[1]Equivalencia BH-BMPT'!$D$26,IF(J53=26,'[1]Equivalencia BH-BMPT'!$D$27,IF(J53=27,'[1]Equivalencia BH-BMPT'!$D$28,IF(J53=28,'[1]Equivalencia BH-BMPT'!$D$29,IF(J53=29,'[1]Equivalencia BH-BMPT'!$D$30,IF(J53=30,'[1]Equivalencia BH-BMPT'!$D$31,IF(J53=31,'[1]Equivalencia BH-BMPT'!$D$32,IF(J53=32,'[1]Equivalencia BH-BMPT'!$D$33,IF(J53=33,'[1]Equivalencia BH-BMPT'!$D$34,IF(J53=34,'[1]Equivalencia BH-BMPT'!$D$35,IF(J53=35,'[1]Equivalencia BH-BMPT'!$D$36,IF(J53=36,'[1]Equivalencia BH-BMPT'!$D$37,IF(J53=37,'[1]Equivalencia BH-BMPT'!$D$38,IF(J53=38,'[1]Equivalencia BH-BMPT'!#REF!,IF(J53=39,'[1]Equivalencia BH-BMPT'!$D$40,IF(J53=40,'[1]Equivalencia BH-BMPT'!$D$41,IF(J53=41,'[1]Equivalencia BH-BMPT'!$D$42,IF(J53=42,'[1]Equivalencia BH-BMPT'!$D$43,IF(J53=43,'[1]Equivalencia BH-BMPT'!$D$44,IF(J53=44,'[1]Equivalencia BH-BMPT'!$D$45,IF(J53=45,'[1]Equivalencia BH-BMPT'!$D$46,"No ha seleccionado un número de programa"))))))))))))))))))))))))))))))))))))))))))))) -> Mejor movilidad para todos | L53: 1338 | M53: 79796327 | N53: ANDRES RICARDO GARAVITO FERNANDEZ | O53: 46650000 | S53: 0 | T53: 46650000 | U53: 44100980 | V53: 2017-02-21 | W53: 2017-02-21 | X53: 2017-12-31 | Z53: 0 | AD53: X | AF53: 0.9453586281
A54: 36 | B54: 2017 | C54: CPS 036 2017 | D54: 5 | E54: =IF(D54=1,'[1]Tipo '!$B$2,IF(D54=2,'[1]Tipo '!$B$3,IF(D54=3,'[1]Tipo '!$B$4,IF(D54=4,'[1]Tipo '!$B$5,IF(D54=5,'[1]Tipo '!$B$6,IF(D54=6,'[1]Tipo '!$B$7,IF(D54=7,'[1]Tipo '!$B$8,IF(D54=8,'[1]Tipo '!$B$9,IF(D54=9,'[1]Tipo '!$B$10,IF(D54=10,'[1]Tipo '!$B$11,IF(D54=11,'[1]Tipo '!$B$12,IF(D54=12,'[1]Tipo '!$B$13,IF(D54=13,'[1]Tipo '!$B$14,IF(D54=14,'[1]Tipo '!$B$15,IF(D54=15,'[1]Tipo '!$B$16,IF(D54=16,'[1]Tipo '!$B$17,IF(D54=17,'[1]Tipo '!$B$18,IF(D54=18,'[1]Tipo '!$B$19,IF(D54=19,'[1]Tipo '!$B$20,"No ha seleccionado un tipo de contrato válido"))))))))))))))))))) -> CONTRATOS DE PRESTACIÓN DE SERVICIOS PROFESIONALES Y DE APOYO A LA GESTIÓN | F54: CONTRATACIÓN DIRECTA | G54: Prestación de servicios profesionales y de apoyo a la gestión, o para la ejecución de trabajos artísticos que sólo puedan encomendarse a determinadas personas naturales; | H54: El contrato que se pretende celebrar, tendrá por objeto ¿El contratista se obliga para con la Fondo de Desarrollo Local de Teusaquillo a prestar sus servicios profesionales en las acciones de seguimiento del Convenio 1419 de 2009 y en los procesos de infraestructura y malla vial contemplados en el plan de Desarrollo Local¿. | I54: INVERSIÓN | J54: 45 | K54: =IF(J54=1,'[1]Equivalencia BH-BMPT'!$D$2,IF(J54=2,'[1]Equivalencia BH-BMPT'!$D$3,IF(J54=3,'[1]Equivalencia BH-BMPT'!$D$4,IF(J54=4,'[1]Equivalencia BH-BMPT'!$D$5,IF(J54=5,'[1]Equivalencia BH-BMPT'!$D$6,IF(J54=6,'[1]Equivalencia BH-BMPT'!$D$7,IF(J54=7,'[1]Equivalencia BH-BMPT'!$D$8,IF(J54=8,'[1]Equivalencia BH-BMPT'!$D$9,IF(J54=9,'[1]Equivalencia BH-BMPT'!$D$10,IF(J54=10,'[1]Equivalencia BH-BMPT'!$D$11,IF(J54=11,'[1]Equivalencia BH-BMPT'!$D$12,IF(J54=12,'[1]Equivalencia BH-BMPT'!$D$13,IF(J54=13,'[1]Equivalencia BH-BMPT'!$D$14,IF(J54=14,'[1]Equivalencia BH-BMPT'!$D$15,IF(J54=15,'[1]Equivalencia BH-BMPT'!$D$16,IF(J54=16,'[1]Equivalencia BH-BMPT'!$D$17,IF(J54=17,'[1]Equivalencia BH-BMPT'!$D$18,IF(J54=18,'[1]Equivalencia BH-BMPT'!$D$19,IF(J54=19,'[1]Equivalencia BH-BMPT'!$D$20,IF(J54=20,'[1]Equivalencia BH-BMPT'!$D$21,IF(J54=21,'[1]Equivalencia BH-BMPT'!$D$22,IF(J54=22,'[1]Equivalencia BH-BMPT'!$D$23,IF(J54=23,'[1]Equivalencia BH-BMPT'!#REF!,IF(J54=24,'[1]Equivalencia BH-BMPT'!$D$25,IF(J54=25,'[1]Equivalencia BH-BMPT'!$D$26,IF(J54=26,'[1]Equivalencia BH-BMPT'!$D$27,IF(J54=27,'[1]Equivalencia BH-BMPT'!$D$28,IF(J54=28,'[1]Equivalencia BH-BMPT'!$D$29,IF(J54=29,'[1]Equivalencia BH-BMPT'!$D$30,IF(J54=30,'[1]Equivalencia BH-BMPT'!$D$31,IF(J54=31,'[1]Equivalencia BH-BMPT'!$D$32,IF(J54=32,'[1]Equivalencia BH-BMPT'!$D$33,IF(J54=33,'[1]Equivalencia BH-BMPT'!$D$34,IF(J54=34,'[1]Equivalencia BH-BMPT'!$D$35,IF(J54=35,'[1]Equivalencia BH-BMPT'!$D$36,IF(J54=36,'[1]Equivalencia BH-BMPT'!$D$37,IF(J54=37,'[1]Equivalencia BH-BMPT'!$D$38,IF(J54=38,'[1]Equivalencia BH-BMPT'!#REF!,IF(J54=39,'[1]Equivalencia BH-BMPT'!$D$40,IF(J54=40,'[1]Equivalencia BH-BMPT'!$D$41,IF(J54=41,'[1]Equivalencia BH-BMPT'!$D$42,IF(J54=42,'[1]Equivalencia BH-BMPT'!$D$43,IF(J54=43,'[1]Equivalencia BH-BMPT'!$D$44,IF(J54=44,'[1]Equivalencia BH-BMPT'!$D$45,IF(J54=45,'[1]Equivalencia BH-BMPT'!$D$46,"No ha seleccionado un número de programa"))))))))))))))))))))))))))))))))))))))))))))) -> Gobernanza e influencia local, regional e internacional | L54: 1329 | M54: 79796327 | N54: ANDRES RICARDO GARAVITO FERNANDEZ | O54: 10366667 | S54: 0 | T54: 10366667 | U54: 9799020 | V54: 2017-02-21 | W54: 2017-02-21 | X54: 2017-12-31 | Z54: 0 | AD54: X | AF54: 0.9452430564
A55: 37 | B55: 2017 | C55: CPS 037 2017 | D55: 5 | E55: =IF(D55=1,'[1]Tipo '!$B$2,IF(D55=2,'[1]Tipo '!$B$3,IF(D55=3,'[1]Tipo '!$B$4,IF(D55=4,'[1]Tipo '!$B$5,IF(D55=5,'[1]Tipo '!$B$6,IF(D55=6,'[1]Tipo '!$B$7,IF(D55=7,'[1]Tipo '!$B$8,IF(D55=8,'[1]Tipo '!$B$9,IF(D55=9,'[1]Tipo '!$B$10,IF(D55=10,'[1]Tipo '!$B$11,IF(D55=11,'[1]Tipo '!$B$12,IF(D55=12,'[1]Tipo '!$B$13,IF(D55=13,'[1]Tipo '!$B$14,IF(D55=14,'[1]Tipo '!$B$15,IF(D55=15,'[1]Tipo '!$B$16,IF(D55=16,'[1]Tipo '!$B$17,IF(D55=17,'[1]Tipo '!$B$18,IF(D55=18,'[1]Tipo '!$B$19,IF(D55=19,'[1]Tipo '!$B$20,"No ha seleccionado un tipo de contrato válido"))))))))))))))))))) -> CONTRATOS DE PRESTACIÓN DE SERVICIOS PROFESIONALES Y DE APOYO A LA GESTIÓN | F55: CONTRATACIÓN DIRECTA | G55: Prestación de servicios profesionales y de apoyo a la gestión, o para la ejecución de trabajos artísticos que sólo puedan encomendarse a determinadas personas naturales; | H55: Prestación de servicios de apoyo en el Área de Gestión de Desarrollo Local para adelantar las labores de clasificación, foliado, digitalización, organización técnica, informática y demás necesarias para la gestión documental, así como el proceso de eliminación y transferencia de archivos inactivos de la Alcaldía Local de Teusaquillo de acuerdo a la normatividad vigente y en concordancia con los estándares de gestión documental y la administración | I55: INVERSIÓN | J55: 45 | K55: =IF(J55=1,'[1]Equivalencia BH-BMPT'!$D$2,IF(J55=2,'[1]Equivalencia BH-BMPT'!$D$3,IF(J55=3,'[1]Equivalencia BH-BMPT'!$D$4,IF(J55=4,'[1]Equivalencia BH-BMPT'!$D$5,IF(J55=5,'[1]Equivalencia BH-BMPT'!$D$6,IF(J55=6,'[1]Equivalencia BH-BMPT'!$D$7,IF(J55=7,'[1]Equivalencia BH-BMPT'!$D$8,IF(J55=8,'[1]Equivalencia BH-BMPT'!$D$9,IF(J55=9,'[1]Equivalencia BH-BMPT'!$D$10,IF(J55=10,'[1]Equivalencia BH-BMPT'!$D$11,IF(J55=11,'[1]Equivalencia BH-BMPT'!$D$12,IF(J55=12,'[1]Equivalencia BH-BMPT'!$D$13,IF(J55=13,'[1]Equivalencia BH-BMPT'!$D$14,IF(J55=14,'[1]Equivalencia BH-BMPT'!$D$15,IF(J55=15,'[1]Equivalencia BH-BMPT'!$D$16,IF(J55=16,'[1]Equivalencia BH-BMPT'!$D$17,IF(J55=17,'[1]Equivalencia BH-BMPT'!$D$18,IF(J55=18,'[1]Equivalencia BH-BMPT'!$D$19,IF(J55=19,'[1]Equivalencia BH-BMPT'!$D$20,IF(J55=20,'[1]Equivalencia BH-BMPT'!$D$21,IF(J55=21,'[1]Equivalencia BH-BMPT'!$D$22,IF(J55=22,'[1]Equivalencia BH-BMPT'!$D$23,IF(J55=23,'[1]Equivalencia BH-BMPT'!#REF!,IF(J55=24,'[1]Equivalencia BH-BMPT'!$D$25,IF(J55=25,'[1]Equivalencia BH-BMPT'!$D$26,IF(J55=26,'[1]Equivalencia BH-BMPT'!$D$27,IF(J55=27,'[1]Equivalencia BH-BMPT'!$D$28,IF(J55=28,'[1]Equivalencia BH-BMPT'!$D$29,IF(J55=29,'[1]Equivalencia BH-BMPT'!$D$30,IF(J55=30,'[1]Equivalencia BH-BMPT'!$D$31,IF(J55=31,'[1]Equivalencia BH-BMPT'!$D$32,IF(J55=32,'[1]Equivalencia BH-BMPT'!$D$33,IF(J55=33,'[1]Equivalencia BH-BMPT'!$D$34,IF(J55=34,'[1]Equivalencia BH-BMPT'!$D$35,IF(J55=35,'[1]Equivalencia BH-BMPT'!$D$36,IF(J55=36,'[1]Equivalencia BH-BMPT'!$D$37,IF(J55=37,'[1]Equivalencia BH-BMPT'!$D$38,IF(J55=38,'[1]Equivalencia BH-BMPT'!#REF!,IF(J55=39,'[1]Equivalencia BH-BMPT'!$D$40,IF(J55=40,'[1]Equivalencia BH-BMPT'!$D$41,IF(J55=41,'[1]Equivalencia BH-BMPT'!$D$42,IF(J55=42,'[1]Equivalencia BH-BMPT'!$D$43,IF(J55=43,'[1]Equivalencia BH-BMPT'!$D$44,IF(J55=44,'[1]Equivalencia BH-BMPT'!$D$45,IF(J55=45,'[1]Equivalencia BH-BMPT'!$D$46,"No ha seleccionado un número de programa"))))))))))))))))))))))))))))))))))))))))))))) -> Gobernanza e influencia local, regional e internacional | L55: 1329 | M55: 52938311 | N55: GINNA PAOLA ZEA MATEUS | O55: 18200000 | S55: 8406667 | T55: 26606667 | U55: 25306667 | V55: 2017-02-23 | W55: 2017-02-23 | X55: 2017-12-29 | Y55: 210 | Z55: 97 | AD55: X | AF55: 0.9511400658
A56: 38 | B56: 2017 | C56: CPS 038 2017 | D56: 5 | E56: =IF(D56=1,'[1]Tipo '!$B$2,IF(D56=2,'[1]Tipo '!$B$3,IF(D56=3,'[1]Tipo '!$B$4,IF(D56=4,'[1]Tipo '!$B$5,IF(D56=5,'[1]Tipo '!$B$6,IF(D56=6,'[1]Tipo '!$B$7,IF(D56=7,'[1]Tipo '!$B$8,IF(D56=8,'[1]Tipo '!$B$9,IF(D56=9,'[1]Tipo '!$B$10,IF(D56=10,'[1]Tipo '!$B$11,IF(D56=11,'[1]Tipo '!$B$12,IF(D56=12,'[1]Tipo '!$B$13,IF(D56=13,'[1]Tipo '!$B$14,IF(D56=14,'[1]Tipo '!$B$15,IF(D56=15,'[1]Tipo '!$B$16,IF(D56=16,'[1]Tipo '!$B$17,IF(D56=17,'[1]Tipo '!$B$18,IF(D56=18,'[1]Tipo '!$B$19,IF(D56=19,'[1]Tipo '!$B$20,"No ha seleccionado un tipo de contrato válido"))))))))))))))))))) -> CONTRATOS DE PRESTACIÓN DE SERVICIOS PROFESIONALES Y DE APOYO A LA GESTIÓN | F56: CONTRATACIÓN DIRECTA | G56: Prestación de servicios profesionales y de apoyo a la gestión, o para la ejecución de trabajos artísticos que sólo puedan encomendarse a determinadas personas naturales; | H56: El contrato que se pretende celebrar, tendrá por objeto¿¿¿Prestar los servicios de apoyo al Área de Gestión Policiva de la Alcaldía Local de Teusaquillo en la actualización de la base de datos necesarias para la elaboración de informes solicitados por las diferentes entidades relacionadas con establecimientos de comercio y espacio público, de las actuaciones administrativas y preliminares llevadas en el área, así como el apoyo jurídico al trámite de peticiones, quejas y reclamos¿ | I56: INVERSIÓN | J56: 45 | K56: =IF(J56=1,'[1]Equivalencia BH-BMPT'!$D$2,IF(J56=2,'[1]Equivalencia BH-BMPT'!$D$3,IF(J56=3,'[1]Equivalencia BH-BMPT'!$D$4,IF(J56=4,'[1]Equivalencia BH-BMPT'!$D$5,IF(J56=5,'[1]Equivalencia BH-BMPT'!$D$6,IF(J56=6,'[1]Equivalencia BH-BMPT'!$D$7,IF(J56=7,'[1]Equivalencia BH-BMPT'!$D$8,IF(J56=8,'[1]Equivalencia BH-BMPT'!$D$9,IF(J56=9,'[1]Equivalencia BH-BMPT'!$D$10,IF(J56=10,'[1]Equivalencia BH-BMPT'!$D$11,IF(J56=11,'[1]Equivalencia BH-BMPT'!$D$12,IF(J56=12,'[1]Equivalencia BH-BMPT'!$D$13,IF(J56=13,'[1]Equivalencia BH-BMPT'!$D$14,IF(J56=14,'[1]Equivalencia BH-BMPT'!$D$15,IF(J56=15,'[1]Equivalencia BH-BMPT'!$D$16,IF(J56=16,'[1]Equivalencia BH-BMPT'!$D$17,IF(J56=17,'[1]Equivalencia BH-BMPT'!$D$18,IF(J56=18,'[1]Equivalencia BH-BMPT'!$D$19,IF(J56=19,'[1]Equivalencia BH-BMPT'!$D$20,IF(J56=20,'[1]Equivalencia BH-BMPT'!$D$21,IF(J56=21,'[1]Equivalencia BH-BMPT'!$D$22,IF(J56=22,'[1]Equivalencia BH-BMPT'!$D$23,IF(J56=23,'[1]Equivalencia BH-BMPT'!#REF!,IF(J56=24,'[1]Equivalencia BH-BMPT'!$D$25,IF(J56=25,'[1]Equivalencia BH-BMPT'!$D$26,IF(J56=26,'[1]Equivalencia BH-BMPT'!$D$27,IF(J56=27,'[1]Equivalencia BH-BMPT'!$D$28,IF(J56=28,'[1]Equivalencia BH-BMPT'!$D$29,IF(J56=29,'[1]Equivalencia BH-BMPT'!$D$30,IF(J56=30,'[1]Equivalencia BH-BMPT'!$D$31,IF(J56=31,'[1]Equivalencia BH-BMPT'!$D$32,IF(J56=32,'[1]Equivalencia BH-BMPT'!$D$33,IF(J56=33,'[1]Equivalencia BH-BMPT'!$D$34,IF(J56=34,'[1]Equivalencia BH-BMPT'!$D$35,IF(J56=35,'[1]Equivalencia BH-BMPT'!$D$36,IF(J56=36,'[1]Equivalencia BH-BMPT'!$D$37,IF(J56=37,'[1]Equivalencia BH-BMPT'!$D$38,IF(J56=38,'[1]Equivalencia BH-BMPT'!#REF!,IF(J56=39,'[1]Equivalencia BH-BMPT'!$D$40,IF(J56=40,'[1]Equivalencia BH-BMPT'!$D$41,IF(J56=41,'[1]Equivalencia BH-BMPT'!$D$42,IF(J56=42,'[1]Equivalencia BH-BMPT'!$D$43,IF(J56=43,'[1]Equivalencia BH-BMPT'!$D$44,IF(J56=44,'[1]Equivalencia BH-BMPT'!$D$45,IF(J56=45,'[1]Equivalencia BH-BMPT'!$D$46,"No ha seleccionado un número de programa"))))))))))))))))))))))))))))))))))))))))))))) -> Gobernanza e influencia local, regional e internacional | L56: 1329 | M56: 79951944 | N56: WILLIAM ANDRES ORTIZ GONZALEZ | O56: 19950000 | S56: 0 | T56: 19950000 | U56: 19950000 | V56: 2017-02-22 | W56: 2017-02-22 | X56: 2017-09-21 | Y56: 210 | Z56: 0 | AE56: X | AF56: 1
A57: 39 | B57: 2017 | C57: CPS 039 2017 | D57: 5 | E57: =IF(D57=1,'[1]Tipo '!$B$2,IF(D57=2,'[1]Tipo '!$B$3,IF(D57=3,'[1]Tipo '!$B$4,IF(D57=4,'[1]Tipo '!$B$5,IF(D57=5,'[1]Tipo '!$B$6,IF(D57=6,'[1]Tipo '!$B$7,IF(D57=7,'[1]Tipo '!$B$8,IF(D57=8,'[1]Tipo '!$B$9,IF(D57=9,'[1]Tipo '!$B$10,IF(D57=10,'[1]Tipo '!$B$11,IF(D57=11,'[1]Tipo '!$B$12,IF(D57=12,'[1]Tipo '!$B$13,IF(D57=13,'[1]Tipo '!$B$14,IF(D57=14,'[1]Tipo '!$B$15,IF(D57=15,'[1]Tipo '!$B$16,IF(D57=16,'[1]Tipo '!$B$17,IF(D57=17,'[1]Tipo '!$B$18,IF(D57=18,'[1]Tipo '!$B$19,IF(D57=19,'[1]Tipo '!$B$20,"No ha seleccionado un tipo de contrato válido"))))))))))))))))))) -> CONTRATOS DE PRESTACIÓN DE SERVICIOS PROFESIONALES Y DE APOYO A LA GESTIÓN | F57: CONTRATACIÓN DIRECTA | G57: Prestación de servicios profesionales y de apoyo a la gestión, o para la ejecución de trabajos artísticos que sólo puedan encomendarse a determinadas personas naturales; | H57: Prestar los servicios profesionales como Administrador de la Red de Voz y Datos, brindando asistencia y soporte técnico del software y hardware de los equipos y programas que maneja la entidad así como a los usuarios que desarrollen sus actividades en la Alcaldía Local de Teusaquillo. | I57: INVERSIÓN | J57: 45 | K57: =IF(J57=1,'[1]Equivalencia BH-BMPT'!$D$2,IF(J57=2,'[1]Equivalencia BH-BMPT'!$D$3,IF(J57=3,'[1]Equivalencia BH-BMPT'!$D$4,IF(J57=4,'[1]Equivalencia BH-BMPT'!$D$5,IF(J57=5,'[1]Equivalencia BH-BMPT'!$D$6,IF(J57=6,'[1]Equivalencia BH-BMPT'!$D$7,IF(J57=7,'[1]Equivalencia BH-BMPT'!$D$8,IF(J57=8,'[1]Equivalencia BH-BMPT'!$D$9,IF(J57=9,'[1]Equivalencia BH-BMPT'!$D$10,IF(J57=10,'[1]Equivalencia BH-BMPT'!$D$11,IF(J57=11,'[1]Equivalencia BH-BMPT'!$D$12,IF(J57=12,'[1]Equivalencia BH-BMPT'!$D$13,IF(J57=13,'[1]Equivalencia BH-BMPT'!$D$14,IF(J57=14,'[1]Equivalencia BH-BMPT'!$D$15,IF(J57=15,'[1]Equivalencia BH-BMPT'!$D$16,IF(J57=16,'[1]Equivalencia BH-BMPT'!$D$17,IF(J57=17,'[1]Equivalencia BH-BMPT'!$D$18,IF(J57=18,'[1]Equivalencia BH-BMPT'!$D$19,IF(J57=19,'[1]Equivalencia BH-BMPT'!$D$20,IF(J57=20,'[1]Equivalencia BH-BMPT'!$D$21,IF(J57=21,'[1]Equivalencia BH-BMPT'!$D$22,IF(J57=22,'[1]Equivalencia BH-BMPT'!$D$23,IF(J57=23,'[1]Equivalencia BH-BMPT'!#REF!,IF(J57=24,'[1]Equivalencia BH-BMPT'!$D$25,IF(J57=25,'[1]Equivalencia BH-BMPT'!$D$26,IF(J57=26,'[1]Equivalencia BH-BMPT'!$D$27,IF(J57=27,'[1]Equivalencia BH-BMPT'!$D$28,IF(J57=28,'[1]Equivalencia BH-BMPT'!$D$29,IF(J57=29,'[1]Equivalencia BH-BMPT'!$D$30,IF(J57=30,'[1]Equivalencia BH-BMPT'!$D$31,IF(J57=31,'[1]Equivalencia BH-BMPT'!$D$32,IF(J57=32,'[1]Equivalencia BH-BMPT'!$D$33,IF(J57=33,'[1]Equivalencia BH-BMPT'!$D$34,IF(J57=34,'[1]Equivalencia BH-BMPT'!$D$35,IF(J57=35,'[1]Equivalencia BH-BMPT'!$D$36,IF(J57=36,'[1]Equivalencia BH-BMPT'!$D$37,IF(J57=37,'[1]Equivalencia BH-BMPT'!$D$38,IF(J57=38,'[1]Equivalencia BH-BMPT'!#REF!,IF(J57=39,'[1]Equivalencia BH-BMPT'!$D$40,IF(J57=40,'[1]Equivalencia BH-BMPT'!$D$41,IF(J57=41,'[1]Equivalencia BH-BMPT'!$D$42,IF(J57=42,'[1]Equivalencia BH-BMPT'!$D$43,IF(J57=43,'[1]Equivalencia BH-BMPT'!$D$44,IF(J57=44,'[1]Equivalencia BH-BMPT'!$D$45,IF(J57=45,'[1]Equivalencia BH-BMPT'!$D$46,"No ha seleccionado un número de programa"))))))))))))))))))))))))))))))))))))))))))))) -> Gobernanza e influencia local, regional e internacional | L57: 1329 | M57: 79415517 | N57: JOHN JAIRO ARBELAEZ CASTAÑEDA | O57: 19200000 | S57: 9600000 | T57: 28800000 | U57: 28800000 | V57: 2017-02-23 | W57: 2017-02-24 | X57: 2017-08-23 | Y57: 120 | Z57: 60 | AE57: X | AF57: 1
A58: 40 | B58: 2017 | C58: CPS 040 2017 | D58: 5 | E58: =IF(D58=1,'[1]Tipo '!$B$2,IF(D58=2,'[1]Tipo '!$B$3,IF(D58=3,'[1]Tipo '!$B$4,IF(D58=4,'[1]Tipo '!$B$5,IF(D58=5,'[1]Tipo '!$B$6,IF(D58=6,'[1]Tipo '!$B$7,IF(D58=7,'[1]Tipo '!$B$8,IF(D58=8,'[1]Tipo '!$B$9,IF(D58=9,'[1]Tipo '!$B$10,IF(D58=10,'[1]Tipo '!$B$11,IF(D58=11,'[1]Tipo '!$B$12,IF(D58=12,'[1]Tipo '!$B$13,IF(D58=13,'[1]Tipo '!$B$14,IF(D58=14,'[1]Tipo '!$B$15,IF(D58=15,'[1]Tipo '!$B$16,IF(D58=16,'[1]Tipo '!$B$17,IF(D58=17,'[1]Tipo '!$B$18,IF(D58=18,'[1]Tipo '!$B$19,IF(D58=19,'[1]Tipo '!$B$20,"No ha seleccionado un tipo de contrato válido"))))))))))))))))))) -> CONTRATOS DE PRESTACIÓN DE SERVICIOS PROFESIONALES Y DE APOYO A LA GESTIÓN | F58: CONTRATACIÓN DIRECTA | G58: Prestación de servicios profesionales y de apoyo a la gestión, o para la ejecución de trabajos artísticos que sólo puedan encomendarse a determinadas personas naturales; | H58: El contrato que se pretende celebrar, tendrá por objeto ¿Prestación de servicios profesionales al Área de Gestión Policiva para la descongestión y trámite procesal a las actuaciones administrativas y preliminares correspondientes a Establecimientos de Comercio anteriores al año 2014.¿. | I58: INVERSIÓN | J58: 45 | K58: =IF(J58=1,'[1]Equivalencia BH-BMPT'!$D$2,IF(J58=2,'[1]Equivalencia BH-BMPT'!$D$3,IF(J58=3,'[1]Equivalencia BH-BMPT'!$D$4,IF(J58=4,'[1]Equivalencia BH-BMPT'!$D$5,IF(J58=5,'[1]Equivalencia BH-BMPT'!$D$6,IF(J58=6,'[1]Equivalencia BH-BMPT'!$D$7,IF(J58=7,'[1]Equivalencia BH-BMPT'!$D$8,IF(J58=8,'[1]Equivalencia BH-BMPT'!$D$9,IF(J58=9,'[1]Equivalencia BH-BMPT'!$D$10,IF(J58=10,'[1]Equivalencia BH-BMPT'!$D$11,IF(J58=11,'[1]Equivalencia BH-BMPT'!$D$12,IF(J58=12,'[1]Equivalencia BH-BMPT'!$D$13,IF(J58=13,'[1]Equivalencia BH-BMPT'!$D$14,IF(J58=14,'[1]Equivalencia BH-BMPT'!$D$15,IF(J58=15,'[1]Equivalencia BH-BMPT'!$D$16,IF(J58=16,'[1]Equivalencia BH-BMPT'!$D$17,IF(J58=17,'[1]Equivalencia BH-BMPT'!$D$18,IF(J58=18,'[1]Equivalencia BH-BMPT'!$D$19,IF(J58=19,'[1]Equivalencia BH-BMPT'!$D$20,IF(J58=20,'[1]Equivalencia BH-BMPT'!$D$21,IF(J58=21,'[1]Equivalencia BH-BMPT'!$D$22,IF(J58=22,'[1]Equivalencia BH-BMPT'!$D$23,IF(J58=23,'[1]Equivalencia BH-BMPT'!#REF!,IF(J58=24,'[1]Equivalencia BH-BMPT'!$D$25,IF(J58=25,'[1]Equivalencia BH-BMPT'!$D$26,IF(J58=26,'[1]Equivalencia BH-BMPT'!$D$27,IF(J58=27,'[1]Equivalencia BH-BMPT'!$D$28,IF(J58=28,'[1]Equivalencia BH-BMPT'!$D$29,IF(J58=29,'[1]Equivalencia BH-BMPT'!$D$30,IF(J58=30,'[1]Equivalencia BH-BMPT'!$D$31,IF(J58=31,'[1]Equivalencia BH-BMPT'!$D$32,IF(J58=32,'[1]Equivalencia BH-BMPT'!$D$33,IF(J58=33,'[1]Equivalencia BH-BMPT'!$D$34,IF(J58=34,'[1]Equivalencia BH-BMPT'!$D$35,IF(J58=35,'[1]Equivalencia BH-BMPT'!$D$36,IF(J58=36,'[1]Equivalencia BH-BMPT'!$D$37,IF(J58=37,'[1]Equivalencia BH-BMPT'!$D$38,IF(J58=38,'[1]Equivalencia BH-BMPT'!#REF!,IF(J58=39,'[1]Equivalencia BH-BMPT'!$D$40,IF(J58=40,'[1]Equivalencia BH-BMPT'!$D$41,IF(J58=41,'[1]Equivalencia BH-BMPT'!$D$42,IF(J58=42,'[1]Equivalencia BH-BMPT'!$D$43,IF(J58=43,'[1]Equivalencia BH-BMPT'!$D$44,IF(J58=44,'[1]Equivalencia BH-BMPT'!$D$45,IF(J58=45,'[1]Equivalencia BH-BMPT'!$D$46,"No ha seleccionado un número de programa"))))))))))))))))))))))))))))))))))))))))))))) -> Gobernanza e influencia local, regional e internacional | L58: 1329 | M58: 1106395824 | N58: ZAIDE NATALIE BURGOS BARRETO | O58: 26600000 | S58: 0 | T58: 26600000 | U58: 26600000 | V58: 2017-02-24 | W58: 2017-02-27 | X58: 2017-09-26 | Y58: 210 | Z58: 0 | AE58: X | AF58: 1
A59: 41 | B59: 2017 | C59: CPS 041 2017 | D59: 5 | E59: =IF(D59=1,'[1]Tipo '!$B$2,IF(D59=2,'[1]Tipo '!$B$3,IF(D59=3,'[1]Tipo '!$B$4,IF(D59=4,'[1]Tipo '!$B$5,IF(D59=5,'[1]Tipo '!$B$6,IF(D59=6,'[1]Tipo '!$B$7,IF(D59=7,'[1]Tipo '!$B$8,IF(D59=8,'[1]Tipo '!$B$9,IF(D59=9,'[1]Tipo '!$B$10,IF(D59=10,'[1]Tipo '!$B$11,IF(D59=11,'[1]Tipo '!$B$12,IF(D59=12,'[1]Tipo '!$B$13,IF(D59=13,'[1]Tipo '!$B$14,IF(D59=14,'[1]Tipo '!$B$15,IF(D59=15,'[1]Tipo '!$B$16,IF(D59=16,'[1]Tipo '!$B$17,IF(D59=17,'[1]Tipo '!$B$18,IF(D59=18,'[1]Tipo '!$B$19,IF(D59=19,'[1]Tipo '!$B$20,"No ha seleccionado un tipo de contrato válido"))))))))))))))))))) -> CONTRATOS DE PRESTACIÓN DE SERVICIOS PROFESIONALES Y DE APOYO A LA GESTIÓN | F59: CONTRATACIÓN DIRECTA | G59: Prestación de servicios profesionales y de apoyo a la gestión, o para la ejecución de trabajos artísticos que sólo puedan encomendarse a determinadas personas naturales; | H59: El contrato que se pretende celebrar, tendrá por objeto ¿Prestar los servicios técnicos para la operación, seguimiento y cumplimiento de los procesos y procedimientos del servicio social Apoyos para la Seguridad Económica Tipo C, requeridos para el oportuno y adecuado registro, cruce y reporte de los datos en el sistema de información y registro de Beneficiarios¿SIRBE, que contribuyan a la garantía de los derechos de la población mayor en el marco de la Política Pública Social para el Envejecimiento y la Vejez en el Distrito Capital a cargo de la Alcaldía Local Teusaquillo.¿. | I59: INVERSIÓN | J59: 45 | K59: =IF(J59=1,'[1]Equivalencia BH-BMPT'!$D$2,IF(J59=2,'[1]Equivalencia BH-BMPT'!$D$3,IF(J59=3,'[1]Equivalencia BH-BMPT'!$D$4,IF(J59=4,'[1]Equivalencia BH-BMPT'!$D$5,IF(J59=5,'[1]Equivalencia BH-BMPT'!$D$6,IF(J59=6,'[1]Equivalencia BH-BMPT'!$D$7,IF(J59=7,'[1]Equivalencia BH-BMPT'!$D$8,IF(J59=8,'[1]Equivalencia BH-BMPT'!$D$9,IF(J59=9,'[1]Equivalencia BH-BMPT'!$D$10,IF(J59=10,'[1]Equivalencia BH-BMPT'!$D$11,IF(J59=11,'[1]Equivalencia BH-BMPT'!$D$12,IF(J59=12,'[1]Equivalencia BH-BMPT'!$D$13,IF(J59=13,'[1]Equivalencia BH-BMPT'!$D$14,IF(J59=14,'[1]Equivalencia BH-BMPT'!$D$15,IF(J59=15,'[1]Equivalencia BH-BMPT'!$D$16,IF(J59=16,'[1]Equivalencia BH-BMPT'!$D$17,IF(J59=17,'[1]Equivalencia BH-BMPT'!$D$18,IF(J59=18,'[1]Equivalencia BH-BMPT'!$D$19,IF(J59=19,'[1]Equivalencia BH-BMPT'!$D$20,IF(J59=20,'[1]Equivalencia BH-BMPT'!$D$21,IF(J59=21,'[1]Equivalencia BH-BMPT'!$D$22,IF(J59=22,'[1]Equivalencia BH-BMPT'!$D$23,IF(J59=23,'[1]Equivalencia BH-BMPT'!#REF!,IF(J59=24,'[1]Equivalencia BH-BMPT'!$D$25,IF(J59=25,'[1]Equivalencia BH-BMPT'!$D$26,IF(J59=26,'[1]Equivalencia BH-BMPT'!$D$27,IF(J59=27,'[1]Equivalencia BH-BMPT'!$D$28,IF(J59=28,'[1]Equivalencia BH-BMPT'!$D$29,IF(J59=29,'[1]Equivalencia BH-BMPT'!$D$30,IF(J59=30,'[1]Equivalencia BH-BMPT'!$D$31,IF(J59=31,'[1]Equivalencia BH-BMPT'!$D$32,IF(J59=32,'[1]Equivalencia BH-BMPT'!$D$33,IF(J59=33,'[1]Equivalencia BH-BMPT'!$D$34,IF(J59=34,'[1]Equivalencia BH-BMPT'!$D$35,IF(J59=35,'[1]Equivalencia BH-BMPT'!$D$36,IF(J59=36,'[1]Equivalencia BH-BMPT'!$D$37,IF(J59=37,'[1]Equivalencia BH-BMPT'!$D$38,IF(J59=38,'[1]Equivalencia BH-BMPT'!#REF!,IF(J59=39,'[1]Equivalencia BH-BMPT'!$D$40,IF(J59=40,'[1]Equivalencia BH-BMPT'!$D$41,IF(J59=41,'[1]Equivalencia BH-BMPT'!$D$42,IF(J59=42,'[1]Equivalencia BH-BMPT'!$D$43,IF(J59=43,'[1]Equivalencia BH-BMPT'!$D$44,IF(J59=44,'[1]Equivalencia BH-BMPT'!$D$45,IF(J59=45,'[1]Equivalencia BH-BMPT'!$D$46,"No ha seleccionado un número de programa"))))))))))))))))))))))))))))))))))))))))))))) -> Gobernanza e influencia local, regional e internacional | L59: 1329 | M59: 1031141363 | N59: GERALDINE MONTENEGRO LOZADA | O59: 15500000 | S59: 0 | T59: 15500000 | U59: 15500000 | V59: 2017-02-28 | W59: 2017-02-28 | X59: 2017-08-02 | Y59: 210 | Z59: 0 | AE59: X | AF59: 1
A60: 42 | B60: 2017 | C60: CPS 042 2017 | D60: 5 | E60: =IF(D60=1,'[1]Tipo '!$B$2,IF(D60=2,'[1]Tipo '!$B$3,IF(D60=3,'[1]Tipo '!$B$4,IF(D60=4,'[1]Tipo '!$B$5,IF(D60=5,'[1]Tipo '!$B$6,IF(D60=6,'[1]Tipo '!$B$7,IF(D60=7,'[1]Tipo '!$B$8,IF(D60=8,'[1]Tipo '!$B$9,IF(D60=9,'[1]Tipo '!$B$10,IF(D60=10,'[1]Tipo '!$B$11,IF(D60=11,'[1]Tipo '!$B$12,IF(D60=12,'[1]Tipo '!$B$13,IF(D60=13,'[1]Tipo '!$B$14,IF(D60=14,'[1]Tipo '!$B$15,IF(D60=15,'[1]Tipo '!$B$16,IF(D60=16,'[1]Tipo '!$B$17,IF(D60=17,'[1]Tipo '!$B$18,IF(D60=18,'[1]Tipo '!$B$19,IF(D60=19,'[1]Tipo '!$B$20,"No ha seleccionado un tipo de contrato válido"))))))))))))))))))) -> CONTRATOS DE PRESTACIÓN DE SERVICIOS PROFESIONALES Y DE APOYO A LA GESTIÓN | F60: CONTRATACIÓN DIRECTA | G60: Prestación de servicios profesionales y de apoyo a la gestión, o para la ejecución de trabajos artísticos que sólo puedan encomendarse a determinadas personas naturales; | H60: ¿El contrato que se pretende celebrar, tendrá por objeto Prestación de servicios profesionales al Despacho del Alcalde Local para que realice las actividades de seguimiento a las respuestas de los requerimientos realizados por los diferentes entes de control y El Concejo de Bogotá de acuerdo a las metas establecidas en el Plan de Desarrollo, Plan de Gestión y Plan de Mejoramiento | I60: INVERSIÓN | J60: 45 | K60: =IF(J60=1,'[1]Equivalencia BH-BMPT'!$D$2,IF(J60=2,'[1]Equivalencia BH-BMPT'!$D$3,IF(J60=3,'[1]Equivalencia BH-BMPT'!$D$4,IF(J60=4,'[1]Equivalencia BH-BMPT'!$D$5,IF(J60=5,'[1]Equivalencia BH-BMPT'!$D$6,IF(J60=6,'[1]Equivalencia BH-BMPT'!$D$7,IF(J60=7,'[1]Equivalencia BH-BMPT'!$D$8,IF(J60=8,'[1]Equivalencia BH-BMPT'!$D$9,IF(J60=9,'[1]Equivalencia BH-BMPT'!$D$10,IF(J60=10,'[1]Equivalencia BH-BMPT'!$D$11,IF(J60=11,'[1]Equivalencia BH-BMPT'!$D$12,IF(J60=12,'[1]Equivalencia BH-BMPT'!$D$13,IF(J60=13,'[1]Equivalencia BH-BMPT'!$D$14,IF(J60=14,'[1]Equivalencia BH-BMPT'!$D$15,IF(J60=15,'[1]Equivalencia BH-BMPT'!$D$16,IF(J60=16,'[1]Equivalencia BH-BMPT'!$D$17,IF(J60=17,'[1]Equivalencia BH-BMPT'!$D$18,IF(J60=18,'[1]Equivalencia BH-BMPT'!$D$19,IF(J60=19,'[1]Equivalencia BH-BMPT'!$D$20,IF(J60=20,'[1]Equivalencia BH-BMPT'!$D$21,IF(J60=21,'[1]Equivalencia BH-BMPT'!$D$22,IF(J60=22,'[1]Equivalencia BH-BMPT'!$D$23,IF(J60=23,'[1]Equivalencia BH-BMPT'!#REF!,IF(J60=24,'[1]Equivalencia BH-BMPT'!$D$25,IF(J60=25,'[1]Equivalencia BH-BMPT'!$D$26,IF(J60=26,'[1]Equivalencia BH-BMPT'!$D$27,IF(J60=27,'[1]Equivalencia BH-BMPT'!$D$28,IF(J60=28,'[1]Equivalencia BH-BMPT'!$D$29,IF(J60=29,'[1]Equivalencia BH-BMPT'!$D$30,IF(J60=30,'[1]Equivalencia BH-BMPT'!$D$31,IF(J60=31,'[1]Equivalencia BH-BMPT'!$D$32,IF(J60=32,'[1]Equivalencia BH-BMPT'!$D$33,IF(J60=33,'[1]Equivalencia BH-BMPT'!$D$34,IF(J60=34,'[1]Equivalencia BH-BMPT'!$D$35,IF(J60=35,'[1]Equivalencia BH-BMPT'!$D$36,IF(J60=36,'[1]Equivalencia BH-BMPT'!$D$37,IF(J60=37,'[1]Equivalencia BH-BMPT'!$D$38,IF(J60=38,'[1]Equivalencia BH-BMPT'!#REF!,IF(J60=39,'[1]Equivalencia BH-BMPT'!$D$40,IF(J60=40,'[1]Equivalencia BH-BMPT'!$D$41,IF(J60=41,'[1]Equivalencia BH-BMPT'!$D$42,IF(J60=42,'[1]Equivalencia BH-BMPT'!$D$43,IF(J60=43,'[1]Equivalencia BH-BMPT'!$D$44,IF(J60=44,'[1]Equivalencia BH-BMPT'!$D$45,IF(J60=45,'[1]Equivalencia BH-BMPT'!$D$46,"No ha seleccionado un número de programa"))))))))))))))))))))))))))))))))))))))))))))) -> Gobernanza e influencia local, regional e internacional | L60: 1329 | M60: 38610462 | N60: ANDREA MARCELA GONZALEZ LARGO | O60: 32900000 | S60: 13003341 | T60: 45903341 | U60: 44336667 | V60: 2017-03-01 | W60: 2017-03-06 | X60: 2017-12-28 | Y60: 210 | Z60: =23+60 -> 83 | AD60: X | AF60: 0.9658701531
A61: 43 | B61: 2017 | C61: CPS 043 2017 | D61: 5 | E61: =IF(D61=1,'[1]Tipo '!$B$2,IF(D61=2,'[1]Tipo '!$B$3,IF(D61=3,'[1]Tipo '!$B$4,IF(D61=4,'[1]Tipo '!$B$5,IF(D61=5,'[1]Tipo '!$B$6,IF(D61=6,'[1]Tipo '!$B$7,IF(D61=7,'[1]Tipo '!$B$8,IF(D61=8,'[1]Tipo '!$B$9,IF(D61=9,'[1]Tipo '!$B$10,IF(D61=10,'[1]Tipo '!$B$11,IF(D61=11,'[1]Tipo '!$B$12,IF(D61=12,'[1]Tipo '!$B$13,IF(D61=13,'[1]Tipo '!$B$14,IF(D61=14,'[1]Tipo '!$B$15,IF(D61=15,'[1]Tipo '!$B$16,IF(D61=16,'[1]Tipo '!$B$17,IF(D61=17,'[1]Tipo '!$B$18,IF(D61=18,'[1]Tipo '!$B$19,IF(D61=19,'[1]Tipo '!$B$20,"No ha seleccionado un tipo de contrato válido"))))))))))))))))))) -> CONTRATOS DE PRESTACIÓN DE SERVICIOS PROFESIONALES Y DE APOYO A LA GESTIÓN | F61: CONTRATACIÓN DIRECTA | G61: Prestación de servicios profesionales y de apoyo a la gestión, o para la ejecución de trabajos artísticos que sólo puedan encomendarse a determinadas personas naturales; | H61: El contrato que se pretende celebrar, tendrá por objeto¿¿Prestación de servicios profesionalescon el fin de gestionar el proceso de cobro persuasivo dentro de las Actuaciones Administrativas que se adelantan en el Área de Gestión Policiva, así como dar trámite a las actuaciones administrativas relacionadas con establecimientos de comercio y/o espacio público, peticiones, quejas y requerimientos¿ | I61: INVERSIÓN | J61: 45 | K61: =IF(J61=1,'[1]Equivalencia BH-BMPT'!$D$2,IF(J61=2,'[1]Equivalencia BH-BMPT'!$D$3,IF(J61=3,'[1]Equivalencia BH-BMPT'!$D$4,IF(J61=4,'[1]Equivalencia BH-BMPT'!$D$5,IF(J61=5,'[1]Equivalencia BH-BMPT'!$D$6,IF(J61=6,'[1]Equivalencia BH-BMPT'!$D$7,IF(J61=7,'[1]Equivalencia BH-BMPT'!$D$8,IF(J61=8,'[1]Equivalencia BH-BMPT'!$D$9,IF(J61=9,'[1]Equivalencia BH-BMPT'!$D$10,IF(J61=10,'[1]Equivalencia BH-BMPT'!$D$11,IF(J61=11,'[1]Equivalencia BH-BMPT'!$D$12,IF(J61=12,'[1]Equivalencia BH-BMPT'!$D$13,IF(J61=13,'[1]Equivalencia BH-BMPT'!$D$14,IF(J61=14,'[1]Equivalencia BH-BMPT'!$D$15,IF(J61=15,'[1]Equivalencia BH-BMPT'!$D$16,IF(J61=16,'[1]Equivalencia BH-BMPT'!$D$17,IF(J61=17,'[1]Equivalencia BH-BMPT'!$D$18,IF(J61=18,'[1]Equivalencia BH-BMPT'!$D$19,IF(J61=19,'[1]Equivalencia BH-BMPT'!$D$20,IF(J61=20,'[1]Equivalencia BH-BMPT'!$D$21,IF(J61=21,'[1]Equivalencia BH-BMPT'!$D$22,IF(J61=22,'[1]Equivalencia BH-BMPT'!$D$23,IF(J61=23,'[1]Equivalencia BH-BMPT'!#REF!,IF(J61=24,'[1]Equivalencia BH-BMPT'!$D$25,IF(J61=25,'[1]Equivalencia BH-BMPT'!$D$26,IF(J61=26,'[1]Equivalencia BH-BMPT'!$D$27,IF(J61=27,'[1]Equivalencia BH-BMPT'!$D$28,IF(J61=28,'[1]Equivalencia BH-BMPT'!$D$29,IF(J61=29,'[1]Equivalencia BH-BMPT'!$D$30,IF(J61=30,'[1]Equivalencia BH-BMPT'!$D$31,IF(J61=31,'[1]Equivalencia BH-BMPT'!$D$32,IF(J61=32,'[1]Equivalencia BH-BMPT'!$D$33,IF(J61=33,'[1]Equivalencia BH-BMPT'!$D$34,IF(J61=34,'[1]Equivalencia BH-BMPT'!$D$35,IF(J61=35,'[1]Equivalencia BH-BMPT'!$D$36,IF(J61=36,'[1]Equivalencia BH-BMPT'!$D$37,IF(J61=37,'[1]Equivalencia BH-BMPT'!$D$38,IF(J61=38,'[1]Equivalencia BH-BMPT'!#REF!,IF(J61=39,'[1]Equivalencia BH-BMPT'!$D$40,IF(J61=40,'[1]Equivalencia BH-BMPT'!$D$41,IF(J61=41,'[1]Equivalencia BH-BMPT'!$D$42,IF(J61=42,'[1]Equivalencia BH-BMPT'!$D$43,IF(J61=43,'[1]Equivalencia BH-BMPT'!$D$44,IF(J61=44,'[1]Equivalencia BH-BMPT'!$D$45,IF(J61=45,'[1]Equivalencia BH-BMPT'!$D$46,"No ha seleccionado un número de programa"))))))))))))))))))))))))))))))))))))))))))))) -> Gobernanza e influencia local, regional e internacional | L61: 1329 | M61: 12646690 | N61: LUIS FERNANDO QUINTERO CALDERON | O61: 21000000 | S61: 10500000 | T61: 31500000 | U61: 31080000 | V61: 2017-03-02 | W61: 2017-03-03 | X61: 2017-10-17 | Y61: 150 | Z61: 75 | AD61: X | AF61: 0.9866666667
A62: 44 | B62: 2017 | C62: CPS 044 2017 | D62: 5 | E62: =IF(D62=1,'[1]Tipo '!$B$2,IF(D62=2,'[1]Tipo '!$B$3,IF(D62=3,'[1]Tipo '!$B$4,IF(D62=4,'[1]Tipo '!$B$5,IF(D62=5,'[1]Tipo '!$B$6,IF(D62=6,'[1]Tipo '!$B$7,IF(D62=7,'[1]Tipo '!$B$8,IF(D62=8,'[1]Tipo '!$B$9,IF(D62=9,'[1]Tipo '!$B$10,IF(D62=10,'[1]Tipo '!$B$11,IF(D62=11,'[1]Tipo '!$B$12,IF(D62=12,'[1]Tipo '!$B$13,IF(D62=13,'[1]Tipo '!$B$14,IF(D62=14,'[1]Tipo '!$B$15,IF(D62=15,'[1]Tipo '!$B$16,IF(D62=16,'[1]Tipo '!$B$17,IF(D62=17,'[1]Tipo '!$B$18,IF(D62=18,'[1]Tipo '!$B$19,IF(D62=19,'[1]Tipo '!$B$20,"No ha seleccionado un tipo de contrato válido"))))))))))))))))))) -> CONTRATOS DE PRESTACIÓN DE SERVICIOS PROFESIONALES Y DE APOYO A LA GESTIÓN | F62: CONTRATACIÓN DIRECTA | G62: Prestación de servicios profesionales y de apoyo a la gestión, o para la ejecución de trabajos artísticos que sólo puedan encomendarse a determinadas personas naturales; | H62: EL CONTRATISTA SE OBLIGA PARA CON EL FONDO A PRESTAR SUS SERVICIOS PARA APOYAR EL PROCESO DE RADICACIÓN, NOTIFICACION Y ENTREGA DE LA CORRESPONDENCIA INTERNA Y EXTERNA DE LA ALCALDIA LOCAL DE TEUSAQUILLO | I62: INVERSIÓN | J62: 45 | K62: =IF(J62=1,'[1]Equivalencia BH-BMPT'!$D$2,IF(J62=2,'[1]Equivalencia BH-BMPT'!$D$3,IF(J62=3,'[1]Equivalencia BH-BMPT'!$D$4,IF(J62=4,'[1]Equivalencia BH-BMPT'!$D$5,IF(J62=5,'[1]Equivalencia BH-BMPT'!$D$6,IF(J62=6,'[1]Equivalencia BH-BMPT'!$D$7,IF(J62=7,'[1]Equivalencia BH-BMPT'!$D$8,IF(J62=8,'[1]Equivalencia BH-BMPT'!$D$9,IF(J62=9,'[1]Equivalencia BH-BMPT'!$D$10,IF(J62=10,'[1]Equivalencia BH-BMPT'!$D$11,IF(J62=11,'[1]Equivalencia BH-BMPT'!$D$12,IF(J62=12,'[1]Equivalencia BH-BMPT'!$D$13,IF(J62=13,'[1]Equivalencia BH-BMPT'!$D$14,IF(J62=14,'[1]Equivalencia BH-BMPT'!$D$15,IF(J62=15,'[1]Equivalencia BH-BMPT'!$D$16,IF(J62=16,'[1]Equivalencia BH-BMPT'!$D$17,IF(J62=17,'[1]Equivalencia BH-BMPT'!$D$18,IF(J62=18,'[1]Equivalencia BH-BMPT'!$D$19,IF(J62=19,'[1]Equivalencia BH-BMPT'!$D$20,IF(J62=20,'[1]Equivalencia BH-BMPT'!$D$21,IF(J62=21,'[1]Equivalencia BH-BMPT'!$D$22,IF(J62=22,'[1]Equivalencia BH-BMPT'!$D$23,IF(J62=23,'[1]Equivalencia BH-BMPT'!#REF!,IF(J62=24,'[1]Equivalencia BH-BMPT'!$D$25,IF(J62=25,'[1]Equivalencia BH-BMPT'!$D$26,IF(J62=26,'[1]Equivalencia BH-BMPT'!$D$27,IF(J62=27,'[1]Equivalencia BH-BMPT'!$D$28,IF(J62=28,'[1]Equivalencia BH-BMPT'!$D$29,IF(J62=29,'[1]Equivalencia BH-BMPT'!$D$30,IF(J62=30,'[1]Equivalencia BH-BMPT'!$D$31,IF(J62=31,'[1]Equivalencia BH-BMPT'!$D$32,IF(J62=32,'[1]Equivalencia BH-BMPT'!$D$33,IF(J62=33,'[1]Equivalencia BH-BMPT'!$D$34,IF(J62=34,'[1]Equivalencia BH-BMPT'!$D$35,IF(J62=35,'[1]Equivalencia BH-BMPT'!$D$36,IF(J62=36,'[1]Equivalencia BH-BMPT'!$D$37,IF(J62=37,'[1]Equivalencia BH-BMPT'!$D$38,IF(J62=38,'[1]Equivalencia BH-BMPT'!#REF!,IF(J62=39,'[1]Equivalencia BH-BMPT'!$D$40,IF(J62=40,'[1]Equivalencia BH-BMPT'!$D$41,IF(J62=41,'[1]Equivalencia BH-BMPT'!$D$42,IF(J62=42,'[1]Equivalencia BH-BMPT'!$D$43,IF(J62=43,'[1]Equivalencia BH-BMPT'!$D$44,IF(J62=44,'[1]Equivalencia BH-BMPT'!$D$45,IF(J62=45,'[1]Equivalencia BH-BMPT'!$D$46,"No ha seleccionado un número de programa"))))))))))))))))))))))))))))))))))))))))))))) -> Gobernanza e influencia local, regional e internacional | L62: 1329 | M62: 1032462820 | N62: JENNIFER VANNESA DIAZ NIÑO | O62: 14700000 | S62: 6650000 | T62: 21350000 | U62: 19460000 | V62: 2017-03-03 | W62: 2017-03-07 | X62: 2018-01-10 | Y62: 210 | Z62: 95 | AC62: X | AF62: 0.9114754098
A63: 45 | B63: 2017 | C63: CPS 045 2017 | D63: 5 | E63: =IF(D63=1,'[1]Tipo '!$B$2,IF(D63=2,'[1]Tipo '!$B$3,IF(D63=3,'[1]Tipo '!$B$4,IF(D63=4,'[1]Tipo '!$B$5,IF(D63=5,'[1]Tipo '!$B$6,IF(D63=6,'[1]Tipo '!$B$7,IF(D63=7,'[1]Tipo '!$B$8,IF(D63=8,'[1]Tipo '!$B$9,IF(D63=9,'[1]Tipo '!$B$10,IF(D63=10,'[1]Tipo '!$B$11,IF(D63=11,'[1]Tipo '!$B$12,IF(D63=12,'[1]Tipo '!$B$13,IF(D63=13,'[1]Tipo '!$B$14,IF(D63=14,'[1]Tipo '!$B$15,IF(D63=15,'[1]Tipo '!$B$16,IF(D63=16,'[1]Tipo '!$B$17,IF(D63=17,'[1]Tipo '!$B$18,IF(D63=18,'[1]Tipo '!$B$19,IF(D63=19,'[1]Tipo '!$B$20,"No ha seleccionado un tipo de contrato válido"))))))))))))))))))) -> CONTRATOS DE PRESTACIÓN DE SERVICIOS PROFESIONALES Y DE APOYO A LA GESTIÓN | F63: CONTRATACIÓN DIRECTA | G63: Prestación de servicios profesionales y de apoyo a la gestión, o para la ejecución de trabajos artísticos que sólo puedan encomendarse a determinadas personas naturales; | H63: Prestación de servicios profesionales al Área de Gestión Policiva a través de visitas a terreno y emisión de conceptos técnicos, para verificar el cumplimiento de la normatividad relativa a establecimientos de comercio y espacio público | I63: INVERSIÓN | J63: 45 | K63: =IF(J63=1,'[1]Equivalencia BH-BMPT'!$D$2,IF(J63=2,'[1]Equivalencia BH-BMPT'!$D$3,IF(J63=3,'[1]Equivalencia BH-BMPT'!$D$4,IF(J63=4,'[1]Equivalencia BH-BMPT'!$D$5,IF(J63=5,'[1]Equivalencia BH-BMPT'!$D$6,IF(J63=6,'[1]Equivalencia BH-BMPT'!$D$7,IF(J63=7,'[1]Equivalencia BH-BMPT'!$D$8,IF(J63=8,'[1]Equivalencia BH-BMPT'!$D$9,IF(J63=9,'[1]Equivalencia BH-BMPT'!$D$10,IF(J63=10,'[1]Equivalencia BH-BMPT'!$D$11,IF(J63=11,'[1]Equivalencia BH-BMPT'!$D$12,IF(J63=12,'[1]Equivalencia BH-BMPT'!$D$13,IF(J63=13,'[1]Equivalencia BH-BMPT'!$D$14,IF(J63=14,'[1]Equivalencia BH-BMPT'!$D$15,IF(J63=15,'[1]Equivalencia BH-BMPT'!$D$16,IF(J63=16,'[1]Equivalencia BH-BMPT'!$D$17,IF(J63=17,'[1]Equivalencia BH-BMPT'!$D$18,IF(J63=18,'[1]Equivalencia BH-BMPT'!$D$19,IF(J63=19,'[1]Equivalencia BH-BMPT'!$D$20,IF(J63=20,'[1]Equivalencia BH-BMPT'!$D$21,IF(J63=21,'[1]Equivalencia BH-BMPT'!$D$22,IF(J63=22,'[1]Equivalencia BH-BMPT'!$D$23,IF(J63=23,'[1]Equivalencia BH-BMPT'!#REF!,IF(J63=24,'[1]Equivalencia BH-BMPT'!$D$25,IF(J63=25,'[1]Equivalencia BH-BMPT'!$D$26,IF(J63=26,'[1]Equivalencia BH-BMPT'!$D$27,IF(J63=27,'[1]Equivalencia BH-BMPT'!$D$28,IF(J63=28,'[1]Equivalencia BH-BMPT'!$D$29,IF(J63=29,'[1]Equivalencia BH-BMPT'!$D$30,IF(J63=30,'[1]Equivalencia BH-BMPT'!$D$31,IF(J63=31,'[1]Equivalencia BH-BMPT'!$D$32,IF(J63=32,'[1]Equivalencia BH-BMPT'!$D$33,IF(J63=33,'[1]Equivalencia BH-BMPT'!$D$34,IF(J63=34,'[1]Equivalencia BH-BMPT'!$D$35,IF(J63=35,'[1]Equivalencia BH-BMPT'!$D$36,IF(J63=36,'[1]Equivalencia BH-BMPT'!$D$37,IF(J63=37,'[1]Equivalencia BH-BMPT'!$D$38,IF(J63=38,'[1]Equivalencia BH-BMPT'!#REF!,IF(J63=39,'[1]Equivalencia BH-BMPT'!$D$40,IF(J63=40,'[1]Equivalencia BH-BMPT'!$D$41,IF(J63=41,'[1]Equivalencia BH-BMPT'!$D$42,IF(J63=42,'[1]Equivalencia BH-BMPT'!$D$43,IF(J63=43,'[1]Equivalencia BH-BMPT'!$D$44,IF(J63=44,'[1]Equivalencia BH-BMPT'!$D$45,IF(J63=45,'[1]Equivalencia BH-BMPT'!$D$46,"No ha seleccionado un número de programa"))))))))))))))))))))))))))))))))))))))))))))) -> Gobernanza e influencia local, regional e internacional | L63: 1329 | M63: 52104732 | N63: DIANA MAYERLY LARROTA RAMIREZ | O63: 29400000 | S63: 0 | T63: 29400000 | U63: 29400000 | V63: 2017-03-06 | W63: 2017-03-09 | X63: 8/102017 | Y63: 210 | Z63: 0 | AE63: X | AF63: 1
A64: 46 | B64: 2017 | C64: CPS 046 2017 | D64: 5 | E64: =IF(D64=1,'[1]Tipo '!$B$2,IF(D64=2,'[1]Tipo '!$B$3,IF(D64=3,'[1]Tipo '!$B$4,IF(D64=4,'[1]Tipo '!$B$5,IF(D64=5,'[1]Tipo '!$B$6,IF(D64=6,'[1]Tipo '!$B$7,IF(D64=7,'[1]Tipo '!$B$8,IF(D64=8,'[1]Tipo '!$B$9,IF(D64=9,'[1]Tipo '!$B$10,IF(D64=10,'[1]Tipo '!$B$11,IF(D64=11,'[1]Tipo '!$B$12,IF(D64=12,'[1]Tipo '!$B$13,IF(D64=13,'[1]Tipo '!$B$14,IF(D64=14,'[1]Tipo '!$B$15,IF(D64=15,'[1]Tipo '!$B$16,IF(D64=16,'[1]Tipo '!$B$17,IF(D64=17,'[1]Tipo '!$B$18,IF(D64=18,'[1]Tipo '!$B$19,IF(D64=19,'[1]Tipo '!$B$20,"No ha seleccionado un tipo de contrato válido"))))))))))))))))))) -> CONTRATOS DE PRESTACIÓN DE SERVICIOS PROFESIONALES Y DE APOYO A LA GESTIÓN | F64: CONTRATACIÓN DIRECTA | G64: Prestación de servicios profesionales y de apoyo a la gestión, o para la ejecución de trabajos artísticos que sólo puedan encomendarse a determinadas personas naturales; | H64: Prestación de servicios profesionales al Área de Gestión Policiva de la Alcaldía Local de Teusaquillo, en las actividades concernientes a registros, certificaciones, actualizaciones de datos, entre otras, con el fin dar cumplimiento a lo establecido en ley 675 de 2001 y 746 de 2009 y demás normas vigentes, así como, atender peticiones y requerimientos relacionados con propiedad horizontal.¿ | I64: INVERSIÓN | J64: 45 | K64: =IF(J64=1,'[1]Equivalencia BH-BMPT'!$D$2,IF(J64=2,'[1]Equivalencia BH-BMPT'!$D$3,IF(J64=3,'[1]Equivalencia BH-BMPT'!$D$4,IF(J64=4,'[1]Equivalencia BH-BMPT'!$D$5,IF(J64=5,'[1]Equivalencia BH-BMPT'!$D$6,IF(J64=6,'[1]Equivalencia BH-BMPT'!$D$7,IF(J64=7,'[1]Equivalencia BH-BMPT'!$D$8,IF(J64=8,'[1]Equivalencia BH-BMPT'!$D$9,IF(J64=9,'[1]Equivalencia BH-BMPT'!$D$10,IF(J64=10,'[1]Equivalencia BH-BMPT'!$D$11,IF(J64=11,'[1]Equivalencia BH-BMPT'!$D$12,IF(J64=12,'[1]Equivalencia BH-BMPT'!$D$13,IF(J64=13,'[1]Equivalencia BH-BMPT'!$D$14,IF(J64=14,'[1]Equivalencia BH-BMPT'!$D$15,IF(J64=15,'[1]Equivalencia BH-BMPT'!$D$16,IF(J64=16,'[1]Equivalencia BH-BMPT'!$D$17,IF(J64=17,'[1]Equivalencia BH-BMPT'!$D$18,IF(J64=18,'[1]Equivalencia BH-BMPT'!$D$19,IF(J64=19,'[1]Equivalencia BH-BMPT'!$D$20,IF(J64=20,'[1]Equivalencia BH-BMPT'!$D$21,IF(J64=21,'[1]Equivalencia BH-BMPT'!$D$22,IF(J64=22,'[1]Equivalencia BH-BMPT'!$D$23,IF(J64=23,'[1]Equivalencia BH-BMPT'!#REF!,IF(J64=24,'[1]Equivalencia BH-BMPT'!$D$25,IF(J64=25,'[1]Equivalencia BH-BMPT'!$D$26,IF(J64=26,'[1]Equivalencia BH-BMPT'!$D$27,IF(J64=27,'[1]Equivalencia BH-BMPT'!$D$28,IF(J64=28,'[1]Equivalencia BH-BMPT'!$D$29,IF(J64=29,'[1]Equivalencia BH-BMPT'!$D$30,IF(J64=30,'[1]Equivalencia BH-BMPT'!$D$31,IF(J64=31,'[1]Equivalencia BH-BMPT'!$D$32,IF(J64=32,'[1]Equivalencia BH-BMPT'!$D$33,IF(J64=33,'[1]Equivalencia BH-BMPT'!$D$34,IF(J64=34,'[1]Equivalencia BH-BMPT'!$D$35,IF(J64=35,'[1]Equivalencia BH-BMPT'!$D$36,IF(J64=36,'[1]Equivalencia BH-BMPT'!$D$37,IF(J64=37,'[1]Equivalencia BH-BMPT'!$D$38,IF(J64=38,'[1]Equivalencia BH-BMPT'!#REF!,IF(J64=39,'[1]Equivalencia BH-BMPT'!$D$40,IF(J64=40,'[1]Equivalencia BH-BMPT'!$D$41,IF(J64=41,'[1]Equivalencia BH-BMPT'!$D$42,IF(J64=42,'[1]Equivalencia BH-BMPT'!$D$43,IF(J64=43,'[1]Equivalencia BH-BMPT'!$D$44,IF(J64=44,'[1]Equivalencia BH-BMPT'!$D$45,IF(J64=45,'[1]Equivalencia BH-BMPT'!$D$46,"No ha seleccionado un número de programa"))))))))))))))))))))))))))))))))))))))))))))) -> Gobernanza e influencia local, regional e internacional | L64: 1329 | M64: 1018407386 | N64: KAREN GIULIANA JARA RIVEROS | O64: 25200000 | S64: 0 | T64: 25200000 | U64: 22120000 | V64: 2017-03-06 | W64: 2017-03-07 | X64: 2017-09-06 | Y64: 180 | Z64: 0 | AD64: X | AF64: 0.8777777778
A65: 47 | B65: 2017 | C65: CPS 047 2017 | D65: 5 | E65: =IF(D65=1,'[1]Tipo '!$B$2,IF(D65=2,'[1]Tipo '!$B$3,IF(D65=3,'[1]Tipo '!$B$4,IF(D65=4,'[1]Tipo '!$B$5,IF(D65=5,'[1]Tipo '!$B$6,IF(D65=6,'[1]Tipo '!$B$7,IF(D65=7,'[1]Tipo '!$B$8,IF(D65=8,'[1]Tipo '!$B$9,IF(D65=9,'[1]Tipo '!$B$10,IF(D65=10,'[1]Tipo '!$B$11,IF(D65=11,'[1]Tipo '!$B$12,IF(D65=12,'[1]Tipo '!$B$13,IF(D65=13,'[1]Tipo '!$B$14,IF(D65=14,'[1]Tipo '!$B$15,IF(D65=15,'[1]Tipo '!$B$16,IF(D65=16,'[1]Tipo '!$B$17,IF(D65=17,'[1]Tipo '!$B$18,IF(D65=18,'[1]Tipo '!$B$19,IF(D65=19,'[1]Tipo '!$B$20,"No ha seleccionado un tipo de contrato válido"))))))))))))))))))) -> CONTRATOS DE PRESTACIÓN DE SERVICIOS PROFESIONALES Y DE APOYO A LA GESTIÓN | F65: CONTRATACIÓN DIRECTA | G65: Prestación de servicios profesionales y de apoyo a la gestión, o para la ejecución de trabajos artísticos que sólo puedan encomendarse a determinadas personas naturales; | H65: El contrato que se pretende celebrar, tendrá por objeto: ¿Prestar servicios profesionales para el seguimiento a la estabilidad de las obras ejecutadas con recursos del Fondo de Desarrollo Local de Teusaquillo y apoyar en la realización de las actividades en el desarrollo de los proyectos de infraestructura | I65: INVERSIÓN | J65: 18 | K65: =IF(J65=1,'[1]Equivalencia BH-BMPT'!$D$2,IF(J65=2,'[1]Equivalencia BH-BMPT'!$D$3,IF(J65=3,'[1]Equivalencia BH-BMPT'!$D$4,IF(J65=4,'[1]Equivalencia BH-BMPT'!$D$5,IF(J65=5,'[1]Equivalencia BH-BMPT'!$D$6,IF(J65=6,'[1]Equivalencia BH-BMPT'!$D$7,IF(J65=7,'[1]Equivalencia BH-BMPT'!$D$8,IF(J65=8,'[1]Equivalencia BH-BMPT'!$D$9,IF(J65=9,'[1]Equivalencia BH-BMPT'!$D$10,IF(J65=10,'[1]Equivalencia BH-BMPT'!$D$11,IF(J65=11,'[1]Equivalencia BH-BMPT'!$D$12,IF(J65=12,'[1]Equivalencia BH-BMPT'!$D$13,IF(J65=13,'[1]Equivalencia BH-BMPT'!$D$14,IF(J65=14,'[1]Equivalencia BH-BMPT'!$D$15,IF(J65=15,'[1]Equivalencia BH-BMPT'!$D$16,IF(J65=16,'[1]Equivalencia BH-BMPT'!$D$17,IF(J65=17,'[1]Equivalencia BH-BMPT'!$D$18,IF(J65=18,'[1]Equivalencia BH-BMPT'!$D$19,IF(J65=19,'[1]Equivalencia BH-BMPT'!$D$20,IF(J65=20,'[1]Equivalencia BH-BMPT'!$D$21,IF(J65=21,'[1]Equivalencia BH-BMPT'!$D$22,IF(J65=22,'[1]Equivalencia BH-BMPT'!$D$23,IF(J65=23,'[1]Equivalencia BH-BMPT'!#REF!,IF(J65=24,'[1]Equivalencia BH-BMPT'!$D$25,IF(J65=25,'[1]Equivalencia BH-BMPT'!$D$26,IF(J65=26,'[1]Equivalencia BH-BMPT'!$D$27,IF(J65=27,'[1]Equivalencia BH-BMPT'!$D$28,IF(J65=28,'[1]Equivalencia BH-BMPT'!$D$29,IF(J65=29,'[1]Equivalencia BH-BMPT'!$D$30,IF(J65=30,'[1]Equivalencia BH-BMPT'!$D$31,IF(J65=31,'[1]Equivalencia BH-BMPT'!$D$32,IF(J65=32,'[1]Equivalencia BH-BMPT'!$D$33,IF(J65=33,'[1]Equivalencia BH-BMPT'!$D$34,IF(J65=34,'[1]Equivalencia BH-BMPT'!$D$35,IF(J65=35,'[1]Equivalencia BH-BMPT'!$D$36,IF(J65=36,'[1]Equivalencia BH-BMPT'!$D$37,IF(J65=37,'[1]Equivalencia BH-BMPT'!$D$38,IF(J65=38,'[1]Equivalencia BH-BMPT'!#REF!,IF(J65=39,'[1]Equivalencia BH-BMPT'!$D$40,IF(J65=40,'[1]Equivalencia BH-BMPT'!$D$41,IF(J65=41,'[1]Equivalencia BH-BMPT'!$D$42,IF(J65=42,'[1]Equivalencia BH-BMPT'!$D$43,IF(J65=43,'[1]Equivalencia BH-BMPT'!$D$44,IF(J65=44,'[1]Equivalencia BH-BMPT'!$D$45,IF(J65=45,'[1]Equivalencia BH-BMPT'!$D$46,"No ha seleccionado un número de programa"))))))))))))))))))))))))))))))))))))))))))))) -> Mejor movilidad para todos | L65: 1338 | M65: 52152211 | N65: DORA ALIX HERNANDEZ CEBALLOS | O65: 31500000 | S65: 0 | T65: 31500000 | U65: 31500000 | V65: 2017-03-07 | W65: 2017-03-10 | X65: 2017-10-09 | Y65: 210 | Z65: 0 | AE65: X | AF65: 1
A66: 48 | B66: 2016 | C66: CPS 048 2017 | D66: 5 | E66: =IF(D66=1,'[1]Tipo '!$B$2,IF(D66=2,'[1]Tipo '!$B$3,IF(D66=3,'[1]Tipo '!$B$4,IF(D66=4,'[1]Tipo '!$B$5,IF(D66=5,'[1]Tipo '!$B$6,IF(D66=6,'[1]Tipo '!$B$7,IF(D66=7,'[1]Tipo '!$B$8,IF(D66=8,'[1]Tipo '!$B$9,IF(D66=9,'[1]Tipo '!$B$10,IF(D66=10,'[1]Tipo '!$B$11,IF(D66=11,'[1]Tipo '!$B$12,IF(D66=12,'[1]Tipo '!$B$13,IF(D66=13,'[1]Tipo '!$B$14,IF(D66=14,'[1]Tipo '!$B$15,IF(D66=15,'[1]Tipo '!$B$16,IF(D66=16,'[1]Tipo '!$B$17,IF(D66=17,'[1]Tipo '!$B$18,IF(D66=18,'[1]Tipo '!$B$19,IF(D66=19,'[1]Tipo '!$B$20,"No ha seleccionado un tipo de contrato válido"))))))))))))))))))) -> CONTRATOS DE PRESTACIÓN DE SERVICIOS PROFESIONALES Y DE APOYO A LA GESTIÓN | F66: CONTRATACIÓN DIRECTA | G66: Prestación de servicios profesionales y de apoyo a la gestión, o para la ejecución de trabajos artísticos que sólo puedan encomendarse a determinadas personas naturales; | H66: El contrato que se pretende celebrar, tendrá por objeto ¿El contratista se obliga para con el Fondo de Desarrollo Local de Teusaquillo a prestar sus servicios profesionales realizando actividades diagnosticas de los proyectos ambientales, desde la coordinación interinstitucional y apoyo a la las acciones de implementación del PIGA¿. | I66: INVERSIÓN | J66: 45 | K66: =IF(J66=1,'[1]Equivalencia BH-BMPT'!$D$2,IF(J66=2,'[1]Equivalencia BH-BMPT'!$D$3,IF(J66=3,'[1]Equivalencia BH-BMPT'!$D$4,IF(J66=4,'[1]Equivalencia BH-BMPT'!$D$5,IF(J66=5,'[1]Equivalencia BH-BMPT'!$D$6,IF(J66=6,'[1]Equivalencia BH-BMPT'!$D$7,IF(J66=7,'[1]Equivalencia BH-BMPT'!$D$8,IF(J66=8,'[1]Equivalencia BH-BMPT'!$D$9,IF(J66=9,'[1]Equivalencia BH-BMPT'!$D$10,IF(J66=10,'[1]Equivalencia BH-BMPT'!$D$11,IF(J66=11,'[1]Equivalencia BH-BMPT'!$D$12,IF(J66=12,'[1]Equivalencia BH-BMPT'!$D$13,IF(J66=13,'[1]Equivalencia BH-BMPT'!$D$14,IF(J66=14,'[1]Equivalencia BH-BMPT'!$D$15,IF(J66=15,'[1]Equivalencia BH-BMPT'!$D$16,IF(J66=16,'[1]Equivalencia BH-BMPT'!$D$17,IF(J66=17,'[1]Equivalencia BH-BMPT'!$D$18,IF(J66=18,'[1]Equivalencia BH-BMPT'!$D$19,IF(J66=19,'[1]Equivalencia BH-BMPT'!$D$20,IF(J66=20,'[1]Equivalencia BH-BMPT'!$D$21,IF(J66=21,'[1]Equivalencia BH-BMPT'!$D$22,IF(J66=22,'[1]Equivalencia BH-BMPT'!$D$23,IF(J66=23,'[1]Equivalencia BH-BMPT'!#REF!,IF(J66=24,'[1]Equivalencia BH-BMPT'!$D$25,IF(J66=25,'[1]Equivalencia BH-BMPT'!$D$26,IF(J66=26,'[1]Equivalencia BH-BMPT'!$D$27,IF(J66=27,'[1]Equivalencia BH-BMPT'!$D$28,IF(J66=28,'[1]Equivalencia BH-BMPT'!$D$29,IF(J66=29,'[1]Equivalencia BH-BMPT'!$D$30,IF(J66=30,'[1]Equivalencia BH-BMPT'!$D$31,IF(J66=31,'[1]Equivalencia BH-BMPT'!$D$32,IF(J66=32,'[1]Equivalencia BH-BMPT'!$D$33,IF(J66=33,'[1]Equivalencia BH-BMPT'!$D$34,IF(J66=34,'[1]Equivalencia BH-BMPT'!$D$35,IF(J66=35,'[1]Equivalencia BH-BMPT'!$D$36,IF(J66=36,'[1]Equivalencia BH-BMPT'!$D$37,IF(J66=37,'[1]Equivalencia BH-BMPT'!$D$38,IF(J66=38,'[1]Equivalencia BH-BMPT'!#REF!,IF(J66=39,'[1]Equivalencia BH-BMPT'!$D$40,IF(J66=40,'[1]Equivalencia BH-BMPT'!$D$41,IF(J66=41,'[1]Equivalencia BH-BMPT'!$D$42,IF(J66=42,'[1]Equivalencia BH-BMPT'!$D$43,IF(J66=43,'[1]Equivalencia BH-BMPT'!$D$44,IF(J66=44,'[1]Equivalencia BH-BMPT'!$D$45,IF(J66=45,'[1]Equivalencia BH-BMPT'!$D$46,"No ha seleccionado un número de programa"))))))))))))))))))))))))))))))))))))))))))))) -> Gobernanza e influencia local, regional e internacional | L66: 1329 | M66: 80772758 | N66: CAMILO ANDRES ACUÑA CARO | O66: 25200000 | S66: 12600000 | T66: 37800000 | U66: 37800000 | V66: 2017-03-07 | W66: 2017-03-09 | X66: 2017-12-08 | Y66: 180 | Z66: 90 | AE66: X | AF66: 1
A67: 49 | B67: 2017 | C67: CPS 049 2017 | D67: 4 | E67: =IF(D67=1,'[1]Tipo '!$B$2,IF(D67=2,'[1]Tipo '!$B$3,IF(D67=3,'[1]Tipo '!$B$4,IF(D67=4,'[1]Tipo '!$B$5,IF(D67=5,'[1]Tipo '!$B$6,IF(D67=6,'[1]Tipo '!$B$7,IF(D67=7,'[1]Tipo '!$B$8,IF(D67=8,'[1]Tipo '!$B$9,IF(D67=9,'[1]Tipo '!$B$10,IF(D67=10,'[1]Tipo '!$B$11,IF(D67=11,'[1]Tipo '!$B$12,IF(D67=12,'[1]Tipo '!$B$13,IF(D67=13,'[1]Tipo '!$B$14,IF(D67=14,'[1]Tipo '!$B$15,IF(D67=15,'[1]Tipo '!$B$16,IF(D67=16,'[1]Tipo '!$B$17,IF(D67=17,'[1]Tipo '!$B$18,IF(D67=18,'[1]Tipo '!$B$19,IF(D67=19,'[1]Tipo '!$B$20,"No ha seleccionado un tipo de contrato válido"))))))))))))))))))) -> CONTRATOS DE PRESTACIÓN DE SERVICIOS | F67: Contratación mínima cuantia | G67: No aplica | H67: PRESTAR EL SERVICIO INTEGRAL DE FOTOCOPIADO A PRECIOS UNITARIOS SIN FORMULA DE REAJUSTE MEDIANTE EL SISTEMA DE OUTSOURCING DE ACUERDO CON LOS PRESENTES ESTUDIOS PREVIOS, ANEXOS TECNICOS E INVITACIÓN | I67: FUNCIONAMIENTO | K67: =IF(J67=1,'[1]Equivalencia BH-BMPT'!$D$2,IF(J67=2,'[1]Equivalencia BH-BMPT'!$D$3,IF(J67=3,'[1]Equivalencia BH-BMPT'!$D$4,IF(J67=4,'[1]Equivalencia BH-BMPT'!$D$5,IF(J67=5,'[1]Equivalencia BH-BMPT'!$D$6,IF(J67=6,'[1]Equivalencia BH-BMPT'!$D$7,IF(J67=7,'[1]Equivalencia BH-BMPT'!$D$8,IF(J67=8,'[1]Equivalencia BH-BMPT'!$D$9,IF(J67=9,'[1]Equivalencia BH-BMPT'!$D$10,IF(J67=10,'[1]Equivalencia BH-BMPT'!$D$11,IF(J67=11,'[1]Equivalencia BH-BMPT'!$D$12,IF(J67=12,'[1]Equivalencia BH-BMPT'!$D$13,IF(J67=13,'[1]Equivalencia BH-BMPT'!$D$14,IF(J67=14,'[1]Equivalencia BH-BMPT'!$D$15,IF(J67=15,'[1]Equivalencia BH-BMPT'!$D$16,IF(J67=16,'[1]Equivalencia BH-BMPT'!$D$17,IF(J67=17,'[1]Equivalencia BH-BMPT'!$D$18,IF(J67=18,'[1]Equivalencia BH-BMPT'!$D$19,IF(J67=19,'[1]Equivalencia BH-BMPT'!$D$20,IF(J67=20,'[1]Equivalencia BH-BMPT'!$D$21,IF(J67=21,'[1]Equivalencia BH-BMPT'!$D$22,IF(J67=22,'[1]Equivalencia BH-BMPT'!$D$23,IF(J67=23,'[1]Equivalencia BH-BMPT'!#REF!,IF(J67=24,'[1]Equivalencia BH-BMPT'!$D$25,IF(J67=25,'[1]Equivalencia BH-BMPT'!$D$26,IF(J67=26,'[1]Equivalencia BH-BMPT'!$D$27,IF(J67=27,'[1]Equivalencia BH-BMPT'!$D$28,IF(J67=28,'[1]Equivalencia BH-BMPT'!$D$29,IF(J67=29,'[1]Equivalencia BH-BMPT'!$D$30,IF(J67=30,'[1]Equivalencia BH-BMPT'!$D$31,IF(J67=31,'[1]Equivalencia BH-BMPT'!$D$32,IF(J67=32,'[1]Equivalencia BH-BMPT'!$D$33,IF(J67=33,'[1]Equivalencia BH-BMPT'!$D$34,IF(J67=34,'[1]Equivalencia BH-BMPT'!$D$35,IF(J67=35,'[1]Equivalencia BH-BMPT'!$D$36,IF(J67=36,'[1]Equivalencia BH-BMPT'!$D$37,IF(J67=37,'[1]Equivalencia BH-BMPT'!$D$38,IF(J67=38,'[1]Equivalencia BH-BMPT'!#REF!,IF(J67=39,'[1]Equivalencia BH-BMPT'!$D$40,IF(J67=40,'[1]Equivalencia BH-BMPT'!$D$41,IF(J67=41,'[1]Equivalencia BH-BMPT'!$D$42,IF(J67=42,'[1]Equivalencia BH-BMPT'!$D$43,IF(J67=43,'[1]Equivalencia BH-BMPT'!$D$44,IF(J67=44,'[1]Equivalencia BH-BMPT'!$D$45,IF(J67=45,'[1]Equivalencia BH-BMPT'!$D$46,"No ha seleccionado un número de programa"))))))))))))))))))))))))))))))))))))))))))))) -> No ha seleccionado un número de programa | M67: 830080796 | N67: SERTCO S&S LTDA | O67: 19008000 | S67: 0 | T67: 19008000 | U67: 18131450 | V67: 2017-03-23 | W67: 2017-04-11 | X67: 2018-03-10 | Y67: 330 | Z67: 0 | AC67: X | AF67: 0.9538852062
A68: 50 | B68: 2017 | C68: CPS 050 2017 | D68: 5 | E68: =IF(D68=1,'[1]Tipo '!$B$2,IF(D68=2,'[1]Tipo '!$B$3,IF(D68=3,'[1]Tipo '!$B$4,IF(D68=4,'[1]Tipo '!$B$5,IF(D68=5,'[1]Tipo '!$B$6,IF(D68=6,'[1]Tipo '!$B$7,IF(D68=7,'[1]Tipo '!$B$8,IF(D68=8,'[1]Tipo '!$B$9,IF(D68=9,'[1]Tipo '!$B$10,IF(D68=10,'[1]Tipo '!$B$11,IF(D68=11,'[1]Tipo '!$B$12,IF(D68=12,'[1]Tipo '!$B$13,IF(D68=13,'[1]Tipo '!$B$14,IF(D68=14,'[1]Tipo '!$B$15,IF(D68=15,'[1]Tipo '!$B$16,IF(D68=16,'[1]Tipo '!$B$17,IF(D68=17,'[1]Tipo '!$B$18,IF(D68=18,'[1]Tipo '!$B$19,IF(D68=19,'[1]Tipo '!$B$20,"No ha seleccionado un tipo de contrato válido"))))))))))))))))))) -> CONTRATOS DE PRESTACIÓN DE SERVICIOS PROFESIONALES Y DE APOYO A LA GESTIÓN | F68: CONTRATACIÓN DIRECTA | G68: Prestación de servicios profesionales y de apoyo a la gestión, o para la ejecución de trabajos artísticos que sólo puedan encomendarse a determinadas personas naturales; | H68: El contrato que se pretende celebrar, tendrá por objeto ¿Prestación de servicios profesionales al Área de Gestión Policiva a través de visitas a terreno y emisión de conceptos técnicos, para verificar el cumplimiento de la normatividad relativa a establecimientos de comercio y espacio público y obras y urbanismo | I68: INVERSIÓN | J68: 45 | K68: =IF(J68=1,'[1]Equivalencia BH-BMPT'!$D$2,IF(J68=2,'[1]Equivalencia BH-BMPT'!$D$3,IF(J68=3,'[1]Equivalencia BH-BMPT'!$D$4,IF(J68=4,'[1]Equivalencia BH-BMPT'!$D$5,IF(J68=5,'[1]Equivalencia BH-BMPT'!$D$6,IF(J68=6,'[1]Equivalencia BH-BMPT'!$D$7,IF(J68=7,'[1]Equivalencia BH-BMPT'!$D$8,IF(J68=8,'[1]Equivalencia BH-BMPT'!$D$9,IF(J68=9,'[1]Equivalencia BH-BMPT'!$D$10,IF(J68=10,'[1]Equivalencia BH-BMPT'!$D$11,IF(J68=11,'[1]Equivalencia BH-BMPT'!$D$12,IF(J68=12,'[1]Equivalencia BH-BMPT'!$D$13,IF(J68=13,'[1]Equivalencia BH-BMPT'!$D$14,IF(J68=14,'[1]Equivalencia BH-BMPT'!$D$15,IF(J68=15,'[1]Equivalencia BH-BMPT'!$D$16,IF(J68=16,'[1]Equivalencia BH-BMPT'!$D$17,IF(J68=17,'[1]Equivalencia BH-BMPT'!$D$18,IF(J68=18,'[1]Equivalencia BH-BMPT'!$D$19,IF(J68=19,'[1]Equivalencia BH-BMPT'!$D$20,IF(J68=20,'[1]Equivalencia BH-BMPT'!$D$21,IF(J68=21,'[1]Equivalencia BH-BMPT'!$D$22,IF(J68=22,'[1]Equivalencia BH-BMPT'!$D$23,IF(J68=23,'[1]Equivalencia BH-BMPT'!#REF!,IF(J68=24,'[1]Equivalencia BH-BMPT'!$D$25,IF(J68=25,'[1]Equivalencia BH-BMPT'!$D$26,IF(J68=26,'[1]Equivalencia BH-BMPT'!$D$27,IF(J68=27,'[1]Equivalencia BH-BMPT'!$D$28,IF(J68=28,'[1]Equivalencia BH-BMPT'!$D$29,IF(J68=29,'[1]Equivalencia BH-BMPT'!$D$30,IF(J68=30,'[1]Equivalencia BH-BMPT'!$D$31,IF(J68=31,'[1]Equivalencia BH-BMPT'!$D$32,IF(J68=32,'[1]Equivalencia BH-BMPT'!$D$33,IF(J68=33,'[1]Equivalencia BH-BMPT'!$D$34,IF(J68=34,'[1]Equivalencia BH-BMPT'!$D$35,IF(J68=35,'[1]Equivalencia BH-BMPT'!$D$36,IF(J68=36,'[1]Equivalencia BH-BMPT'!$D$37,IF(J68=37,'[1]Equivalencia BH-BMPT'!$D$38,IF(J68=38,'[1]Equivalencia BH-BMPT'!#REF!,IF(J68=39,'[1]Equivalencia BH-BMPT'!$D$40,IF(J68=40,'[1]Equivalencia BH-BMPT'!$D$41,IF(J68=41,'[1]Equivalencia BH-BMPT'!$D$42,IF(J68=42,'[1]Equivalencia BH-BMPT'!$D$43,IF(J68=43,'[1]Equivalencia BH-BMPT'!$D$44,IF(J68=44,'[1]Equivalencia BH-BMPT'!$D$45,IF(J68=45,'[1]Equivalencia BH-BMPT'!$D$46,"No ha seleccionado un número de programa"))))))))))))))))))))))))))))))))))))))))))))) -> Gobernanza e influencia local, regional e internacional | L68: 1329 | M68: 19427171 | N68: JOSE GABRIEL MOLINA LAGOS | O68: 22500000 | S68: 0 | T68: 22500000 | U68: 0 | V68: 2017-04-11 | W68: 2017-04-18 | X68: 2017-10-18 | Y68: 150 | Z68: 0 | AD68: X | AF68: 0
A69: 51 | B69: 2017 | C69: CPS 051 17 | D69: 5 | E69: =IF(D69=1,'[1]Tipo '!$B$2,IF(D69=2,'[1]Tipo '!$B$3,IF(D69=3,'[1]Tipo '!$B$4,IF(D69=4,'[1]Tipo '!$B$5,IF(D69=5,'[1]Tipo '!$B$6,IF(D69=6,'[1]Tipo '!$B$7,IF(D69=7,'[1]Tipo '!$B$8,IF(D69=8,'[1]Tipo '!$B$9,IF(D69=9,'[1]Tipo '!$B$10,IF(D69=10,'[1]Tipo '!$B$11,IF(D69=11,'[1]Tipo '!$B$12,IF(D69=12,'[1]Tipo '!$B$13,IF(D69=13,'[1]Tipo '!$B$14,IF(D69=14,'[1]Tipo '!$B$15,IF(D69=15,'[1]Tipo '!$B$16,IF(D69=16,'[1]Tipo '!$B$17,IF(D69=17,'[1]Tipo '!$B$18,IF(D69=18,'[1]Tipo '!$B$19,IF(D69=19,'[1]Tipo '!$B$20,"No ha seleccionado un tipo de contrato válido"))))))))))))))))))) -> CONTRATOS DE PRESTACIÓN DE SERVICIOS PROFESIONALES Y DE APOYO A LA GESTIÓN | F69: CONTRATACIÓN DIRECTA | G69: Prestación de servicios profesionales y de apoyo a la gestión, o para la ejecución de trabajos artísticos que sólo puedan encomendarse a determinadas personas naturales; | H69: El contrato que se pretende celebrar, tendrá por objeto ¿Prestación de servicios profesionales al Área de Gestión Policiva para la descongestión e impulso procesal a las actuaciones administrativas y preliminares correspondientes al régimen de obras y urbanismo, establecimientos de comercio y espacio público, así como recepcionar diligencias de expresión de opiniones correspondientes al tema urbanístico, establecimientos comerciales y espacio público.¿. | I69: INVERSIÓN | J69: 45 | K69: =IF(J69=1,'[1]Equivalencia BH-BMPT'!$D$2,IF(J69=2,'[1]Equivalencia BH-BMPT'!$D$3,IF(J69=3,'[1]Equivalencia BH-BMPT'!$D$4,IF(J69=4,'[1]Equivalencia BH-BMPT'!$D$5,IF(J69=5,'[1]Equivalencia BH-BMPT'!$D$6,IF(J69=6,'[1]Equivalencia BH-BMPT'!$D$7,IF(J69=7,'[1]Equivalencia BH-BMPT'!$D$8,IF(J69=8,'[1]Equivalencia BH-BMPT'!$D$9,IF(J69=9,'[1]Equivalencia BH-BMPT'!$D$10,IF(J69=10,'[1]Equivalencia BH-BMPT'!$D$11,IF(J69=11,'[1]Equivalencia BH-BMPT'!$D$12,IF(J69=12,'[1]Equivalencia BH-BMPT'!$D$13,IF(J69=13,'[1]Equivalencia BH-BMPT'!$D$14,IF(J69=14,'[1]Equivalencia BH-BMPT'!$D$15,IF(J69=15,'[1]Equivalencia BH-BMPT'!$D$16,IF(J69=16,'[1]Equivalencia BH-BMPT'!$D$17,IF(J69=17,'[1]Equivalencia BH-BMPT'!$D$18,IF(J69=18,'[1]Equivalencia BH-BMPT'!$D$19,IF(J69=19,'[1]Equivalencia BH-BMPT'!$D$20,IF(J69=20,'[1]Equivalencia BH-BMPT'!$D$21,IF(J69=21,'[1]Equivalencia BH-BMPT'!$D$22,IF(J69=22,'[1]Equivalencia BH-BMPT'!$D$23,IF(J69=23,'[1]Equivalencia BH-BMPT'!#REF!,IF(J69=24,'[1]Equivalencia BH-BMPT'!$D$25,IF(J69=25,'[1]Equivalencia BH-BMPT'!$D$26,IF(J69=26,'[1]Equivalencia BH-BMPT'!$D$27,IF(J69=27,'[1]Equivalencia BH-BMPT'!$D$28,IF(J69=28,'[1]Equivalencia BH-BMPT'!$D$29,IF(J69=29,'[1]Equivalencia BH-BMPT'!$D$30,IF(J69=30,'[1]Equivalencia BH-BMPT'!$D$31,IF(J69=31,'[1]Equivalencia BH-BMPT'!$D$32,IF(J69=32,'[1]Equivalencia BH-BMPT'!$D$33,IF(J69=33,'[1]Equivalencia BH-BMPT'!$D$34,IF(J69=34,'[1]Equivalencia BH-BMPT'!$D$35,IF(J69=35,'[1]Equivalencia BH-BMPT'!$D$36,IF(J69=36,'[1]Equivalencia BH-BMPT'!$D$37,IF(J69=37,'[1]Equivalencia BH-BMPT'!$D$38,IF(J69=38,'[1]Equivalencia BH-BMPT'!#REF!,IF(J69=39,'[1]Equivalencia BH-BMPT'!$D$40,IF(J69=40,'[1]Equivalencia BH-BMPT'!$D$41,IF(J69=41,'[1]Equivalencia BH-BMPT'!$D$42,IF(J69=42,'[1]Equivalencia BH-BMPT'!$D$43,IF(J69=43,'[1]Equivalencia BH-BMPT'!$D$44,IF(J69=44,'[1]Equivalencia BH-BMPT'!$D$45,IF(J69=45,'[1]Equivalencia BH-BMPT'!$D$46,"No ha seleccionado un número de programa"))))))))))))))))))))))))))))))))))))))))))))) -> Gobernanza e influencia local, regional e internacional | L69: 1329 | M69: 1019026678 | N69: ANA MARIA MAZO LOPEZ | O69: 38850000 | S69: 0 | T69: 38850000 | U69: 34800000 | V69: 2017-04-11 | W69: 2017-04-17 | X69: 2018-01-04 | Y69: 259 | Z69: 0 | AC69: X | AF69: 0.8957528958
A70: 52 | B70: 2017 | C70: SAMC 002 2017 | D70: 4 | E70: =IF(D70=1,'[1]Tipo '!$B$2,IF(D70=2,'[1]Tipo '!$B$3,IF(D70=3,'[1]Tipo '!$B$4,IF(D70=4,'[1]Tipo '!$B$5,IF(D70=5,'[1]Tipo '!$B$6,IF(D70=6,'[1]Tipo '!$B$7,IF(D70=7,'[1]Tipo '!$B$8,IF(D70=8,'[1]Tipo '!$B$9,IF(D70=9,'[1]Tipo '!$B$10,IF(D70=10,'[1]Tipo '!$B$11,IF(D70=11,'[1]Tipo '!$B$12,IF(D70=12,'[1]Tipo '!$B$13,IF(D70=13,'[1]Tipo '!$B$14,IF(D70=14,'[1]Tipo '!$B$15,IF(D70=15,'[1]Tipo '!$B$16,IF(D70=16,'[1]Tipo '!$B$17,IF(D70=17,'[1]Tipo '!$B$18,IF(D70=18,'[1]Tipo '!$B$19,IF(D70=19,'[1]Tipo '!$B$20,"No ha seleccionado un tipo de contrato válido"))))))))))))))))))) -> CONTRATOS DE PRESTACIÓN DE SERVICIOS | F70: Selección abreviada | G70: Selección abreviada por menor cuantía | H70: El contrato que se pretende celebrar, tendrá por objeto ¿PRESTAR EL SERVICIO INTEGRAL DE ASEO, CAFETERÍA Y MANTENIMIENTO DE LAS INSTALACIONES FISICAS, CON PERSONAL, EQUIPOS, INSUMOS, MATERIALES Y HERRAMIENTAS NECESARIAS PARA LA PRESTACIÓN DEL SERVICIO REQUERIDO, EN LAS INSTALACIONES DONDE FUNCIONEN LAS DEPENDENCIAS DE LA ALCALDÍA LOCAL DE TEUSAQUILLO, INCLUIDA LA JAL DE TEUSAQUILLO, DE ACUERDO A LOS ESTUDIOS PREVIOS, PLIEGO DE CONDICIONES Y ANEXOS TECNICOS ¿. | I70: FUNCIONAMIENTO | K70: =IF(J70=1,'[1]Equivalencia BH-BMPT'!$D$2,IF(J70=2,'[1]Equivalencia BH-BMPT'!$D$3,IF(J70=3,'[1]Equivalencia BH-BMPT'!$D$4,IF(J70=4,'[1]Equivalencia BH-BMPT'!$D$5,IF(J70=5,'[1]Equivalencia BH-BMPT'!$D$6,IF(J70=6,'[1]Equivalencia BH-BMPT'!$D$7,IF(J70=7,'[1]Equivalencia BH-BMPT'!$D$8,IF(J70=8,'[1]Equivalencia BH-BMPT'!$D$9,IF(J70=9,'[1]Equivalencia BH-BMPT'!$D$10,IF(J70=10,'[1]Equivalencia BH-BMPT'!$D$11,IF(J70=11,'[1]Equivalencia BH-BMPT'!$D$12,IF(J70=12,'[1]Equivalencia BH-BMPT'!$D$13,IF(J70=13,'[1]Equivalencia BH-BMPT'!$D$14,IF(J70=14,'[1]Equivalencia BH-BMPT'!$D$15,IF(J70=15,'[1]Equivalencia BH-BMPT'!$D$16,IF(J70=16,'[1]Equivalencia BH-BMPT'!$D$17,IF(J70=17,'[1]Equivalencia BH-BMPT'!$D$18,IF(J70=18,'[1]Equivalencia BH-BMPT'!$D$19,IF(J70=19,'[1]Equivalencia BH-BMPT'!$D$20,IF(J70=20,'[1]Equivalencia BH-BMPT'!$D$21,IF(J70=21,'[1]Equivalencia BH-BMPT'!$D$22,IF(J70=22,'[1]Equivalencia BH-BMPT'!$D$23,IF(J70=23,'[1]Equivalencia BH-BMPT'!#REF!,IF(J70=24,'[1]Equivalencia BH-BMPT'!$D$25,IF(J70=25,'[1]Equivalencia BH-BMPT'!$D$26,IF(J70=26,'[1]Equivalencia BH-BMPT'!$D$27,IF(J70=27,'[1]Equivalencia BH-BMPT'!$D$28,IF(J70=28,'[1]Equivalencia BH-BMPT'!$D$29,IF(J70=29,'[1]Equivalencia BH-BMPT'!$D$30,IF(J70=30,'[1]Equivalencia BH-BMPT'!$D$31,IF(J70=31,'[1]Equivalencia BH-BMPT'!$D$32,IF(J70=32,'[1]Equivalencia BH-BMPT'!$D$33,IF(J70=33,'[1]Equivalencia BH-BMPT'!$D$34,IF(J70=34,'[1]Equivalencia BH-BMPT'!$D$35,IF(J70=35,'[1]Equivalencia BH-BMPT'!$D$36,IF(J70=36,'[1]Equivalencia BH-BMPT'!$D$37,IF(J70=37,'[1]Equivalencia BH-BMPT'!$D$38,IF(J70=38,'[1]Equivalencia BH-BMPT'!#REF!,IF(J70=39,'[1]Equivalencia BH-BMPT'!$D$40,IF(J70=40,'[1]Equivalencia BH-BMPT'!$D$41,IF(J70=41,'[1]Equivalencia BH-BMPT'!$D$42,IF(J70=42,'[1]Equivalencia BH-BMPT'!$D$43,IF(J70=43,'[1]Equivalencia BH-BMPT'!$D$44,IF(J70=44,'[1]Equivalencia BH-BMPT'!$D$45,IF(J70=45,'[1]Equivalencia BH-BMPT'!$D$46,"No ha seleccionado un número de programa"))))))))))))))))))))))))))))))))))))))))))))) -> No ha seleccionado un número de programa | M70: 900183528 | N70: ARIOS COLOMBIA SAS | O70: 27000000 | S70: 0 | T70: 27000000 | U70: 1890431 | V70: 2017-05-02 | W70: 2017-05-02 | X70: 2018-03-03 | Y70: 300 | Z70: 0 | AC70: X | AF70: 0.07001596296
A71: 52 | B71: 2017 | C71: SAMC 002 2017 | D71: 4 | E71: =IF(D71=1,'[1]Tipo '!$B$2,IF(D71=2,'[1]Tipo '!$B$3,IF(D71=3,'[1]Tipo '!$B$4,IF(D71=4,'[1]Tipo '!$B$5,IF(D71=5,'[1]Tipo '!$B$6,IF(D71=6,'[1]Tipo '!$B$7,IF(D71=7,'[1]Tipo '!$B$8,IF(D71=8,'[1]Tipo '!$B$9,IF(D71=9,'[1]Tipo '!$B$10,IF(D71=10,'[1]Tipo '!$B$11,IF(D71=11,'[1]Tipo '!$B$12,IF(D71=12,'[1]Tipo '!$B$13,IF(D71=13,'[1]Tipo '!$B$14,IF(D71=14,'[1]Tipo '!$B$15,IF(D71=15,'[1]Tipo '!$B$16,IF(D71=16,'[1]Tipo '!$B$17,IF(D71=17,'[1]Tipo '!$B$18,IF(D71=18,'[1]Tipo '!$B$19,IF(D71=19,'[1]Tipo '!$B$20,"No ha seleccionado un tipo de contrato válido"))))))))))))))))))) -> CONTRATOS DE PRESTACIÓN DE SERVICIOS | F71: Selección abreviada | G71: Selección abreviada por menor cuantía | H71: El contrato que se pretende celebrar, tendrá por objeto ¿PRESTAR EL SERVICIO INTEGRAL DE ASEO, CAFETERÍA Y MANTENIMIENTO DE LAS INSTALACIONES FISICAS, CON PERSONAL, EQUIPOS, INSUMOS, MATERIALES Y HERRAMIENTAS NECESARIAS PARA LA PRESTACIÓN DEL SERVICIO REQUERIDO, EN LAS INSTALACIONES DONDE FUNCIONEN LAS DEPENDENCIAS DE LA ALCALDÍA LOCAL DE TEUSAQUILLO, INCLUIDA LA JAL DE TEUSAQUILLO, DE ACUERDO A LOS ESTUDIOS PREVIOS, PLIEGO DE CONDICIONES Y ANEXOS TECNICOS ¿. | I71: FUNCIONAMIENTO | K71: =IF(J71=1,'[1]Equivalencia BH-BMPT'!$D$2,IF(J71=2,'[1]Equivalencia BH-BMPT'!$D$3,IF(J71=3,'[1]Equivalencia BH-BMPT'!$D$4,IF(J71=4,'[1]Equivalencia BH-BMPT'!$D$5,IF(J71=5,'[1]Equivalencia BH-BMPT'!$D$6,IF(J71=6,'[1]Equivalencia BH-BMPT'!$D$7,IF(J71=7,'[1]Equivalencia BH-BMPT'!$D$8,IF(J71=8,'[1]Equivalencia BH-BMPT'!$D$9,IF(J71=9,'[1]Equivalencia BH-BMPT'!$D$10,IF(J71=10,'[1]Equivalencia BH-BMPT'!$D$11,IF(J71=11,'[1]Equivalencia BH-BMPT'!$D$12,IF(J71=12,'[1]Equivalencia BH-BMPT'!$D$13,IF(J71=13,'[1]Equivalencia BH-BMPT'!$D$14,IF(J71=14,'[1]Equivalencia BH-BMPT'!$D$15,IF(J71=15,'[1]Equivalencia BH-BMPT'!$D$16,IF(J71=16,'[1]Equivalencia BH-BMPT'!$D$17,IF(J71=17,'[1]Equivalencia BH-BMPT'!$D$18,IF(J71=18,'[1]Equivalencia BH-BMPT'!$D$19,IF(J71=19,'[1]Equivalencia BH-BMPT'!$D$20,IF(J71=20,'[1]Equivalencia BH-BMPT'!$D$21,IF(J71=21,'[1]Equivalencia BH-BMPT'!$D$22,IF(J71=22,'[1]Equivalencia BH-BMPT'!$D$23,IF(J71=23,'[1]Equivalencia BH-BMPT'!#REF!,IF(J71=24,'[1]Equivalencia BH-BMPT'!$D$25,IF(J71=25,'[1]Equivalencia BH-BMPT'!$D$26,IF(J71=26,'[1]Equivalencia BH-BMPT'!$D$27,IF(J71=27,'[1]Equivalencia BH-BMPT'!$D$28,IF(J71=28,'[1]Equivalencia BH-BMPT'!$D$29,IF(J71=29,'[1]Equivalencia BH-BMPT'!$D$30,IF(J71=30,'[1]Equivalencia BH-BMPT'!$D$31,IF(J71=31,'[1]Equivalencia BH-BMPT'!$D$32,IF(J71=32,'[1]Equivalencia BH-BMPT'!$D$33,IF(J71=33,'[1]Equivalencia BH-BMPT'!$D$34,IF(J71=34,'[1]Equivalencia BH-BMPT'!$D$35,IF(J71=35,'[1]Equivalencia BH-BMPT'!$D$36,IF(J71=36,'[1]Equivalencia BH-BMPT'!$D$37,IF(J71=37,'[1]Equivalencia BH-BMPT'!$D$38,IF(J71=38,'[1]Equivalencia BH-BMPT'!#REF!,IF(J71=39,'[1]Equivalencia BH-BMPT'!$D$40,IF(J71=40,'[1]Equivalencia BH-BMPT'!$D$41,IF(J71=41,'[1]Equivalencia BH-BMPT'!$D$42,IF(J71=42,'[1]Equivalencia BH-BMPT'!$D$43,IF(J71=43,'[1]Equivalencia BH-BMPT'!$D$44,IF(J71=44,'[1]Equivalencia BH-BMPT'!$D$45,IF(J71=45,'[1]Equivalencia BH-BMPT'!$D$46,"No ha seleccionado un número de programa"))))))))))))))))))))))))))))))))))))))))))))) -> No ha seleccionado un número de programa | M71: 900183528 | N71: ARIOS COLOMBIA SAS | O71: 93500000 | S71: 0 | T71: 93500000 | U71: 51615653 | V71: 2017-05-02 | W71: 2017-05-02 | X71: 2018-03-03 | Y71: 300 | Z71: 0 | AC71: X | AF71: 0.5520390695
A72: 53 | B72: 2017 | C72: FDLT-SASI-003-2017 | D72: 9 | E72: =IF(D72=1,'[1]Tipo '!$B$2,IF(D72=2,'[1]Tipo '!$B$3,IF(D72=3,'[1]Tipo '!$B$4,IF(D72=4,'[1]Tipo '!$B$5,IF(D72=5,'[1]Tipo '!$B$6,IF(D72=6,'[1]Tipo '!$B$7,IF(D72=7,'[1]Tipo '!$B$8,IF(D72=8,'[1]Tipo '!$B$9,IF(D72=9,'[1]Tipo '!$B$10,IF(D72=10,'[1]Tipo '!$B$11,IF(D72=11,'[1]Tipo '!$B$12,IF(D72=12,'[1]Tipo '!$B$13,IF(D72=13,'[1]Tipo '!$B$14,IF(D72=14,'[1]Tipo '!$B$15,IF(D72=15,'[1]Tipo '!$B$16,IF(D72=16,'[1]Tipo '!$B$17,IF(D72=17,'[1]Tipo '!$B$18,IF(D72=18,'[1]Tipo '!$B$19,IF(D72=19,'[1]Tipo '!$B$20,"No ha seleccionado un tipo de contrato válido"))))))))))))))))))) -> ARRENDAMIENTO DE BIENES INMUEBLES | F72: CONTRATACIÓN DIRECTA | G72: El arrendamiento o adquisición de inmuebles | H72: OBJETO: El contrato que se pretende celebrar, tendrá por objeto: ¿Entregar a EL FONDO DE DESARROLLO LOCAL DE TEUSAQUILLO a título de arrendamiento, el uso y goce de un inmueble identificado con la nomenclatura Calle 37 No.19-36, para el funcionamiento del depósito y oficina del almacén de la Alcaldía Local, además de contar con los espacios adecuados para la realización de las actividades propias de los diferentes espacios de participación ciudadana¿. | I72: FUNCIONAMIENTO | K72: =IF(J72=1,'[1]Equivalencia BH-BMPT'!$D$2,IF(J72=2,'[1]Equivalencia BH-BMPT'!$D$3,IF(J72=3,'[1]Equivalencia BH-BMPT'!$D$4,IF(J72=4,'[1]Equivalencia BH-BMPT'!$D$5,IF(J72=5,'[1]Equivalencia BH-BMPT'!$D$6,IF(J72=6,'[1]Equivalencia BH-BMPT'!$D$7,IF(J72=7,'[1]Equivalencia BH-BMPT'!$D$8,IF(J72=8,'[1]Equivalencia BH-BMPT'!$D$9,IF(J72=9,'[1]Equivalencia BH-BMPT'!$D$10,IF(J72=10,'[1]Equivalencia BH-BMPT'!$D$11,IF(J72=11,'[1]Equivalencia BH-BMPT'!$D$12,IF(J72=12,'[1]Equivalencia BH-BMPT'!$D$13,IF(J72=13,'[1]Equivalencia BH-BMPT'!$D$14,IF(J72=14,'[1]Equivalencia BH-BMPT'!$D$15,IF(J72=15,'[1]Equivalencia BH-BMPT'!$D$16,IF(J72=16,'[1]Equivalencia BH-BMPT'!$D$17,IF(J72=17,'[1]Equivalencia BH-BMPT'!$D$18,IF(J72=18,'[1]Equivalencia BH-BMPT'!$D$19,IF(J72=19,'[1]Equivalencia BH-BMPT'!$D$20,IF(J72=20,'[1]Equivalencia BH-BMPT'!$D$21,IF(J72=21,'[1]Equivalencia BH-BMPT'!$D$22,IF(J72=22,'[1]Equivalencia BH-BMPT'!$D$23,IF(J72=23,'[1]Equivalencia BH-BMPT'!#REF!,IF(J72=24,'[1]Equivalencia BH-BMPT'!$D$25,IF(J72=25,'[1]Equivalencia BH-BMPT'!$D$26,IF(J72=26,'[1]Equivalencia BH-BMPT'!$D$27,IF(J72=27,'[1]Equivalencia BH-BMPT'!$D$28,IF(J72=28,'[1]Equivalencia BH-BMPT'!$D$29,IF(J72=29,'[1]Equivalencia BH-BMPT'!$D$30,IF(J72=30,'[1]Equivalencia BH-BMPT'!$D$31,IF(J72=31,'[1]Equivalencia BH-BMPT'!$D$32,IF(J72=32,'[1]Equivalencia BH-BMPT'!$D$33,IF(J72=33,'[1]Equivalencia BH-BMPT'!$D$34,IF(J72=34,'[1]Equivalencia BH-BMPT'!$D$35,IF(J72=35,'[1]Equivalencia BH-BMPT'!$D$36,IF(J72=36,'[1]Equivalencia BH-BMPT'!$D$37,IF(J72=37,'[1]Equivalencia BH-BMPT'!$D$38,IF(J72=38,'[1]Equivalencia BH-BMPT'!#REF!,IF(J72=39,'[1]Equivalencia BH-BMPT'!$D$40,IF(J72=40,'[1]Equivalencia BH-BMPT'!$D$41,IF(J72=41,'[1]Equivalencia BH-BMPT'!$D$42,IF(J72=42,'[1]Equivalencia BH-BMPT'!$D$43,IF(J72=43,'[1]Equivalencia BH-BMPT'!$D$44,IF(J72=44,'[1]Equivalencia BH-BMPT'!$D$45,IF(J72=45,'[1]Equivalencia BH-BMPT'!$D$46,"No ha seleccionado un número de programa"))))))))))))))))))))))))))))))))))))))))))))) -> No ha seleccionado un número de programa | M72: 41565172 | N72: CECILIA CABEZA SANTACRUZ | O72: 61180000 | S72: 4370000 | T72: 65550000 | U72: 61180000 | V72: 2017-06-02 | W72: 2017-06-04 | X72: 2018-01-18 | Y72: 210 | Z72: 15 | AC72: X | AF72: 0.9333333333
A73: 54 | B73: 2017 | C73: CPS 054 2017 | D73: 5 | E73: =IF(D73=1,'[1]Tipo '!$B$2,IF(D73=2,'[1]Tipo '!$B$3,IF(D73=3,'[1]Tipo '!$B$4,IF(D73=4,'[1]Tipo '!$B$5,IF(D73=5,'[1]Tipo '!$B$6,IF(D73=6,'[1]Tipo '!$B$7,IF(D73=7,'[1]Tipo '!$B$8,IF(D73=8,'[1]Tipo '!$B$9,IF(D73=9,'[1]Tipo '!$B$10,IF(D73=10,'[1]Tipo '!$B$11,IF(D73=11,'[1]Tipo '!$B$12,IF(D73=12,'[1]Tipo '!$B$13,IF(D73=13,'[1]Tipo '!$B$14,IF(D73=14,'[1]Tipo '!$B$15,IF(D73=15,'[1]Tipo '!$B$16,IF(D73=16,'[1]Tipo '!$B$17,IF(D73=17,'[1]Tipo '!$B$18,IF(D73=18,'[1]Tipo '!$B$19,IF(D73=19,'[1]Tipo '!$B$20,"No ha seleccionado un tipo de contrato válido"))))))))))))))))))) -> CONTRATOS DE PRESTACIÓN DE SERVICIOS PROFESIONALES Y DE APOYO A LA GESTIÓN | F73: CONTRATACIÓN DIRECTA | G73: Prestación de servicios profesionales y de apoyo a la gestión, o para la ejecución de trabajos artísticos que sólo puedan encomendarse a determinadas personas naturales; | H73: ¿El contratista se obliga para con el Fondo de Desarrollo Local de Teusaquillo a prestar sus servicios profesionales para realizar todas las actividades inherentes a la formulación y el seguimiento de todos los proyectos y contratos de parques recreo deportivos dentro del proyecto 1348 Teusaquillo con Mejores Parques Recreativos y Deportivos¿. | I73: INVERSIÓN | J73: 17 | K73: =IF(J73=1,'[1]Equivalencia BH-BMPT'!$D$2,IF(J73=2,'[1]Equivalencia BH-BMPT'!$D$3,IF(J73=3,'[1]Equivalencia BH-BMPT'!$D$4,IF(J73=4,'[1]Equivalencia BH-BMPT'!$D$5,IF(J73=5,'[1]Equivalencia BH-BMPT'!$D$6,IF(J73=6,'[1]Equivalencia BH-BMPT'!$D$7,IF(J73=7,'[1]Equivalencia BH-BMPT'!$D$8,IF(J73=8,'[1]Equivalencia BH-BMPT'!$D$9,IF(J73=9,'[1]Equivalencia BH-BMPT'!$D$10,IF(J73=10,'[1]Equivalencia BH-BMPT'!$D$11,IF(J73=11,'[1]Equivalencia BH-BMPT'!$D$12,IF(J73=12,'[1]Equivalencia BH-BMPT'!$D$13,IF(J73=13,'[1]Equivalencia BH-BMPT'!$D$14,IF(J73=14,'[1]Equivalencia BH-BMPT'!$D$15,IF(J73=15,'[1]Equivalencia BH-BMPT'!$D$16,IF(J73=16,'[1]Equivalencia BH-BMPT'!$D$17,IF(J73=17,'[1]Equivalencia BH-BMPT'!$D$18,IF(J73=18,'[1]Equivalencia BH-BMPT'!$D$19,IF(J73=19,'[1]Equivalencia BH-BMPT'!$D$20,IF(J73=20,'[1]Equivalencia BH-BMPT'!$D$21,IF(J73=21,'[1]Equivalencia BH-BMPT'!$D$22,IF(J73=22,'[1]Equivalencia BH-BMPT'!$D$23,IF(J73=23,'[1]Equivalencia BH-BMPT'!#REF!,IF(J73=24,'[1]Equivalencia BH-BMPT'!$D$25,IF(J73=25,'[1]Equivalencia BH-BMPT'!$D$26,IF(J73=26,'[1]Equivalencia BH-BMPT'!$D$27,IF(J73=27,'[1]Equivalencia BH-BMPT'!$D$28,IF(J73=28,'[1]Equivalencia BH-BMPT'!$D$29,IF(J73=29,'[1]Equivalencia BH-BMPT'!$D$30,IF(J73=30,'[1]Equivalencia BH-BMPT'!$D$31,IF(J73=31,'[1]Equivalencia BH-BMPT'!$D$32,IF(J73=32,'[1]Equivalencia BH-BMPT'!$D$33,IF(J73=33,'[1]Equivalencia BH-BMPT'!$D$34,IF(J73=34,'[1]Equivalencia BH-BMPT'!$D$35,IF(J73=35,'[1]Equivalencia BH-BMPT'!$D$36,IF(J73=36,'[1]Equivalencia BH-BMPT'!$D$37,IF(J73=37,'[1]Equivalencia BH-BMPT'!$D$38,IF(J73=38,'[1]Equivalencia BH-BMPT'!#REF!,IF(J73=39,'[1]Equivalencia BH-BMPT'!$D$40,IF(J73=40,'[1]Equivalencia BH-BMPT'!$D$41,IF(J73=41,'[1]Equivalencia BH-BMPT'!$D$42,IF(J73=42,'[1]Equivalencia BH-BMPT'!$D$43,IF(J73=43,'[1]Equivalencia BH-BMPT'!$D$44,IF(J73=44,'[1]Equivalencia BH-BMPT'!$D$45,IF(J73=45,'[1]Equivalencia BH-BMPT'!$D$46,"No ha seleccionado un número de programa"))))))))))))))))))))))))))))))))))))))))))))) -> Espacio público, derecho de todos | L73: 1348 | M73: 52530406 | N73: CATHERINNE HURTADO SANCHEZ | O73: 31500000 | S73: 0 | T73: 31500000 | U73: 16950000 | V73: 2017-06-01 | W73: 2017-06-01 | X73: 2018-03-21 | Y73: 210 | Z73: 0 | AC73: X | AF73: 0.5380952381
A74: 55 | B74: 2017 | D74: 9 | E74: =IF(D74=1,'[1]Tipo '!$B$2,IF(D74=2,'[1]Tipo '!$B$3,IF(D74=3,'[1]Tipo '!$B$4,IF(D74=4,'[1]Tipo '!$B$5,IF(D74=5,'[1]Tipo '!$B$6,IF(D74=6,'[1]Tipo '!$B$7,IF(D74=7,'[1]Tipo '!$B$8,IF(D74=8,'[1]Tipo '!$B$9,IF(D74=9,'[1]Tipo '!$B$10,IF(D74=10,'[1]Tipo '!$B$11,IF(D74=11,'[1]Tipo '!$B$12,IF(D74=12,'[1]Tipo '!$B$13,IF(D74=13,'[1]Tipo '!$B$14,IF(D74=14,'[1]Tipo '!$B$15,IF(D74=15,'[1]Tipo '!$B$16,IF(D74=16,'[1]Tipo '!$B$17,IF(D74=17,'[1]Tipo '!$B$18,IF(D74=18,'[1]Tipo '!$B$19,IF(D74=19,'[1]Tipo '!$B$20,"No ha seleccionado un tipo de contrato válido"))))))))))))))))))) -> ARRENDAMIENTO DE BIENES INMUEBLES | F74: CONTRATACIÓN DIRECTA | G74: El arrendamiento o adquisición de inmuebles | H74: ADICIÓN Y PRORROGA NO 1 CAR-055-2016. PRORROGAR EL PLAZO DE LA EJECUCION DEL CONTRATO DE ARRENDAMIENTO CAR-055-2016 POR EL TERMINO DE SEIS MESES APARTIR DEL ... | I74: FUNCIONAMIENTO | K74: =IF(J74=1,'[1]Equivalencia BH-BMPT'!$D$2,IF(J74=2,'[1]Equivalencia BH-BMPT'!$D$3,IF(J74=3,'[1]Equivalencia BH-BMPT'!$D$4,IF(J74=4,'[1]Equivalencia BH-BMPT'!$D$5,IF(J74=5,'[1]Equivalencia BH-BMPT'!$D$6,IF(J74=6,'[1]Equivalencia BH-BMPT'!$D$7,IF(J74=7,'[1]Equivalencia BH-BMPT'!$D$8,IF(J74=8,'[1]Equivalencia BH-BMPT'!$D$9,IF(J74=9,'[1]Equivalencia BH-BMPT'!$D$10,IF(J74=10,'[1]Equivalencia BH-BMPT'!$D$11,IF(J74=11,'[1]Equivalencia BH-BMPT'!$D$12,IF(J74=12,'[1]Equivalencia BH-BMPT'!$D$13,IF(J74=13,'[1]Equivalencia BH-BMPT'!$D$14,IF(J74=14,'[1]Equivalencia BH-BMPT'!$D$15,IF(J74=15,'[1]Equivalencia BH-BMPT'!$D$16,IF(J74=16,'[1]Equivalencia BH-BMPT'!$D$17,IF(J74=17,'[1]Equivalencia BH-BMPT'!$D$18,IF(J74=18,'[1]Equivalencia BH-BMPT'!$D$19,IF(J74=19,'[1]Equivalencia BH-BMPT'!$D$20,IF(J74=20,'[1]Equivalencia BH-BMPT'!$D$21,IF(J74=21,'[1]Equivalencia BH-BMPT'!$D$22,IF(J74=22,'[1]Equivalencia BH-BMPT'!$D$23,IF(J74=23,'[1]Equivalencia BH-BMPT'!#REF!,IF(J74=24,'[1]Equivalencia BH-BMPT'!$D$25,IF(J74=25,'[1]Equivalencia BH-BMPT'!$D$26,IF(J74=26,'[1]Equivalencia BH-BMPT'!$D$27,IF(J74=27,'[1]Equivalencia BH-BMPT'!$D$28,IF(J74=28,'[1]Equivalencia BH-BMPT'!$D$29,IF(J74=29,'[1]Equivalencia BH-BMPT'!$D$30,IF(J74=30,'[1]Equivalencia BH-BMPT'!$D$31,IF(J74=31,'[1]Equivalencia BH-BMPT'!$D$32,IF(J74=32,'[1]Equivalencia BH-BMPT'!$D$33,IF(J74=33,'[1]Equivalencia BH-BMPT'!$D$34,IF(J74=34,'[1]Equivalencia BH-BMPT'!$D$35,IF(J74=35,'[1]Equivalencia BH-BMPT'!$D$36,IF(J74=36,'[1]Equivalencia BH-BMPT'!$D$37,IF(J74=37,'[1]Equivalencia BH-BMPT'!$D$38,IF(J74=38,'[1]Equivalencia BH-BMPT'!#REF!,IF(J74=39,'[1]Equivalencia BH-BMPT'!$D$40,IF(J74=40,'[1]Equivalencia BH-BMPT'!$D$41,IF(J74=41,'[1]Equivalencia BH-BMPT'!$D$42,IF(J74=42,'[1]Equivalencia BH-BMPT'!$D$43,IF(J74=43,'[1]Equivalencia BH-BMPT'!$D$44,IF(J74=44,'[1]Equivalencia BH-BMPT'!$D$45,IF(J74=45,'[1]Equivalencia BH-BMPT'!$D$46,"No ha seleccionado un número de programa"))))))))))))))))))))))))))))))))))))))))))))) -> No ha seleccionado un número de programa | M74: 900521065 | N74: HOLDINGRIP SAS | S74: 87360000 | T74: 87360000 | U74: 72800000 | V74: 2016-06-26 | W74: 2016-06-27 | X74: 2018-01-26 | Y74: 360 | Z74: 180 | AC74: X | AF74: 0.8333333333
A75: 55 | B75: 2017 | C75: CPS 055 2017 | D75: 5 | E75: =IF(D75=1,'[1]Tipo '!$B$2,IF(D75=2,'[1]Tipo '!$B$3,IF(D75=3,'[1]Tipo '!$B$4,IF(D75=4,'[1]Tipo '!$B$5,IF(D75=5,'[1]Tipo '!$B$6,IF(D75=6,'[1]Tipo '!$B$7,IF(D75=7,'[1]Tipo '!$B$8,IF(D75=8,'[1]Tipo '!$B$9,IF(D75=9,'[1]Tipo '!$B$10,IF(D75=10,'[1]Tipo '!$B$11,IF(D75=11,'[1]Tipo '!$B$12,IF(D75=12,'[1]Tipo '!$B$13,IF(D75=13,'[1]Tipo '!$B$14,IF(D75=14,'[1]Tipo '!$B$15,IF(D75=15,'[1]Tipo '!$B$16,IF(D75=16,'[1]Tipo '!$B$17,IF(D75=17,'[1]Tipo '!$B$18,IF(D75=18,'[1]Tipo '!$B$19,IF(D75=19,'[1]Tipo '!$B$20,"No ha seleccionado un tipo de contrato válido"))))))))))))))))))) -> CONTRATOS DE PRESTACIÓN DE SERVICIOS PROFESIONALES Y DE APOYO A LA GESTIÓN | F75: CONTRATACIÓN DIRECTA | G75: Prestación de servicios profesionales y de apoyo a la gestión, o para la ejecución de trabajos artísticos que sólo puedan encomendarse a determinadas personas naturales; | H75: OBJETO: El contrato que se pretende celebrar, tendrá por objeto: ¿Prestación de servicios profesionales al Área de Gestión de Desarrollo Local para adelantar trámites precontractuales y contractuales en el marco de los proyectos previstos en el Plan de Desarrollo Local ¿Teusaquillo Mejor para Todos 2017-2020¿. . | I75: INVERSIÓN | J75: 45 | K75: =IF(J75=1,'[1]Equivalencia BH-BMPT'!$D$2,IF(J75=2,'[1]Equivalencia BH-BMPT'!$D$3,IF(J75=3,'[1]Equivalencia BH-BMPT'!$D$4,IF(J75=4,'[1]Equivalencia BH-BMPT'!$D$5,IF(J75=5,'[1]Equivalencia BH-BMPT'!$D$6,IF(J75=6,'[1]Equivalencia BH-BMPT'!$D$7,IF(J75=7,'[1]Equivalencia BH-BMPT'!$D$8,IF(J75=8,'[1]Equivalencia BH-BMPT'!$D$9,IF(J75=9,'[1]Equivalencia BH-BMPT'!$D$10,IF(J75=10,'[1]Equivalencia BH-BMPT'!$D$11,IF(J75=11,'[1]Equivalencia BH-BMPT'!$D$12,IF(J75=12,'[1]Equivalencia BH-BMPT'!$D$13,IF(J75=13,'[1]Equivalencia BH-BMPT'!$D$14,IF(J75=14,'[1]Equivalencia BH-BMPT'!$D$15,IF(J75=15,'[1]Equivalencia BH-BMPT'!$D$16,IF(J75=16,'[1]Equivalencia BH-BMPT'!$D$17,IF(J75=17,'[1]Equivalencia BH-BMPT'!$D$18,IF(J75=18,'[1]Equivalencia BH-BMPT'!$D$19,IF(J75=19,'[1]Equivalencia BH-BMPT'!$D$20,IF(J75=20,'[1]Equivalencia BH-BMPT'!$D$21,IF(J75=21,'[1]Equivalencia BH-BMPT'!$D$22,IF(J75=22,'[1]Equivalencia BH-BMPT'!$D$23,IF(J75=23,'[1]Equivalencia BH-BMPT'!#REF!,IF(J75=24,'[1]Equivalencia BH-BMPT'!$D$25,IF(J75=25,'[1]Equivalencia BH-BMPT'!$D$26,IF(J75=26,'[1]Equivalencia BH-BMPT'!$D$27,IF(J75=27,'[1]Equivalencia BH-BMPT'!$D$28,IF(J75=28,'[1]Equivalencia BH-BMPT'!$D$29,IF(J75=29,'[1]Equivalencia BH-BMPT'!$D$30,IF(J75=30,'[1]Equivalencia BH-BMPT'!$D$31,IF(J75=31,'[1]Equivalencia BH-BMPT'!$D$32,IF(J75=32,'[1]Equivalencia BH-BMPT'!$D$33,IF(J75=33,'[1]Equivalencia BH-BMPT'!$D$34,IF(J75=34,'[1]Equivalencia BH-BMPT'!$D$35,IF(J75=35,'[1]Equivalencia BH-BMPT'!$D$36,IF(J75=36,'[1]Equivalencia BH-BMPT'!$D$37,IF(J75=37,'[1]Equivalencia BH-BMPT'!$D$38,IF(J75=38,'[1]Equivalencia BH-BMPT'!#REF!,IF(J75=39,'[1]Equivalencia BH-BMPT'!$D$40,IF(J75=40,'[1]Equivalencia BH-BMPT'!$D$41,IF(J75=41,'[1]Equivalencia BH-BMPT'!$D$42,IF(J75=42,'[1]Equivalencia BH-BMPT'!$D$43,IF(J75=43,'[1]Equivalencia BH-BMPT'!$D$44,IF(J75=44,'[1]Equivalencia BH-BMPT'!$D$45,IF(J75=45,'[1]Equivalencia BH-BMPT'!$D$46,"No ha seleccionado un número de programa"))))))))))))))))))))))))))))))))))))))))))))) -> Gobernanza e influencia local, regional e internacional | L75: 1329 | M75: 79472050 | N75: MARIO HERRERA CUENCA | O75: 42496667 | S75: 0 | T75: 42496667 | U75: 38226667 | V75: 2017-06-07 | W75: 2017-06-07 | X75: 2018-01-04 | Y75: =29+180 -> 209 | Z75: 0 | AC75: X | AF75: 0.8995215319
A76: 56 | B76: 2017 | C76: CPS 056 2017 | D76: 5 | E76: =IF(D76=1,'[1]Tipo '!$B$2,IF(D76=2,'[1]Tipo '!$B$3,IF(D76=3,'[1]Tipo '!$B$4,IF(D76=4,'[1]Tipo '!$B$5,IF(D76=5,'[1]Tipo '!$B$6,IF(D76=6,'[1]Tipo '!$B$7,IF(D76=7,'[1]Tipo '!$B$8,IF(D76=8,'[1]Tipo '!$B$9,IF(D76=9,'[1]Tipo '!$B$10,IF(D76=10,'[1]Tipo '!$B$11,IF(D76=11,'[1]Tipo '!$B$12,IF(D76=12,'[1]Tipo '!$B$13,IF(D76=13,'[1]Tipo '!$B$14,IF(D76=14,'[1]Tipo '!$B$15,IF(D76=15,'[1]Tipo '!$B$16,IF(D76=16,'[1]Tipo '!$B$17,IF(D76=17,'[1]Tipo '!$B$18,IF(D76=18,'[1]Tipo '!$B$19,IF(D76=19,'[1]Tipo '!$B$20,"No ha seleccionado un tipo de contrato válido"))))))))))))))))))) -> CONTRATOS DE PRESTACIÓN DE SERVICIOS PROFESIONALES Y DE APOYO A LA GESTIÓN | F76: CONTRATACIÓN DIRECTA | G76: Prestación de servicios profesionales y de apoyo a la gestión, o para la ejecución de trabajos artísticos que sólo puedan encomendarse a determinadas personas naturales; | H76: OBJETO: El contrato que se pretende celebrar, tendrá por objeto: ¿El contratista se obliga para con el fondo a prestar sus servicios profesionales en la Alcaldía Local de Teusaquillo para impulsar y coordinar la implementación del sistema de calidad¿. | I76: INVERSIÓN | J76: 45 | K76: =IF(J76=1,'[1]Equivalencia BH-BMPT'!$D$2,IF(J76=2,'[1]Equivalencia BH-BMPT'!$D$3,IF(J76=3,'[1]Equivalencia BH-BMPT'!$D$4,IF(J76=4,'[1]Equivalencia BH-BMPT'!$D$5,IF(J76=5,'[1]Equivalencia BH-BMPT'!$D$6,IF(J76=6,'[1]Equivalencia BH-BMPT'!$D$7,IF(J76=7,'[1]Equivalencia BH-BMPT'!$D$8,IF(J76=8,'[1]Equivalencia BH-BMPT'!$D$9,IF(J76=9,'[1]Equivalencia BH-BMPT'!$D$10,IF(J76=10,'[1]Equivalencia BH-BMPT'!$D$11,IF(J76=11,'[1]Equivalencia BH-BMPT'!$D$12,IF(J76=12,'[1]Equivalencia BH-BMPT'!$D$13,IF(J76=13,'[1]Equivalencia BH-BMPT'!$D$14,IF(J76=14,'[1]Equivalencia BH-BMPT'!$D$15,IF(J76=15,'[1]Equivalencia BH-BMPT'!$D$16,IF(J76=16,'[1]Equivalencia BH-BMPT'!$D$17,IF(J76=17,'[1]Equivalencia BH-BMPT'!$D$18,IF(J76=18,'[1]Equivalencia BH-BMPT'!$D$19,IF(J76=19,'[1]Equivalencia BH-BMPT'!$D$20,IF(J76=20,'[1]Equivalencia BH-BMPT'!$D$21,IF(J76=21,'[1]Equivalencia BH-BMPT'!$D$22,IF(J76=22,'[1]Equivalencia BH-BMPT'!$D$23,IF(J76=23,'[1]Equivalencia BH-BMPT'!#REF!,IF(J76=24,'[1]Equivalencia BH-BMPT'!$D$25,IF(J76=25,'[1]Equivalencia BH-BMPT'!$D$26,IF(J76=26,'[1]Equivalencia BH-BMPT'!$D$27,IF(J76=27,'[1]Equivalencia BH-BMPT'!$D$28,IF(J76=28,'[1]Equivalencia BH-BMPT'!$D$29,IF(J76=29,'[1]Equivalencia BH-BMPT'!$D$30,IF(J76=30,'[1]Equivalencia BH-BMPT'!$D$31,IF(J76=31,'[1]Equivalencia BH-BMPT'!$D$32,IF(J76=32,'[1]Equivalencia BH-BMPT'!$D$33,IF(J76=33,'[1]Equivalencia BH-BMPT'!$D$34,IF(J76=34,'[1]Equivalencia BH-BMPT'!$D$35,IF(J76=35,'[1]Equivalencia BH-BMPT'!$D$36,IF(J76=36,'[1]Equivalencia BH-BMPT'!$D$37,IF(J76=37,'[1]Equivalencia BH-BMPT'!$D$38,IF(J76=38,'[1]Equivalencia BH-BMPT'!#REF!,IF(J76=39,'[1]Equivalencia BH-BMPT'!$D$40,IF(J76=40,'[1]Equivalencia BH-BMPT'!$D$41,IF(J76=41,'[1]Equivalencia BH-BMPT'!$D$42,IF(J76=42,'[1]Equivalencia BH-BMPT'!$D$43,IF(J76=43,'[1]Equivalencia BH-BMPT'!$D$44,IF(J76=44,'[1]Equivalencia BH-BMPT'!$D$45,IF(J76=45,'[1]Equivalencia BH-BMPT'!$D$46,"No ha seleccionado un número de programa"))))))))))))))))))))))))))))))))))))))))))))) -> Gobernanza e influencia local, regional e internacional | L76: 1329 | M76: 1020770122 | N76: VANESSA CASTILLO GIRALDO | O76: 29956667 | S76: 1003333 | T76: 30960000 | U76: 27090000 | V76: 2017-06-02 | W76: 2017-06-06 | X76: 2018-01-10 | Y76: =29+180 -> 209 | Z76: 7 | AC76: X | AF76: 0.90430621
A77: 57 | B77: 2017 | C77: CPS 057 2017 | D77: 4 | E77: =IF(D77=1,'[1]Tipo '!$B$2,IF(D77=2,'[1]Tipo '!$B$3,IF(D77=3,'[1]Tipo '!$B$4,IF(D77=4,'[1]Tipo '!$B$5,IF(D77=5,'[1]Tipo '!$B$6,IF(D77=6,'[1]Tipo '!$B$7,IF(D77=7,'[1]Tipo '!$B$8,IF(D77=8,'[1]Tipo '!$B$9,IF(D77=9,'[1]Tipo '!$B$10,IF(D77=10,'[1]Tipo '!$B$11,IF(D77=11,'[1]Tipo '!$B$12,IF(D77=12,'[1]Tipo '!$B$13,IF(D77=13,'[1]Tipo '!$B$14,IF(D77=14,'[1]Tipo '!$B$15,IF(D77=15,'[1]Tipo '!$B$16,IF(D77=16,'[1]Tipo '!$B$17,IF(D77=17,'[1]Tipo '!$B$18,IF(D77=18,'[1]Tipo '!$B$19,IF(D77=19,'[1]Tipo '!$B$20,"No ha seleccionado un tipo de contrato válido"))))))))))))))))))) -> CONTRATOS DE PRESTACIÓN DE SERVICIOS | F77: Contratación mínima cuantia | G77: No aplica | H77: El contrato que se pretende celebrar, tendrá por objeto¿Contratar a monto agotable el mantenimiento preventivo y correctivo incluyendo mano de obra y/o suministro de repuestos originales y llantas, para los vehículos de propiedad del Fondo de Desarrollo Local de Teusaquillo y los vehículos que adquiera el FDLT de acuerdo a los presentes estudios previos¿. | I77: FUNCIONAMIENTO | K77: =IF(J77=1,'[1]Equivalencia BH-BMPT'!$D$2,IF(J77=2,'[1]Equivalencia BH-BMPT'!$D$3,IF(J77=3,'[1]Equivalencia BH-BMPT'!$D$4,IF(J77=4,'[1]Equivalencia BH-BMPT'!$D$5,IF(J77=5,'[1]Equivalencia BH-BMPT'!$D$6,IF(J77=6,'[1]Equivalencia BH-BMPT'!$D$7,IF(J77=7,'[1]Equivalencia BH-BMPT'!$D$8,IF(J77=8,'[1]Equivalencia BH-BMPT'!$D$9,IF(J77=9,'[1]Equivalencia BH-BMPT'!$D$10,IF(J77=10,'[1]Equivalencia BH-BMPT'!$D$11,IF(J77=11,'[1]Equivalencia BH-BMPT'!$D$12,IF(J77=12,'[1]Equivalencia BH-BMPT'!$D$13,IF(J77=13,'[1]Equivalencia BH-BMPT'!$D$14,IF(J77=14,'[1]Equivalencia BH-BMPT'!$D$15,IF(J77=15,'[1]Equivalencia BH-BMPT'!$D$16,IF(J77=16,'[1]Equivalencia BH-BMPT'!$D$17,IF(J77=17,'[1]Equivalencia BH-BMPT'!$D$18,IF(J77=18,'[1]Equivalencia BH-BMPT'!$D$19,IF(J77=19,'[1]Equivalencia BH-BMPT'!$D$20,IF(J77=20,'[1]Equivalencia BH-BMPT'!$D$21,IF(J77=21,'[1]Equivalencia BH-BMPT'!$D$22,IF(J77=22,'[1]Equivalencia BH-BMPT'!$D$23,IF(J77=23,'[1]Equivalencia BH-BMPT'!#REF!,IF(J77=24,'[1]Equivalencia BH-BMPT'!$D$25,IF(J77=25,'[1]Equivalencia BH-BMPT'!$D$26,IF(J77=26,'[1]Equivalencia BH-BMPT'!$D$27,IF(J77=27,'[1]Equivalencia BH-BMPT'!$D$28,IF(J77=28,'[1]Equivalencia BH-BMPT'!$D$29,IF(J77=29,'[1]Equivalencia BH-BMPT'!$D$30,IF(J77=30,'[1]Equivalencia BH-BMPT'!$D$31,IF(J77=31,'[1]Equivalencia BH-BMPT'!$D$32,IF(J77=32,'[1]Equivalencia BH-BMPT'!$D$33,IF(J77=33,'[1]Equivalencia BH-BMPT'!$D$34,IF(J77=34,'[1]Equivalencia BH-BMPT'!$D$35,IF(J77=35,'[1]Equivalencia BH-BMPT'!$D$36,IF(J77=36,'[1]Equivalencia BH-BMPT'!$D$37,IF(J77=37,'[1]Equivalencia BH-BMPT'!$D$38,IF(J77=38,'[1]Equivalencia BH-BMPT'!#REF!,IF(J77=39,'[1]Equivalencia BH-BMPT'!$D$40,IF(J77=40,'[1]Equivalencia BH-BMPT'!$D$41,IF(J77=41,'[1]Equivalencia BH-BMPT'!$D$42,IF(J77=42,'[1]Equivalencia BH-BMPT'!$D$43,IF(J77=43,'[1]Equivalencia BH-BMPT'!$D$44,IF(J77=44,'[1]Equivalencia BH-BMPT'!$D$45,IF(J77=45,'[1]Equivalencia BH-BMPT'!$D$46,"No ha seleccionado un número de programa"))))))))))))))))))))))))))))))))))))))))))))) -> No ha seleccionado un número de programa | M77: 900542932 | N77: COMPAÑIA DE SERVICIOS AUTOMOTRICES SAS | O77: 3000000 | S77: 0 | T77: =+O77+S77 -> 3000000 | U77: 0 | V77: 2017-06-16 | W77: 2017-06-30 | X77: 2018-01-29 | Y77: 210 | Z77: 0 | AC77: X | AF77: 0
A78: 57 | B78: 2017 | C78: CPS 057 2018 | D78: 4 | E78: =IF(D78=1,'[1]Tipo '!$B$2,IF(D78=2,'[1]Tipo '!$B$3,IF(D78=3,'[1]Tipo '!$B$4,IF(D78=4,'[1]Tipo '!$B$5,IF(D78=5,'[1]Tipo '!$B$6,IF(D78=6,'[1]Tipo '!$B$7,IF(D78=7,'[1]Tipo '!$B$8,IF(D78=8,'[1]Tipo '!$B$9,IF(D78=9,'[1]Tipo '!$B$10,IF(D78=10,'[1]Tipo '!$B$11,IF(D78=11,'[1]Tipo '!$B$12,IF(D78=12,'[1]Tipo '!$B$13,IF(D78=13,'[1]Tipo '!$B$14,IF(D78=14,'[1]Tipo '!$B$15,IF(D78=15,'[1]Tipo '!$B$16,IF(D78=16,'[1]Tipo '!$B$17,IF(D78=17,'[1]Tipo '!$B$18,IF(D78=18,'[1]Tipo '!$B$19,IF(D78=19,'[1]Tipo '!$B$20,"No ha seleccionado un tipo de contrato válido"))))))))))))))))))) -> CONTRATOS DE PRESTACIÓN DE SERVICIOS | F78: Contratación mínima cuantia | G78: No aplica | H78: El contrato que se pretende celebrar, tendrá por objeto¿Contratar a monto agotable el mantenimiento preventivo y correctivo incluyendo mano de obra y/o suministro de repuestos originales y llantas, para los vehículos de propiedad del Fondo de Desarrollo Local de Teusaquillo y los vehículos que adquiera el FDLT de acuerdo a los presentes estudios previos¿ | I78: FUNCIONAMIENTO | K78: =IF(J78=1,'[1]Equivalencia BH-BMPT'!$D$2,IF(J78=2,'[1]Equivalencia BH-BMPT'!$D$3,IF(J78=3,'[1]Equivalencia BH-BMPT'!$D$4,IF(J78=4,'[1]Equivalencia BH-BMPT'!$D$5,IF(J78=5,'[1]Equivalencia BH-BMPT'!$D$6,IF(J78=6,'[1]Equivalencia BH-BMPT'!$D$7,IF(J78=7,'[1]Equivalencia BH-BMPT'!$D$8,IF(J78=8,'[1]Equivalencia BH-BMPT'!$D$9,IF(J78=9,'[1]Equivalencia BH-BMPT'!$D$10,IF(J78=10,'[1]Equivalencia BH-BMPT'!$D$11,IF(J78=11,'[1]Equivalencia BH-BMPT'!$D$12,IF(J78=12,'[1]Equivalencia BH-BMPT'!$D$13,IF(J78=13,'[1]Equivalencia BH-BMPT'!$D$14,IF(J78=14,'[1]Equivalencia BH-BMPT'!$D$15,IF(J78=15,'[1]Equivalencia BH-BMPT'!$D$16,IF(J78=16,'[1]Equivalencia BH-BMPT'!$D$17,IF(J78=17,'[1]Equivalencia BH-BMPT'!$D$18,IF(J78=18,'[1]Equivalencia BH-BMPT'!$D$19,IF(J78=19,'[1]Equivalencia BH-BMPT'!$D$20,IF(J78=20,'[1]Equivalencia BH-BMPT'!$D$21,IF(J78=21,'[1]Equivalencia BH-BMPT'!$D$22,IF(J78=22,'[1]Equivalencia BH-BMPT'!$D$23,IF(J78=23,'[1]Equivalencia BH-BMPT'!#REF!,IF(J78=24,'[1]Equivalencia BH-BMPT'!$D$25,IF(J78=25,'[1]Equivalencia BH-BMPT'!$D$26,IF(J78=26,'[1]Equivalencia BH-BMPT'!$D$27,IF(J78=27,'[1]Equivalencia BH-BMPT'!$D$28,IF(J78=28,'[1]Equivalencia BH-BMPT'!$D$29,IF(J78=29,'[1]Equivalencia BH-BMPT'!$D$30,IF(J78=30,'[1]Equivalencia BH-BMPT'!$D$31,IF(J78=31,'[1]Equivalencia BH-BMPT'!$D$32,IF(J78=32,'[1]Equivalencia BH-BMPT'!$D$33,IF(J78=33,'[1]Equivalencia BH-BMPT'!$D$34,IF(J78=34,'[1]Equivalencia BH-BMPT'!$D$35,IF(J78=35,'[1]Equivalencia BH-BMPT'!$D$36,IF(J78=36,'[1]Equivalencia BH-BMPT'!$D$37,IF(J78=37,'[1]Equivalencia BH-BMPT'!$D$38,IF(J78=38,'[1]Equivalencia BH-BMPT'!#REF!,IF(J78=39,'[1]Equivalencia BH-BMPT'!$D$40,IF(J78=40,'[1]Equivalencia BH-BMPT'!$D$41,IF(J78=41,'[1]Equivalencia BH-BMPT'!$D$42,IF(J78=42,'[1]Equivalencia BH-BMPT'!$D$43,IF(J78=43,'[1]Equivalencia BH-BMPT'!$D$44,IF(J78=44,'[1]Equivalencia BH-BMPT'!$D$45,IF(J78=45,'[1]Equivalencia BH-BMPT'!$D$46,"No ha seleccionado un número de programa"))))))))))))))))))))))))))))))))))))))))))))) -> No ha seleccionado un número de programa | M78: 900542932 | N78: COMPAÑIA DE SERVICIOS AUTOMOTRICES SAS | O78: 15000000 | S78: 0 | T78: 15000000 | U78: 0 | V78: 2017-06-16 | W78: 2017-06-30 | X78: 2018-01-29 | Y78: 210 | Z78: 0 | AC78: X | AF78: 0
A79: 58 | B79: 2017 | C79: CPS 058 2017 | D79: 4 | E79: =IF(D79=1,'[1]Tipo '!$B$2,IF(D79=2,'[1]Tipo '!$B$3,IF(D79=3,'[1]Tipo '!$B$4,IF(D79=4,'[1]Tipo '!$B$5,IF(D79=5,'[1]Tipo '!$B$6,IF(D79=6,'[1]Tipo '!$B$7,IF(D79=7,'[1]Tipo '!$B$8,IF(D79=8,'[1]Tipo '!$B$9,IF(D79=9,'[1]Tipo '!$B$10,IF(D79=10,'[1]Tipo '!$B$11,IF(D79=11,'[1]Tipo '!$B$12,IF(D79=12,'[1]Tipo '!$B$13,IF(D79=13,'[1]Tipo '!$B$14,IF(D79=14,'[1]Tipo '!$B$15,IF(D79=15,'[1]Tipo '!$B$16,IF(D79=16,'[1]Tipo '!$B$17,IF(D79=17,'[1]Tipo '!$B$18,IF(D79=18,'[1]Tipo '!$B$19,IF(D79=19,'[1]Tipo '!$B$20,"No ha seleccionado un tipo de contrato válido"))))))))))))))))))) -> CONTRATOS DE PRESTACIÓN DE SERVICIOS | F79: Selección abreviada | G79: Bolsas de productos | H79: OBJETO: EL CONTRATO QUE SE PRETENDE CELEBRAR, TENDRÁ POR OBJETO ¿ADQUISICIÓN A TRAVÉS DE LA BOLSA MERCANTIL DE COLOMBIA S.A. EL SERVICIO DE VIGILANCIA Y SEGURIDAD PRIVADA CON MEDIOS TECNOLOGICOS EN LOS PREDIOS Y CON LAS CONDICIONES TECNICAS QUE DESIGNE EL FONDO DE DESARROLLO LOCAL DE TEUSAQUILLO¿. NOTA: LOS PAGOS SE REALIZARAN CON EL ENDOSO RESPECTIVO ACORDE A LOS SOPORTES Y LO CONTENIDO EN EL ACTA REALIZADA EN EL DESPACHO DE LA ALCLADIA LOCAL DE TEUSAQUILLO EL DIA 12-07-2017 - DOCTORA CORNELIA NISPERUZA FLOREX - ALCALDESA LOCAL (E) Y DEMAS ASISTENTES. | I79: FUNCIONAMIENTO | K79: =IF(J79=1,'[1]Equivalencia BH-BMPT'!$D$2,IF(J79=2,'[1]Equivalencia BH-BMPT'!$D$3,IF(J79=3,'[1]Equivalencia BH-BMPT'!$D$4,IF(J79=4,'[1]Equivalencia BH-BMPT'!$D$5,IF(J79=5,'[1]Equivalencia BH-BMPT'!$D$6,IF(J79=6,'[1]Equivalencia BH-BMPT'!$D$7,IF(J79=7,'[1]Equivalencia BH-BMPT'!$D$8,IF(J79=8,'[1]Equivalencia BH-BMPT'!$D$9,IF(J79=9,'[1]Equivalencia BH-BMPT'!$D$10,IF(J79=10,'[1]Equivalencia BH-BMPT'!$D$11,IF(J79=11,'[1]Equivalencia BH-BMPT'!$D$12,IF(J79=12,'[1]Equivalencia BH-BMPT'!$D$13,IF(J79=13,'[1]Equivalencia BH-BMPT'!$D$14,IF(J79=14,'[1]Equivalencia BH-BMPT'!$D$15,IF(J79=15,'[1]Equivalencia BH-BMPT'!$D$16,IF(J79=16,'[1]Equivalencia BH-BMPT'!$D$17,IF(J79=17,'[1]Equivalencia BH-BMPT'!$D$18,IF(J79=18,'[1]Equivalencia BH-BMPT'!$D$19,IF(J79=19,'[1]Equivalencia BH-BMPT'!$D$20,IF(J79=20,'[1]Equivalencia BH-BMPT'!$D$21,IF(J79=21,'[1]Equivalencia BH-BMPT'!$D$22,IF(J79=22,'[1]Equivalencia BH-BMPT'!$D$23,IF(J79=23,'[1]Equivalencia BH-BMPT'!#REF!,IF(J79=24,'[1]Equivalencia BH-BMPT'!$D$25,IF(J79=25,'[1]Equivalencia BH-BMPT'!$D$26,IF(J79=26,'[1]Equivalencia BH-BMPT'!$D$27,IF(J79=27,'[1]Equivalencia BH-BMPT'!$D$28,IF(J79=28,'[1]Equivalencia BH-BMPT'!$D$29,IF(J79=29,'[1]Equivalencia BH-BMPT'!$D$30,IF(J79=30,'[1]Equivalencia BH-BMPT'!$D$31,IF(J79=31,'[1]Equivalencia BH-BMPT'!$D$32,IF(J79=32,'[1]Equivalencia BH-BMPT'!$D$33,IF(J79=33,'[1]Equivalencia BH-BMPT'!$D$34,IF(J79=34,'[1]Equivalencia BH-BMPT'!$D$35,IF(J79=35,'[1]Equivalencia BH-BMPT'!$D$36,IF(J79=36,'[1]Equivalencia BH-BMPT'!$D$37,IF(J79=37,'[1]Equivalencia BH-BMPT'!$D$38,IF(J79=38,'[1]Equivalencia BH-BMPT'!#REF!,IF(J79=39,'[1]Equivalencia BH-BMPT'!$D$40,IF(J79=40,'[1]Equivalencia BH-BMPT'!$D$41,IF(J79=41,'[1]Equivalencia BH-BMPT'!$D$42,IF(J79=42,'[1]Equivalencia BH-BMPT'!$D$43,IF(J79=43,'[1]Equivalencia BH-BMPT'!$D$44,IF(J79=44,'[1]Equivalencia BH-BMPT'!$D$45,IF(J79=45,'[1]Equivalencia BH-BMPT'!$D$46,"No ha seleccionado un número de programa"))))))))))))))))))))))))))))))))))))))))))))) -> No ha seleccionado un número de programa | M79: 860071250 | N79: BMC BOLSA MERCANTIL DE COLOMBIA S.A. | O79: 328000000 | S79: 0 | T79: 328000000 | U79: 171459735 | V79: 2017-07-12 | W79: 2017-07-13 | X79: 2018-03-31 | Y79: 259 | Z79: 0 | AC79: X | AF79: 0.5227430945
A80: 59 | B80: 2017 | C80: CPS 059 2017 | D80: 5 | E80: =IF(D80=1,'[1]Tipo '!$B$2,IF(D80=2,'[1]Tipo '!$B$3,IF(D80=3,'[1]Tipo '!$B$4,IF(D80=4,'[1]Tipo '!$B$5,IF(D80=5,'[1]Tipo '!$B$6,IF(D80=6,'[1]Tipo '!$B$7,IF(D80=7,'[1]Tipo '!$B$8,IF(D80=8,'[1]Tipo '!$B$9,IF(D80=9,'[1]Tipo '!$B$10,IF(D80=10,'[1]Tipo '!$B$11,IF(D80=11,'[1]Tipo '!$B$12,IF(D80=12,'[1]Tipo '!$B$13,IF(D80=13,'[1]Tipo '!$B$14,IF(D80=14,'[1]Tipo '!$B$15,IF(D80=15,'[1]Tipo '!$B$16,IF(D80=16,'[1]Tipo '!$B$17,IF(D80=17,'[1]Tipo '!$B$18,IF(D80=18,'[1]Tipo '!$B$19,IF(D80=19,'[1]Tipo '!$B$20,"No ha seleccionado un tipo de contrato válido"))))))))))))))))))) -> CONTRATOS DE PRESTACIÓN DE SERVICIOS PROFESIONALES Y DE APOYO A LA GESTIÓN | F80: CONTRATACIÓN DIRECTA | G80: Prestación de servicios profesionales y de apoyo a la gestión, o para la ejecución de trabajos artísticos que sólo puedan encomendarse a determinadas personas naturales; | H80: El contrato que se pretende celebrar, tendrá por objeto: ¿EL CONTRATISTA SE OBLIGA PARA CON EL FONDO DE DESARROLLO LOCAL A PRESTAR SUS SERVICIOS DE APOYO A LAS ACTIVIDADES QUE SE GENEREN EN LA JUNTA ADMINISTRADORA LOCAL DE TEUSAQUILLO¿. | I80: INVERSIÓN | J80: 45 | K80: =IF(J80=1,'[1]Equivalencia BH-BMPT'!$D$2,IF(J80=2,'[1]Equivalencia BH-BMPT'!$D$3,IF(J80=3,'[1]Equivalencia BH-BMPT'!$D$4,IF(J80=4,'[1]Equivalencia BH-BMPT'!$D$5,IF(J80=5,'[1]Equivalencia BH-BMPT'!$D$6,IF(J80=6,'[1]Equivalencia BH-BMPT'!$D$7,IF(J80=7,'[1]Equivalencia BH-BMPT'!$D$8,IF(J80=8,'[1]Equivalencia BH-BMPT'!$D$9,IF(J80=9,'[1]Equivalencia BH-BMPT'!$D$10,IF(J80=10,'[1]Equivalencia BH-BMPT'!$D$11,IF(J80=11,'[1]Equivalencia BH-BMPT'!$D$12,IF(J80=12,'[1]Equivalencia BH-BMPT'!$D$13,IF(J80=13,'[1]Equivalencia BH-BMPT'!$D$14,IF(J80=14,'[1]Equivalencia BH-BMPT'!$D$15,IF(J80=15,'[1]Equivalencia BH-BMPT'!$D$16,IF(J80=16,'[1]Equivalencia BH-BMPT'!$D$17,IF(J80=17,'[1]Equivalencia BH-BMPT'!$D$18,IF(J80=18,'[1]Equivalencia BH-BMPT'!$D$19,IF(J80=19,'[1]Equivalencia BH-BMPT'!$D$20,IF(J80=20,'[1]Equivalencia BH-BMPT'!$D$21,IF(J80=21,'[1]Equivalencia BH-BMPT'!$D$22,IF(J80=22,'[1]Equivalencia BH-BMPT'!$D$23,IF(J80=23,'[1]Equivalencia BH-BMPT'!#REF!,IF(J80=24,'[1]Equivalencia BH-BMPT'!$D$25,IF(J80=25,'[1]Equivalencia BH-BMPT'!$D$26,IF(J80=26,'[1]Equivalencia BH-BMPT'!$D$27,IF(J80=27,'[1]Equivalencia BH-BMPT'!$D$28,IF(J80=28,'[1]Equivalencia BH-BMPT'!$D$29,IF(J80=29,'[1]Equivalencia BH-BMPT'!$D$30,IF(J80=30,'[1]Equivalencia BH-BMPT'!$D$31,IF(J80=31,'[1]Equivalencia BH-BMPT'!$D$32,IF(J80=32,'[1]Equivalencia BH-BMPT'!$D$33,IF(J80=33,'[1]Equivalencia BH-BMPT'!$D$34,IF(J80=34,'[1]Equivalencia BH-BMPT'!$D$35,IF(J80=35,'[1]Equivalencia BH-BMPT'!$D$36,IF(J80=36,'[1]Equivalencia BH-BMPT'!$D$37,IF(J80=37,'[1]Equivalencia BH-BMPT'!$D$38,IF(J80=38,'[1]Equivalencia BH-BMPT'!#REF!,IF(J80=39,'[1]Equivalencia BH-BMPT'!$D$40,IF(J80=40,'[1]Equivalencia BH-BMPT'!$D$41,IF(J80=41,'[1]Equivalencia BH-BMPT'!$D$42,IF(J80=42,'[1]Equivalencia BH-BMPT'!$D$43,IF(J80=43,'[1]Equivalencia BH-BMPT'!$D$44,IF(J80=44,'[1]Equivalencia BH-BMPT'!$D$45,IF(J80=45,'[1]Equivalencia BH-BMPT'!$D$46,"No ha seleccionado un número de programa"))))))))))))))))))))))))))))))))))))))))))))) -> Gobernanza e influencia local, regional e internacional | L80: 1329 | M80: 1098771185 | N80: HAINER ALI ALVERNIA ANGARITA | O80: 17733333 | S80: 0 | T80: 17733333 | U80: 15680000 | V80: 2017-06-22 | W80: 2017-06-27 | X80: 2018-01-05 | Y80: 190 | Z80: 0 | AC80: X | AF80: 0.8842105429
A81: 60 | B81: 2017 | C81: FDLT-SASI-003-2016 | D81: 11 | E81: =IF(D81=1,'[1]Tipo '!$B$2,IF(D81=2,'[1]Tipo '!$B$3,IF(D81=3,'[1]Tipo '!$B$4,IF(D81=4,'[1]Tipo '!$B$5,IF(D81=5,'[1]Tipo '!$B$6,IF(D81=6,'[1]Tipo '!$B$7,IF(D81=7,'[1]Tipo '!$B$8,IF(D81=8,'[1]Tipo '!$B$9,IF(D81=9,'[1]Tipo '!$B$10,IF(D81=10,'[1]Tipo '!$B$11,IF(D81=11,'[1]Tipo '!$B$12,IF(D81=12,'[1]Tipo '!$B$13,IF(D81=13,'[1]Tipo '!$B$14,IF(D81=14,'[1]Tipo '!$B$15,IF(D81=15,'[1]Tipo '!$B$16,IF(D81=16,'[1]Tipo '!$B$17,IF(D81=17,'[1]Tipo '!$B$18,IF(D81=18,'[1]Tipo '!$B$19,IF(D81=19,'[1]Tipo '!$B$20,"No ha seleccionado un tipo de contrato válido"))))))))))))))))))) -> SUMINISTRO | F81: Selección abreviada | G81: Selección abreviada por menor cuantía | H81: ¿EL SUMINISTRO DE ELEMENTOS DE PAPELERÍA TONERS, TINTAS, CARTUCHOS, CONSUMIBLES Y ELEMENTOS DE IMPRESIÓN, ASÍ COMO LOS ELEMENTOS Y UTILES DE OFICINA CON DESTINO AL FDL DE TEUSAQUILLO, CONFORME A LAS NECESIDADES DE LA ENTIDAD POR EL SISTEMA DE PEDIDO A DEMANDA¿. | I81: FUNCIONAMIENTO | K81: =IF(J81=1,'[1]Equivalencia BH-BMPT'!$D$2,IF(J81=2,'[1]Equivalencia BH-BMPT'!$D$3,IF(J81=3,'[1]Equivalencia BH-BMPT'!$D$4,IF(J81=4,'[1]Equivalencia BH-BMPT'!$D$5,IF(J81=5,'[1]Equivalencia BH-BMPT'!$D$6,IF(J81=6,'[1]Equivalencia BH-BMPT'!$D$7,IF(J81=7,'[1]Equivalencia BH-BMPT'!$D$8,IF(J81=8,'[1]Equivalencia BH-BMPT'!$D$9,IF(J81=9,'[1]Equivalencia BH-BMPT'!$D$10,IF(J81=10,'[1]Equivalencia BH-BMPT'!$D$11,IF(J81=11,'[1]Equivalencia BH-BMPT'!$D$12,IF(J81=12,'[1]Equivalencia BH-BMPT'!$D$13,IF(J81=13,'[1]Equivalencia BH-BMPT'!$D$14,IF(J81=14,'[1]Equivalencia BH-BMPT'!$D$15,IF(J81=15,'[1]Equivalencia BH-BMPT'!$D$16,IF(J81=16,'[1]Equivalencia BH-BMPT'!$D$17,IF(J81=17,'[1]Equivalencia BH-BMPT'!$D$18,IF(J81=18,'[1]Equivalencia BH-BMPT'!$D$19,IF(J81=19,'[1]Equivalencia BH-BMPT'!$D$20,IF(J81=20,'[1]Equivalencia BH-BMPT'!$D$21,IF(J81=21,'[1]Equivalencia BH-BMPT'!$D$22,IF(J81=22,'[1]Equivalencia BH-BMPT'!$D$23,IF(J81=23,'[1]Equivalencia BH-BMPT'!#REF!,IF(J81=24,'[1]Equivalencia BH-BMPT'!$D$25,IF(J81=25,'[1]Equivalencia BH-BMPT'!$D$26,IF(J81=26,'[1]Equivalencia BH-BMPT'!$D$27,IF(J81=27,'[1]Equivalencia BH-BMPT'!$D$28,IF(J81=28,'[1]Equivalencia BH-BMPT'!$D$29,IF(J81=29,'[1]Equivalencia BH-BMPT'!$D$30,IF(J81=30,'[1]Equivalencia BH-BMPT'!$D$31,IF(J81=31,'[1]Equivalencia BH-BMPT'!$D$32,IF(J81=32,'[1]Equivalencia BH-BMPT'!$D$33,IF(J81=33,'[1]Equivalencia BH-BMPT'!$D$34,IF(J81=34,'[1]Equivalencia BH-BMPT'!$D$35,IF(J81=35,'[1]Equivalencia BH-BMPT'!$D$36,IF(J81=36,'[1]Equivalencia BH-BMPT'!$D$37,IF(J81=37,'[1]Equivalencia BH-BMPT'!$D$38,IF(J81=38,'[1]Equivalencia BH-BMPT'!#REF!,IF(J81=39,'[1]Equivalencia BH-BMPT'!$D$40,IF(J81=40,'[1]Equivalencia BH-BMPT'!$D$41,IF(J81=41,'[1]Equivalencia BH-BMPT'!$D$42,IF(J81=42,'[1]Equivalencia BH-BMPT'!$D$43,IF(J81=43,'[1]Equivalencia BH-BMPT'!$D$44,IF(J81=44,'[1]Equivalencia BH-BMPT'!$D$45,IF(J81=45,'[1]Equivalencia BH-BMPT'!$D$46,"No ha seleccionado un número de programa"))))))))))))))))))))))))))))))))))))))))))))) -> No ha seleccionado un número de programa | M81: 860053274 | N81: GRUPO LOS LAGOS S.A.S | O81: 50000000 | S81: 25000000 | T81: 75000000 | U81: 39974414 | V81: 2017-06-28 | W81: 2017-07-07 | X81: 2018-04-06 | Y81: 210 | Z81: 60 | AC81: X | AF81: 0.5329921867
A82: 60 | B82: 2017 | C82: FDLT-SASI-003-2017 | D82: 11 | E82: =IF(D82=1,'[1]Tipo '!$B$2,IF(D82=2,'[1]Tipo '!$B$3,IF(D82=3,'[1]Tipo '!$B$4,IF(D82=4,'[1]Tipo '!$B$5,IF(D82=5,'[1]Tipo '!$B$6,IF(D82=6,'[1]Tipo '!$B$7,IF(D82=7,'[1]Tipo '!$B$8,IF(D82=8,'[1]Tipo '!$B$9,IF(D82=9,'[1]Tipo '!$B$10,IF(D82=10,'[1]Tipo '!$B$11,IF(D82=11,'[1]Tipo '!$B$12,IF(D82=12,'[1]Tipo '!$B$13,IF(D82=13,'[1]Tipo '!$B$14,IF(D82=14,'[1]Tipo '!$B$15,IF(D82=15,'[1]Tipo '!$B$16,IF(D82=16,'[1]Tipo '!$B$17,IF(D82=17,'[1]Tipo '!$B$18,IF(D82=18,'[1]Tipo '!$B$19,IF(D82=19,'[1]Tipo '!$B$20,"No ha seleccionado un tipo de contrato válido"))))))))))))))))))) -> SUMINISTRO | F82: Selección abreviada | G82: Selección abreviada por menor cuantía | H82: ¿EL SUMINISTRO DE ELEMENTOS DE PAPELERÍA TONERS, TINTAS, CARTUCHOS, CONSUMIBLES Y ELEMENTOS DE IMPRESIÓN, ASÍ COMO LOS ELEMENTOS Y UTILES DE OFICINA CON DESTINO AL FDL DE TEUSAQUILLO, CONFORME A LAS NECESIDADES DE LA ENTIDAD POR EL SISTEMA DE PEDIDO A DEMANDA¿. | I82: FUNCIONAMIENTO | K82: =IF(J82=1,'[1]Equivalencia BH-BMPT'!$D$2,IF(J82=2,'[1]Equivalencia BH-BMPT'!$D$3,IF(J82=3,'[1]Equivalencia BH-BMPT'!$D$4,IF(J82=4,'[1]Equivalencia BH-BMPT'!$D$5,IF(J82=5,'[1]Equivalencia BH-BMPT'!$D$6,IF(J82=6,'[1]Equivalencia BH-BMPT'!$D$7,IF(J82=7,'[1]Equivalencia BH-BMPT'!$D$8,IF(J82=8,'[1]Equivalencia BH-BMPT'!$D$9,IF(J82=9,'[1]Equivalencia BH-BMPT'!$D$10,IF(J82=10,'[1]Equivalencia BH-BMPT'!$D$11,IF(J82=11,'[1]Equivalencia BH-BMPT'!$D$12,IF(J82=12,'[1]Equivalencia BH-BMPT'!$D$13,IF(J82=13,'[1]Equivalencia BH-BMPT'!$D$14,IF(J82=14,'[1]Equivalencia BH-BMPT'!$D$15,IF(J82=15,'[1]Equivalencia BH-BMPT'!$D$16,IF(J82=16,'[1]Equivalencia BH-BMPT'!$D$17,IF(J82=17,'[1]Equivalencia BH-BMPT'!$D$18,IF(J82=18,'[1]Equivalencia BH-BMPT'!$D$19,IF(J82=19,'[1]Equivalencia BH-BMPT'!$D$20,IF(J82=20,'[1]Equivalencia BH-BMPT'!$D$21,IF(J82=21,'[1]Equivalencia BH-BMPT'!$D$22,IF(J82=22,'[1]Equivalencia BH-BMPT'!$D$23,IF(J82=23,'[1]Equivalencia BH-BMPT'!#REF!,IF(J82=24,'[1]Equivalencia BH-BMPT'!$D$25,IF(J82=25,'[1]Equivalencia BH-BMPT'!$D$26,IF(J82=26,'[1]Equivalencia BH-BMPT'!$D$27,IF(J82=27,'[1]Equivalencia BH-BMPT'!$D$28,IF(J82=28,'[1]Equivalencia BH-BMPT'!$D$29,IF(J82=29,'[1]Equivalencia BH-BMPT'!$D$30,IF(J82=30,'[1]Equivalencia BH-BMPT'!$D$31,IF(J82=31,'[1]Equivalencia BH-BMPT'!$D$32,IF(J82=32,'[1]Equivalencia BH-BMPT'!$D$33,IF(J82=33,'[1]Equivalencia BH-BMPT'!$D$34,IF(J82=34,'[1]Equivalencia BH-BMPT'!$D$35,IF(J82=35,'[1]Equivalencia BH-BMPT'!$D$36,IF(J82=36,'[1]Equivalencia BH-BMPT'!$D$37,IF(J82=37,'[1]Equivalencia BH-BMPT'!$D$38,IF(J82=38,'[1]Equivalencia BH-BMPT'!#REF!,IF(J82=39,'[1]Equivalencia BH-BMPT'!$D$40,IF(J82=40,'[1]Equivalencia BH-BMPT'!$D$41,IF(J82=41,'[1]Equivalencia BH-BMPT'!$D$42,IF(J82=42,'[1]Equivalencia BH-BMPT'!$D$43,IF(J82=43,'[1]Equivalencia BH-BMPT'!$D$44,IF(J82=44,'[1]Equivalencia BH-BMPT'!$D$45,IF(J82=45,'[1]Equivalencia BH-BMPT'!$D$46,"No ha seleccionado un número de programa"))))))))))))))))))))))))))))))))))))))))))))) -> No ha seleccionado un número de programa | M82: 860053274 | N82: GRUPO LOS LAGOS S.A.S | O82: 60000000 | S82: 30000000 | T82: 90000000 | U82: 49271407 | V82: 2017-06-28 | W82: 2017-07-07 | X82: 2018-04-06 | Y82: 210 | Z82: 60 | AC82: X | AF82: 0.5474600778
A83: 61 | B83: 2017 | C83: CPS 061 2017 | D83: 5 | E83: =IF(D83=1,'[1]Tipo '!$B$2,IF(D83=2,'[1]Tipo '!$B$3,IF(D83=3,'[1]Tipo '!$B$4,IF(D83=4,'[1]Tipo '!$B$5,IF(D83=5,'[1]Tipo '!$B$6,IF(D83=6,'[1]Tipo '!$B$7,IF(D83=7,'[1]Tipo '!$B$8,IF(D83=8,'[1]Tipo '!$B$9,IF(D83=9,'[1]Tipo '!$B$10,IF(D83=10,'[1]Tipo '!$B$11,IF(D83=11,'[1]Tipo '!$B$12,IF(D83=12,'[1]Tipo '!$B$13,IF(D83=13,'[1]Tipo '!$B$14,IF(D83=14,'[1]Tipo '!$B$15,IF(D83=15,'[1]Tipo '!$B$16,IF(D83=16,'[1]Tipo '!$B$17,IF(D83=17,'[1]Tipo '!$B$18,IF(D83=18,'[1]Tipo '!$B$19,IF(D83=19,'[1]Tipo '!$B$20,"No ha seleccionado un tipo de contrato válido"))))))))))))))))))) -> CONTRATOS DE PRESTACIÓN DE SERVICIOS PROFESIONALES Y DE APOYO A LA GESTIÓN | F83: CONTRATACIÓN DIRECTA | G83: Prestación de servicios profesionales y de apoyo a la gestión, o para la ejecución de trabajos artísticos que sólo puedan encomendarse a determinadas personas naturales; | H83: OBJETO: ¿Prestar los servicios técnicos de apoyo a la gestión en la ejecución de las actividades administrativas y operativas en temas relacionados con Establecimientos de Comercio y Espacio Público e Inspección Vigilancia y Control que se adelanten en el Área de Gestión Policiva de la Alcaldía local de Teusaquillo¿. | I83: INVERSIÓN | J83: 45 | K83: =IF(J83=1,'[1]Equivalencia BH-BMPT'!$D$2,IF(J83=2,'[1]Equivalencia BH-BMPT'!$D$3,IF(J83=3,'[1]Equivalencia BH-BMPT'!$D$4,IF(J83=4,'[1]Equivalencia BH-BMPT'!$D$5,IF(J83=5,'[1]Equivalencia BH-BMPT'!$D$6,IF(J83=6,'[1]Equivalencia BH-BMPT'!$D$7,IF(J83=7,'[1]Equivalencia BH-BMPT'!$D$8,IF(J83=8,'[1]Equivalencia BH-BMPT'!$D$9,IF(J83=9,'[1]Equivalencia BH-BMPT'!$D$10,IF(J83=10,'[1]Equivalencia BH-BMPT'!$D$11,IF(J83=11,'[1]Equivalencia BH-BMPT'!$D$12,IF(J83=12,'[1]Equivalencia BH-BMPT'!$D$13,IF(J83=13,'[1]Equivalencia BH-BMPT'!$D$14,IF(J83=14,'[1]Equivalencia BH-BMPT'!$D$15,IF(J83=15,'[1]Equivalencia BH-BMPT'!$D$16,IF(J83=16,'[1]Equivalencia BH-BMPT'!$D$17,IF(J83=17,'[1]Equivalencia BH-BMPT'!$D$18,IF(J83=18,'[1]Equivalencia BH-BMPT'!$D$19,IF(J83=19,'[1]Equivalencia BH-BMPT'!$D$20,IF(J83=20,'[1]Equivalencia BH-BMPT'!$D$21,IF(J83=21,'[1]Equivalencia BH-BMPT'!$D$22,IF(J83=22,'[1]Equivalencia BH-BMPT'!$D$23,IF(J83=23,'[1]Equivalencia BH-BMPT'!#REF!,IF(J83=24,'[1]Equivalencia BH-BMPT'!$D$25,IF(J83=25,'[1]Equivalencia BH-BMPT'!$D$26,IF(J83=26,'[1]Equivalencia BH-BMPT'!$D$27,IF(J83=27,'[1]Equivalencia BH-BMPT'!$D$28,IF(J83=28,'[1]Equivalencia BH-BMPT'!$D$29,IF(J83=29,'[1]Equivalencia BH-BMPT'!$D$30,IF(J83=30,'[1]Equivalencia BH-BMPT'!$D$31,IF(J83=31,'[1]Equivalencia BH-BMPT'!$D$32,IF(J83=32,'[1]Equivalencia BH-BMPT'!$D$33,IF(J83=33,'[1]Equivalencia BH-BMPT'!$D$34,IF(J83=34,'[1]Equivalencia BH-BMPT'!$D$35,IF(J83=35,'[1]Equivalencia BH-BMPT'!$D$36,IF(J83=36,'[1]Equivalencia BH-BMPT'!$D$37,IF(J83=37,'[1]Equivalencia BH-BMPT'!$D$38,IF(J83=38,'[1]Equivalencia BH-BMPT'!#REF!,IF(J83=39,'[1]Equivalencia BH-BMPT'!$D$40,IF(J83=40,'[1]Equivalencia BH-BMPT'!$D$41,IF(J83=41,'[1]Equivalencia BH-BMPT'!$D$42,IF(J83=42,'[1]Equivalencia BH-BMPT'!$D$43,IF(J83=43,'[1]Equivalencia BH-BMPT'!$D$44,IF(J83=44,'[1]Equivalencia BH-BMPT'!$D$45,IF(J83=45,'[1]Equivalencia BH-BMPT'!$D$46,"No ha seleccionado un número de programa"))))))))))))))))))))))))))))))))))))))))))))) -> Gobernanza e influencia local, regional e internacional | L83: 1329 | M83: 1010172202 | N83: JOSE MANUEL SANCHEZ TAMAYO | O83: 16333333 | S83: 0 | T83: 16333333 | U83: 14746667 | V83: 2017-07-07 | W83: 2017-07-07 | X83: 2017-12-31 | Y83: =25+150 -> 175 | Z83: 0 | AD83: X | AF83: 0.9028571817 | AK83: =AF83+AH83+AJ83 -> 0.9028571817 | AL83: =AG83+AI83+AK83 -> 0.9028571817
A84: 62 | B84: 2017 | C84: CPS 062 2017 | D84: 5 | E84: =IF(D84=1,'[1]Tipo '!$B$2,IF(D84=2,'[1]Tipo '!$B$3,IF(D84=3,'[1]Tipo '!$B$4,IF(D84=4,'[1]Tipo '!$B$5,IF(D84=5,'[1]Tipo '!$B$6,IF(D84=6,'[1]Tipo '!$B$7,IF(D84=7,'[1]Tipo '!$B$8,IF(D84=8,'[1]Tipo '!$B$9,IF(D84=9,'[1]Tipo '!$B$10,IF(D84=10,'[1]Tipo '!$B$11,IF(D84=11,'[1]Tipo '!$B$12,IF(D84=12,'[1]Tipo '!$B$13,IF(D84=13,'[1]Tipo '!$B$14,IF(D84=14,'[1]Tipo '!$B$15,IF(D84=15,'[1]Tipo '!$B$16,IF(D84=16,'[1]Tipo '!$B$17,IF(D84=17,'[1]Tipo '!$B$18,IF(D84=18,'[1]Tipo '!$B$19,IF(D84=19,'[1]Tipo '!$B$20,"No ha seleccionado un tipo de contrato válido"))))))))))))))))))) -> CONTRATOS DE PRESTACIÓN DE SERVICIOS PROFESIONALES Y DE APOYO A LA GESTIÓN | F84: CONTRATACIÓN DIRECTA | G84: Prestación de servicios profesionales y de apoyo a la gestión, o para la ejecución de trabajos artísticos que sólo puedan encomendarse a determinadas personas naturales; | H84: OBJETO: El contrato que se pretende celebrar, tendrá por objeto ¿EL CONTRATISTA SE OBLIGA PARA CON EL FONDO A PRESTAR SUS SERVICIOS DE APOYO EN LA CONDUCCIÓN DE LOS VEHÍCULOS DE PROPIEDAD DEL FONDO DE DESARROLLO LOCAL DE TEUSAQUILLO, INCLUIDO EL VEHÍCULO PESADO TIPO CAMIÓN ¿. | I84: INVERSIÓN | J84: 45 | K84: =IF(J84=1,'[1]Equivalencia BH-BMPT'!$D$2,IF(J84=2,'[1]Equivalencia BH-BMPT'!$D$3,IF(J84=3,'[1]Equivalencia BH-BMPT'!$D$4,IF(J84=4,'[1]Equivalencia BH-BMPT'!$D$5,IF(J84=5,'[1]Equivalencia BH-BMPT'!$D$6,IF(J84=6,'[1]Equivalencia BH-BMPT'!$D$7,IF(J84=7,'[1]Equivalencia BH-BMPT'!$D$8,IF(J84=8,'[1]Equivalencia BH-BMPT'!$D$9,IF(J84=9,'[1]Equivalencia BH-BMPT'!$D$10,IF(J84=10,'[1]Equivalencia BH-BMPT'!$D$11,IF(J84=11,'[1]Equivalencia BH-BMPT'!$D$12,IF(J84=12,'[1]Equivalencia BH-BMPT'!$D$13,IF(J84=13,'[1]Equivalencia BH-BMPT'!$D$14,IF(J84=14,'[1]Equivalencia BH-BMPT'!$D$15,IF(J84=15,'[1]Equivalencia BH-BMPT'!$D$16,IF(J84=16,'[1]Equivalencia BH-BMPT'!$D$17,IF(J84=17,'[1]Equivalencia BH-BMPT'!$D$18,IF(J84=18,'[1]Equivalencia BH-BMPT'!$D$19,IF(J84=19,'[1]Equivalencia BH-BMPT'!$D$20,IF(J84=20,'[1]Equivalencia BH-BMPT'!$D$21,IF(J84=21,'[1]Equivalencia BH-BMPT'!$D$22,IF(J84=22,'[1]Equivalencia BH-BMPT'!$D$23,IF(J84=23,'[1]Equivalencia BH-BMPT'!#REF!,IF(J84=24,'[1]Equivalencia BH-BMPT'!$D$25,IF(J84=25,'[1]Equivalencia BH-BMPT'!$D$26,IF(J84=26,'[1]Equivalencia BH-BMPT'!$D$27,IF(J84=27,'[1]Equivalencia BH-BMPT'!$D$28,IF(J84=28,'[1]Equivalencia BH-BMPT'!$D$29,IF(J84=29,'[1]Equivalencia BH-BMPT'!$D$30,IF(J84=30,'[1]Equivalencia BH-BMPT'!$D$31,IF(J84=31,'[1]Equivalencia BH-BMPT'!$D$32,IF(J84=32,'[1]Equivalencia BH-BMPT'!$D$33,IF(J84=33,'[1]Equivalencia BH-BMPT'!$D$34,IF(J84=34,'[1]Equivalencia BH-BMPT'!$D$35,IF(J84=35,'[1]Equivalencia BH-BMPT'!$D$36,IF(J84=36,'[1]Equivalencia BH-BMPT'!$D$37,IF(J84=37,'[1]Equivalencia BH-BMPT'!$D$38,IF(J84=38,'[1]Equivalencia BH-BMPT'!#REF!,IF(J84=39,'[1]Equivalencia BH-BMPT'!$D$40,IF(J84=40,'[1]Equivalencia BH-BMPT'!$D$41,IF(J84=41,'[1]Equivalencia BH-BMPT'!$D$42,IF(J84=42,'[1]Equivalencia BH-BMPT'!$D$43,IF(J84=43,'[1]Equivalencia BH-BMPT'!$D$44,IF(J84=44,'[1]Equivalencia BH-BMPT'!$D$45,IF(J84=45,'[1]Equivalencia BH-BMPT'!$D$46,"No ha seleccionado un número de programa"))))))))))))))))))))))))))))))))))))))))))))) -> Gobernanza e influencia local, regional e internacional | L84: 1329 | M84: 79502612 | N84: OMAR PARDO SALAMANCA | O84: 10466666 | S84: 533333 | T84: 10999999 | U84: 9200000 | V84: 2017-07-26 | W84: 2017-07-27 | X84: 2018-01-10 | Y84: =7+150 -> 157 | Z84: 8 | AC84: X | AF84: 0.8363637124
A85: 63 | B85: 2017 | C85: CPS 063 2017 | D85: 5 | E85: =IF(D85=1,'[1]Tipo '!$B$2,IF(D85=2,'[1]Tipo '!$B$3,IF(D85=3,'[1]Tipo '!$B$4,IF(D85=4,'[1]Tipo '!$B$5,IF(D85=5,'[1]Tipo '!$B$6,IF(D85=6,'[1]Tipo '!$B$7,IF(D85=7,'[1]Tipo '!$B$8,IF(D85=8,'[1]Tipo '!$B$9,IF(D85=9,'[1]Tipo '!$B$10,IF(D85=10,'[1]Tipo '!$B$11,IF(D85=11,'[1]Tipo '!$B$12,IF(D85=12,'[1]Tipo '!$B$13,IF(D85=13,'[1]Tipo '!$B$14,IF(D85=14,'[1]Tipo '!$B$15,IF(D85=15,'[1]Tipo '!$B$16,IF(D85=16,'[1]Tipo '!$B$17,IF(D85=17,'[1]Tipo '!$B$18,IF(D85=18,'[1]Tipo '!$B$19,IF(D85=19,'[1]Tipo '!$B$20,"No ha seleccionado un tipo de contrato válido"))))))))))))))))))) -> CONTRATOS DE PRESTACIÓN DE SERVICIOS PROFESIONALES Y DE APOYO A LA GESTIÓN | F85: CONTRATACIÓN DIRECTA | G85: Prestación de servicios profesionales y de apoyo a la gestión, o para la ejecución de trabajos artísticos que sólo puedan encomendarse a determinadas personas naturales; | H85: OBJETO: El contrato que se pretende celebrar, tendrá por objeto ¿Prestar los servicios técnicos para la operación, seguimiento y cumplimiento de los procesos y procedimientos del servicio social Apoyos para la Seguridad Económica Tipo C, requeridos para el oportuno y adecuado registro, cruce y reporte de los datos en el sistema de información y registro de Beneficiarios¿SIRBE, que contribuyan a la garantía de los derechos de la población mayor en el marco de la Política Pública Social para el Envejecimiento y la Vejez en el Distrito Capital a cargo de la Alcaldía Local Teusaquillo.¿ | I85: INVERSIÓN | J85: 3 | K85: =IF(J85=1,'[1]Equivalencia BH-BMPT'!$D$2,IF(J85=2,'[1]Equivalencia BH-BMPT'!$D$3,IF(J85=3,'[1]Equivalencia BH-BMPT'!$D$4,IF(J85=4,'[1]Equivalencia BH-BMPT'!$D$5,IF(J85=5,'[1]Equivalencia BH-BMPT'!$D$6,IF(J85=6,'[1]Equivalencia BH-BMPT'!$D$7,IF(J85=7,'[1]Equivalencia BH-BMPT'!$D$8,IF(J85=8,'[1]Equivalencia BH-BMPT'!$D$9,IF(J85=9,'[1]Equivalencia BH-BMPT'!$D$10,IF(J85=10,'[1]Equivalencia BH-BMPT'!$D$11,IF(J85=11,'[1]Equivalencia BH-BMPT'!$D$12,IF(J85=12,'[1]Equivalencia BH-BMPT'!$D$13,IF(J85=13,'[1]Equivalencia BH-BMPT'!$D$14,IF(J85=14,'[1]Equivalencia BH-BMPT'!$D$15,IF(J85=15,'[1]Equivalencia BH-BMPT'!$D$16,IF(J85=16,'[1]Equivalencia BH-BMPT'!$D$17,IF(J85=17,'[1]Equivalencia BH-BMPT'!$D$18,IF(J85=18,'[1]Equivalencia BH-BMPT'!$D$19,IF(J85=19,'[1]Equivalencia BH-BMPT'!$D$20,IF(J85=20,'[1]Equivalencia BH-BMPT'!$D$21,IF(J85=21,'[1]Equivalencia BH-BMPT'!$D$22,IF(J85=22,'[1]Equivalencia BH-BMPT'!$D$23,IF(J85=23,'[1]Equivalencia BH-BMPT'!#REF!,IF(J85=24,'[1]Equivalencia BH-BMPT'!$D$25,IF(J85=25,'[1]Equivalencia BH-BMPT'!$D$26,IF(J85=26,'[1]Equivalencia BH-BMPT'!$D$27,IF(J85=27,'[1]Equivalencia BH-BMPT'!$D$28,IF(J85=28,'[1]Equivalencia BH-BMPT'!$D$29,IF(J85=29,'[1]Equivalencia BH-BMPT'!$D$30,IF(J85=30,'[1]Equivalencia BH-BMPT'!$D$31,IF(J85=31,'[1]Equivalencia BH-BMPT'!$D$32,IF(J85=32,'[1]Equivalencia BH-BMPT'!$D$33,IF(J85=33,'[1]Equivalencia BH-BMPT'!$D$34,IF(J85=34,'[1]Equivalencia BH-BMPT'!$D$35,IF(J85=35,'[1]Equivalencia BH-BMPT'!$D$36,IF(J85=36,'[1]Equivalencia BH-BMPT'!$D$37,IF(J85=37,'[1]Equivalencia BH-BMPT'!$D$38,IF(J85=38,'[1]Equivalencia BH-BMPT'!#REF!,IF(J85=39,'[1]Equivalencia BH-BMPT'!$D$40,IF(J85=40,'[1]Equivalencia BH-BMPT'!$D$41,IF(J85=41,'[1]Equivalencia BH-BMPT'!$D$42,IF(J85=42,'[1]Equivalencia BH-BMPT'!$D$43,IF(J85=43,'[1]Equivalencia BH-BMPT'!$D$44,IF(J85=44,'[1]Equivalencia BH-BMPT'!$D$45,IF(J85=45,'[1]Equivalencia BH-BMPT'!$D$46,"No ha seleccionado un número de programa"))))))))))))))))))))))))))))))))))))))))))))) -> Igualdad y autonomía para una Bogotá incluyente | L85: 1357 | M85: 1031141363 | N85: GERALDINE MONTENEGRO LOZADA | O85: 2800000 | S85: 0 | T85: 2800000 | U85: 2800000 | V85: 2017-08-03 | W85: 2017-08-03 | X85: 2017-09-01 | Y85: 30 | Z85: 0 | AE85: X | AF85: 1
A86: 64 | B86: 2017 | C86: CPS 064 2017 | D86: 4 | E86: =IF(D86=1,'[1]Tipo '!$B$2,IF(D86=2,'[1]Tipo '!$B$3,IF(D86=3,'[1]Tipo '!$B$4,IF(D86=4,'[1]Tipo '!$B$5,IF(D86=5,'[1]Tipo '!$B$6,IF(D86=6,'[1]Tipo '!$B$7,IF(D86=7,'[1]Tipo '!$B$8,IF(D86=8,'[1]Tipo '!$B$9,IF(D86=9,'[1]Tipo '!$B$10,IF(D86=10,'[1]Tipo '!$B$11,IF(D86=11,'[1]Tipo '!$B$12,IF(D86=12,'[1]Tipo '!$B$13,IF(D86=13,'[1]Tipo '!$B$14,IF(D86=14,'[1]Tipo '!$B$15,IF(D86=15,'[1]Tipo '!$B$16,IF(D86=16,'[1]Tipo '!$B$17,IF(D86=17,'[1]Tipo '!$B$18,IF(D86=18,'[1]Tipo '!$B$19,IF(D86=19,'[1]Tipo '!$B$20,"No ha seleccionado un tipo de contrato válido"))))))))))))))))))) -> CONTRATOS DE PRESTACIÓN DE SERVICIOS | F86: Contratación mínima cuantia | G86: No aplica | H86: ¿REALIZAR EL MANTENIMIENTO PREVENTIVO Y CORRECTIVO DE LOS EQUIPOS DE CÓMPUTO, IMPRESORAS, ESCANER, VIDEO BEAM, UPS, EQUIPOS ACTIVOS (SWITCH), SERVIDOR PROPIEDAD DEL FONDO DE DESARROLLO LOCAL DE TEUSAQUILLO, INCLUIDA BOLSA DE REPUESTOS AGOTABLE, SEGÚN NECESIDADES DE LA ENTIDAD DE ACUERDO A LOS PRESENTES ESTUDIOS PREVIOS¿. | I86: FUNCIONAMIENTO | K86: =IF(J86=1,'[1]Equivalencia BH-BMPT'!$D$2,IF(J86=2,'[1]Equivalencia BH-BMPT'!$D$3,IF(J86=3,'[1]Equivalencia BH-BMPT'!$D$4,IF(J86=4,'[1]Equivalencia BH-BMPT'!$D$5,IF(J86=5,'[1]Equivalencia BH-BMPT'!$D$6,IF(J86=6,'[1]Equivalencia BH-BMPT'!$D$7,IF(J86=7,'[1]Equivalencia BH-BMPT'!$D$8,IF(J86=8,'[1]Equivalencia BH-BMPT'!$D$9,IF(J86=9,'[1]Equivalencia BH-BMPT'!$D$10,IF(J86=10,'[1]Equivalencia BH-BMPT'!$D$11,IF(J86=11,'[1]Equivalencia BH-BMPT'!$D$12,IF(J86=12,'[1]Equivalencia BH-BMPT'!$D$13,IF(J86=13,'[1]Equivalencia BH-BMPT'!$D$14,IF(J86=14,'[1]Equivalencia BH-BMPT'!$D$15,IF(J86=15,'[1]Equivalencia BH-BMPT'!$D$16,IF(J86=16,'[1]Equivalencia BH-BMPT'!$D$17,IF(J86=17,'[1]Equivalencia BH-BMPT'!$D$18,IF(J86=18,'[1]Equivalencia BH-BMPT'!$D$19,IF(J86=19,'[1]Equivalencia BH-BMPT'!$D$20,IF(J86=20,'[1]Equivalencia BH-BMPT'!$D$21,IF(J86=21,'[1]Equivalencia BH-BMPT'!$D$22,IF(J86=22,'[1]Equivalencia BH-BMPT'!$D$23,IF(J86=23,'[1]Equivalencia BH-BMPT'!#REF!,IF(J86=24,'[1]Equivalencia BH-BMPT'!$D$25,IF(J86=25,'[1]Equivalencia BH-BMPT'!$D$26,IF(J86=26,'[1]Equivalencia BH-BMPT'!$D$27,IF(J86=27,'[1]Equivalencia BH-BMPT'!$D$28,IF(J86=28,'[1]Equivalencia BH-BMPT'!$D$29,IF(J86=29,'[1]Equivalencia BH-BMPT'!$D$30,IF(J86=30,'[1]Equivalencia BH-BMPT'!$D$31,IF(J86=31,'[1]Equivalencia BH-BMPT'!$D$32,IF(J86=32,'[1]Equivalencia BH-BMPT'!$D$33,IF(J86=33,'[1]Equivalencia BH-BMPT'!$D$34,IF(J86=34,'[1]Equivalencia BH-BMPT'!$D$35,IF(J86=35,'[1]Equivalencia BH-BMPT'!$D$36,IF(J86=36,'[1]Equivalencia BH-BMPT'!$D$37,IF(J86=37,'[1]Equivalencia BH-BMPT'!$D$38,IF(J86=38,'[1]Equivalencia BH-BMPT'!#REF!,IF(J86=39,'[1]Equivalencia BH-BMPT'!$D$40,IF(J86=40,'[1]Equivalencia BH-BMPT'!$D$41,IF(J86=41,'[1]Equivalencia BH-BMPT'!$D$42,IF(J86=42,'[1]Equivalencia BH-BMPT'!$D$43,IF(J86=43,'[1]Equivalencia BH-BMPT'!$D$44,IF(J86=44,'[1]Equivalencia BH-BMPT'!$D$45,IF(J86=45,'[1]Equivalencia BH-BMPT'!$D$46,"No ha seleccionado un número de programa"))))))))))))))))))))))))))))))))))))))))))))) -> No ha seleccionado un número de programa | M86: 900280219 | N86: AA MANTENIMIENTO A COMPUTADORES S.A.S. | O86: 20000000 | S86: 5000000 | T86: 25000000 | U86: 21035550 | V86: 2017-08-04 | W86: 2017-08-15 | X86: 2018-02-14 | Y86: 180 | Z86: 0 | AC86: X | AF86: 0.841422
A87: 65 | B87: 2017 | C87: CPS 065 2017 | D87: 5 | E87: =IF(D87=1,'[1]Tipo '!$B$2,IF(D87=2,'[1]Tipo '!$B$3,IF(D87=3,'[1]Tipo '!$B$4,IF(D87=4,'[1]Tipo '!$B$5,IF(D87=5,'[1]Tipo '!$B$6,IF(D87=6,'[1]Tipo '!$B$7,IF(D87=7,'[1]Tipo '!$B$8,IF(D87=8,'[1]Tipo '!$B$9,IF(D87=9,'[1]Tipo '!$B$10,IF(D87=10,'[1]Tipo '!$B$11,IF(D87=11,'[1]Tipo '!$B$12,IF(D87=12,'[1]Tipo '!$B$13,IF(D87=13,'[1]Tipo '!$B$14,IF(D87=14,'[1]Tipo '!$B$15,IF(D87=15,'[1]Tipo '!$B$16,IF(D87=16,'[1]Tipo '!$B$17,IF(D87=17,'[1]Tipo '!$B$18,IF(D87=18,'[1]Tipo '!$B$19,IF(D87=19,'[1]Tipo '!$B$20,"No ha seleccionado un tipo de contrato válido"))))))))))))))))))) -> CONTRATOS DE PRESTACIÓN DE SERVICIOS PROFESIONALES Y DE APOYO A LA GESTIÓN | F87: CONTRATACIÓN DIRECTA | G87: Prestación de servicios profesionales y de apoyo a la gestión, o para la ejecución de trabajos artísticos que sólo puedan encomendarse a determinadas personas naturales; | H87: OBJETO: El contrato que se pretende celebrar, tendrá por objeto ¿Prestación de servicios para Apoyar y dar soporte técnico al administrador y usuario final de la red de sistemas y tecnología e información de la Alcaldía Local¿. | I87: INVERSIÓN | J87: 45 | K87: =IF(J87=1,'[1]Equivalencia BH-BMPT'!$D$2,IF(J87=2,'[1]Equivalencia BH-BMPT'!$D$3,IF(J87=3,'[1]Equivalencia BH-BMPT'!$D$4,IF(J87=4,'[1]Equivalencia BH-BMPT'!$D$5,IF(J87=5,'[1]Equivalencia BH-BMPT'!$D$6,IF(J87=6,'[1]Equivalencia BH-BMPT'!$D$7,IF(J87=7,'[1]Equivalencia BH-BMPT'!$D$8,IF(J87=8,'[1]Equivalencia BH-BMPT'!$D$9,IF(J87=9,'[1]Equivalencia BH-BMPT'!$D$10,IF(J87=10,'[1]Equivalencia BH-BMPT'!$D$11,IF(J87=11,'[1]Equivalencia BH-BMPT'!$D$12,IF(J87=12,'[1]Equivalencia BH-BMPT'!$D$13,IF(J87=13,'[1]Equivalencia BH-BMPT'!$D$14,IF(J87=14,'[1]Equivalencia BH-BMPT'!$D$15,IF(J87=15,'[1]Equivalencia BH-BMPT'!$D$16,IF(J87=16,'[1]Equivalencia BH-BMPT'!$D$17,IF(J87=17,'[1]Equivalencia BH-BMPT'!$D$18,IF(J87=18,'[1]Equivalencia BH-BMPT'!$D$19,IF(J87=19,'[1]Equivalencia BH-BMPT'!$D$20,IF(J87=20,'[1]Equivalencia BH-BMPT'!$D$21,IF(J87=21,'[1]Equivalencia BH-BMPT'!$D$22,IF(J87=22,'[1]Equivalencia BH-BMPT'!$D$23,IF(J87=23,'[1]Equivalencia BH-BMPT'!#REF!,IF(J87=24,'[1]Equivalencia BH-BMPT'!$D$25,IF(J87=25,'[1]Equivalencia BH-BMPT'!$D$26,IF(J87=26,'[1]Equivalencia BH-BMPT'!$D$27,IF(J87=27,'[1]Equivalencia BH-BMPT'!$D$28,IF(J87=28,'[1]Equivalencia BH-BMPT'!$D$29,IF(J87=29,'[1]Equivalencia BH-BMPT'!$D$30,IF(J87=30,'[1]Equivalencia BH-BMPT'!$D$31,IF(J87=31,'[1]Equivalencia BH-BMPT'!$D$32,IF(J87=32,'[1]Equivalencia BH-BMPT'!$D$33,IF(J87=33,'[1]Equivalencia BH-BMPT'!$D$34,IF(J87=34,'[1]Equivalencia BH-BMPT'!$D$35,IF(J87=35,'[1]Equivalencia BH-BMPT'!$D$36,IF(J87=36,'[1]Equivalencia BH-BMPT'!$D$37,IF(J87=37,'[1]Equivalencia BH-BMPT'!$D$38,IF(J87=38,'[1]Equivalencia BH-BMPT'!#REF!,IF(J87=39,'[1]Equivalencia BH-BMPT'!$D$40,IF(J87=40,'[1]Equivalencia BH-BMPT'!$D$41,IF(J87=41,'[1]Equivalencia BH-BMPT'!$D$42,IF(J87=42,'[1]Equivalencia BH-BMPT'!$D$43,IF(J87=43,'[1]Equivalencia BH-BMPT'!$D$44,IF(J87=44,'[1]Equivalencia BH-BMPT'!$D$45,IF(J87=45,'[1]Equivalencia BH-BMPT'!$D$46,"No ha seleccionado un número de programa"))))))))))))))))))))))))))))))))))))))))))))) -> Gobernanza e influencia local, regional e internacional | L87: 1329 | M87: 80041124 | N87: JOHN ALEJANDRO HERMOSO FORERO | O87: 13300000 | S87: 1100000 | T87: 14400000 | U87: 11700000 | V87: 2017-08-10 | W87: 2017-08-18 | X87: 2018-01-10 | Y87: 134 | Z87: 11 | AC87: X | AF87: 0.8125
A88: 66 | B88: 2017 | C88: CPS 066 2017 | D88: 5 | E88: =IF(D88=1,'[1]Tipo '!$B$2,IF(D88=2,'[1]Tipo '!$B$3,IF(D88=3,'[1]Tipo '!$B$4,IF(D88=4,'[1]Tipo '!$B$5,IF(D88=5,'[1]Tipo '!$B$6,IF(D88=6,'[1]Tipo '!$B$7,IF(D88=7,'[1]Tipo '!$B$8,IF(D88=8,'[1]Tipo '!$B$9,IF(D88=9,'[1]Tipo '!$B$10,IF(D88=10,'[1]Tipo '!$B$11,IF(D88=11,'[1]Tipo '!$B$12,IF(D88=12,'[1]Tipo '!$B$13,IF(D88=13,'[1]Tipo '!$B$14,IF(D88=14,'[1]Tipo '!$B$15,IF(D88=15,'[1]Tipo '!$B$16,IF(D88=16,'[1]Tipo '!$B$17,IF(D88=17,'[1]Tipo '!$B$18,IF(D88=18,'[1]Tipo '!$B$19,IF(D88=19,'[1]Tipo '!$B$20,"No ha seleccionado un tipo de contrato válido"))))))))))))))))))) -> CONTRATOS DE PRESTACIÓN DE SERVICIOS PROFESIONALES Y DE APOYO A LA GESTIÓN | F88: CONTRATACIÓN DIRECTA | G88: Prestación de servicios profesionales y de apoyo a la gestión, o para la ejecución de trabajos artísticos que sólo puedan encomendarse a determinadas personas naturales; | H88: El contrato que se pretende celebrar, tendrá por objeto ¿Prestar los servicios profesionales como Administrador de la Red de Voz y Datos, de la Alcaldía Local de Teusaquillo y JALT, brindando asistencia y soporte técnico del software y hardware de los equipos y programas que maneja la entidad, así como a los usuarios que desarrollen sus actividades en la Alcaldía Local de Teusaquillo y JALT, de acuerdo a los presentes estudios previos | I88: INVERSIÓN | J88: 45 | K88: =IF(J88=1,'[1]Equivalencia BH-BMPT'!$D$2,IF(J88=2,'[1]Equivalencia BH-BMPT'!$D$3,IF(J88=3,'[1]Equivalencia BH-BMPT'!$D$4,IF(J88=4,'[1]Equivalencia BH-BMPT'!$D$5,IF(J88=5,'[1]Equivalencia BH-BMPT'!$D$6,IF(J88=6,'[1]Equivalencia BH-BMPT'!$D$7,IF(J88=7,'[1]Equivalencia BH-BMPT'!$D$8,IF(J88=8,'[1]Equivalencia BH-BMPT'!$D$9,IF(J88=9,'[1]Equivalencia BH-BMPT'!$D$10,IF(J88=10,'[1]Equivalencia BH-BMPT'!$D$11,IF(J88=11,'[1]Equivalencia BH-BMPT'!$D$12,IF(J88=12,'[1]Equivalencia BH-BMPT'!$D$13,IF(J88=13,'[1]Equivalencia BH-BMPT'!$D$14,IF(J88=14,'[1]Equivalencia BH-BMPT'!$D$15,IF(J88=15,'[1]Equivalencia BH-BMPT'!$D$16,IF(J88=16,'[1]Equivalencia BH-BMPT'!$D$17,IF(J88=17,'[1]Equivalencia BH-BMPT'!$D$18,IF(J88=18,'[1]Equivalencia BH-BMPT'!$D$19,IF(J88=19,'[1]Equivalencia BH-BMPT'!$D$20,IF(J88=20,'[1]Equivalencia BH-BMPT'!$D$21,IF(J88=21,'[1]Equivalencia BH-BMPT'!$D$22,IF(J88=22,'[1]Equivalencia BH-BMPT'!$D$23,IF(J88=23,'[1]Equivalencia BH-BMPT'!#REF!,IF(J88=24,'[1]Equivalencia BH-BMPT'!$D$25,IF(J88=25,'[1]Equivalencia BH-BMPT'!$D$26,IF(J88=26,'[1]Equivalencia BH-BMPT'!$D$27,IF(J88=27,'[1]Equivalencia BH-BMPT'!$D$28,IF(J88=28,'[1]Equivalencia BH-BMPT'!$D$29,IF(J88=29,'[1]Equivalencia BH-BMPT'!$D$30,IF(J88=30,'[1]Equivalencia BH-BMPT'!$D$31,IF(J88=31,'[1]Equivalencia BH-BMPT'!$D$32,IF(J88=32,'[1]Equivalencia BH-BMPT'!$D$33,IF(J88=33,'[1]Equivalencia BH-BMPT'!$D$34,IF(J88=34,'[1]Equivalencia BH-BMPT'!$D$35,IF(J88=35,'[1]Equivalencia BH-BMPT'!$D$36,IF(J88=36,'[1]Equivalencia BH-BMPT'!$D$37,IF(J88=37,'[1]Equivalencia BH-BMPT'!$D$38,IF(J88=38,'[1]Equivalencia BH-BMPT'!#REF!,IF(J88=39,'[1]Equivalencia BH-BMPT'!$D$40,IF(J88=40,'[1]Equivalencia BH-BMPT'!$D$41,IF(J88=41,'[1]Equivalencia BH-BMPT'!$D$42,IF(J88=42,'[1]Equivalencia BH-BMPT'!$D$43,IF(J88=43,'[1]Equivalencia BH-BMPT'!$D$44,IF(J88=44,'[1]Equivalencia BH-BMPT'!$D$45,IF(J88=45,'[1]Equivalencia BH-BMPT'!$D$46,"No ha seleccionado un número de programa"))))))))))))))))))))))))))))))))))))))))))))) -> Gobernanza e influencia local, regional e internacional | L88: 1329 | M88: 79415517 | N88: JOHN JAIRO ARBELAEZ CASTAÑEDA | O88: 19040000 | S88: 0 | T88: 19040000 | U88: 16640000 | V88: 2017-09-01 | W88: 2017-09-01 | X88: 2017-12-29 | Y88: =29+90 -> 119 | Z88: 0 | AD88: X | AF88: 0.8739495798
A89: 67 | B89: 2017 | D89: 10 | E89: =IF(D89=1,'[1]Tipo '!$B$2,IF(D89=2,'[1]Tipo '!$B$3,IF(D89=3,'[1]Tipo '!$B$4,IF(D89=4,'[1]Tipo '!$B$5,IF(D89=5,'[1]Tipo '!$B$6,IF(D89=6,'[1]Tipo '!$B$7,IF(D89=7,'[1]Tipo '!$B$8,IF(D89=8,'[1]Tipo '!$B$9,IF(D89=9,'[1]Tipo '!$B$10,IF(D89=10,'[1]Tipo '!$B$11,IF(D89=11,'[1]Tipo '!$B$12,IF(D89=12,'[1]Tipo '!$B$13,IF(D89=13,'[1]Tipo '!$B$14,IF(D89=14,'[1]Tipo '!$B$15,IF(D89=15,'[1]Tipo '!$B$16,IF(D89=16,'[1]Tipo '!$B$17,IF(D89=17,'[1]Tipo '!$B$18,IF(D89=18,'[1]Tipo '!$B$19,IF(D89=19,'[1]Tipo '!$B$20,"No ha seleccionado un tipo de contrato válido"))))))))))))))))))) -> SEGUROS | F89: Selección abreviada | G89: Selección abreviada por menor cuantía | H89: Adicionar el contrato de seguros N° 067-2016, cuyo objeto es ¿Contratar una compañía de seguros legalmente constituida en Colombia, con el fin de asegurar los bienes muebles e inmuebles y demás intereses patrimoniales del Fondo de Desarrollo local de Teusaquillo y los que se encuentran bajo su cuidado, tenencia, control o por los que legalmente pueda ser responsable | I89: FUNCIONAMIENTO | K89: =IF(J89=1,'[1]Equivalencia BH-BMPT'!$D$2,IF(J89=2,'[1]Equivalencia BH-BMPT'!$D$3,IF(J89=3,'[1]Equivalencia BH-BMPT'!$D$4,IF(J89=4,'[1]Equivalencia BH-BMPT'!$D$5,IF(J89=5,'[1]Equivalencia BH-BMPT'!$D$6,IF(J89=6,'[1]Equivalencia BH-BMPT'!$D$7,IF(J89=7,'[1]Equivalencia BH-BMPT'!$D$8,IF(J89=8,'[1]Equivalencia BH-BMPT'!$D$9,IF(J89=9,'[1]Equivalencia BH-BMPT'!$D$10,IF(J89=10,'[1]Equivalencia BH-BMPT'!$D$11,IF(J89=11,'[1]Equivalencia BH-BMPT'!$D$12,IF(J89=12,'[1]Equivalencia BH-BMPT'!$D$13,IF(J89=13,'[1]Equivalencia BH-BMPT'!$D$14,IF(J89=14,'[1]Equivalencia BH-BMPT'!$D$15,IF(J89=15,'[1]Equivalencia BH-BMPT'!$D$16,IF(J89=16,'[1]Equivalencia BH-BMPT'!$D$17,IF(J89=17,'[1]Equivalencia BH-BMPT'!$D$18,IF(J89=18,'[1]Equivalencia BH-BMPT'!$D$19,IF(J89=19,'[1]Equivalencia BH-BMPT'!$D$20,IF(J89=20,'[1]Equivalencia BH-BMPT'!$D$21,IF(J89=21,'[1]Equivalencia BH-BMPT'!$D$22,IF(J89=22,'[1]Equivalencia BH-BMPT'!$D$23,IF(J89=23,'[1]Equivalencia BH-BMPT'!#REF!,IF(J89=24,'[1]Equivalencia BH-BMPT'!$D$25,IF(J89=25,'[1]Equivalencia BH-BMPT'!$D$26,IF(J89=26,'[1]Equivalencia BH-BMPT'!$D$27,IF(J89=27,'[1]Equivalencia BH-BMPT'!$D$28,IF(J89=28,'[1]Equivalencia BH-BMPT'!$D$29,IF(J89=29,'[1]Equivalencia BH-BMPT'!$D$30,IF(J89=30,'[1]Equivalencia BH-BMPT'!$D$31,IF(J89=31,'[1]Equivalencia BH-BMPT'!$D$32,IF(J89=32,'[1]Equivalencia BH-BMPT'!$D$33,IF(J89=33,'[1]Equivalencia BH-BMPT'!$D$34,IF(J89=34,'[1]Equivalencia BH-BMPT'!$D$35,IF(J89=35,'[1]Equivalencia BH-BMPT'!$D$36,IF(J89=36,'[1]Equivalencia BH-BMPT'!$D$37,IF(J89=37,'[1]Equivalencia BH-BMPT'!$D$38,IF(J89=38,'[1]Equivalencia BH-BMPT'!#REF!,IF(J89=39,'[1]Equivalencia BH-BMPT'!$D$40,IF(J89=40,'[1]Equivalencia BH-BMPT'!$D$41,IF(J89=41,'[1]Equivalencia BH-BMPT'!$D$42,IF(J89=42,'[1]Equivalencia BH-BMPT'!$D$43,IF(J89=43,'[1]Equivalencia BH-BMPT'!$D$44,IF(J89=44,'[1]Equivalencia BH-BMPT'!$D$45,IF(J89=45,'[1]Equivalencia BH-BMPT'!$D$46,"No ha seleccionado un número de programa"))))))))))))))))))))))))))))))))))))))))))))) -> No ha seleccionado un número de programa | M89: 860002400 | N89: LA PREVISORA S A COMPAÑIA DE SEGUROS | S89: 20627541 | T89: 20627541 | U89: 20627541 | V89: 2016-09-22 | W89: 2016-09-26 | X89: 2017-08-11 | Y89: 230 | Z89: 90 | AD89: X | AF89: 1
A90: 67 | B90: 2017 | C90: CPS 067 2017 | D90: 5 | E90: =IF(D90=1,'[1]Tipo '!$B$2,IF(D90=2,'[1]Tipo '!$B$3,IF(D90=3,'[1]Tipo '!$B$4,IF(D90=4,'[1]Tipo '!$B$5,IF(D90=5,'[1]Tipo '!$B$6,IF(D90=6,'[1]Tipo '!$B$7,IF(D90=7,'[1]Tipo '!$B$8,IF(D90=8,'[1]Tipo '!$B$9,IF(D90=9,'[1]Tipo '!$B$10,IF(D90=10,'[1]Tipo '!$B$11,IF(D90=11,'[1]Tipo '!$B$12,IF(D90=12,'[1]Tipo '!$B$13,IF(D90=13,'[1]Tipo '!$B$14,IF(D90=14,'[1]Tipo '!$B$15,IF(D90=15,'[1]Tipo '!$B$16,IF(D90=16,'[1]Tipo '!$B$17,IF(D90=17,'[1]Tipo '!$B$18,IF(D90=18,'[1]Tipo '!$B$19,IF(D90=19,'[1]Tipo '!$B$20,"No ha seleccionado un tipo de contrato válido"))))))))))))))))))) -> CONTRATOS DE PRESTACIÓN DE SERVICIOS PROFESIONALES Y DE APOYO A LA GESTIÓN | F90: CONTRATACIÓN DIRECTA | G90: Prestación de servicios profesionales y de apoyo a la gestión, o para la ejecución de trabajos artísticos que sólo puedan encomendarse a determinadas personas naturales; | H90: EL CONTRATO QUE SE PRETENDE CELEBRAR, TENDRÁ POR OBJETO "APOYAR OPERATIVAMENTE LAS ACCIONES RELACIONADAS CON LA APLICACION DE COMPARENDOS POR COMPORTAMIENTOS CONTRARIOS A LAS CONVIVENCIAS, DESPACHOS COMISORIOS, CTUALIZACION DE APLICATIVOS ENTRE OTROAS QUE SE REQUIERAN" | I90: INVERSIÓN | J90: 45 | K90: =IF(J90=1,'[1]Equivalencia BH-BMPT'!$D$2,IF(J90=2,'[1]Equivalencia BH-BMPT'!$D$3,IF(J90=3,'[1]Equivalencia BH-BMPT'!$D$4,IF(J90=4,'[1]Equivalencia BH-BMPT'!$D$5,IF(J90=5,'[1]Equivalencia BH-BMPT'!$D$6,IF(J90=6,'[1]Equivalencia BH-BMPT'!$D$7,IF(J90=7,'[1]Equivalencia BH-BMPT'!$D$8,IF(J90=8,'[1]Equivalencia BH-BMPT'!$D$9,IF(J90=9,'[1]Equivalencia BH-BMPT'!$D$10,IF(J90=10,'[1]Equivalencia BH-BMPT'!$D$11,IF(J90=11,'[1]Equivalencia BH-BMPT'!$D$12,IF(J90=12,'[1]Equivalencia BH-BMPT'!$D$13,IF(J90=13,'[1]Equivalencia BH-BMPT'!$D$14,IF(J90=14,'[1]Equivalencia BH-BMPT'!$D$15,IF(J90=15,'[1]Equivalencia BH-BMPT'!$D$16,IF(J90=16,'[1]Equivalencia BH-BMPT'!$D$17,IF(J90=17,'[1]Equivalencia BH-BMPT'!$D$18,IF(J90=18,'[1]Equivalencia BH-BMPT'!$D$19,IF(J90=19,'[1]Equivalencia BH-BMPT'!$D$20,IF(J90=20,'[1]Equivalencia BH-BMPT'!$D$21,IF(J90=21,'[1]Equivalencia BH-BMPT'!$D$22,IF(J90=22,'[1]Equivalencia BH-BMPT'!$D$23,IF(J90=23,'[1]Equivalencia BH-BMPT'!#REF!,IF(J90=24,'[1]Equivalencia BH-BMPT'!$D$25,IF(J90=25,'[1]Equivalencia BH-BMPT'!$D$26,IF(J90=26,'[1]Equivalencia BH-BMPT'!$D$27,IF(J90=27,'[1]Equivalencia BH-BMPT'!$D$28,IF(J90=28,'[1]Equivalencia BH-BMPT'!$D$29,IF(J90=29,'[1]Equivalencia BH-BMPT'!$D$30,IF(J90=30,'[1]Equivalencia BH-BMPT'!$D$31,IF(J90=31,'[1]Equivalencia BH-BMPT'!$D$32,IF(J90=32,'[1]Equivalencia BH-BMPT'!$D$33,IF(J90=33,'[1]Equivalencia BH-BMPT'!$D$34,IF(J90=34,'[1]Equivalencia BH-BMPT'!$D$35,IF(J90=35,'[1]Equivalencia BH-BMPT'!$D$36,IF(J90=36,'[1]Equivalencia BH-BMPT'!$D$37,IF(J90=37,'[1]Equivalencia BH-BMPT'!$D$38,IF(J90=38,'[1]Equivalencia BH-BMPT'!#REF!,IF(J90=39,'[1]Equivalencia BH-BMPT'!$D$40,IF(J90=40,'[1]Equivalencia BH-BMPT'!$D$41,IF(J90=41,'[1]Equivalencia BH-BMPT'!$D$42,IF(J90=42,'[1]Equivalencia BH-BMPT'!$D$43,IF(J90=43,'[1]Equivalencia BH-BMPT'!$D$44,IF(J90=44,'[1]Equivalencia BH-BMPT'!$D$45,IF(J90=45,'[1]Equivalencia BH-BMPT'!$D$46,"No ha seleccionado un número de programa"))))))))))))))))))))))))))))))))))))))))))))) -> Gobernanza e influencia local, regional e internacional | L90: 1329 | M90: 1015407312 | N90: ANDREA CATALINA GARCIA FLOREZ | O90: 11124771 | S90: 1054935 | T90: 12179706 | U90: 9590320 | V90: 2017-09-05 | W90: 2017-09-05 | X90: 2018-01-10 | Y90: =26+90 -> 116 | Z90: 11 | AC90: X | AF90: 0.7874016007
A91: 68 | B91: 2016 | D91: 4 | E91: =IF(D91=1,'[1]Tipo '!$B$2,IF(D91=2,'[1]Tipo '!$B$3,IF(D91=3,'[1]Tipo '!$B$4,IF(D91=4,'[1]Tipo '!$B$5,IF(D91=5,'[1]Tipo '!$B$6,IF(D91=6,'[1]Tipo '!$B$7,IF(D91=7,'[1]Tipo '!$B$8,IF(D91=8,'[1]Tipo '!$B$9,IF(D91=9,'[1]Tipo '!$B$10,IF(D91=10,'[1]Tipo '!$B$11,IF(D91=11,'[1]Tipo '!$B$12,IF(D91=12,'[1]Tipo '!$B$13,IF(D91=13,'[1]Tipo '!$B$14,IF(D91=14,'[1]Tipo '!$B$15,IF(D91=15,'[1]Tipo '!$B$16,IF(D91=16,'[1]Tipo '!$B$17,IF(D91=17,'[1]Tipo '!$B$18,IF(D91=18,'[1]Tipo '!$B$19,IF(D91=19,'[1]Tipo '!$B$20,"No ha seleccionado un tipo de contrato válido"))))))))))))))))))) -> CONTRATOS DE PRESTACIÓN DE SERVICIOS | F91: Selección abreviada | G91: Selección abreviada por menor cuantía | H91: ADICIÓN Y PRORROGA NO 2 AL CPS NO. 068-2015 CUYO OBJETO ES:¿ PRESTAR A LA ALCALDÍA LOCAL DE TEUSAQUILLO EL SERVICIO INTEGRAL DE TRANSPORTE TERRESTRE ESPECIAL CONTINÚO, CON EL PROPÓSITO DE TRASLADAR A LOS FUNCIONARIOS/AS, CONTRATISTAS Y/O USUARIOS EN EL MARCO DE LA MISIONALIDAD DE LA ALCALDÍA LOCAL DE TEUSAQUILLO, EN CUMPLIMIENTO AL PLAN DE GESTIÓN, PLAN DE DESARROLLO LOCAL, DE CONFORMIDAD CON LOS PRESENTES ESTUDIOS PREVIOS¿. | I91: FUNCIONAMIENTO | K91: =IF(J91=1,'[1]Equivalencia BH-BMPT'!$D$2,IF(J91=2,'[1]Equivalencia BH-BMPT'!$D$3,IF(J91=3,'[1]Equivalencia BH-BMPT'!$D$4,IF(J91=4,'[1]Equivalencia BH-BMPT'!$D$5,IF(J91=5,'[1]Equivalencia BH-BMPT'!$D$6,IF(J91=6,'[1]Equivalencia BH-BMPT'!$D$7,IF(J91=7,'[1]Equivalencia BH-BMPT'!$D$8,IF(J91=8,'[1]Equivalencia BH-BMPT'!$D$9,IF(J91=9,'[1]Equivalencia BH-BMPT'!$D$10,IF(J91=10,'[1]Equivalencia BH-BMPT'!$D$11,IF(J91=11,'[1]Equivalencia BH-BMPT'!$D$12,IF(J91=12,'[1]Equivalencia BH-BMPT'!$D$13,IF(J91=13,'[1]Equivalencia BH-BMPT'!$D$14,IF(J91=14,'[1]Equivalencia BH-BMPT'!$D$15,IF(J91=15,'[1]Equivalencia BH-BMPT'!$D$16,IF(J91=16,'[1]Equivalencia BH-BMPT'!$D$17,IF(J91=17,'[1]Equivalencia BH-BMPT'!$D$18,IF(J91=18,'[1]Equivalencia BH-BMPT'!$D$19,IF(J91=19,'[1]Equivalencia BH-BMPT'!$D$20,IF(J91=20,'[1]Equivalencia BH-BMPT'!$D$21,IF(J91=21,'[1]Equivalencia BH-BMPT'!$D$22,IF(J91=22,'[1]Equivalencia BH-BMPT'!$D$23,IF(J91=23,'[1]Equivalencia BH-BMPT'!#REF!,IF(J91=24,'[1]Equivalencia BH-BMPT'!$D$25,IF(J91=25,'[1]Equivalencia BH-BMPT'!$D$26,IF(J91=26,'[1]Equivalencia BH-BMPT'!$D$27,IF(J91=27,'[1]Equivalencia BH-BMPT'!$D$28,IF(J91=28,'[1]Equivalencia BH-BMPT'!$D$29,IF(J91=29,'[1]Equivalencia BH-BMPT'!$D$30,IF(J91=30,'[1]Equivalencia BH-BMPT'!$D$31,IF(J91=31,'[1]Equivalencia BH-BMPT'!$D$32,IF(J91=32,'[1]Equivalencia BH-BMPT'!$D$33,IF(J91=33,'[1]Equivalencia BH-BMPT'!$D$34,IF(J91=34,'[1]Equivalencia BH-BMPT'!$D$35,IF(J91=35,'[1]Equivalencia BH-BMPT'!$D$36,IF(J91=36,'[1]Equivalencia BH-BMPT'!$D$37,IF(J91=37,'[1]Equivalencia BH-BMPT'!$D$38,IF(J91=38,'[1]Equivalencia BH-BMPT'!#REF!,IF(J91=39,'[1]Equivalencia BH-BMPT'!$D$40,IF(J91=40,'[1]Equivalencia BH-BMPT'!$D$41,IF(J91=41,'[1]Equivalencia BH-BMPT'!$D$42,IF(J91=42,'[1]Equivalencia BH-BMPT'!$D$43,IF(J91=43,'[1]Equivalencia BH-BMPT'!$D$44,IF(J91=44,'[1]Equivalencia BH-BMPT'!$D$45,IF(J91=45,'[1]Equivalencia BH-BMPT'!$D$46,"No ha seleccionado un número de programa"))))))))))))))))))))))))))))))))))))))))))))) -> No ha seleccionado un número de programa | M91: 830102646 | N91: TRANSPORTES ESIVANS SAS | S91: 13689763 | T91: 13689763 | U91: 13689763 | V91: 2016-09-27 | W91: 2016-09-30 | X91: 2017-08-29 | Y91: 180 | Z91: 60 | AE91: X | AF91: 1
A92: 68 | B92: 2017 | C92: CPS 068 2017 | D92: 10 | E92: =IF(D92=1,'[1]Tipo '!$B$2,IF(D92=2,'[1]Tipo '!$B$3,IF(D92=3,'[1]Tipo '!$B$4,IF(D92=4,'[1]Tipo '!$B$5,IF(D92=5,'[1]Tipo '!$B$6,IF(D92=6,'[1]Tipo '!$B$7,IF(D92=7,'[1]Tipo '!$B$8,IF(D92=8,'[1]Tipo '!$B$9,IF(D92=9,'[1]Tipo '!$B$10,IF(D92=10,'[1]Tipo '!$B$11,IF(D92=11,'[1]Tipo '!$B$12,IF(D92=12,'[1]Tipo '!$B$13,IF(D92=13,'[1]Tipo '!$B$14,IF(D92=14,'[1]Tipo '!$B$15,IF(D92=15,'[1]Tipo '!$B$16,IF(D92=16,'[1]Tipo '!$B$17,IF(D92=17,'[1]Tipo '!$B$18,IF(D92=18,'[1]Tipo '!$B$19,IF(D92=19,'[1]Tipo '!$B$20,"No ha seleccionado un tipo de contrato válido"))))))))))))))))))) -> SEGUROS | F92: Selección abreviada | G92: Selección abreviada por menor cuantía | H92: Adquisición de las pólizas de daños y patrimoniales, para el programa de seguros del Fondo de Desarrollo Local de Teusaquillo con el fin de proteger los bienes muebles e inmuebles de su propiedad, los intereses patrimoniales y los que se encuentren bajo su cuidado, custodia, tenencia y control | I92: FUNCIONAMIENTO | K92: =IF(J92=1,'[1]Equivalencia BH-BMPT'!$D$2,IF(J92=2,'[1]Equivalencia BH-BMPT'!$D$3,IF(J92=3,'[1]Equivalencia BH-BMPT'!$D$4,IF(J92=4,'[1]Equivalencia BH-BMPT'!$D$5,IF(J92=5,'[1]Equivalencia BH-BMPT'!$D$6,IF(J92=6,'[1]Equivalencia BH-BMPT'!$D$7,IF(J92=7,'[1]Equivalencia BH-BMPT'!$D$8,IF(J92=8,'[1]Equivalencia BH-BMPT'!$D$9,IF(J92=9,'[1]Equivalencia BH-BMPT'!$D$10,IF(J92=10,'[1]Equivalencia BH-BMPT'!$D$11,IF(J92=11,'[1]Equivalencia BH-BMPT'!$D$12,IF(J92=12,'[1]Equivalencia BH-BMPT'!$D$13,IF(J92=13,'[1]Equivalencia BH-BMPT'!$D$14,IF(J92=14,'[1]Equivalencia BH-BMPT'!$D$15,IF(J92=15,'[1]Equivalencia BH-BMPT'!$D$16,IF(J92=16,'[1]Equivalencia BH-BMPT'!$D$17,IF(J92=17,'[1]Equivalencia BH-BMPT'!$D$18,IF(J92=18,'[1]Equivalencia BH-BMPT'!$D$19,IF(J92=19,'[1]Equivalencia BH-BMPT'!$D$20,IF(J92=20,'[1]Equivalencia BH-BMPT'!$D$21,IF(J92=21,'[1]Equivalencia BH-BMPT'!$D$22,IF(J92=22,'[1]Equivalencia BH-BMPT'!$D$23,IF(J92=23,'[1]Equivalencia BH-BMPT'!#REF!,IF(J92=24,'[1]Equivalencia BH-BMPT'!$D$25,IF(J92=25,'[1]Equivalencia BH-BMPT'!$D$26,IF(J92=26,'[1]Equivalencia BH-BMPT'!$D$27,IF(J92=27,'[1]Equivalencia BH-BMPT'!$D$28,IF(J92=28,'[1]Equivalencia BH-BMPT'!$D$29,IF(J92=29,'[1]Equivalencia BH-BMPT'!$D$30,IF(J92=30,'[1]Equivalencia BH-BMPT'!$D$31,IF(J92=31,'[1]Equivalencia BH-BMPT'!$D$32,IF(J92=32,'[1]Equivalencia BH-BMPT'!$D$33,IF(J92=33,'[1]Equivalencia BH-BMPT'!$D$34,IF(J92=34,'[1]Equivalencia BH-BMPT'!$D$35,IF(J92=35,'[1]Equivalencia BH-BMPT'!$D$36,IF(J92=36,'[1]Equivalencia BH-BMPT'!$D$37,IF(J92=37,'[1]Equivalencia BH-BMPT'!$D$38,IF(J92=38,'[1]Equivalencia BH-BMPT'!#REF!,IF(J92=39,'[1]Equivalencia BH-BMPT'!$D$40,IF(J92=40,'[1]Equivalencia BH-BMPT'!$D$41,IF(J92=41,'[1]Equivalencia BH-BMPT'!$D$42,IF(J92=42,'[1]Equivalencia BH-BMPT'!$D$43,IF(J92=43,'[1]Equivalencia BH-BMPT'!$D$44,IF(J92=44,'[1]Equivalencia BH-BMPT'!$D$45,IF(J92=45,'[1]Equivalencia BH-BMPT'!$D$46,"No ha seleccionado un número de programa"))))))))))))))))))))))))))))))))))))))))))))) -> No ha seleccionado un número de programa | M92: 860002400 | N92: LA PREVISORA S A COMPAÑIA DE SEGUROS | O92: 44372459 | S92: 0 | T92: 44372459 | U92: 36448536 | V92: 2017-09-15 | W92: 2017-09-16 | X92: 2018-04-19 | Y92: 215 | Z92: 0 | AC92: X | AF92: 0.8214224954
A93: 70 | B93: 2017 | C93: CPS 070 2017 | D93: 5 | E93: =IF(D93=1,'[1]Tipo '!$B$2,IF(D93=2,'[1]Tipo '!$B$3,IF(D93=3,'[1]Tipo '!$B$4,IF(D93=4,'[1]Tipo '!$B$5,IF(D93=5,'[1]Tipo '!$B$6,IF(D93=6,'[1]Tipo '!$B$7,IF(D93=7,'[1]Tipo '!$B$8,IF(D93=8,'[1]Tipo '!$B$9,IF(D93=9,'[1]Tipo '!$B$10,IF(D93=10,'[1]Tipo '!$B$11,IF(D93=11,'[1]Tipo '!$B$12,IF(D93=12,'[1]Tipo '!$B$13,IF(D93=13,'[1]Tipo '!$B$14,IF(D93=14,'[1]Tipo '!$B$15,IF(D93=15,'[1]Tipo '!$B$16,IF(D93=16,'[1]Tipo '!$B$17,IF(D93=17,'[1]Tipo '!$B$18,IF(D93=18,'[1]Tipo '!$B$19,IF(D93=19,'[1]Tipo '!$B$20,"No ha seleccionado un tipo de contrato válido"))))))))))))))))))) -> CONTRATOS DE PRESTACIÓN DE SERVICIOS PROFESIONALES Y DE APOYO A LA GESTIÓN | F93: CONTRATACIÓN DIRECTA | G93: Prestación de servicios profesionales y de apoyo a la gestión, o para la ejecución de trabajos artísticos que sólo puedan encomendarse a determinadas personas naturales; | H93: OBJETO: El contrato que se pretende celebrar, tendrá por objeto ¿Apoyar la gestión documental de la Alcaldía Local para la implementación del Procedimiento De Gestión Documental en el desarrollo de actividades como la recepción, distribución, trámite, organización, consulta, conservación y disposición final de los documentos que producen todas las dependencias de la Administración Local¿. | I93: INVERSIÓN | J93: 45 | K93: =IF(J93=1,'[1]Equivalencia BH-BMPT'!$D$2,IF(J93=2,'[1]Equivalencia BH-BMPT'!$D$3,IF(J93=3,'[1]Equivalencia BH-BMPT'!$D$4,IF(J93=4,'[1]Equivalencia BH-BMPT'!$D$5,IF(J93=5,'[1]Equivalencia BH-BMPT'!$D$6,IF(J93=6,'[1]Equivalencia BH-BMPT'!$D$7,IF(J93=7,'[1]Equivalencia BH-BMPT'!$D$8,IF(J93=8,'[1]Equivalencia BH-BMPT'!$D$9,IF(J93=9,'[1]Equivalencia BH-BMPT'!$D$10,IF(J93=10,'[1]Equivalencia BH-BMPT'!$D$11,IF(J93=11,'[1]Equivalencia BH-BMPT'!$D$12,IF(J93=12,'[1]Equivalencia BH-BMPT'!$D$13,IF(J93=13,'[1]Equivalencia BH-BMPT'!$D$14,IF(J93=14,'[1]Equivalencia BH-BMPT'!$D$15,IF(J93=15,'[1]Equivalencia BH-BMPT'!$D$16,IF(J93=16,'[1]Equivalencia BH-BMPT'!$D$17,IF(J93=17,'[1]Equivalencia BH-BMPT'!$D$18,IF(J93=18,'[1]Equivalencia BH-BMPT'!$D$19,IF(J93=19,'[1]Equivalencia BH-BMPT'!$D$20,IF(J93=20,'[1]Equivalencia BH-BMPT'!$D$21,IF(J93=21,'[1]Equivalencia BH-BMPT'!$D$22,IF(J93=22,'[1]Equivalencia BH-BMPT'!$D$23,IF(J93=23,'[1]Equivalencia BH-BMPT'!#REF!,IF(J93=24,'[1]Equivalencia BH-BMPT'!$D$25,IF(J93=25,'[1]Equivalencia BH-BMPT'!$D$26,IF(J93=26,'[1]Equivalencia BH-BMPT'!$D$27,IF(J93=27,'[1]Equivalencia BH-BMPT'!$D$28,IF(J93=28,'[1]Equivalencia BH-BMPT'!$D$29,IF(J93=29,'[1]Equivalencia BH-BMPT'!$D$30,IF(J93=30,'[1]Equivalencia BH-BMPT'!$D$31,IF(J93=31,'[1]Equivalencia BH-BMPT'!$D$32,IF(J93=32,'[1]Equivalencia BH-BMPT'!$D$33,IF(J93=33,'[1]Equivalencia BH-BMPT'!$D$34,IF(J93=34,'[1]Equivalencia BH-BMPT'!$D$35,IF(J93=35,'[1]Equivalencia BH-BMPT'!$D$36,IF(J93=36,'[1]Equivalencia BH-BMPT'!$D$37,IF(J93=37,'[1]Equivalencia BH-BMPT'!$D$38,IF(J93=38,'[1]Equivalencia BH-BMPT'!#REF!,IF(J93=39,'[1]Equivalencia BH-BMPT'!$D$40,IF(J93=40,'[1]Equivalencia BH-BMPT'!$D$41,IF(J93=41,'[1]Equivalencia BH-BMPT'!$D$42,IF(J93=42,'[1]Equivalencia BH-BMPT'!$D$43,IF(J93=43,'[1]Equivalencia BH-BMPT'!$D$44,IF(J93=44,'[1]Equivalencia BH-BMPT'!$D$45,IF(J93=45,'[1]Equivalencia BH-BMPT'!$D$46,"No ha seleccionado un número de programa"))))))))))))))))))))))))))))))))))))))))))))) -> Gobernanza e influencia local, regional e internacional | L93: 1329 | M93: 51749302 | N93: MARTHA JEANETH CASTRO MENDOZA | O93: 10230000 | S93: 0 | T93: 10230000 | U93: 8576667 | V93: 2017-09-20 | W93: 2017-09-22 | X93: 2017-12-30 | Y93: =9+90 -> 99 | Z93: 0 | AE93: X | AF93: 0.838383871
A94: 71 | B94: 2017 | C94: CPS 071 2017 | D94: 5 | E94: =IF(D94=1,'[1]Tipo '!$B$2,IF(D94=2,'[1]Tipo '!$B$3,IF(D94=3,'[1]Tipo '!$B$4,IF(D94=4,'[1]Tipo '!$B$5,IF(D94=5,'[1]Tipo '!$B$6,IF(D94=6,'[1]Tipo '!$B$7,IF(D94=7,'[1]Tipo '!$B$8,IF(D94=8,'[1]Tipo '!$B$9,IF(D94=9,'[1]Tipo '!$B$10,IF(D94=10,'[1]Tipo '!$B$11,IF(D94=11,'[1]Tipo '!$B$12,IF(D94=12,'[1]Tipo '!$B$13,IF(D94=13,'[1]Tipo '!$B$14,IF(D94=14,'[1]Tipo '!$B$15,IF(D94=15,'[1]Tipo '!$B$16,IF(D94=16,'[1]Tipo '!$B$17,IF(D94=17,'[1]Tipo '!$B$18,IF(D94=18,'[1]Tipo '!$B$19,IF(D94=19,'[1]Tipo '!$B$20,"No ha seleccionado un tipo de contrato válido"))))))))))))))))))) -> CONTRATOS DE PRESTACIÓN DE SERVICIOS PROFESIONALES Y DE APOYO A LA GESTIÓN | F94: CONTRATACIÓN DIRECTA | G94: Prestación de servicios profesionales y de apoyo a la gestión, o para la ejecución de trabajos artísticos que sólo puedan encomendarse a determinadas personas naturales; | H94: El contrato que se pretende celebrar, tendrá por objeto: "Prestar servicios profesionales como apoyo a la gestión en el Área Gestión de Desarrollo Local de Teusaquillo realizando las actividades precontractuales, de ejecución, seguimiento y liquidación necesarias que conlleven a dar cumplimiento al plan anual de adquisiciones 2017 en lo referente a los rubros de funcionamiento y componentes asignados del Proyecto 1329, plan de gestión, de acuerdo a los presentes estudios previos | I94: INVERSIÓN | J94: 45 | K94: =IF(J94=1,'[1]Equivalencia BH-BMPT'!$D$2,IF(J94=2,'[1]Equivalencia BH-BMPT'!$D$3,IF(J94=3,'[1]Equivalencia BH-BMPT'!$D$4,IF(J94=4,'[1]Equivalencia BH-BMPT'!$D$5,IF(J94=5,'[1]Equivalencia BH-BMPT'!$D$6,IF(J94=6,'[1]Equivalencia BH-BMPT'!$D$7,IF(J94=7,'[1]Equivalencia BH-BMPT'!$D$8,IF(J94=8,'[1]Equivalencia BH-BMPT'!$D$9,IF(J94=9,'[1]Equivalencia BH-BMPT'!$D$10,IF(J94=10,'[1]Equivalencia BH-BMPT'!$D$11,IF(J94=11,'[1]Equivalencia BH-BMPT'!$D$12,IF(J94=12,'[1]Equivalencia BH-BMPT'!$D$13,IF(J94=13,'[1]Equivalencia BH-BMPT'!$D$14,IF(J94=14,'[1]Equivalencia BH-BMPT'!$D$15,IF(J94=15,'[1]Equivalencia BH-BMPT'!$D$16,IF(J94=16,'[1]Equivalencia BH-BMPT'!$D$17,IF(J94=17,'[1]Equivalencia BH-BMPT'!$D$18,IF(J94=18,'[1]Equivalencia BH-BMPT'!$D$19,IF(J94=19,'[1]Equivalencia BH-BMPT'!$D$20,IF(J94=20,'[1]Equivalencia BH-BMPT'!$D$21,IF(J94=21,'[1]Equivalencia BH-BMPT'!$D$22,IF(J94=22,'[1]Equivalencia BH-BMPT'!$D$23,IF(J94=23,'[1]Equivalencia BH-BMPT'!#REF!,IF(J94=24,'[1]Equivalencia BH-BMPT'!$D$25,IF(J94=25,'[1]Equivalencia BH-BMPT'!$D$26,IF(J94=26,'[1]Equivalencia BH-BMPT'!$D$27,IF(J94=27,'[1]Equivalencia BH-BMPT'!$D$28,IF(J94=28,'[1]Equivalencia BH-BMPT'!$D$29,IF(J94=29,'[1]Equivalencia BH-BMPT'!$D$30,IF(J94=30,'[1]Equivalencia BH-BMPT'!$D$31,IF(J94=31,'[1]Equivalencia BH-BMPT'!$D$32,IF(J94=32,'[1]Equivalencia BH-BMPT'!$D$33,IF(J94=33,'[1]Equivalencia BH-BMPT'!$D$34,IF(J94=34,'[1]Equivalencia BH-BMPT'!$D$35,IF(J94=35,'[1]Equivalencia BH-BMPT'!$D$36,IF(J94=36,'[1]Equivalencia BH-BMPT'!$D$37,IF(J94=37,'[1]Equivalencia BH-BMPT'!$D$38,IF(J94=38,'[1]Equivalencia BH-BMPT'!#REF!,IF(J94=39,'[1]Equivalencia BH-BMPT'!$D$40,IF(J94=40,'[1]Equivalencia BH-BMPT'!$D$41,IF(J94=41,'[1]Equivalencia BH-BMPT'!$D$42,IF(J94=42,'[1]Equivalencia BH-BMPT'!$D$43,IF(J94=43,'[1]Equivalencia BH-BMPT'!$D$44,IF(J94=44,'[1]Equivalencia BH-BMPT'!$D$45,IF(J94=45,'[1]Equivalencia BH-BMPT'!$D$46,"No ha seleccionado un número de programa"))))))))))))))))))))))))))))))))))))))))))))) -> Gobernanza e influencia local, regional e internacional | L94: 1329 | M94: 79765033 | N94: DAIRO JEZZID LEON ROMERO | O94: 14700000 | S94: 1800000 | T94: 16500000 | U94: 12450000 | V94: 2017-09-22 | W94: 2017-09-22 | X94: 2018-01-10 | Y94: =8+90 -> 98 | Z94: 12 | AC94: X | AF94: 0.7545454545
A95: 72 | B95: 2017 | C95: CPS 072 2017 | D95: 5 | E95: =IF(D95=1,'[1]Tipo '!$B$2,IF(D95=2,'[1]Tipo '!$B$3,IF(D95=3,'[1]Tipo '!$B$4,IF(D95=4,'[1]Tipo '!$B$5,IF(D95=5,'[1]Tipo '!$B$6,IF(D95=6,'[1]Tipo '!$B$7,IF(D95=7,'[1]Tipo '!$B$8,IF(D95=8,'[1]Tipo '!$B$9,IF(D95=9,'[1]Tipo '!$B$10,IF(D95=10,'[1]Tipo '!$B$11,IF(D95=11,'[1]Tipo '!$B$12,IF(D95=12,'[1]Tipo '!$B$13,IF(D95=13,'[1]Tipo '!$B$14,IF(D95=14,'[1]Tipo '!$B$15,IF(D95=15,'[1]Tipo '!$B$16,IF(D95=16,'[1]Tipo '!$B$17,IF(D95=17,'[1]Tipo '!$B$18,IF(D95=18,'[1]Tipo '!$B$19,IF(D95=19,'[1]Tipo '!$B$20,"No ha seleccionado un tipo de contrato válido"))))))))))))))))))) -> CONTRATOS DE PRESTACIÓN DE SERVICIOS PROFESIONALES Y DE APOYO A LA GESTIÓN | F95: CONTRATACIÓN DIRECTA | G95: Prestación de servicios profesionales y de apoyo a la gestión, o para la ejecución de trabajos artísticos que sólo puedan encomendarse a determinadas personas naturales; | H95: El contrato que se pretende celebrar, tendrá por objeto ¿Prestación de servicios de apoyo de logística que se requieran en el desarrollo de las actividades relativas a recuperación y embellecimiento del espacio público dentro del proyecto 1338 Teusaquillo Mejor para la conservación de la malla vial local y Espacio Público Peatonal¿. | I95: INVERSIÓN | J95: 18 | K95: =IF(J95=1,'[1]Equivalencia BH-BMPT'!$D$2,IF(J95=2,'[1]Equivalencia BH-BMPT'!$D$3,IF(J95=3,'[1]Equivalencia BH-BMPT'!$D$4,IF(J95=4,'[1]Equivalencia BH-BMPT'!$D$5,IF(J95=5,'[1]Equivalencia BH-BMPT'!$D$6,IF(J95=6,'[1]Equivalencia BH-BMPT'!$D$7,IF(J95=7,'[1]Equivalencia BH-BMPT'!$D$8,IF(J95=8,'[1]Equivalencia BH-BMPT'!$D$9,IF(J95=9,'[1]Equivalencia BH-BMPT'!$D$10,IF(J95=10,'[1]Equivalencia BH-BMPT'!$D$11,IF(J95=11,'[1]Equivalencia BH-BMPT'!$D$12,IF(J95=12,'[1]Equivalencia BH-BMPT'!$D$13,IF(J95=13,'[1]Equivalencia BH-BMPT'!$D$14,IF(J95=14,'[1]Equivalencia BH-BMPT'!$D$15,IF(J95=15,'[1]Equivalencia BH-BMPT'!$D$16,IF(J95=16,'[1]Equivalencia BH-BMPT'!$D$17,IF(J95=17,'[1]Equivalencia BH-BMPT'!$D$18,IF(J95=18,'[1]Equivalencia BH-BMPT'!$D$19,IF(J95=19,'[1]Equivalencia BH-BMPT'!$D$20,IF(J95=20,'[1]Equivalencia BH-BMPT'!$D$21,IF(J95=21,'[1]Equivalencia BH-BMPT'!$D$22,IF(J95=22,'[1]Equivalencia BH-BMPT'!$D$23,IF(J95=23,'[1]Equivalencia BH-BMPT'!#REF!,IF(J95=24,'[1]Equivalencia BH-BMPT'!$D$25,IF(J95=25,'[1]Equivalencia BH-BMPT'!$D$26,IF(J95=26,'[1]Equivalencia BH-BMPT'!$D$27,IF(J95=27,'[1]Equivalencia BH-BMPT'!$D$28,IF(J95=28,'[1]Equivalencia BH-BMPT'!$D$29,IF(J95=29,'[1]Equivalencia BH-BMPT'!$D$30,IF(J95=30,'[1]Equivalencia BH-BMPT'!$D$31,IF(J95=31,'[1]Equivalencia BH-BMPT'!$D$32,IF(J95=32,'[1]Equivalencia BH-BMPT'!$D$33,IF(J95=33,'[1]Equivalencia BH-BMPT'!$D$34,IF(J95=34,'[1]Equivalencia BH-BMPT'!$D$35,IF(J95=35,'[1]Equivalencia BH-BMPT'!$D$36,IF(J95=36,'[1]Equivalencia BH-BMPT'!$D$37,IF(J95=37,'[1]Equivalencia BH-BMPT'!$D$38,IF(J95=38,'[1]Equivalencia BH-BMPT'!#REF!,IF(J95=39,'[1]Equivalencia BH-BMPT'!$D$40,IF(J95=40,'[1]Equivalencia BH-BMPT'!$D$41,IF(J95=41,'[1]Equivalencia BH-BMPT'!$D$42,IF(J95=42,'[1]Equivalencia BH-BMPT'!$D$43,IF(J95=43,'[1]Equivalencia BH-BMPT'!$D$44,IF(J95=44,'[1]Equivalencia BH-BMPT'!$D$45,IF(J95=45,'[1]Equivalencia BH-BMPT'!$D$46,"No ha seleccionado un número de programa"))))))))))))))))))))))))))))))))))))))))))))) -> Mejor movilidad para todos | L95: 1338 | M95: 80858244 | N95: LUIS EVELIO RODRIGUEZ MENDEZ | O95: 4821600 | S95: 0 | T95: 4821600 | U95: 2558400 | V95: 2017-09-22 | W95: 2017-10-23 | X95: 2018-01-30 | Y95: =8+90 -> 98 | Z95: 0 | AC95: X | AF95: 0.5306122449
A96: 73 | B96: 2017 | C96: CPS 073 2017 | D96: 5 | E96: =IF(D96=1,'[1]Tipo '!$B$2,IF(D96=2,'[1]Tipo '!$B$3,IF(D96=3,'[1]Tipo '!$B$4,IF(D96=4,'[1]Tipo '!$B$5,IF(D96=5,'[1]Tipo '!$B$6,IF(D96=6,'[1]Tipo '!$B$7,IF(D96=7,'[1]Tipo '!$B$8,IF(D96=8,'[1]Tipo '!$B$9,IF(D96=9,'[1]Tipo '!$B$10,IF(D96=10,'[1]Tipo '!$B$11,IF(D96=11,'[1]Tipo '!$B$12,IF(D96=12,'[1]Tipo '!$B$13,IF(D96=13,'[1]Tipo '!$B$14,IF(D96=14,'[1]Tipo '!$B$15,IF(D96=15,'[1]Tipo '!$B$16,IF(D96=16,'[1]Tipo '!$B$17,IF(D96=17,'[1]Tipo '!$B$18,IF(D96=18,'[1]Tipo '!$B$19,IF(D96=19,'[1]Tipo '!$B$20,"No ha seleccionado un tipo de contrato válido"))))))))))))))))))) -> CONTRATOS DE PRESTACIÓN DE SERVICIOS PROFESIONALES Y DE APOYO A LA GESTIÓN | F96: CONTRATACIÓN DIRECTA | G96: Prestación de servicios profesionales y de apoyo a la gestión, o para la ejecución de trabajos artísticos que sólo puedan encomendarse a determinadas personas naturales; | H96: Prestación de servicios profesionales al Área de Gestión de Desarrollo Local de Teusaquillo, en la formulación, evaluación, y seguimiento del proyecto 1333 en sus componentes de recreación y deporte y acompañamiento en las instancias de participación relacionadas con deportes y juventud | I96: INVERSIÓN | J96: 45 | K96: =IF(J96=1,'[1]Equivalencia BH-BMPT'!$D$2,IF(J96=2,'[1]Equivalencia BH-BMPT'!$D$3,IF(J96=3,'[1]Equivalencia BH-BMPT'!$D$4,IF(J96=4,'[1]Equivalencia BH-BMPT'!$D$5,IF(J96=5,'[1]Equivalencia BH-BMPT'!$D$6,IF(J96=6,'[1]Equivalencia BH-BMPT'!$D$7,IF(J96=7,'[1]Equivalencia BH-BMPT'!$D$8,IF(J96=8,'[1]Equivalencia BH-BMPT'!$D$9,IF(J96=9,'[1]Equivalencia BH-BMPT'!$D$10,IF(J96=10,'[1]Equivalencia BH-BMPT'!$D$11,IF(J96=11,'[1]Equivalencia BH-BMPT'!$D$12,IF(J96=12,'[1]Equivalencia BH-BMPT'!$D$13,IF(J96=13,'[1]Equivalencia BH-BMPT'!$D$14,IF(J96=14,'[1]Equivalencia BH-BMPT'!$D$15,IF(J96=15,'[1]Equivalencia BH-BMPT'!$D$16,IF(J96=16,'[1]Equivalencia BH-BMPT'!$D$17,IF(J96=17,'[1]Equivalencia BH-BMPT'!$D$18,IF(J96=18,'[1]Equivalencia BH-BMPT'!$D$19,IF(J96=19,'[1]Equivalencia BH-BMPT'!$D$20,IF(J96=20,'[1]Equivalencia BH-BMPT'!$D$21,IF(J96=21,'[1]Equivalencia BH-BMPT'!$D$22,IF(J96=22,'[1]Equivalencia BH-BMPT'!$D$23,IF(J96=23,'[1]Equivalencia BH-BMPT'!#REF!,IF(J96=24,'[1]Equivalencia BH-BMPT'!$D$25,IF(J96=25,'[1]Equivalencia BH-BMPT'!$D$26,IF(J96=26,'[1]Equivalencia BH-BMPT'!$D$27,IF(J96=27,'[1]Equivalencia BH-BMPT'!$D$28,IF(J96=28,'[1]Equivalencia BH-BMPT'!$D$29,IF(J96=29,'[1]Equivalencia BH-BMPT'!$D$30,IF(J96=30,'[1]Equivalencia BH-BMPT'!$D$31,IF(J96=31,'[1]Equivalencia BH-BMPT'!$D$32,IF(J96=32,'[1]Equivalencia BH-BMPT'!$D$33,IF(J96=33,'[1]Equivalencia BH-BMPT'!$D$34,IF(J96=34,'[1]Equivalencia BH-BMPT'!$D$35,IF(J96=35,'[1]Equivalencia BH-BMPT'!$D$36,IF(J96=36,'[1]Equivalencia BH-BMPT'!$D$37,IF(J96=37,'[1]Equivalencia BH-BMPT'!$D$38,IF(J96=38,'[1]Equivalencia BH-BMPT'!#REF!,IF(J96=39,'[1]Equivalencia BH-BMPT'!$D$40,IF(J96=40,'[1]Equivalencia BH-BMPT'!$D$41,IF(J96=41,'[1]Equivalencia BH-BMPT'!$D$42,IF(J96=42,'[1]Equivalencia BH-BMPT'!$D$43,IF(J96=43,'[1]Equivalencia BH-BMPT'!$D$44,IF(J96=44,'[1]Equivalencia BH-BMPT'!$D$45,IF(J96=45,'[1]Equivalencia BH-BMPT'!$D$46,"No ha seleccionado un número de programa"))))))))))))))))))))))))))))))))))))))))))))) -> Gobernanza e influencia local, regional e internacional | L96: 1329 | M96: 1144037315 | N96: JACOBO PARDEY ROZO | O96: 14373333 | S96: 0 | T96: 14373333 | U96: 11733333 | V96: 2017-09-22 | W96: 2017-09-22 | X96: 2017-12-29 | Y96: 98 | Z96: 0 | AE96: X | AF96: 0.8163265264
A97: 74 | B97: 2017 | C97: CPS 074 2017 | D97: 5 | E97: =IF(D97=1,'[1]Tipo '!$B$2,IF(D97=2,'[1]Tipo '!$B$3,IF(D97=3,'[1]Tipo '!$B$4,IF(D97=4,'[1]Tipo '!$B$5,IF(D97=5,'[1]Tipo '!$B$6,IF(D97=6,'[1]Tipo '!$B$7,IF(D97=7,'[1]Tipo '!$B$8,IF(D97=8,'[1]Tipo '!$B$9,IF(D97=9,'[1]Tipo '!$B$10,IF(D97=10,'[1]Tipo '!$B$11,IF(D97=11,'[1]Tipo '!$B$12,IF(D97=12,'[1]Tipo '!$B$13,IF(D97=13,'[1]Tipo '!$B$14,IF(D97=14,'[1]Tipo '!$B$15,IF(D97=15,'[1]Tipo '!$B$16,IF(D97=16,'[1]Tipo '!$B$17,IF(D97=17,'[1]Tipo '!$B$18,IF(D97=18,'[1]Tipo '!$B$19,IF(D97=19,'[1]Tipo '!$B$20,"No ha seleccionado un tipo de contrato válido"))))))))))))))))))) -> CONTRATOS DE PRESTACIÓN DE SERVICIOS PROFESIONALES Y DE APOYO A LA GESTIÓN | F97: CONTRATACIÓN DIRECTA | G97: Prestación de servicios profesionales y de apoyo a la gestión, o para la ejecución de trabajos artísticos que sólo puedan encomendarse a determinadas personas naturales; | H97: ¿Prestación de servicios de apoyo de logística que se requieran en el desarrollo de las actividades relativas a recuperación y embellecimiento del espacio público dentro del proyecto 1338 Teusaquillo Mejor para la conservación de la malla vial local y Espacio Público Peatonal¿. | I97: INVERSIÓN | J97: 18 | K97: =IF(J97=1,'[1]Equivalencia BH-BMPT'!$D$2,IF(J97=2,'[1]Equivalencia BH-BMPT'!$D$3,IF(J97=3,'[1]Equivalencia BH-BMPT'!$D$4,IF(J97=4,'[1]Equivalencia BH-BMPT'!$D$5,IF(J97=5,'[1]Equivalencia BH-BMPT'!$D$6,IF(J97=6,'[1]Equivalencia BH-BMPT'!$D$7,IF(J97=7,'[1]Equivalencia BH-BMPT'!$D$8,IF(J97=8,'[1]Equivalencia BH-BMPT'!$D$9,IF(J97=9,'[1]Equivalencia BH-BMPT'!$D$10,IF(J97=10,'[1]Equivalencia BH-BMPT'!$D$11,IF(J97=11,'[1]Equivalencia BH-BMPT'!$D$12,IF(J97=12,'[1]Equivalencia BH-BMPT'!$D$13,IF(J97=13,'[1]Equivalencia BH-BMPT'!$D$14,IF(J97=14,'[1]Equivalencia BH-BMPT'!$D$15,IF(J97=15,'[1]Equivalencia BH-BMPT'!$D$16,IF(J97=16,'[1]Equivalencia BH-BMPT'!$D$17,IF(J97=17,'[1]Equivalencia BH-BMPT'!$D$18,IF(J97=18,'[1]Equivalencia BH-BMPT'!$D$19,IF(J97=19,'[1]Equivalencia BH-BMPT'!$D$20,IF(J97=20,'[1]Equivalencia BH-BMPT'!$D$21,IF(J97=21,'[1]Equivalencia BH-BMPT'!$D$22,IF(J97=22,'[1]Equivalencia BH-BMPT'!$D$23,IF(J97=23,'[1]Equivalencia BH-BMPT'!#REF!,IF(J97=24,'[1]Equivalencia BH-BMPT'!$D$25,IF(J97=25,'[1]Equivalencia BH-BMPT'!$D$26,IF(J97=26,'[1]Equivalencia BH-BMPT'!$D$27,IF(J97=27,'[1]Equivalencia BH-BMPT'!$D$28,IF(J97=28,'[1]Equivalencia BH-BMPT'!$D$29,IF(J97=29,'[1]Equivalencia BH-BMPT'!$D$30,IF(J97=30,'[1]Equivalencia BH-BMPT'!$D$31,IF(J97=31,'[1]Equivalencia BH-BMPT'!$D$32,IF(J97=32,'[1]Equivalencia BH-BMPT'!$D$33,IF(J97=33,'[1]Equivalencia BH-BMPT'!$D$34,IF(J97=34,'[1]Equivalencia BH-BMPT'!$D$35,IF(J97=35,'[1]Equivalencia BH-BMPT'!$D$36,IF(J97=36,'[1]Equivalencia BH-BMPT'!$D$37,IF(J97=37,'[1]Equivalencia BH-BMPT'!$D$38,IF(J97=38,'[1]Equivalencia BH-BMPT'!#REF!,IF(J97=39,'[1]Equivalencia BH-BMPT'!$D$40,IF(J97=40,'[1]Equivalencia BH-BMPT'!$D$41,IF(J97=41,'[1]Equivalencia BH-BMPT'!$D$42,IF(J97=42,'[1]Equivalencia BH-BMPT'!$D$43,IF(J97=43,'[1]Equivalencia BH-BMPT'!$D$44,IF(J97=44,'[1]Equivalencia BH-BMPT'!$D$45,IF(J97=45,'[1]Equivalencia BH-BMPT'!$D$46,"No ha seleccionado un número de programa"))))))))))))))))))))))))))))))))))))))))))))) -> Mejor movilidad para todos | L97: 1338 | M97: 1020818420 | N97: SERGIO ESPINEL ORJUELA | O97: 4821600 | S97: 0 | T97: 4821600 | U97: 2558400 | V97: 2017-09-24 | W97: 2017-10-23 | X97: 2018-01-30 | Y97: 98 | Z97: 0 | AC97: X | AF97: 0.5306122449
A98: 75 | B98: 2017 | C98: CPS 075 2017 | D98: 5 | E98: =IF(D98=1,'[1]Tipo '!$B$2,IF(D98=2,'[1]Tipo '!$B$3,IF(D98=3,'[1]Tipo '!$B$4,IF(D98=4,'[1]Tipo '!$B$5,IF(D98=5,'[1]Tipo '!$B$6,IF(D98=6,'[1]Tipo '!$B$7,IF(D98=7,'[1]Tipo '!$B$8,IF(D98=8,'[1]Tipo '!$B$9,IF(D98=9,'[1]Tipo '!$B$10,IF(D98=10,'[1]Tipo '!$B$11,IF(D98=11,'[1]Tipo '!$B$12,IF(D98=12,'[1]Tipo '!$B$13,IF(D98=13,'[1]Tipo '!$B$14,IF(D98=14,'[1]Tipo '!$B$15,IF(D98=15,'[1]Tipo '!$B$16,IF(D98=16,'[1]Tipo '!$B$17,IF(D98=17,'[1]Tipo '!$B$18,IF(D98=18,'[1]Tipo '!$B$19,IF(D98=19,'[1]Tipo '!$B$20,"No ha seleccionado un tipo de contrato válido"))))))))))))))))))) -> CONTRATOS DE PRESTACIÓN DE SERVICIOS PROFESIONALES Y DE APOYO A LA GESTIÓN | F98: CONTRATACIÓN DIRECTA | G98: Prestación de servicios profesionales y de apoyo a la gestión, o para la ejecución de trabajos artísticos que sólo puedan encomendarse a determinadas personas naturales; | H98: OBJETO: El contrato que se pretende celebrar, tendrá por objeto ¿Prestación de servicios de apoyo de logística que se requieran en el desarrollo de las actividades relativas a recuperación y embellecimiento del espacio público dentro del proyecto 1338 Teusaquillo Mejor para la conservación de la malla vial local y Espacio Público Peatonal¿. | I98: INVERSIÓN | J98: 18 | K98: =IF(J98=1,'[1]Equivalencia BH-BMPT'!$D$2,IF(J98=2,'[1]Equivalencia BH-BMPT'!$D$3,IF(J98=3,'[1]Equivalencia BH-BMPT'!$D$4,IF(J98=4,'[1]Equivalencia BH-BMPT'!$D$5,IF(J98=5,'[1]Equivalencia BH-BMPT'!$D$6,IF(J98=6,'[1]Equivalencia BH-BMPT'!$D$7,IF(J98=7,'[1]Equivalencia BH-BMPT'!$D$8,IF(J98=8,'[1]Equivalencia BH-BMPT'!$D$9,IF(J98=9,'[1]Equivalencia BH-BMPT'!$D$10,IF(J98=10,'[1]Equivalencia BH-BMPT'!$D$11,IF(J98=11,'[1]Equivalencia BH-BMPT'!$D$12,IF(J98=12,'[1]Equivalencia BH-BMPT'!$D$13,IF(J98=13,'[1]Equivalencia BH-BMPT'!$D$14,IF(J98=14,'[1]Equivalencia BH-BMPT'!$D$15,IF(J98=15,'[1]Equivalencia BH-BMPT'!$D$16,IF(J98=16,'[1]Equivalencia BH-BMPT'!$D$17,IF(J98=17,'[1]Equivalencia BH-BMPT'!$D$18,IF(J98=18,'[1]Equivalencia BH-BMPT'!$D$19,IF(J98=19,'[1]Equivalencia BH-BMPT'!$D$20,IF(J98=20,'[1]Equivalencia BH-BMPT'!$D$21,IF(J98=21,'[1]Equivalencia BH-BMPT'!$D$22,IF(J98=22,'[1]Equivalencia BH-BMPT'!$D$23,IF(J98=23,'[1]Equivalencia BH-BMPT'!#REF!,IF(J98=24,'[1]Equivalencia BH-BMPT'!$D$25,IF(J98=25,'[1]Equivalencia BH-BMPT'!$D$26,IF(J98=26,'[1]Equivalencia BH-BMPT'!$D$27,IF(J98=27,'[1]Equivalencia BH-BMPT'!$D$28,IF(J98=28,'[1]Equivalencia BH-BMPT'!$D$29,IF(J98=29,'[1]Equivalencia BH-BMPT'!$D$30,IF(J98=30,'[1]Equivalencia BH-BMPT'!$D$31,IF(J98=31,'[1]Equivalencia BH-BMPT'!$D$32,IF(J98=32,'[1]Equivalencia BH-BMPT'!$D$33,IF(J98=33,'[1]Equivalencia BH-BMPT'!$D$34,IF(J98=34,'[1]Equivalencia BH-BMPT'!$D$35,IF(J98=35,'[1]Equivalencia BH-BMPT'!$D$36,IF(J98=36,'[1]Equivalencia BH-BMPT'!$D$37,IF(J98=37,'[1]Equivalencia BH-BMPT'!$D$38,IF(J98=38,'[1]Equivalencia BH-BMPT'!#REF!,IF(J98=39,'[1]Equivalencia BH-BMPT'!$D$40,IF(J98=40,'[1]Equivalencia BH-BMPT'!$D$41,IF(J98=41,'[1]Equivalencia BH-BMPT'!$D$42,IF(J98=42,'[1]Equivalencia BH-BMPT'!$D$43,IF(J98=43,'[1]Equivalencia BH-BMPT'!$D$44,IF(J98=44,'[1]Equivalencia BH-BMPT'!$D$45,IF(J98=45,'[1]Equivalencia BH-BMPT'!$D$46,"No ha seleccionado un número de programa"))))))))))))))))))))))))))))))))))))))))))))) -> Mejor movilidad para todos | L98: 1338 | M98: 16289948 | N98: EDWAR ENRIQUE MEJIA YANGUAS | O98: 4821600 | S98: 0 | T98: 4821600 | U98: 2558400 | V98: 2017-09-24 | W98: 2017-10-23 | X98: 2018-01-30 | Y98: 98 | Z98: 0 | AC98: X | AF98: 0.5306122449
A99: 76 | B99: 2016 | D99: 4 | E99: =IF(D99=1,'[1]Tipo '!$B$2,IF(D99=2,'[1]Tipo '!$B$3,IF(D99=3,'[1]Tipo '!$B$4,IF(D99=4,'[1]Tipo '!$B$5,IF(D99=5,'[1]Tipo '!$B$6,IF(D99=6,'[1]Tipo '!$B$7,IF(D99=7,'[1]Tipo '!$B$8,IF(D99=8,'[1]Tipo '!$B$9,IF(D99=9,'[1]Tipo '!$B$10,IF(D99=10,'[1]Tipo '!$B$11,IF(D99=11,'[1]Tipo '!$B$12,IF(D99=12,'[1]Tipo '!$B$13,IF(D99=13,'[1]Tipo '!$B$14,IF(D99=14,'[1]Tipo '!$B$15,IF(D99=15,'[1]Tipo '!$B$16,IF(D99=16,'[1]Tipo '!$B$17,IF(D99=17,'[1]Tipo '!$B$18,IF(D99=18,'[1]Tipo '!$B$19,IF(D99=19,'[1]Tipo '!$B$20,"No ha seleccionado un tipo de contrato válido"))))))))))))))))))) -> CONTRATOS DE PRESTACIÓN DE SERVICIOS | F99: CONTRATACIÓN DIRECTA | G99: Cuando no exista pluralidad de oferentes en el mercado | H99: Adición N° 1 del Contrato N° 076-2016 ¿Prestación del Servicio de Comunicación de AVANTEL de radio y telefonía por el sistema IDEN para la Alcaldía Local de Teusaquillo las 24 horas de manera confidencial, permanente e interrumpida, así como la renovación tecnológica para los 16 (Dieciséis) equipos actuales pertenecientes al FDL. | I99: FUNCIONAMIENTO | K99: =IF(J99=1,'[1]Equivalencia BH-BMPT'!$D$2,IF(J99=2,'[1]Equivalencia BH-BMPT'!$D$3,IF(J99=3,'[1]Equivalencia BH-BMPT'!$D$4,IF(J99=4,'[1]Equivalencia BH-BMPT'!$D$5,IF(J99=5,'[1]Equivalencia BH-BMPT'!$D$6,IF(J99=6,'[1]Equivalencia BH-BMPT'!$D$7,IF(J99=7,'[1]Equivalencia BH-BMPT'!$D$8,IF(J99=8,'[1]Equivalencia BH-BMPT'!$D$9,IF(J99=9,'[1]Equivalencia BH-BMPT'!$D$10,IF(J99=10,'[1]Equivalencia BH-BMPT'!$D$11,IF(J99=11,'[1]Equivalencia BH-BMPT'!$D$12,IF(J99=12,'[1]Equivalencia BH-BMPT'!$D$13,IF(J99=13,'[1]Equivalencia BH-BMPT'!$D$14,IF(J99=14,'[1]Equivalencia BH-BMPT'!$D$15,IF(J99=15,'[1]Equivalencia BH-BMPT'!$D$16,IF(J99=16,'[1]Equivalencia BH-BMPT'!$D$17,IF(J99=17,'[1]Equivalencia BH-BMPT'!$D$18,IF(J99=18,'[1]Equivalencia BH-BMPT'!$D$19,IF(J99=19,'[1]Equivalencia BH-BMPT'!$D$20,IF(J99=20,'[1]Equivalencia BH-BMPT'!$D$21,IF(J99=21,'[1]Equivalencia BH-BMPT'!$D$22,IF(J99=22,'[1]Equivalencia BH-BMPT'!$D$23,IF(J99=23,'[1]Equivalencia BH-BMPT'!#REF!,IF(J99=24,'[1]Equivalencia BH-BMPT'!$D$25,IF(J99=25,'[1]Equivalencia BH-BMPT'!$D$26,IF(J99=26,'[1]Equivalencia BH-BMPT'!$D$27,IF(J99=27,'[1]Equivalencia BH-BMPT'!$D$28,IF(J99=28,'[1]Equivalencia BH-BMPT'!$D$29,IF(J99=29,'[1]Equivalencia BH-BMPT'!$D$30,IF(J99=30,'[1]Equivalencia BH-BMPT'!$D$31,IF(J99=31,'[1]Equivalencia BH-BMPT'!$D$32,IF(J99=32,'[1]Equivalencia BH-BMPT'!$D$33,IF(J99=33,'[1]Equivalencia BH-BMPT'!$D$34,IF(J99=34,'[1]Equivalencia BH-BMPT'!$D$35,IF(J99=35,'[1]Equivalencia BH-BMPT'!$D$36,IF(J99=36,'[1]Equivalencia BH-BMPT'!$D$37,IF(J99=37,'[1]Equivalencia BH-BMPT'!$D$38,IF(J99=38,'[1]Equivalencia BH-BMPT'!#REF!,IF(J99=39,'[1]Equivalencia BH-BMPT'!$D$40,IF(J99=40,'[1]Equivalencia BH-BMPT'!$D$41,IF(J99=41,'[1]Equivalencia BH-BMPT'!$D$42,IF(J99=42,'[1]Equivalencia BH-BMPT'!$D$43,IF(J99=43,'[1]Equivalencia BH-BMPT'!$D$44,IF(J99=44,'[1]Equivalencia BH-BMPT'!$D$45,IF(J99=45,'[1]Equivalencia BH-BMPT'!$D$46,"No ha seleccionado un número de programa"))))))))))))))))))))))))))))))))))))))))))))) -> No ha seleccionado un número de programa | M99: 830016046 | N99: AVANTEL S A S | S99: 4500000 | T99: 4500000 | U99: 0 | V99: 2016-12-15 | W99: 2016-12-16 | X99: 2018-03-15 | Y99: 306 | Z99: 90 | AC99: X | AF99: 0
